Workbook

Sheet Sample Report (hidden)
A2: Date
A3: Hen
A4: Program
A5: Start at 999999
A6: Sequence component 1 | B6: Time 1 | C6: Seqeunce Component 2 | D6: Time 2 | E6: Seqeunce Component 3 | F6: Time 3 | G6: Correct 0 = No 1=Yes | J6: Seqeunce | K6: Time
A7: 12 | B7: 7 | C7: 12 | D7: 42 | E7: 13 | F7: 18 | G7: if 77 new line, if 31 or 41 = yes new line on 77, | J7: =string of Seqeunce compponent 1, 2 & 3 | K7: =time 3
A8: This continues until ther is a 1 on its own to indicate start of summary data
J9: 10-19 =1
A10: Summary Data | J10: 20-29 =2
A11: Correct | B11: Incorrect | C11: Rft | D11: total | E11: Av Correct | F11: Av Incorrect | G11: Percent correct | H11: Time | J11: in this example the seqeunce would be 111
A12: 40 | B12: 33 | C12: 40 | D12: 73 | E12: 23.95 | F12: 15 | G12: 54 | H12: 806

Sheet Summary
A2: Day | B2: Date | C2: Average Response Rate | D2: Target % | E2: RF for non correct sequence | F2: U Value | K2: Block 1 | L2: Block 2 | M2: Block 3 | N2: Block 4 | O2: Block 5 | P2: Block 6
A3: 1 | B3: ='!N102920.010'!B2:C2 -> <date> | C3: =('!N102920.010'!F194/60)/'!N102920.010'!Q3 -> 2.106261023 | D3: ='!N102920.010'!N20/'!N102920.010'!Q3 -> 0 | E3: =SUM('!N102920.010'!L20:Q20)/'!N102920.010'!Q3 -> 0.9206349206 | F3: ='!N102920.010'!Q16 -> 0.09026769475 | J3: Average Response Rate | K3: =AVERAGE(C3:C7) -> 7.543356819 | L3: =AVERAGE(C8:C12) -> 22.99379075 | M3: =AVERAGE(C13:C17) -> 39.35697436 | N3: =AVERAGE(C18:C22) -> 39.404 | O3: =AVERAGE(C23:C27) -> 22.84091311 | P3: =AVERAGE(C28:C32) -> 19.47425595
A4: 2 | B4: ='!N103930.010'!B2:C2 -> <date> | C4: =('!N103930.010'!F99/60)/'!N103930.010'!Q3 -> 4.292293907 | D4: ='!N103930.010'!N20/'!N103930.010'!Q3 -> 0 | E4: =SUM('!N103930.010'!L20:Q20)/'!N103930.010'!Q3 -> 1.52688172 | F4: ='!N103930.010'!Q16 -> 0.0801930729 | J4: Target % | K4: =AVERAGE(D3:D7) -> 0 | L4: =AVERAGE(D8:D12) -> 0 | M4: =AVERAGE(D13:D17) -> 0 | N4: =AVERAGE(D18:D22) -> 0 | O4: =AVERAGE(D23:D27) -> 0 | P4: =AVERAGE(D28:D32) -> 0.009259259259
A5: 3 | B5: ='!N104A20.010'!B2:C2 -> <date> | C5: =('!N104A20.010'!F38/60)/'!N104A20.010'!Q3 -> 7.427604167 | D5: ='!N104A20.010'!N20/'!N104A20.010'!Q3 -> 0 | E5: =SUM('!N104A20.010'!L20:Q20)/'!N104A20.010'!Q3 -> 3.8125 | F5: ='!N104A20.010'!Q16 -> 0.08977289774 | J5: CCRF | K5: =AVERAGE(E3:E7) -> 2.871646185 | L5: =AVERAGE(E8:E12) -> 3.447250384 | M5: =AVERAGE(E13:E17) -> 3.321538462 | N5: =AVERAGE(E18:E22) -> 2.646578947 | O5: =AVERAGE(E23:E27) -> 4.041538462 | P5: =AVERAGE(E28:E32) -> 2.386243386
A6: 4 | B6: ='!N105910.010'!B2:C2 -> <date> | C6: =('!N105910.010'!F38/60)/'!N105910.010'!Q3 -> 11.178125 | D6: ='!N105910.010'!N20/'!N105910.010'!Q3 -> 0 | E6: =SUM('!N105910.010'!L20:Q20)/'!N105910.010'!Q3 -> 3.8125 | F6: ='!N105910.010'!Q16 -> 0.1622556249 | J6: U Value | K6: =AVERAGE(F3:F7) -> 0.1049347657 | L6: =AVERAGE(F8:F12) -> 0.2643064546 | M6: =AVERAGE(F13:F17) -> 0.1952850024 | N6: =AVERAGE(F18:F22) -> 0.189398667 | O6: =AVERAGE(F23:F27) -> 0.2916534963 | P6: =AVERAGE(F28:F32) -> 0.263510101
A7: 5 | B7: ='!N106740.010'!B2:C2 -> <date> | C7: =('!N106740.010'!F34/60)/'!N106740.010'!Q3 -> 12.7125 | D7: ='!N106740.010'!N20/'!N106740.010'!Q3 -> 0 | E7: =SUM('!N106740.010'!L20:Q20)/'!N106740.010'!Q3 -> 4.285714286 | F7: ='!N106740.010'!Q16 -> 0.102184538
A8: 6 | B8: ='!N107800.010'!B2:C2 -> <date> | C8: =('!N107800.010'!F41/60)/'!N107800.010'!Q3 -> 11.29761905 | D8: ='!N107800.010'!N20/'!N107800.010'!Q3 -> 0 | E8: =SUM('!N107800.010'!L20:Q20)/'!N107800.010'!Q3 -> 3.514285714 | F8: ='!N107800.010'!Q16 -> 0.1407463953
A9: 7 | B9: ='!N108850.010'!B2:C2 -> <date> | C9: =('!N108850.010'!F37/60)/'!N108850.010'!Q3 -> 9.377419355 | D9: ='!N108850.010'!N20/'!N108850.010'!Q3 -> 0 | E9: =SUM('!N108850.010'!L20:Q20)/'!N108850.010'!Q3 -> 7.483870968 | F9: ='!N108850.010'!Q16 -> 0.1555507737 | G9: =K3 -> 7.543356819 | H9: 22.99379075 | I9: 39.35697436 | J9: 39.404 | K9: 22.84091311 | L9: 19.47425595 | M9: =K4 -> 0 | N9: 0 | O9: 0 | P9: 0 | Q9: 0 | R9: 0.009259259259 | S9: =K6 -> 0.1049347657 | T9: 0.2643064546 | U9: 0.1952850024 | V9: 0.189398667 | W9: 0.2916534963 | X9: 0.263510101
A10: 8 | B10: ='!N109740.010'!B2:C2 -> <date> | C10: =('!N109740.010'!F15/60)/'!N109740.010'!Q3 -> 30.95185185 | D10: ='!N109740.010'!N20/'!N109740.010'!Q3 -> 0 | E10: =SUM('!N109740.010'!L20:Q20)/'!N109740.010'!Q3 -> 0.3333333333 | F10: ='!N109740.010'!Q16 -> 0.3126496871
A11: 9 | B11: ='!N110900.010'!B2:C2 -> <date> | C11: =('!N110900.010'!F27/60)/'!N110900.010'!Q3 -> 6.499206349 | D11: ='!N110900.010'!N20/'!N110900.010'!Q3 -> 0 | E11: =SUM('!N110900.010'!L20:Q20)/'!N110900.010'!Q3 -> 5.619047619 | F11: ='!N110900.010'!Q16 -> 0.1965068745
A12: 10 | B12: ='!N111930.010'!B2:C2 -> <date> | C12: =('!N111930.010'!F13/60)/'!N111930.010'!Q3 -> 56.84285714 | D12: ='!N111930.010'!N20/'!N111930.010'!Q3 -> 0 | E12: =SUM('!N111930.010'!L20:Q20)/'!N111930.010'!Q3 -> 0.2857142857 | F12: ='!N111930.010'!Q16 -> 0.5160785422
A13: 11 | B13: ='!N112750.010'!B2:C2 -> <date> | C13: =('!N112750.010'!F15/60)/'!N112750.010'!Q3 -> 20.82962963 | D13: ='!N112750.010'!N20/'!N112750.010'!Q3 -> 0 | E13: =SUM('!N112750.010'!L20:Q20)/'!N112750.010'!Q3 -> 0.3333333333 | F13: ='!N112750.010'!Q16 -> 0.2410796805
A14: 12 | B14: ='!N113900.010'!B2:C2 -> <date> | C14: =('!N113900.010'!F21/60)/'!N113900.010'!Q3 -> 24.00666667 | D14: ='!N113900.010'!N20/'!N113900.010'!Q3 -> 0 | E14: =SUM('!N113900.010'!L20:Q20)/'!N113900.010'!Q3 -> 15.13333333 | F14: ='!N113900.010'!Q16 -> 0.2350451879
A15: 13 | B15: ='!N114830.010'!B2:C2 -> <date> | C15: =('!N114830.010'!F8/60)/'!N114830.010'!Q3 -> 89.85 | D15: ='!N114830.010'!N20/'!N114830.010'!Q3 -> 0 | E15: =SUM('!N114830.010'!L20:Q20)/'!N114830.010'!Q3 -> 0.5 | F15: ='!N114830.010'!Q16 -> 0
A16: 14 | B16: ='!N115840.010'!B2:C2 -> <date> | C16: =('!N115840.010'!F15/60)/'!N115840.010'!Q3 -> 35.47037037 | D16: ='!N115840.010'!N20/'!N115840.010'!Q3 -> 0 | E16: =SUM('!N115840.010'!L20:Q20)/'!N115840.010'!Q3 -> 0.3333333333 | F16: ='!N115840.010'!Q16 -> 0.2896900821
A17: 15 | B17: ='!N116820.010'!B2:C2 -> <date> | C17: =('!N116820.010'!F19/60)/'!N116820.010'!Q3 -> 26.62820513 | D17: ='!N116820.010'!N20/'!N116820.010'!Q3 -> 0 | E17: =SUM('!N116820.010'!L20:Q20)/'!N116820.010'!Q3 -> 0.3076923077 | F17: ='!N116820.010'!Q16 -> 0.2106100617
A18: 16 | B18: ='!N117A40.010'!B2:C2 -> <date> | C18: =('!N117A40.010'!F26/60)/'!N117A40.010'!Q3 -> 18.83 | D18: ='!N117A40.010'!N20/'!N117A40.010'!Q3 -> 0 | E18: =SUM('!N117A40.010'!L20:Q20)/'!N117A40.010'!Q3 -> 5.9 | F18: ='!N117A40.010'!Q16 -> 0.2313782132
A19: 17 | B19: ='!N118950.010'!B2:C2 -> <date> | C19: =('!N118950.010'!F11/60)/'!N118950.010'!Q3 -> 62.96 | D19: ='!N118950.010'!N20/'!N118950.010'!Q3 -> 0 | E19: =SUM('!N118950.010'!L20:Q20)/'!N118950.010'!Q3 -> 0.4 | F19: ='!N118950.010'!Q16 -> 0
A20: 18 | B20: ='!N119830.010'!B2:C2 -> <date> | C20: =('!N119830.010'!F25/60)/'!N119830.010'!Q3 -> 9.533333333 | D20: ='!N119830.010'!N20/'!N119830.010'!Q3 -> 0 | E20: =SUM('!N119830.010'!L20:Q20)/'!N119830.010'!Q3 -> 6.157894737 | F20: ='!N119830.010'!Q16 -> 0.2235094672
A21: 19 | B21: ='!N120940.010'!B2:C2 -> <date> | C21: =('!N120940.010'!F11/60)/'!N120940.010'!Q3 -> 56.69666667 | D21: ='!N120940.010'!N20/'!N120940.010'!Q3 -> 0 | E21: =SUM('!N120940.010'!L20:Q20)/'!N120940.010'!Q3 -> 0.4 | F21: ='!N120940.010'!Q16 -> 0.3109175071
A22: 20 | B22: ='!N121930.010'!B2:C2 -> <date> | C22: =('!N121930.010'!F14/60)/'!N121930.010'!Q3 -> 49 | D22: ='!N121930.010'!N20/'!N121930.010'!Q3 -> 0 | E22: =SUM('!N121930.010'!L20:Q20)/'!N121930.010'!Q3 -> 0.375 | F22: ='!N121930.010'!Q16 -> 0.1811881477
A23: 21 | B23: ='!N122820.010'!B2:C2 -> <date> | C23: =('!N122820.010'!F11/60)/'!N122820.010'!Q3 -> 42.40666667 | D23: ='!N122820.010'!N20/'!N122820.010'!Q3 -> 0 | E23: =SUM('!N122820.010'!L20:Q20)/'!N122820.010'!Q3 -> 0.4 | F23: ='!N122820.010'!Q16 -> 0.4181656601
A24: 22 | B24: ='!N123950.010'!B2:C2 -> <date> | C24: =('!N123950.010'!F24/60)/'!N123950.010'!Q3 -> 17.05740741 | D24: ='!N123950.010'!N20/'!N123950.010'!Q3 -> 0 | E24: =SUM('!N123950.010'!L20:Q20)/'!N123950.010'!Q3 -> 12.66666667 | F24: ='!N123950.010'!Q16 -> 0.2376723945
A25: 23 | B25: ='!N124850.010'!B2:C2 -> <date> | C25: =('!N124850.010'!F15/60)/'!N124850.010'!Q3 -> 35.37962963 | D25: ='!N124850.010'!N20/'!N124850.010'!Q3 -> 0 | E25: =SUM('!N124850.010'!L20:Q20)/'!N124850.010'!Q3 -> 0.3333333333 | F25: ='!N124850.010'!Q16 -> 0.3126496871
A26: 24 | B26: ='!N125850.010'!B2:C2 -> <date> | C26: =('!N125850.010'!F42/60)/'!N125850.010'!Q3 -> 7.446759259 | D26: ='!N125850.010'!N20/'!N125850.010'!Q3 -> 0 | E26: =SUM('!N125850.010'!L20:Q20)/'!N125850.010'!Q3 -> 6.5 | F26: ='!N125850.010'!Q16 -> 0.2206961911
A27: 25 | B27: ='!N126820.010'!B2:C2 -> <date> | C27: =('!N126820.010'!F19/60)/'!N126820.010'!Q3 -> 11.91410256 | D27: ='!N126820.010'!N20/'!N126820.010'!Q3 -> 0 | E27: =SUM('!N126820.010'!L20:Q20)/'!N126820.010'!Q3 -> 0.3076923077 | F27: ='!N126820.010'!Q16 -> 0.269083549
A28: 26 | B28: ='!N127950.010'!B2:C2 -> <date> | C28: =('!N127950.010'!F33/60)/'!N127950.010'!Q3 -> 9.295679012 | D28: ='!N127950.010'!N20/'!N127950.010'!Q3 -> 0.03703703704 | E28: =SUM('!N127950.010'!L20:Q20)/'!N127950.010'!Q3 -> 4.481481481 | F28: ='!N127950.010'!Q16 -> 0.205898283
A29: 27 | B29: ='!N128810.010'!B2:C2 -> <date> | C29: =('!N128810.010'!F33/60)/'!N128810.010'!Q3 -> 11.57654321 | D29: ='!N128810.010'!N20/'!N128810.010'!Q3 -> 0 | E29: =SUM('!N128810.010'!L20:Q20)/'!N128810.010'!Q3 -> 4.444444444 | F29: ='!N128810.010'!Q16 -> 0.2182538325
A30: 28 | B30: ='!N129940.010'!B2:C2 -> <date> | C30: =('!N129940.010'!F18/60)/'!N129940.010'!Q3 -> 10.14861111 | D30: ='!N129940.010'!N20/'!N129940.010'!Q3 -> 0 | E30: =SUM('!N129940.010'!L20:Q20)/'!N129940.010'!Q3 -> 0.3333333333 | F30: ='!N129940.010'!Q16 -> 0.2789429457
A31: 29 | B31: ='!N130950.010'!B2:C2 -> <date> | C31: =('!N130950.010'!F13/60)/'!N130950.010'!Q3 -> 46.87619048 | D31: ='!N130950.010'!N20/'!N130950.010'!Q3 -> 0 | E31: =SUM('!N130950.010'!L20:Q20)/'!N130950.010'!Q3 -> 0.2857142857 | F31: ='!N130950.010'!Q16 -> 0.350945343
A32: 30

Sheet Start
F1: Use Folder 51 | H1: Auto Clean Up | J1: Correct sequence
F2: FALSE | H2: TRUE | J2: 211
A4: Working with Folder | G4: Process All/Or Pick A number: ALL or an integer
A5: E:\Hen Data\Raw Data\102_182\phase 1 repeat\ | G5: ALL
A6: Filenames:
A7: !N102920.010 | G7: Paint Cells
A8: !N103930.010 | G8: FALSE
A9: !N104A20.010
A10: !N105910.010
A11: !N106740.010
A12: !N107800.010
A13: !N108850.010
A14: !N109740.010
A15: !N110900.010
A16: !N111930.010
A17: !N112750.010
A18: !N113900.010
A19: !N114830.010
A20: !N115840.010
A21: !N116820.010
A22: !N117A40.010
A23: !N118950.010
A24: !N119830.010
A25: !N120940.010
A26: !N121930.010
A27: !N122820.010
A28: !N123950.010
A29: !N124850.010
A30: !N125850.010
A31: !N126820.010
A32: !N127950.010
A33: !N128810.010
A34: !N129940.010
A35: !N130950.010

Sheet !N102920.010
A1: Report for:!N102920.010
A2: Date: | B2: <date>
A3: Hen: | B3: <hen> | F3: Correct Sequence | G3: =Start!J2 -> 211 | P3: Total Sequences in Data | Q3: =4994-COUNTBLANK(L7:L5000) -> 189 | V3: Total Sequences in Block Data | W3: =COUNTA(L7:L38) -> 32 | AA3: Total Sequences in Block Data | AB3: =COUNTA(L39:L69) -> 31 | AF3: Total Sequences in Block Data | AG3: =COUNTA(L70:L101) -> 32 | AK3: Total Sequences in Block Data | AL3: =COUNTA(L102:L132) -> 31 | AP3: Total Sequences in Block Data | AQ3: =COUNTA(L133:L164) -> 32 | AU3: Total Sequences in Block Data | AV3: =COUNTA(L165:L195) -> 31
P4: Total Sequences in Summary | Q4: =SUM(O7:O14) -> 188 | V4: Total Sequences in Block Summary | W4: =SUM(U7:U14) -> 32 | AA4: Total Sequences in Block Summary | AB4: =SUM(Z7:Z14) -> 31 | AF4: Total Sequences in Block Summary | AG4: =SUM(AE7:AE14) -> 32 | AK4: Total Sequences in Block Summary | AL4: =SUM(AJ7:AJ14) -> 31 | AP4: Total Sequences in Block Summary | AQ4: =SUM(AO7:AO14) -> 32 | AU4: Total Sequences in Block Summary | AV4: =SUM(AT7:AT14) -> 30
T5: Block 1 | Y5: Block 2 | AD5: Block 3 | AI5: Block 4 | AN5: Block 5 | AS5: Block 6
A6: Sequence Component 1 | B6: Time 1 | C6: Sequence Component 2 | D6: Time 2 | E6: Sequence Component 3 | F6: Time 3 | G6: Sequence Component 4 | H6: Time 4 | I6: Sequence Component 5 | J6: Time 5 | K6: Correct? 0=No 1=Yes | L6: Sequence | N6: Frequency | P6: Relative Frequency | Q6: Variability | T6: Frequency | V6: Relative Frequency | W6: Variability | Y6: Frequency | AA6: Relative Frequency | AB6: Variability | AD6: Frequency | AF6: Relative Frequency | AG6: Variability | AI6: Frequency | AK6: Relative Frequency | AL6: Variability | AN6: Frequency | AP6: Relative Frequency | AQ6: Variability | AS6: Frequency | AU6: Relative Frequency | AV6: Variability
A7: 12 | B7: 18 | C7: 13 | D7: 24 | E7: 13 | F7: 29 | K7: 0 | L7: 111 | N7: 111 | O7: =COUNTIF($L$7:$L$500,N7) -> 154 | P7: =O7/$Q$4 -> 0.8191489362 | Q7: =IF(P7=0,0,(P7*((LOG(P7))/LOG(2)))) -> -0.2357529569 | T7: =N7 -> 111 | U7: =COUNTIF(L7:L38,T7) -> 29 | V7: =U7/(W4-U11) -> 0.90625 | W7: =IF(V7=0,0,(V7*((LOG(V7))/LOG(2)))) -> -0.1287047232 | Y7: =N7 -> 111 | Z7: =COUNTIF(L39:L69,Y7) -> 28 | AA7: =Z7/(AB4-Z11) -> 0.9032258065 | AB7: =IF(AA7=0,0,(AA7*((LOG(AA7))/LOG(2)))) -> -0.1326309314 | AD7: =N7 -> 111 | AE7: =COUNTIF(L70:L101,AD7) -> 28 | AF7: =AE7/(AG4-AE11) -> 0.875 | AG7: =IF(AF7=0,0,(AF7*((LOG(AF7))/LOG(2)))) -> -0.1685644432 | AI7: =N7 -> 111 | AJ7: =COUNTIF(L102:L132,AI7) -> 24 | AK7: =AJ7/(AL4-AJ11) -> 0.7741935484 | AL7: =IF(AK7=0,0,(AK7*((LOG(AK7))/LOG(2)))) -> -0.2858584333 | AN7: =N7 -> 111 | AO7: =COUNTIF(L133:L164,AN7) -> 24 | AP7: =AO7/(AQ4-AO11) -> 0.75 | AQ7: =IF(AP7=0,0,(AP7*((LOG(AP7))/LOG(2)))) -> -0.3112781245 | AS7: =N7 -> 111 | AT7: =COUNTIF(L165:L195,AS7) -> 21 | AU7: =AT7/(AV4-AT11) -> 0.7 | AV7: =IF(AU7=0,0,(AU7*((LOG(AU7))/LOG(2)))) -> -0.360201221
A8: 12 | B8: 137 | C8: 13 | D8: 141 | E8: 13 | F8: 146 | K8: 0 | L8: 111 | N8: 112 | O8: =COUNTIF($L$7:$L$500,N8) -> 0 | P8: =O8/$Q$4 -> 0 | Q8: =IF(P8=0,0,(P8*((LOG(P8))/LOG(2)))) -> 0 | T8: =N8 -> 112 | U8: =COUNTIF(L7:L38,T8) -> 0 | V8: =U8/(W4-U11) -> 0 | W8: =IF(V8=0,0,(V8*((LOG(V8))/LOG(2)))) -> 0 | Y8: =N8 -> 112 | Z8: =COUNTIF(L39:L69,Y8) -> 0 | AA8: =Z8/(AB4-Z11) -> 0 | AB8: =IF(AA8=0,0,(AA8*((LOG(AA8))/LOG(2)))) -> 0 | AD8: =N8 -> 112 | AE8: =COUNTIF(L70:L101,AD8) -> 0 | AF8: =AE8/(AG4-AE11) -> 0 | AG8: =IF(AF8=0,0,(AF8*((LOG(AF8))/LOG(2)))) -> 0 | AI8: =N8 -> 112 | AJ8: =COUNTIF(L102:L132,AI8) -> 0 | AK8: =AJ8/(AL4-AJ11) -> 0 | AL8: =IF(AK8=0,0,(AK8*((LOG(AK8))/LOG(2)))) -> 0 | AN8: =N8 -> 112 | AO8: =COUNTIF(L133:L164,AN8) -> 0 | AP8: =AO8/(AQ4-AO11) -> 0 | AQ8: =IF(AP8=0,0,(AP8*((LOG(AP8))/LOG(2)))) -> 0 | AS8: =N8 -> 112 | AT8: =COUNTIF(L165:L195,AS8) -> 0 | AU8: =AT8/(AV4-AT11) -> 0 | AV8: =IF(AU8=0,0,(AU8*((LOG(AU8))/LOG(2)))) -> 0
A9: 12 | B9: 251 | C9: 13 | D9: 255 | E9: 13 | F9: 260 | K9: 0 | L9: 111 | N9: 121 | O9: =COUNTIF($L$7:$L$500,N9) -> 0 | P9: =O9/$Q$4 -> 0 | Q9: =IF(P9=0,0,(P9*((LOG(P9))/LOG(2)))) -> 0 | T9: =N9 -> 121 | U9: =COUNTIF(L7:L38,T9) -> 0 | V9: =U9/(W4-U11) -> 0 | W9: =IF(V9=0,0,(V9*((LOG(V9))/LOG(2)))) -> 0 | Y9: =N9 -> 121 | Z9: =COUNTIF(L39:L69,Y9) -> 0 | AA9: =Z9/(AB4-Z11) -> 0 | AB9: =IF(AA9=0,0,(AA9*((LOG(AA9))/LOG(2)))) -> 0 | AD9: =N9 -> 121 | AE9: =COUNTIF(L70:L101,AD9) -> 0 | AF9: =AE9/(AG4-AE11) -> 0 | AG9: =IF(AF9=0,0,(AF9*((LOG(AF9))/LOG(2)))) -> 0 | AI9: =N9 -> 121 | AJ9: =COUNTIF(L102:L132,AI9) -> 0 | AK9: =AJ9/(AL4-AJ11) -> 0 | AL9: =IF(AK9=0,0,(AK9*((LOG(AK9))/LOG(2)))) -> 0 | AN9: =N9 -> 121 | AO9: =COUNTIF(L133:L164,AN9) -> 0 | AP9: =AO9/(AQ4-AO11) -> 0 | AQ9: =IF(AP9=0,0,(AP9*((LOG(AP9))/LOG(2)))) -> 0 | AS9: =N9 -> 121 | AT9: =COUNTIF(L165:L195,AS9) -> 0 | AU9: =AT9/(AV4-AT11) -> 0 | AV9: =IF(AU9=0,0,(AU9*((LOG(AU9))/LOG(2)))) -> 0
A10: 12 | B10: 368 | C10: 13 | D10: 380 | E10: 13 | F10: 394 | K10: 0 | L10: 111 | N10: 122 | O10: =COUNTIF($L$7:$L$500,N10) -> 0 | P10: =O10/$Q$4 -> 0 | Q10: =IF(P10=0,0,(P10*((LOG(P10))/LOG(2)))) -> 0 | T10: =N10 -> 122 | U10: =COUNTIF(L7:L38,T10) -> 0 | V10: =U10/(W4-U11) -> 0 | W10: =IF(V10=0,0,(V10*((LOG(V10))/LOG(2)))) -> 0 | Y10: =N10 -> 122 | Z10: =COUNTIF(L39:L69,Y10) -> 0 | AA10: =Z10/(AB4-Z11) -> 0 | AB10: =IF(AA10=0,0,(AA10*((LOG(AA10))/LOG(2)))) -> 0 | AD10: =N10 -> 122 | AE10: =COUNTIF(L70:L101,AD10) -> 0 | AF10: =AE10/(AG4-AE11) -> 0 | AG10: =IF(AF10=0,0,(AF10*((LOG(AF10))/LOG(2)))) -> 0 | AI10: =N10 -> 122 | AJ10: =COUNTIF(L102:L132,AI10) -> 0 | AK10: =AJ10/(AL4-AJ11) -> 0 | AL10: =IF(AK10=0,0,(AK10*((LOG(AK10))/LOG(2)))) -> 0 | AN10: =N10 -> 122 | AO10: =COUNTIF(L133:L164,AN10) -> 0 | AP10: =AO10/(AQ4-AO11) -> 0 | AQ10: =IF(AP10=0,0,(AP10*((LOG(AP10))/LOG(2)))) -> 0 | AS10: =N10 -> 122 | AT10: =COUNTIF(L165:L195,AS10) -> 0 | AU10: =AT10/(AV4-AT11) -> 0 | AV10: =IF(AU10=0,0,(AU10*((LOG(AU10))/LOG(2)))) -> 0
A11: 12 | B11: 517 | C11: 13 | D11: 521 | E11: 13 | F11: 526 | K11: 0 | L11: 111 | N11: 211 | O11: =COUNTIF($L$7:$L$500,N11) -> 0 | P11: =O11/$Q$4 -> 0 | Q11: =IF(P11=0,0,(P11*((LOG(P11))/LOG(2)))) -> 0 | T11: =N11 -> 211 | U11: =COUNTIF(L7:L38,T11) -> 0 | Y11: =N11 -> 211 | Z11: =COUNTIF(L39:L69,Y11) -> 0 | AD11: =N11 -> 211 | AE11: =COUNTIF(L70:L101,AD11) -> 0 | AI11: =N11 -> 211 | AJ11: =COUNTIF(L102:L132,AI11) -> 0 | AN11: =N11 -> 211 | AO11: =COUNTIF(L133:L164,AN11) -> 0 | AS11: =N11 -> 211 | AT11: =COUNTIF(L165:L195,AS11) -> 0
A12: 12 | B12: 631 | C12: 13 | D12: 635 | E12: 13 | F12: 639 | K12: 0 | L12: 111 | N12: 212 | O12: =COUNTIF($L$7:$L$500,N12) -> 0 | P12: =O12/$Q$4 -> 0 | Q12: =IF(P12=0,0,(P12*((LOG(P12))/LOG(2)))) -> 0 | T12: =N12 -> 212 | U12: =COUNTIF(L7:L38,T12) -> 0 | V12: =U12/(W4-U11) -> 0 | W12: =IF(V12=0,0,(V12*((LOG(V12))/LOG(2)))) -> 0 | Y12: =N12 -> 212 | Z12: =COUNTIF(L39:L69,Y12) -> 0 | AA12: =Z12/(AB4-Z11) -> 0 | AB12: =IF(AA12=0,0,(AA12*((LOG(AA12))/LOG(2)))) -> 0 | AD12: =N12 -> 212 | AE12: =COUNTIF(L70:L101,AD12) -> 0 | AF12: =AE12/(AG4-AE11) -> 0 | AG12: =IF(AF12=0,0,(AF12*((LOG(AF12))/LOG(2)))) -> 0 | AI12: =N12 -> 212 | AJ12: =COUNTIF(L102:L132,AI12) -> 0 | AK12: =AJ12/(AL4-AJ11) -> 0 | AL12: =IF(AK12=0,0,(AK12*((LOG(AK12))/LOG(2)))) -> 0 | AN12: =N12 -> 212 | AO12: =COUNTIF(L133:L164,AN12) -> 0 | AP12: =AO12/(AQ4-AO11) -> 0 | AQ12: =IF(AP12=0,0,(AP12*((LOG(AP12))/LOG(2)))) -> 0 | AS12: =N12 -> 212 | AT12: =COUNTIF(L165:L195,AS12) -> 0 | AU12: =AT12/(AV4-AT11) -> 0 | AV12: =IF(AU12=0,0,(AU12*((LOG(AU12))/LOG(2)))) -> 0
A13: 12 | B13: 746 | C13: 13 | D13: 750 | E13: 13 | F13: 754 | K13: 0 | L13: 111 | N13: 221 | O13: =COUNTIF($L$7:$L$500,N13) -> 0 | P13: =O13/$Q$4 -> 0 | Q13: =IF(P13=0,0,(P13*((LOG(P13))/LOG(2)))) -> 0 | T13: =N13 -> 221 | U13: =COUNTIF(L7:L38,T13) -> 0 | V13: =U13/(W4-U11) -> 0 | W13: =IF(V13=0,0,(V13*((LOG(V13))/LOG(2)))) -> 0 | Y13: =N13 -> 221 | Z13: =COUNTIF(L39:L69,Y13) -> 0 | AA13: =Z13/(AB4-Z11) -> 0 | AB13: =IF(AA13=0,0,(AA13*((LOG(AA13))/LOG(2)))) -> 0 | AD13: =N13 -> 221 | AE13: =COUNTIF(L70:L101,AD13) -> 0 | AF13: =AE13/(AG4-AE11) -> 0 | AG13: =IF(AF13=0,0,(AF13*((LOG(AF13))/LOG(2)))) -> 0 | AI13: =N13 -> 221 | AJ13: =COUNTIF(L102:L132,AI13) -> 0 | AK13: =AJ13/(AL4-AJ11) -> 0 | AL13: =IF(AK13=0,0,(AK13*((LOG(AK13))/LOG(2)))) -> 0 | AN13: =N13 -> 221 | AO13: =COUNTIF(L133:L164,AN13) -> 0 | AP13: =AO13/(AQ4-AO11) -> 0 | AQ13: =IF(AP13=0,0,(AP13*((LOG(AP13))/LOG(2)))) -> 0 | AS13: =N13 -> 221 | AT13: =COUNTIF(L165:L195,AS13) -> 0 | AU13: =AT13/(AV4-AT11) -> 0 | AV13: =IF(AU13=0,0,(AU13*((LOG(AU13))/LOG(2)))) -> 0
A14: 12 | B14: 857 | C14: 13 | D14: 861 | E14: 13 | F14: 865 | K14: 0 | L14: 111 | N14: 222 | O14: =COUNTIF($L$7:$L$500,N14) -> 34 | P14: =O14/$Q$4 -> 0.1808510638 | Q14: =IF(P14=0,0,(P14*((LOG(P14))/LOG(2)))) -> -0.4461823636 | T14: =N14 -> 222 | U14: =COUNTIF(L7:L38,T14) -> 3 | V14: =U14/(W4-U11) -> 0.09375 | W14: =IF(V14=0,0,(V14*((LOG(V14))/LOG(2)))) -> -0.3201597656 | Y14: =N14 -> 222 | Z14: =COUNTIF(L39:L69,Y14) -> 3 | AA14: =Z14/(AB4-Z11) -> 0.09677419355 | AB14: =IF(AA14=0,0,(AA14*((LOG(AA14))/LOG(2)))) -> -0.3260548848 | AD14: =N14 -> 222 | AE14: =COUNTIF(L70:L101,AD14) -> 4 | AF14: =AE14/(AG4-AE11) -> 0.125 | AG14: =IF(AF14=0,0,(AF14*((LOG(AF14))/LOG(2)))) -> -0.375 | AI14: =N14 -> 222 | AJ14: =COUNTIF(L102:L132,AI14) -> 7 | AK14: =AJ14/(AL4-AJ11) -> 0.2258064516 | AL14: =IF(AK14=0,0,(AK14*((LOG(AK14))/LOG(2)))) -> -0.4847706361 | AN14: =N14 -> 222 | AO14: =COUNTIF(L133:L164,AN14) -> 8 | AP14: =AO14/(AQ4-AO11) -> 0.25 | AQ14: =IF(AP14=0,0,(AP14*((LOG(AP14))/LOG(2)))) -> -0.5 | AS14: =N14 -> 222 | AT14: =COUNTIF(L165:L195,AS14) -> 9 | AU14: =AT14/(AV4-AT11) -> 0.3 | AV14: =IF(AU14=0,0,(AU14*((LOG(AU14))/LOG(2)))) -> -0.5210896782
A15: 12 | B15: 969 | C15: 13 | D15: 977 | E15: 13 | F15: 985 | K15: 0 | L15: 111 | P15: =SUM(P7:P14) -> 1 | Q15: =-SUM(Q7:Q14) -> 0.6819353205 | V15: =SUM(V7:V14) -> 1 | W15: =-SUM(W7:W14) -> 0.4488644887 | AA15: =SUM(AA7:AA14) -> 1 | AB15: =-SUM(AB7:AB14) -> 0.4586858162 | AF15: =SUM(AF7:AF14) -> 1 | AG15: =-SUM(AG7:AG14) -> 0.5435644432 | AK15: =SUM(AK7:AK14) -> 1 | AL15: =-SUM(AL7:AL14) -> 0.7706290694 | AP15: =SUM(AP7:AP14) -> 1 | AQ15: =-SUM(AQ7:AQ14) -> 0.8112781245 | AU15: =SUM(AU7:AU14) -> 1 | AV15: =-SUM(AV7:AV14) -> 0.8812908992
A16: 12 | B16: 1099 | C16: 13 | D16: 1109 | E16: 13 | F16: 1118 | K16: 0 | L16: 111 | P16: U= | Q16: =Q15/(LOG(Q4)/LOG(2)) -> 0.09026769475 | V16: U1= | W16: =W15/(LOG(W4)/LOG(2)) -> 0.08977289774 | AA16: U2= | AB16: =AB15/(LOG(AB4)/LOG(2)) -> 0.09258531303 | AF16: U3= | AG16: =AG15/(LOG(AG4)/LOG(2)) -> 0.1087128886 | AK16: U4= | AL16: =AL15/(LOG(AL4)/LOG(2)) -> 0.1555507737 | AP16: U5= | AQ16: =AQ15/(LOG(AQ4)/LOG(2)) -> 0.1622556249 | AU16: U6= | AV16: =AV15/(LOG(AV4)/LOG(2)) -> 0.1796027203
A17: 12 | B17: 1233 | C17: 13 | D17: 1237 | E17: 13 | F17: 1241 | K17: 0 | L17: 111
A18: 12 | B18: 1346 | C18: 13 | D18: 1350 | E18: 13 | F18: 1354 | K18: 0 | L18: 111
A19: 12 | B19: 1458 | C19: 13 | D19: 1462 | E19: 13 | F19: 1488 | K19: 0 | L19: 111 | N19: Total Target Seq
A20: 12 | B20: 1593 | C20: 13 | D20: 1600 | E20: 13 | F20: 1604 | K20: 0 | L20: 111 | N20: =COUNTIF(L7:L195,G3) -> 0 | P20: 32 | Q20: 31 | R20: 32 | S20: 31 | T20: 32 | U20: 31
A21: 12 | B21: 1713 | C21: 13 | D21: 1721 | E21: 13 | F21: 1728 | K21: 0 | L21: 111 | P21: % of reinforcement given in 6 equal intervals based on number of trials
A22: 12 | B22: 1833 | C22: 13 | D22: 1837 | E22: 13 | F22: 1841 | K22: 0 | L22: 111 | P22: %_1 | Q22: %_2 | R22: %_3 | S22: %_4 | T22: %_5 | U22: %_6
A23: 12 | B23: 1943 | C23: 13 | D23: 1947 | E23: 13 | F23: 1955 | K23: 0 | L23: 111 | O23: target sequence | P23: =$G$3 -> 211 | Q23: =$G$3 -> 211 | R23: =$G$3 -> 211 | S23: =$G$3 -> 211 | T23: =$G$3 -> 211 | U23: =$G$3 -> 211
A24: 12 | B24: 2055 | C24: 13 | D24: 2061 | E24: 13 | F24: 2065 | K24: 0 | L24: 111 | O24: total reinforcement | P24: =U11 -> 0 | Q24: =Z11 -> 0 | R24: =AE11 -> 0 | S24: =AJ11 -> 0 | T24: =AO11 -> 0 | U24: =AT11 -> 0
A25: 12 | B25: 2171 | C25: 13 | D25: 2175 | E25: 13 | F25: 2179 | K25: 0 | L25: 111 | O25: % target
A26: 12 | B26: 2287 | C26: 13 | D26: 2296 | E26: 13 | F26: 2313 | K26: 0 | L26: 111 | O26: CCRF
A27: 12 | B27: 2427 | C27: 13 | D27: 2439 | E27: 13 | F27: 2449 | K27: 0 | L27: 111 | O27: % CCRf
A28: 12 | B28: 2561 | C28: 13 | D28: 2568 | E28: 13 | F28: 2576 | K28: 0 | L28: 111 | O28: average response rate | P28: =F38/P20 -> 119.90625 | Q28: =(F69-F38)/Q20 -> 124.3870968 | R28: =(F101-F69)/R20 -> 122.40625 | S28: =(F132-F101)/S20 -> 119.3870968 | T28: =(F164-F132)/T20 -> 125.3125 | U28: =(F195-F164)/U20 -> -623.2580645
A29: 12 | B29: 2680 | C29: 13 | D29: 2685 | E29: 13 | F29: 2705 | K29: 0 | L29: 111
A30: 12 | B30: 2810 | C30: 13 | D30: 2814 | E30: 13 | F30: 2818 | K30: 0 | L30: 111
A31: 12 | B31: 2930 | C31: 13 | D31: 2941 | E31: 13 | F31: 2947 | K31: 0 | L31: 111
A32: 21 | B32: 3059 | C32: 22 | D32: 3064 | E32: 24 | F32: 3070 | K32: 0 | L32: 222
A33: 21 | B33: 3181 | C33: 22 | D33: 3193 | E33: 24 | F33: 3200 | K33: 0 | L33: 222
A34: 12 | B34: 3312 | C34: 13 | D34: 3318 | E34: 13 | F34: 3330 | K34: 0 | L34: 111
A35: 12 | B35: 3436 | C35: 13 | D35: 3445 | E35: 13 | F35: 3462 | K35: 0 | L35: 111
A36: 12 | B36: 3563 | C36: 13 | D36: 3572 | E36: 13 | F36: 3584 | K36: 0 | L36: 111
A37: 12 | B37: 3689 | C37: 13 | D37: 3709 | E37: 13 | F37: 3720 | K37: 0 | L37: 111
A38: 21 | B38: 3826 | C38: 22 | D38: 3830 | E38: 24 | F38: 3837 | K38: 0 | L38: 222
A39: 12 | B39: 3941 | C39: 13 | D39: 3944 | E39: 13 | F39: 3948 | K39: 0 | L39: 111
A40: 12 | B40: 4053 | C40: 13 | D40: 4061 | E40: 13 | F40: 4069 | K40: 0 | L40: 111
A41: 12 | B41: 4173 | C41: 13 | D41: 4177 | E41: 13 | F41: 4207 | K41: 0 | L41: 111
A42: 21 | B42: 4310 | C42: 22 | D42: 4314 | E42: 24 | F42: 4320 | K42: 0 | L42: 222
A43: 12 | B43: 4425 | C43: 13 | D43: 4430 | E43: 13 | F43: 4433 | K43: 0 | L43: 111
A44: 12 | B44: 4537 | C44: 13 | D44: 4541 | E44: 13 | F44: 4557 | K44: 0 | L44: 111
A45: 12 | B45: 4657 | C45: 13 | D45: 4661 | E45: 13 | F45: 4672 | K45: 0 | L45: 111
A46: 12 | B46: 4774 | C46: 13 | D46: 4778 | E46: 13 | F46: 4782 | K46: 0 | L46: 111
A47: 12 | B47: 4887 | C47: 13 | D47: 4895 | E47: 13 | F47: 4916 | K47: 0 | L47: 111
A48: 12 | B48: 5026 | C48: 13 | D48: 5046 | E48: 13 | F48: 5059 | K48: 0 | L48: 111
A49: 12 | B49: 5159 | C49: 13 | D49: 5166 | E49: 13 | F49: 5170 | K49: 0 | L49: 111
A50: 12 | B50: 5271 | C50: 13 | D50: 5275 | E50: 13 | F50: 5279 | K50: 0 | L50: 111
A51: 12 | B51: 5388 | C51: 13 | D51: 5396 | E51: 13 | F51: 5413 | K51: 0 | L51: 111
A52: 12 | B52: 5520 | C52: 13 | D52: 5524 | E52: 13 | F52: 5528 | K52: 0 | L52: 111
A53: 12 | B53: 5629 | C53: 13 | D53: 5633 | E53: 13 | F53: 5637 | K53: 0 | L53: 111
A54: 12 | B54: 5748 | C54: 13 | D54: 5780 | E54: 13 | F54: 5798 | K54: 0 | L54: 111
A55: 12 | B55: 5913 | C55: 13 | D55: 5921 | E55: 13 | F55: 5926 | K55: 0 | L55: 111
A56: 12 | B56: 6028 | C56: 13 | D56: 6032 | E56: 13 | F56: 6040 | K56: 0 | L56: 111
A57: 12 | B57: 6141 | C57: 13 | D57: 6145 | E57: 13 | F57: 6149 | K57: 0 | L57: 111
A58: 12 | B58: 6263 | C58: 13 | D58: 6268 | E58: 13 | F58: 6272 | K58: 0 | L58: 111
A59: 21 | B59: 6448 | C59: 22 | D59: 6453 | E59: 24 | F59: 6457 | K59: 0 | L59: 222
A60: 21 | B60: 6566 | C60: 22 | D60: 6570 | E60: 24 | F60: 6574 | K60: 0 | L60: 222
A61: 12 | B61: 6687 | C61: 13 | D61: 6714 | E61: 13 | F61: 6726 | K61: 0 | L61: 111
A62: 12 | B62: 6830 | C62: 13 | D62: 6836 | E62: 13 | F62: 6841 | K62: 0 | L62: 111
A63: 12 | B63: 6944 | C63: 13 | D63: 6949 | E63: 13 | F63: 6967 | K63: 0 | L63: 111
A64: 12 | B64: 7068 | C64: 13 | D64: 7079 | E64: 13 | F64: 7083 | K64: 0 | L64: 111
A65: 12 | B65: 7189 | C65: 13 | D65: 7197 | E65: 13 | F65: 7201 | K65: 0 | L65: 111
A66: 12 | B66: 7314 | C66: 13 | D66: 7322 | E66: 13 | F66: 7336 | K66: 0 | L66: 111
A67: 12 | B67: 7448 | C67: 13 | D67: 7451 | E67: 13 | F67: 7460 | K67: 0 | L67: 111
A68: 12 | B68: 7565 | C68: 13 | D68: 7570 | E68: 13 | F68: 7580 | K68: 0 | L68: 111
A69: 12 | B69: 7681 | C69: 13 | D69: 7689 | E69: 13 | F69: 7693 | K69: 0 | L69: 111
A70: 21 | B70: 7799 | C70: 22 | D70: 7806 | E70: 24 | F70: 7811 | K70: 0 | L70: 222
A71: 12 | B71: 7920 | C71: 13 | D71: 7927 | E71: 13 | F71: 7944 | K71: 0 | L71: 111
A72: 12 | B72: 8047 | C72: 13 | D72: 8055 | E72: 13 | F72: 8059 | K72: 0 | L72: 111
A73: 12 | B73: 8160 | C73: 13 | D73: 8164 | E73: 13 | F73: 8169 | K73: 0 | L73: 111
A74: 12 | B74: 8272 | C74: 13 | D74: 8281 | E74: 13 | F74: 8285 | K74: 0 | L74: 111
A75: 21 | B75: 8398 | C75: 22 | D75: 8404 | E75: 24 | F75: 8411 | K75: 0 | L75: 222
A76: 12 | B76: 8516 | C76: 13 | D76: 8524 | E76: 13 | F76: 8537 | K76: 0 | L76: 111
A77: 12 | B77: 8646 | C77: 13 | D77: 8652 | E77: 13 | F77: 8660 | K77: 0 | L77: 111
A78: 12 | B78: 8769 | C78: 13 | D78: 8773 | E78: 13 | F78: 8778 | K78: 0 | L78: 111
A79: 12 | B79: 8887 | C79: 13 | D79: 8894 | E79: 13 | F79: 8908 | K79: 0 | L79: 111
A80: 12 | B80: 9011 | C80: 13 | D80: 9018 | E80: 13 | F80: 9026 | K80: 0 | L80: 111
A81: 12 | B81: 9133 | C81: 13 | D81: 9136 | E81: 13 | F81: 9140 | K81: 0 | L81: 111
A82: 12 | B82: 9249 | C82: 13 | D82: 9262 | E82: 13 | F82: 9271 | K82: 0 | L82: 111
A83: 12 | B83: 9372 | C83: 13 | D83: 9376 | E83: 13 | F83: 9383 | K83: 0 | L83: 111
A84: 12 | B84: 9489 | C84: 13 | D84: 9494 | E84: 13 | F84: 9508 | K84: 0 | L84: 111
A85: 12 | B85: 9612 | C85: 13 | D85: 9616 | E85: 13 | F85: 9621 | K85: 0 | L85: 111
A86: 12 | B86: 9729 | C86: 13 | D86: 9733 | E86: 13 | F86: 9747 | K86: 0 | L86: 111
A87: 12 | B87: 9850 | C87: 13 | D87: 9860 | E87: 13 | F87: 9870 | K87: 0 | L87: 111
A88: 12 | B88: 9974 | C88: 13 | D88: 9983 | E88: 13 | F88: 10001 | K88: 0 | L88: 111
A89: 12 | B89: 10110 | C89: 13 | D89: 10124 | E89: 13 | F89: 10139 | K89: 0 | L89: 111
A90: 12 | B90: 10239 | C90: 13 | D90: 10243 | E90: 13 | F90: 10247 | K90: 0 | L90: 111
A91: 12 | B91: 10359 | C91: 13 | D91: 10368 | E91: 13 | F91: 10374 | K91: 0 | L91: 111
A92: 12 | B92: 10491 | C92: 13 | D92: 10495 | E92: 13 | F92: 10499 | K92: 0 | L92: 111
A93: 12 | B93: 10610 | C93: 13 | D93: 10614 | E93: 13 | F93: 10618 | K93: 0 | L93: 111
A94: 12 | B94: 10728 | C94: 13 | D94: 10737 | E94: 13 | F94: 10745 | K94: 0 | L94: 111
A95: 12 | B95: 10855 | C95: 13 | D95: 10875 | E95: 13 | F95: 10880 | K95: 0 | L95: 111
A96: 12 | B96: 10980 | C96: 13 | D96: 10985 | E96: 13 | F96: 10989 | K96: 0 | L96: 111
A97: 12 | B97: 11099 | C97: 13 | D97: 11111 | E97: 13 | F97: 11127 | K97: 0 | L97: 111
A98: 21 | B98: 11229 | C98: 22 | D98: 11237 | E98: 24 | F98: 11245 | K98: 0 | L98: 222
A99: 12 | B99: 11349 | C99: 13 | D99: 11355 | E99: 13 | F99: 11376 | K99: 0 | L99: 111
A100: 12 | B100: 11484 | C100: 13 | D100: 11488 | E100: 13 | F100: 11491 | K100: 0 | L100: 111
A101: 21 | B101: 11598 | C101: 22 | D101: 11605 | E101: 24 | F101: 11610 | K101: 0 | L101: 222
A102: 21 | B102: 11712 | C102: 22 | D102: 11720 | E102: 24 | F102: 11728 | K102: 0 | L102: 222
A103: 21 | B103: 11834 | C103: 22 | D103: 11839 | E103: 24 | F103: 11844 | K103: 0 | L103: 222
A104: 12 | B104: 11948 | C104: 13 | D104: 11952 | E104: 13 | F104: 11960 | K104: 0 | L104: 111
A105: 12 | B105: 12073 | C105: 13 | D105: 12088 | E105: 13 | F105: 12094 | K105: 0 | L105: 111
A106: 12 | B106: 12204 | C106: 13 | D106: 12214 | E106: 13 | F106: 12226 | K106: 0 | L106: 111
A107: 12 | B107: 12335 | C107: 13 | D107: 12339 | E107: 13 | F107: 12343 | K107: 0 | L107: 111
A108: 21 | B108: 12450 | C108: 22 | D108: 12454 | E108: 24 | F108: 12465 | K108: 0 | L108: 222
A109: 12 | B109: 12569 | C109: 13 | D109: 12573 | E109: 13 | F109: 12578 | K109: 0 | L109: 111
A110: 12 | B110: 12692 | C110: 13 | D110: 12700 | E110: 13 | F110: 12710 | K110: 0 | L110: 111
A111: 21 | B111: 12814 | C111: 22 | D111: 12818 | E111: 24 | F111: 12823 | K111: 0 | L111: 222
A112: 12 | B112: 12927 | C112: 13 | D112: 12932 | E112: 13 | F112: 12936 | K112: 0 | L112: 111
A113: 12 | B113: 13048 | C113: 13 | D113: 13052 | E113: 13 | F113: 13061 | K113: 0 | L113: 111
A114: 12 | B114: 13168 | C114: 13 | D114: 13176 | E114: 13 | F114: 13192 | K114: 0 | L114: 111
A115: 12 | B115: 13292 | C115: 13 | D115: 13300 | E115: 13 | F115: 13305 | K115: 0 | L115: 111
A116: 12 | B116: 13404 | C116: 13 | D116: 13408 | E116: 13 | F116: 13412 | K116: 0 | L116: 111
A117: 21 | B117: 13524 | C117: 22 | D117: 13533 | E117: 24 | F117: 13537 | K117: 0 | L117: 222
A118: 12 | B118: 13647 | C118: 13 | D118: 13652 | E118: 13 | F118: 13657 | K118: 0 | L118: 111
A119: 12 | B119: 13757 | C119: 13 | D119: 13761 | E119: 13 | F119: 13776 | K119: 0 | L119: 111
A120: 12 | B120: 13879 | C120: 13 | D120: 13886 | E120: 13 | F120: 13894 | K120: 0 | L120: 111
A121: 12 | B121: 13998 | C121: 13 | D121: 14006 | E121: 13 | F121: 14014 | K121: 0 | L121: 111
A122: 12 | B122: 14118 | C122: 13 | D122: 14122 | E122: 13 | F122: 14126 | K122: 0 | L122: 111
A123: 12 | B123: 14225 | C123: 13 | D123: 14233 | E123: 13 | F123: 14237 | K123: 0 | L123: 111
A124: 12 | B124: 14342 | C124: 13 | D124: 14346 | E124: 13 | F124: 14354 | K124: 0 | L124: 111
A125: 12 | B125: 14463 | C125: 13 | D125: 14471 | E125: 13 | F125: 14491 | K125: 0 | L125: 111
A126: 12 | B126: 14595 | C126: 13 | D126: 14599 | E126: 13 | F126: 14604 | K126: 0 | L126: 111
A127: 21 | B127: 14705 | C127: 22 | D127: 14714 | E127: 24 | F127: 14718 | K127: 0 | L127: 222
A128: 12 | B128: 14818 | C128: 13 | D128: 14822 | E128: 13 | F128: 14830 | K128: 0 | L128: 111
A129: 12 | B129: 14945 | C129: 13 | D129: 14958 | E129: 13 | F129: 14970 | K129: 0 | L129: 111
A130: 21 | B130: 15073 | C130: 22 | D130: 15077 | E130: 24 | F130: 15081 | K130: 0 | L130: 222
A131: 12 | B131: 15182 | C131: 13 | D131: 15189 | E131: 13 | F131: 15197 | K131: 0 | L131: 111
A132: 12 | B132: 15302 | C132: 13 | D132: 15306 | E132: 13 | F132: 15311 | K132: 0 | L132: 111
A133: 12 | B133: 15415 | C133: 13 | D133: 15423 | E133: 13 | F133: 15439 | K133: 0 | L133: 111
A134: 21 | B134: 15566 | C134: 22 | D134: 15571 | E134: 24 | F134: 15576 | K134: 0 | L134: 222
A135: 12 | B135: 15676 | C135: 13 | D135: 15684 | E135: 13 | F135: 15688 | K135: 0 | L135: 111
A136: 12 | B136: 15796 | C136: 13 | D136: 15805 | E136: 13 | F136: 15820 | K136: 0 | L136: 111
A137: 12 | B137: 15930 | C137: 13 | D137: 15934 | E137: 13 | F137: 15961 | K137: 0 | L137: 111
A138: 12 | B138: 16081 | C138: 13 | D138: 16094 | E138: 13 | F138: 16102 | K138: 0 | L138: 111
A139: 12 | B139: 16209 | C139: 13 | D139: 16215 | E139: 13 | F139: 16219 | K139: 0 | L139: 111
A140: 12 | B140: 16323 | C140: 13 | D140: 16327 | E140: 13 | F140: 16339 | K140: 0 | L140: 111
A141: 12 | B141: 16438 | C141: 13 | D141: 16443 | E141: 13 | F141: 16447 | K141: 0 | L141: 111
A142: 12 | B142: 16548 | C142: 13 | D142: 16552 | E142: 13 | F142: 16560 | K142: 0 | L142: 111
A143: 12 | B143: 16662 | C143: 13 | D143: 16666 | E143: 13 | F143: 16671 | K143: 0 | L143: 111
A144: 21 | B144: 16778 | C144: 22 | D144: 16783 | E144: 24 | F144: 16786 | K144: 0 | L144: 222
A145: 12 | B145: 16886 | C145: 13 | D145: 16897 | E145: 13 | F145: 16901 | K145: 0 | L145: 111
A146: 12 | B146: 17021 | C146: 13 | D146: 17025 | E146: 13 | F146: 17030 | K146: 0 | L146: 111
A147: 12 | B147: 17130 | C147: 13 | D147: 17134 | E147: 13 | F147: 17141 | K147: 0 | L147: 111
A148: 21 | B148: 17245 | C148: 22 | D148: 17257 | E148: 24 | F148: 17262 | K148: 0 | L148: 222
A149: 21 | B149: 17365 | C149: 22 | D149: 17370 | E149: 24 | F149: 17374 | K149: 0 | L149: 222
A150: 12 | B150: 17477 | C150: 13 | D150: 17482 | E150: 13 | F150: 17486 | K150: 0 | L150: 111
A151: 12 | B151: 17590 | C151: 13 | D151: 17594 | E151: 13 | F151: 17598 | K151: 0 | L151: 111
A152: 12 | B152: 17703 | C152: 13 | D152: 17707 | E152: 13 | F152: 17711 | K152: 0 | L152: 111
A153: 12 | B153: 17822 | C153: 13 | D153: 17826 | E153: 13 | F153: 17830 | K153: 0 | L153: 111
A154: 21 | B154: 17962 | C154: 22 | D154: 17967 | E154: 24 | F154: 17974 | K154: 0 | L154: 222
A155: 21 | B155: 18091 | C155: 22 | D155: 18096 | E155: 24 | F155: 18100 | K155: 0 | L155: 222
A156: 12 | B156: 18202 | C156: 13 | D156: 18207 | E156: 13 | F156: 18212 | K156: 0 | L156: 111
A157: 12 | B157: 18332 | C157: 13 | D157: 18338 | E157: 13 | F157: 18347 | K157: 0 | L157: 111
A158: 12 | B158: 18453 | C158: 13 | D158: 18458 | E158: 13 | F158: 18463 | K158: 0 | L158: 111
A159: 12 | B159: 18565 | C159: 13 | D159: 18569 | E159: 13 | F159: 18573 | K159: 0 | L159: 111
A160: 21 | B160: 18704 | C160: 22 | D160: 18709 | E160: 24 | F160: 18716 | K160: 0 | L160: 222
A161: 12 | B161: 18831 | C161: 13 | D161: 18840 | E161: 13 | F161: 18843 | K161: 0 | L161: 111
A162: 21 | B162: 18959 | C162: 22 | D162: 18963 | E162: 24 | F162: 18968 | K162: 0 | L162: 222
A163: 12 | B163: 19190 | C163: 13 | D163: 19194 | E163: 13 | F163: 19204 | K163: 0 | L163: 111
A164: 12 | B164: 19312 | C164: 13 | D164: 19317 | E164: 13 | F164: 19321 | K164: 0 | L164: 111
A165: 12 | B165: 19431 | C165: 13 | D165: 19439 | E165: 13 | F165: 19446 | K165: 0 | L165: 111
A166: 12 | B166: 19695 | C166: 13 | D166: 19705 | E166: 13 | F166: 19709 | K166: 0 | L166: 111
A167: 12 | B167: 19816 | C167: 13 | D167: 19822 | E167: 13 | F167: 19826 | K167: 0 | L167: 111
A168: 12 | B168: 19935 | C168: 13 | D168: 19939 | E168: 13 | F168: 19943 | K168: 0 | L168: 111
A169: 12 | B169: 20086 | C169: 13 | D169: 20090 | E169: 13 | F169: 20094 | K169: 0 | L169: 111
A170: 12 | B170: 20208 | C170: 13 | D170: 20212 | E170: 13 | F170: 20216 | K170: 0 | L170: 111
A171: 12 | B171: 20324 | C171: 13 | D171: 20328 | E171: 13 | F171: 20333 | K171: 0 | L171: 111
A172: 12 | B172: 20440 | C172: 13 | D172: 20445 | E172: 13 | F172: 20449 | K172: 0 | L172: 111
A173: 21 | B173: 20559 | C173: 22 | D173: 20563 | E173: 24 | F173: 20569 | K173: 0 | L173: 222
A174: 21 | B174: 20694 | C174: 22 | D174: 20699 | E174: 24 | F174: 20703 | K174: 0 | L174: 222
A175: 12 | B175: 20861 | C175: 13 | D175: 20865 | E175: 13 | F175: 20874 | K175: 0 | L175: 111
A176: 12 | B176: 21029 | C176: 13 | D176: 21034 | E176: 13 | F176: 21039 | K176: 0 | L176: 111
A177: 12 | B177: 21303 | C177: 13 | D177: 21311 | E177: 13 | F177: 21324 | K177: 0 | L177: 111
A178: 21 | B178: 21465 | C178: 22 | D178: 21476 | E178: 24 | F178: 21485 | K178: 0 | L178: 222
A179: 21 | B179: 21602 | C179: 22 | D179: 21608 | E179: 24 | F179: 21614 | K179: 0 | L179: 222
A180: 12 | B180: 21737 | C180: 13 | D180: 21741 | E180: 13 | F180: 21746 | K180: 0 | L180: 111
A181: 12 | B181: 21883 | C181: 13 | D181: 21887 | E181: 13 | F181: 21892 | K181: 0 | L181: 111
A182: 21 | B182: 22057 | C182: 22 | D182: 22061 | E182: 24 | F182: 22070 | K182: 0 | L182: 222
A183: 12 | B183: 22302 | C183: 13 | D183: 22307 | E183: 13 | F183: 22311 | K183: 0 | L183: 111
A184: 21 | B184: 22622 | C184: 22 | D184: 22628 | E184: 24 | F184: 22639 | K184: 0 | L184: 222
A185: 12 | B185: 22758 | C185: 13 | D185: 22763 | E185: 13 | F185: 22768 | K185: 0 | L185: 111
A186: 12 | B186: 22877 | C186: 13 | D186: 22882 | E186: 13 | F186: 22886 | K186: 0 | L186: 111
A187: 21 | B187: 23000 | C187: 22 | D187: 23006 | E187: 24 | F187: 23016 | K187: 0 | L187: 222
A188: 21 | B188: 23136 | C188: 22 | D188: 23140 | E188: 24 | F188: 23144 | K188: 0 | L188: 222
A189: 21 | B189: 23255 | C189: 22 | D189: 23260 | E189: 24 | F189: 23265 | K189: 0 | L189: 222
A190: 12 | B190: 23372 | C190: 13 | D190: 23376 | E190: 13 | F190: 23380 | K190: 0 | L190: 111
A191: 12 | B191: 23494 | C191: 13 | D191: 23498 | E191: 13 | F191: 23502 | K191: 0 | L191: 111
A192: 12 | B192: 23617 | C192: 13 | D192: 23621 | E192: 13 | F192: 23633 | K192: 0 | L192: 111
A193: 12 | B193: 23740 | C193: 13 | D193: 23747 | E193: 13 | F193: 23756 | K193: 0 | L193: 111
A194: 12 | B194: 23859 | C194: 13 | D194: 23867 | E194: 13 | F194: 23885 | K194: 0 | L194: 111
A195: 21 | B195: 23993 | C195: 22 | D195: 23998 | L195: 22

Sheet !N103930.010
A1: Report for:!N103930.010
A2: Date: | B2: <date>
A3: Hen: | B3: <hen> | F3: Correct Sequence | G3: =Start!J2 -> 211 | P3: Total Sequences in Data | Q3: =4994-COUNTBLANK(L7:L5000) -> 93 | V3: Total Sequences in Block Data | W3: =COUNTA(L7:L22) -> 16 | AA3: Total Sequences in Block Data | AB3: =COUNTA(L23:L37) -> 15 | AF3: Total Sequences in Block Data | AG3: =COUNTA(L38:L53) -> 16 | AK3: Total Sequences in Block Data | AL3: =COUNTA(L54:L68) -> 15 | AP3: Total Sequences in Block Data | AQ3: =COUNTA(L69:L84) -> 16 | AU3: Total Sequences in Block Data | AV3: =COUNTA(L85:L99) -> 15
P4: Total Sequences in Summary | Q4: =SUM(O7:O14) -> 93 | V4: Total Sequences in Block Summary | W4: =SUM(U7:U14) -> 16 | AA4: Total Sequences in Block Summary | AB4: =SUM(Z7:Z14) -> 15 | AF4: Total Sequences in Block Summary | AG4: =SUM(AE7:AE14) -> 16 | AK4: Total Sequences in Block Summary | AL4: =SUM(AJ7:AJ14) -> 15 | AP4: Total Sequences in Block Summary | AQ4: =SUM(AO7:AO14) -> 16 | AU4: Total Sequences in Block Summary | AV4: =SUM(AT7:AT14) -> 15
T5: Block 1 | Y5: Block 2 | AD5: Block 3 | AI5: Block 4 | AN5: Block 5 | AS5: Block 6
A6: Sequence Component 1 | B6: Time 1 | C6: Sequence Component 2 | D6: Time 2 | E6: Sequence Component 3 | F6: Time 3 | G6: Sequence Component 4 | H6: Time 4 | I6: Sequence Component 5 | J6: Time 5 | K6: Correct? 0=No 1=Yes | L6: Sequence | N6: Frequency | P6: Relative Frequency | Q6: Variability | T6: Frequency | V6: Relative Frequency | W6: Variability | Y6: Frequency | AA6: Relative Frequency | AB6: Variability | AD6: Frequency | AF6: Relative Frequency | AG6: Variability | AI6: Frequency | AK6: Relative Frequency | AL6: Variability | AN6: Frequency | AP6: Relative Frequency | AQ6: Variability | AS6: Frequency | AU6: Relative Frequency | AV6: Variability
A7: 12 | B7: 126 | C7: 13 | D7: 130 | E7: 13 | F7: 135 | K7: 0 | L7: 111 | N7: 111 | O7: =COUNTIF($L$7:$L$500,N7) -> 82 | P7: =O7/$Q$4 -> 0.8817204301 | Q7: =IF(P7=0,0,(P7*((LOG(P7))/LOG(2)))) -> -0.1601264315 | T7: =N7 -> 111 | U7: =COUNTIF(L7:L22,T7) -> 15 | V7: =U7/(W4-U11) -> 0.9375 | W7: =IF(V7=0,0,(V7*((LOG(V7))/LOG(2)))) -> -0.08729006662 | Y7: =N7 -> 111 | Z7: =COUNTIF(L23:L37,Y7) -> 12 | AA7: =Z7/(AB4-Z11) -> 0.8 | AB7: =IF(AA7=0,0,(AA7*((LOG(AA7))/LOG(2)))) -> -0.2575424759 | AD7: =N7 -> 111 | AE7: =COUNTIF(L38:L53,AD7) -> 14 | AF7: =AE7/(AG4-AE11) -> 0.875 | AG7: =IF(AF7=0,0,(AF7*((LOG(AF7))/LOG(2)))) -> -0.1685644432 | AI7: =N7 -> 111 | AJ7: =COUNTIF(L54:L68,AI7) -> 15 | AK7: =AJ7/(AL4-AJ11) -> 1 | AL7: =IF(AK7=0,0,(AK7*((LOG(AK7))/LOG(2)))) -> 0 | AN7: =N7 -> 111 | AO7: =COUNTIF(L69:L84,AN7) -> 13 | AP7: =AO7/(AQ4-AO11) -> 0.8125 | AQ7: =IF(AP7=0,0,(AP7*((LOG(AP7))/LOG(2)))) -> -0.243392729 | AS7: =N7 -> 111 | AT7: =COUNTIF(L85:L99,AS7) -> 13 | AU7: =AT7/(AV4-AT11) -> 0.8666666667 | AV7: =IF(AU7=0,0,(AU7*((LOG(AU7))/LOG(2)))) -> -0.1789240938
A8: 12 | B8: 239 | C8: 13 | D8: 247 | E8: 13 | F8: 252 | K8: 0 | L8: 111 | N8: 112 | O8: =COUNTIF($L$7:$L$500,N8) -> 0 | P8: =O8/$Q$4 -> 0 | Q8: =IF(P8=0,0,(P8*((LOG(P8))/LOG(2)))) -> 0 | T8: =N8 -> 112 | U8: =COUNTIF(L7:L22,T8) -> 0 | V8: =U8/(W4-U11) -> 0 | W8: =IF(V8=0,0,(V8*((LOG(V8))/LOG(2)))) -> 0 | Y8: =N8 -> 112 | Z8: =COUNTIF(L23:L37,Y8) -> 0 | AA8: =Z8/(AB4-Z11) -> 0 | AB8: =IF(AA8=0,0,(AA8*((LOG(AA8))/LOG(2)))) -> 0 | AD8: =N8 -> 112 | AE8: =COUNTIF(L38:L53,AD8) -> 0 | AF8: =AE8/(AG4-AE11) -> 0 | AG8: =IF(AF8=0,0,(AF8*((LOG(AF8))/LOG(2)))) -> 0 | AI8: =N8 -> 112 | AJ8: =COUNTIF(L54:L68,AI8) -> 0 | AK8: =AJ8/(AL4-AJ11) -> 0 | AL8: =IF(AK8=0,0,(AK8*((LOG(AK8))/LOG(2)))) -> 0 | AN8: =N8 -> 112 | AO8: =COUNTIF(L69:L84,AN8) -> 0 | AP8: =AO8/(AQ4-AO11) -> 0 | AQ8: =IF(AP8=0,0,(AP8*((LOG(AP8))/LOG(2)))) -> 0 | AS8: =N8 -> 112 | AT8: =COUNTIF(L85:L99,AS8) -> 0 | AU8: =AT8/(AV4-AT11) -> 0 | AV8: =IF(AU8=0,0,(AU8*((LOG(AU8))/LOG(2)))) -> 0
A9: 21 | B9: 369 | C9: 22 | D9: 383 | E9: 24 | F9: 388 | K9: 0 | L9: 222 | N9: 121 | O9: =COUNTIF($L$7:$L$500,N9) -> 0 | P9: =O9/$Q$4 -> 0 | Q9: =IF(P9=0,0,(P9*((LOG(P9))/LOG(2)))) -> 0 | T9: =N9 -> 121 | U9: =COUNTIF(L7:L22,T9) -> 0 | V9: =U9/(W4-U11) -> 0 | W9: =IF(V9=0,0,(V9*((LOG(V9))/LOG(2)))) -> 0 | Y9: =N9 -> 121 | Z9: =COUNTIF(L23:L37,Y9) -> 0 | AA9: =Z9/(AB4-Z11) -> 0 | AB9: =IF(AA9=0,0,(AA9*((LOG(AA9))/LOG(2)))) -> 0 | AD9: =N9 -> 121 | AE9: =COUNTIF(L38:L53,AD9) -> 0 | AF9: =AE9/(AG4-AE11) -> 0 | AG9: =IF(AF9=0,0,(AF9*((LOG(AF9))/LOG(2)))) -> 0 | AI9: =N9 -> 121 | AJ9: =COUNTIF(L54:L68,AI9) -> 0 | AK9: =AJ9/(AL4-AJ11) -> 0 | AL9: =IF(AK9=0,0,(AK9*((LOG(AK9))/LOG(2)))) -> 0 | AN9: =N9 -> 121 | AO9: =COUNTIF(L69:L84,AN9) -> 0 | AP9: =AO9/(AQ4-AO11) -> 0 | AQ9: =IF(AP9=0,0,(AP9*((LOG(AP9))/LOG(2)))) -> 0 | AS9: =N9 -> 121 | AT9: =COUNTIF(L85:L99,AS9) -> 0 | AU9: =AT9/(AV4-AT11) -> 0 | AV9: =IF(AU9=0,0,(AU9*((LOG(AU9))/LOG(2)))) -> 0
A10: 12 | B10: 497 | C10: 13 | D10: 502 | E10: 13 | F10: 507 | K10: 0 | L10: 111 | N10: 122 | O10: =COUNTIF($L$7:$L$500,N10) -> 0 | P10: =O10/$Q$4 -> 0 | Q10: =IF(P10=0,0,(P10*((LOG(P10))/LOG(2)))) -> 0 | T10: =N10 -> 122 | U10: =COUNTIF(L7:L22,T10) -> 0 | V10: =U10/(W4-U11) -> 0 | W10: =IF(V10=0,0,(V10*((LOG(V10))/LOG(2)))) -> 0 | Y10: =N10 -> 122 | Z10: =COUNTIF(L23:L37,Y10) -> 0 | AA10: =Z10/(AB4-Z11) -> 0 | AB10: =IF(AA10=0,0,(AA10*((LOG(AA10))/LOG(2)))) -> 0 | AD10: =N10 -> 122 | AE10: =COUNTIF(L38:L53,AD10) -> 0 | AF10: =AE10/(AG4-AE11) -> 0 | AG10: =IF(AF10=0,0,(AF10*((LOG(AF10))/LOG(2)))) -> 0 | AI10: =N10 -> 122 | AJ10: =COUNTIF(L54:L68,AI10) -> 0 | AK10: =AJ10/(AL4-AJ11) -> 0 | AL10: =IF(AK10=0,0,(AK10*((LOG(AK10))/LOG(2)))) -> 0 | AN10: =N10 -> 122 | AO10: =COUNTIF(L69:L84,AN10) -> 0 | AP10: =AO10/(AQ4-AO11) -> 0 | AQ10: =IF(AP10=0,0,(AP10*((LOG(AP10))/LOG(2)))) -> 0 | AS10: =N10 -> 122 | AT10: =COUNTIF(L85:L99,AS10) -> 0 | AU10: =AT10/(AV4-AT11) -> 0 | AV10: =IF(AU10=0,0,(AU10*((LOG(AU10))/LOG(2)))) -> 0
A11: 12 | B11: 611 | C11: 13 | D11: 621 | E11: 13 | F11: 625 | K11: 0 | L11: 111 | N11: 211 | O11: =COUNTIF($L$7:$L$500,N11) -> 0 | P11: =O11/$Q$4 -> 0 | Q11: =IF(P11=0,0,(P11*((LOG(P11))/LOG(2)))) -> 0 | T11: =N11 -> 211 | U11: =COUNTIF(L7:L22,T11) -> 0 | Y11: =N11 -> 211 | Z11: =COUNTIF(L23:L37,Y11) -> 0 | AD11: =N11 -> 211 | AE11: =COUNTIF(L38:L53,AD11) -> 0 | AI11: =N11 -> 211 | AJ11: =COUNTIF(L54:L68,AI11) -> 0 | AN11: =N11 -> 211 | AO11: =COUNTIF(L69:L84,AN11) -> 0 | AS11: =N11 -> 211 | AT11: =COUNTIF(L85:L99,AS11) -> 0
A12: 12 | B12: 730 | C12: 13 | D12: 735 | E12: 13 | F12: 740 | K12: 0 | L12: 111 | N12: 212 | O12: =COUNTIF($L$7:$L$500,N12) -> 0 | P12: =O12/$Q$4 -> 0 | Q12: =IF(P12=0,0,(P12*((LOG(P12))/LOG(2)))) -> 0 | T12: =N12 -> 212 | U12: =COUNTIF(L7:L22,T12) -> 0 | V12: =U12/(W4-U11) -> 0 | W12: =IF(V12=0,0,(V12*((LOG(V12))/LOG(2)))) -> 0 | Y12: =N12 -> 212 | Z12: =COUNTIF(L23:L37,Y12) -> 0 | AA12: =Z12/(AB4-Z11) -> 0 | AB12: =IF(AA12=0,0,(AA12*((LOG(AA12))/LOG(2)))) -> 0 | AD12: =N12 -> 212 | AE12: =COUNTIF(L38:L53,AD12) -> 0 | AF12: =AE12/(AG4-AE11) -> 0 | AG12: =IF(AF12=0,0,(AF12*((LOG(AF12))/LOG(2)))) -> 0 | AI12: =N12 -> 212 | AJ12: =COUNTIF(L54:L68,AI12) -> 0 | AK12: =AJ12/(AL4-AJ11) -> 0 | AL12: =IF(AK12=0,0,(AK12*((LOG(AK12))/LOG(2)))) -> 0 | AN12: =N12 -> 212 | AO12: =COUNTIF(L69:L84,AN12) -> 0 | AP12: =AO12/(AQ4-AO11) -> 0 | AQ12: =IF(AP12=0,0,(AP12*((LOG(AP12))/LOG(2)))) -> 0 | AS12: =N12 -> 212 | AT12: =COUNTIF(L85:L99,AS12) -> 0 | AU12: =AT12/(AV4-AT11) -> 0 | AV12: =IF(AU12=0,0,(AU12*((LOG(AU12))/LOG(2)))) -> 0
A13: 12 | B13: 848 | C13: 13 | D13: 854 | E13: 13 | F13: 858 | K13: 0 | L13: 111 | N13: 221 | O13: =COUNTIF($L$7:$L$500,N13) -> 0 | P13: =O13/$Q$4 -> 0 | Q13: =IF(P13=0,0,(P13*((LOG(P13))/LOG(2)))) -> 0 | T13: =N13 -> 221 | U13: =COUNTIF(L7:L22,T13) -> 0 | V13: =U13/(W4-U11) -> 0 | W13: =IF(V13=0,0,(V13*((LOG(V13))/LOG(2)))) -> 0 | Y13: =N13 -> 221 | Z13: =COUNTIF(L23:L37,Y13) -> 0 | AA13: =Z13/(AB4-Z11) -> 0 | AB13: =IF(AA13=0,0,(AA13*((LOG(AA13))/LOG(2)))) -> 0 | AD13: =N13 -> 221 | AE13: =COUNTIF(L38:L53,AD13) -> 0 | AF13: =AE13/(AG4-AE11) -> 0 | AG13: =IF(AF13=0,0,(AF13*((LOG(AF13))/LOG(2)))) -> 0 | AI13: =N13 -> 221 | AJ13: =COUNTIF(L54:L68,AI13) -> 0 | AK13: =AJ13/(AL4-AJ11) -> 0 | AL13: =IF(AK13=0,0,(AK13*((LOG(AK13))/LOG(2)))) -> 0 | AN13: =N13 -> 221 | AO13: =COUNTIF(L69:L84,AN13) -> 0 | AP13: =AO13/(AQ4-AO11) -> 0 | AQ13: =IF(AP13=0,0,(AP13*((LOG(AP13))/LOG(2)))) -> 0 | AS13: =N13 -> 221 | AT13: =COUNTIF(L85:L99,AS13) -> 0 | AU13: =AT13/(AV4-AT11) -> 0 | AV13: =IF(AU13=0,0,(AU13*((LOG(AU13))/LOG(2)))) -> 0
A14: 12 | B14: 977 | C14: 13 | D14: 1001 | E14: 13 | F14: 1007 | K14: 0 | L14: 111 | N14: 222 | O14: =COUNTIF($L$7:$L$500,N14) -> 11 | P14: =O14/$Q$4 -> 0.1182795699 | Q14: =IF(P14=0,0,(P14*((LOG(P14))/LOG(2)))) -> -0.3642688077 | T14: =N14 -> 222 | U14: =COUNTIF(L7:L22,T14) -> 1 | V14: =U14/(W4-U11) -> 0.0625 | W14: =IF(V14=0,0,(V14*((LOG(V14))/LOG(2)))) -> -0.25 | Y14: =N14 -> 222 | Z14: =COUNTIF(L23:L37,Y14) -> 3 | AA14: =Z14/(AB4-Z11) -> 0.2 | AB14: =IF(AA14=0,0,(AA14*((LOG(AA14))/LOG(2)))) -> -0.464385619 | AD14: =N14 -> 222 | AE14: =COUNTIF(L38:L53,AD14) -> 2 | AF14: =AE14/(AG4-AE11) -> 0.125 | AG14: =IF(AF14=0,0,(AF14*((LOG(AF14))/LOG(2)))) -> -0.375 | AI14: =N14 -> 222 | AJ14: =COUNTIF(L54:L68,AI14) -> 0 | AK14: =AJ14/(AL4-AJ11) -> 0 | AL14: =IF(AK14=0,0,(AK14*((LOG(AK14))/LOG(2)))) -> 0 | AN14: =N14 -> 222 | AO14: =COUNTIF(L69:L84,AN14) -> 3 | AP14: =AO14/(AQ4-AO11) -> 0.1875 | AQ14: =IF(AP14=0,0,(AP14*((LOG(AP14))/LOG(2)))) -> -0.4528195311 | AS14: =N14 -> 222 | AT14: =COUNTIF(L85:L99,AS14) -> 2 | AU14: =AT14/(AV4-AT11) -> 0.1333333333 | AV14: =IF(AU14=0,0,(AU14*((LOG(AU14))/LOG(2)))) -> -0.3875854127
A15: 12 | B15: 1115 | C15: 13 | D15: 1120 | E15: 13 | F15: 1124 | K15: 0 | L15: 111 | P15: =SUM(P7:P14) -> 1 | Q15: =-SUM(Q7:Q14) -> 0.5243952392 | V15: =SUM(V7:V14) -> 1 | W15: =-SUM(W7:W14) -> 0.3372900666 | AA15: =SUM(AA7:AA14) -> 1 | AB15: =-SUM(AB7:AB14) -> 0.7219280949 | AF15: =SUM(AF7:AF14) -> 1 | AG15: =-SUM(AG7:AG14) -> 0.5435644432 | AK15: =SUM(AK7:AK14) -> 1 | AL15: =-SUM(AL7:AL14) -> 0 | AP15: =SUM(AP7:AP14) -> 1 | AQ15: =-SUM(AQ7:AQ14) -> 0.6962122601 | AU15: =SUM(AU7:AU14) -> 1 | AV15: =-SUM(AV7:AV14) -> 0.5665095066
A16: 12 | B16: 1236 | C16: 13 | D16: 1242 | E16: 13 | F16: 1248 | K16: 0 | L16: 111 | P16: U= | Q16: =Q15/(LOG(Q4)/LOG(2)) -> 0.0801930729 | V16: U1= | W16: =W15/(LOG(W4)/LOG(2)) -> 0.08432251665 | AA16: U2= | AB16: =AB15/(LOG(AB4)/LOG(2)) -> 0.1847832892 | AF16: U3= | AG16: =AG15/(LOG(AG4)/LOG(2)) -> 0.1358911108 | AK16: U4= | AL16: =AL15/(LOG(AL4)/LOG(2)) -> 0 | AP16: U5= | AQ16: =AQ15/(LOG(AQ4)/LOG(2)) -> 0.174053065 | AU16: U6= | AV16: =AV15/(LOG(AV4)/LOG(2)) -> 0.1450026543
A17: 12 | B17: 1358 | C17: 13 | D17: 1364 | E17: 13 | F17: 1369 | K17: 0 | L17: 111
A18: 12 | B18: 1482 | C18: 13 | D18: 1487 | E18: 13 | F18: 1493 | K18: 0 | L18: 111
A19: 12 | B19: 1601 | C19: 13 | D19: 1607 | E19: 13 | F19: 1612 | K19: 0 | L19: 111 | N19: Total Target Seq
A20: 12 | B20: 1723 | C20: 13 | D20: 1728 | E20: 13 | F20: 1737 | K20: 0 | L20: 111 | N20: =COUNTIF(L7:L99,G3) -> 0 | P20: 16 | Q20: 15 | R20: 16 | S20: 15 | T20: 16 | U20: 15
A21: 12 | B21: 1900 | C21: 13 | D21: 1905 | E21: 13 | F21: 1910 | K21: 0 | L21: 111 | P21: % of reinforcement given in 6 equal intervals based on number of trials
A22: 12 | B22: 2024 | C22: 13 | D22: 2031 | E22: 13 | F22: 2046 | K22: 0 | L22: 111 | P22: %_1 | Q22: %_2 | R22: %_3 | S22: %_4 | T22: %_5 | U22: %_6
A23: 12 | B23: 2155 | C23: 13 | D23: 2160 | E23: 13 | F23: 2165 | K23: 0 | L23: 111 | O23: target sequence | P23: =$G$3 -> 211 | Q23: =$G$3 -> 211 | R23: =$G$3 -> 211 | S23: =$G$3 -> 211 | T23: =$G$3 -> 211 | U23: =$G$3 -> 211
A24: 21 | B24: 2378 | C24: 22 | D24: 2382 | E24: 24 | F24: 2388 | K24: 0 | L24: 222 | O24: total reinforcement | P24: =U11 -> 0 | Q24: =Z11 -> 0 | R24: =AE11 -> 0 | S24: =AJ11 -> 0 | T24: =AO11 -> 0 | U24: =AT11 -> 0
A25: 12 | B25: 2496 | C25: 13 | D25: 2500 | E25: 13 | F25: 2508 | K25: 0 | L25: 111 | O25: % target
A26: 21 | B26: 2666 | C26: 22 | D26: 2675 | E26: 24 | F26: 2681 | K26: 0 | L26: 222 | O26: CCRF
A27: 21 | B27: 3083 | C27: 22 | D27: 3089 | E27: 24 | F27: 3106 | K27: 0 | L27: 222 | O27: % CCRf
A28: 12 | B28: 3711 | C28: 13 | D28: 3716 | E28: 13 | F28: 3724 | K28: 0 | L28: 111 | O28: average response rate | P28: =F22/P20 -> 127.875 | Q28: =(F37-F22)/Q20 -> 397.7333333 | R28: =(F53-F37)/R20 -> 234.8125 | S28: =(F68-F53)/S20 -> 133.0666667 | T28: =(F84-F68)/T20 -> 145.3125 | U28: =(F99-F84)/U20 -> 524.0666667
A29: 12 | B29: 5024 | C29: 13 | D29: 5029 | E29: 13 | F29: 5034 | K29: 0 | L29: 111
A30: 12 | B30: 6468 | C30: 13 | D30: 6475 | E30: 13 | F30: 6481 | K30: 0 | L30: 111
A31: 12 | B31: 6590 | C31: 13 | D31: 6595 | E31: 13 | F31: 6600 | K31: 0 | L31: 111
A32: 12 | B32: 6761 | C32: 13 | D32: 6766 | E32: 13 | F32: 6774 | K32: 0 | L32: 111
A33: 12 | B33: 7419 | C33: 13 | D33: 7425 | E33: 13 | F33: 7431 | K33: 0 | L33: 111
A34: 12 | B34: 7588 | C34: 13 | D34: 7594 | E34: 13 | F34: 7599 | K34: 0 | L34: 111
A35: 12 | B35: 7720 | C35: 13 | D35: 7725 | E35: 13 | F35: 7730 | K35: 0 | L35: 111
A36: 12 | B36: 7855 | C36: 13 | D36: 7863 | E36: 13 | F36: 7868 | K36: 0 | L36: 111
A37: 12 | B37: 8002 | C37: 13 | D37: 8007 | E37: 13 | F37: 8012 | K37: 0 | L37: 111
A38: 12 | B38: 8163 | C38: 13 | D38: 8168 | E38: 13 | F38: 8173 | K38: 0 | L38: 111
A39: 12 | B39: 8317 | C39: 13 | D39: 8331 | E39: 13 | F39: 8336 | K39: 0 | L39: 111
A40: 21 | B40: 8981 | C40: 22 | D40: 8987 | E40: 24 | F40: 8993 | K40: 0 | L40: 222
A41: 21 | B41: 9250 | C41: 22 | D41: 9256 | E41: 24 | F41: 9268 | K41: 0 | L41: 222
A42: 12 | B42: 9398 | C42: 13 | D42: 9403 | E42: 13 | F42: 9409 | K42: 0 | L42: 111
A43: 12 | B43: 9525 | C43: 13 | D43: 9529 | E43: 13 | F43: 9535 | K43: 0 | L43: 111
A44: 12 | B44: 9644 | C44: 13 | D44: 9649 | E44: 13 | F44: 9654 | K44: 0 | L44: 111
A45: 12 | B45: 10531 | C45: 13 | D45: 10536 | E45: 13 | F45: 10541 | K45: 0 | L45: 111
A46: 12 | B46: 10686 | C46: 13 | D46: 10691 | E46: 13 | F46: 10696 | K46: 0 | L46: 111
A47: 12 | B47: 10825 | C47: 13 | D47: 10830 | E47: 13 | F47: 10835 | K47: 0 | L47: 111
A48: 12 | B48: 10968 | C48: 13 | D48: 10978 | E48: 13 | F48: 10987 | K48: 0 | L48: 111
A49: 12 | B49: 11225 | C49: 13 | D49: 11231 | E49: 13 | F49: 11236 | K49: 0 | L49: 111
A50: 12 | B50: 11346 | C50: 13 | D50: 11351 | E50: 13 | F50: 11356 | K50: 0 | L50: 111
A51: 12 | B51: 11479 | C51: 13 | D51: 11492 | E51: 13 | F51: 11500 | K51: 0 | L51: 111
A52: 12 | B52: 11612 | C52: 13 | D52: 11620 | E52: 13 | F52: 11625 | K52: 0 | L52: 111
A53: 12 | B53: 11750 | C53: 13 | D53: 11755 | E53: 13 | F53: 11769 | K53: 0 | L53: 111
A54: 12 | B54: 11886 | C54: 13 | D54: 11891 | E54: 13 | F54: 11896 | K54: 0 | L54: 111
A55: 12 | B55: 12164 | C55: 13 | D55: 12169 | E55: 13 | F55: 12173 | K55: 0 | L55: 111
A56: 12 | B56: 12279 | C56: 13 | D56: 12284 | E56: 13 | F56: 12289 | K56: 0 | L56: 111
A57: 12 | B57: 12403 | C57: 13 | D57: 12412 | E57: 13 | F57: 12419 | K57: 0 | L57: 111
A58: 12 | B58: 12563 | C58: 13 | D58: 12567 | E58: 13 | F58: 12572 | K58: 0 | L58: 111
A59: 12 | B59: 12680 | C59: 13 | D59: 12685 | E59: 13 | F59: 12689 | K59: 0 | L59: 111
A60: 12 | B60: 12797 | C60: 13 | D60: 12802 | E60: 13 | F60: 12807 | K60: 0 | L60: 111
A61: 12 | B61: 12909 | C61: 13 | D61: 12913 | E61: 13 | F61: 12918 | K61: 0 | L61: 111
A62: 12 | B62: 13029 | C62: 13 | D62: 13034 | E62: 13 | F62: 13039 | K62: 0 | L62: 111
A63: 12 | B63: 13142 | C63: 13 | D63: 13146 | E63: 13 | F63: 13151 | K63: 0 | L63: 111
A64: 12 | B64: 13258 | C64: 13 | D64: 13262 | E64: 13 | F64: 13267 | K64: 0 | L64: 111
A65: 12 | B65: 13374 | C65: 13 | D65: 13379 | E65: 13 | F65: 13401 | K65: 0 | L65: 111
A66: 12 | B66: 13511 | C66: 13 | D66: 13519 | E66: 13 | F66: 13524 | K66: 0 | L66: 111
A67: 12 | B67: 13633 | C67: 13 | D67: 13638 | E67: 13 | F67: 13642 | K67: 0 | L67: 111
A68: 12 | B68: 13756 | C68: 13 | D68: 13760 | E68: 13 | F68: 13765 | K68: 0 | L68: 111
A69: 12 | B69: 13867 | C69: 13 | D69: 13872 | E69: 13 | F69: 13876 | K69: 0 | L69: 111
A70: 12 | B70: 13980 | C70: 13 | D70: 13984 | E70: 13 | F70: 13989 | K70: 0 | L70: 111
A71: 12 | B71: 14092 | C71: 13 | D71: 14096 | E71: 13 | F71: 14101 | K71: 0 | L71: 111
A72: 12 | B72: 14201 | C72: 13 | D72: 14206 | E72: 13 | F72: 14215 | K72: 0 | L72: 111
A73: 12 | B73: 14325 | C73: 13 | D73: 14334 | E73: 13 | F73: 14338 | K73: 0 | L73: 111
A74: 12 | B74: 14439 | C74: 13 | D74: 14443 | E74: 13 | F74: 14449 | K74: 0 | L74: 111
A75: 12 | B75: 14556 | C75: 13 | D75: 14561 | E75: 13 | F75: 14566 | K75: 0 | L75: 111
A76: 12 | B76: 14668 | C76: 13 | D76: 14673 | E76: 13 | F76: 14677 | K76: 0 | L76: 111
A77: 12 | B77: 14779 | C77: 13 | D77: 14784 | E77: 13 | F77: 14788 | K77: 0 | L77: 111
A78: 12 | B78: 14921 | C78: 13 | D78: 14926 | E78: 13 | F78: 14931 | K78: 0 | L78: 111
A79: 21 | B79: 15095 | C79: 22 | D79: 15101 | E79: 24 | F79: 15107 | K79: 0 | L79: 222
A80: 12 | B80: 15351 | C80: 13 | D80: 15361 | E80: 13 | F80: 15367 | K80: 0 | L80: 111
A81: 12 | B81: 15477 | C81: 13 | D81: 15486 | E81: 13 | F81: 15490 | K81: 0 | L81: 111
A82: 21 | B82: 15646 | C82: 22 | D82: 15652 | E82: 24 | F82: 15658 | K82: 0 | L82: 222
A83: 12 | B83: 15799 | C83: 13 | D83: 15808 | E83: 13 | F83: 15813 | K83: 0 | L83: 111
A84: 21 | B84: 16074 | C84: 22 | D84: 16083 | E84: 24 | F84: 16090 | K84: 0 | L84: 222
A85: 12 | B85: 16273 | C85: 13 | D85: 16279 | E85: 13 | F85: 16289 | K85: 0 | L85: 111
A86: 12 | B86: 16751 | C86: 13 | D86: 16757 | E86: 13 | F86: 16768 | K86: 0 | L86: 111
A87: 12 | B87: 16895 | C87: 13 | D87: 16901 | E87: 13 | F87: 16906 | K87: 0 | L87: 111
A88: 12 | B88: 19666 | C88: 13 | D88: 19676 | E88: 13 | F88: 19681 | K88: 0 | L88: 111
A89: 12 | B89: 20492 | C89: 13 | D89: 20501 | E89: 13 | F89: 20506 | K89: 0 | L89: 111
A90: 12 | B90: 20677 | C90: 13 | D90: 20682 | E90: 13 | F90: 20687 | K90: 0 | L90: 111
A91: 12 | B91: 21688 | C91: 13 | D91: 21696 | E91: 13 | F91: 21701 | K91: 0 | L91: 111
A92: 12 | B92: 22323 | C92: 13 | D92: 22328 | E92: 13 | F92: 22334 | K92: 0 | L92: 111
A93: 21 | B93: 22479 | C93: 22 | D93: 22484 | E93: 24 | F93: 22489 | K93: 0 | L93: 222
A94: 12 | B94: 22718 | C94: 13 | D94: 22723 | E94: 13 | F94: 22733 | K94: 0 | L94: 111
A95: 12 | B95: 22840 | C95: 13 | D95: 22845 | E95: 13 | F95: 22850 | K95: 0 | L95: 111
A96: 21 | B96: 22975 | C96: 22 | D96: 22979 | E96: 24 | F96: 22985 | K96: 0 | L96: 222
A97: 12 | B97: 23217 | C97: 13 | D97: 23225 | E97: 13 | F97: 23230 | K97: 0 | L97: 111
A98: 12 | B98: 23367 | C98: 13 | D98: 23376 | E98: 13 | F98: 23381 | K98: 0 | L98: 111
A99: 12 | B99: 23942 | C99: 13 | D99: 23947 | E99: 13 | F99: 23951 | L99: 111

Sheet !N104A20.010
A1: Report for:!N104A20.010
A2: Date: | B2: <date>
A3: Hen: | B3: <hen> | F3: Correct Sequence | G3: =Start!J2 -> 211 | P3: Total Sequences in Data | Q3: =4994-COUNTBLANK(L7:L5000) -> 32 | V3: Total Sequences in Block Data | W3: =COUNTA(L7:L11) -> 5 | AA3: Total Sequences in Block Data | AB3: =COUNTA(L12:L17) -> 6 | AF3: Total Sequences in Block Data | AG3: =COUNTA(L18:L22) -> 5 | AK3: Total Sequences in Block Data | AL3: =COUNTA(L23:L27) -> 5 | AP3: Total Sequences in Block Data | AQ3: =COUNTA(L28:L33) -> 6 | AU3: Total Sequences in Block Data | AV3: =COUNTA(L34:L38) -> 5
P4: Total Sequences in Summary | Q4: =SUM(O7:O14) -> 32 | V4: Total Sequences in Block Summary | W4: =SUM(U7:U14) -> 5 | AA4: Total Sequences in Block Summary | AB4: =SUM(Z7:Z14) -> 6 | AF4: Total Sequences in Block Summary | AG4: =SUM(AE7:AE14) -> 5 | AK4: Total Sequences in Block Summary | AL4: =SUM(AJ7:AJ14) -> 5 | AP4: Total Sequences in Block Summary | AQ4: =SUM(AO7:AO14) -> 6 | AU4: Total Sequences in Block Summary | AV4: =SUM(AT7:AT14) -> 5
T5: Block 1 | Y5: Block 2 | AD5: Block 3 | AI5: Block 4 | AN5: Block 5 | AS5: Block 6
A6: Sequence Component 1 | B6: Time 1 | C6: Sequence Component 2 | D6: Time 2 | E6: Sequence Component 3 | F6: Time 3 | G6: Sequence Component 4 | H6: Time 4 | I6: Sequence Component 5 | J6: Time 5 | K6: Correct? 0=No 1=Yes | L6: Sequence | N6: Frequency | P6: Relative Frequency | Q6: Variability | T6: Frequency | V6: Relative Frequency | W6: Variability | Y6: Frequency | AA6: Relative Frequency | AB6: Variability | AD6: Frequency | AF6: Relative Frequency | AG6: Variability | AI6: Frequency | AK6: Relative Frequency | AL6: Variability | AN6: Frequency | AP6: Relative Frequency | AQ6: Variability | AS6: Frequency | AU6: Relative Frequency | AV6: Variability
A7: 12 | B7: 30 | C7: 13 | D7: 36 | E7: 13 | F7: 55 | K7: 0 | L7: 111 | N7: 111 | O7: =COUNTIF($L$7:$L$500,N7) -> 29 | P7: =O7/$Q$4 -> 0.90625 | Q7: =IF(P7=0,0,(P7*((LOG(P7))/LOG(2)))) -> -0.1287047232 | T7: =N7 -> 111 | U7: =COUNTIF(L7:L11,T7) -> 5 | V7: =U7/(W4-U11) -> 1 | W7: =IF(V7=0,0,(V7*((LOG(V7))/LOG(2)))) -> 0 | Y7: =N7 -> 111 | Z7: =COUNTIF(L12:L17,Y7) -> 4 | AA7: =Z7/(AB4-Z11) -> 0.6666666667 | AB7: =IF(AA7=0,0,(AA7*((LOG(AA7))/LOG(2)))) -> -0.3899750005 | AD7: =N7 -> 111 | AE7: =COUNTIF(L18:L22,AD7) -> 5 | AF7: =AE7/(AG4-AE11) -> 1 | AG7: =IF(AF7=0,0,(AF7*((LOG(AF7))/LOG(2)))) -> 0 | AI7: =N7 -> 111 | AJ7: =COUNTIF(L23:L27,AI7) -> 4 | AK7: =AJ7/(AL4-AJ11) -> 0.8 | AL7: =IF(AK7=0,0,(AK7*((LOG(AK7))/LOG(2)))) -> -0.2575424759 | AN7: =N7 -> 111 | AO7: =COUNTIF(L28:L33,AN7) -> 6 | AP7: =AO7/(AQ4-AO11) -> 1 | AQ7: =IF(AP7=0,0,(AP7*((LOG(AP7))/LOG(2)))) -> 0 | AS7: =N7 -> 111 | AT7: =COUNTIF(L34:L38,AS7) -> 5 | AU7: =AT7/(AV4-AT11) -> 1 | AV7: =IF(AU7=0,0,(AU7*((LOG(AU7))/LOG(2)))) -> 0
A8: 12 | B8: 163 | C8: 13 | D8: 168 | E8: 13 | F8: 172 | K8: 0 | L8: 111 | N8: 112 | O8: =COUNTIF($L$7:$L$500,N8) -> 0 | P8: =O8/$Q$4 -> 0 | Q8: =IF(P8=0,0,(P8*((LOG(P8))/LOG(2)))) -> 0 | T8: =N8 -> 112 | U8: =COUNTIF(L7:L11,T8) -> 0 | V8: =U8/(W4-U11) -> 0 | W8: =IF(V8=0,0,(V8*((LOG(V8))/LOG(2)))) -> 0 | Y8: =N8 -> 112 | Z8: =COUNTIF(L12:L17,Y8) -> 0 | AA8: =Z8/(AB4-Z11) -> 0 | AB8: =IF(AA8=0,0,(AA8*((LOG(AA8))/LOG(2)))) -> 0 | AD8: =N8 -> 112 | AE8: =COUNTIF(L18:L22,AD8) -> 0 | AF8: =AE8/(AG4-AE11) -> 0 | AG8: =IF(AF8=0,0,(AF8*((LOG(AF8))/LOG(2)))) -> 0 | AI8: =N8 -> 112 | AJ8: =COUNTIF(L23:L27,AI8) -> 0 | AK8: =AJ8/(AL4-AJ11) -> 0 | AL8: =IF(AK8=0,0,(AK8*((LOG(AK8))/LOG(2)))) -> 0 | AN8: =N8 -> 112 | AO8: =COUNTIF(L28:L33,AN8) -> 0 | AP8: =AO8/(AQ4-AO11) -> 0 | AQ8: =IF(AP8=0,0,(AP8*((LOG(AP8))/LOG(2)))) -> 0 | AS8: =N8 -> 112 | AT8: =COUNTIF(L34:L38,AS8) -> 0 | AU8: =AT8/(AV4-AT11) -> 0 | AV8: =IF(AU8=0,0,(AU8*((LOG(AU8))/LOG(2)))) -> 0
A9: 12 | B9: 301 | C9: 13 | D9: 305 | E9: 13 | F9: 310 | K9: 0 | L9: 111 | N9: 121 | O9: =COUNTIF($L$7:$L$500,N9) -> 0 | P9: =O9/$Q$4 -> 0 | Q9: =IF(P9=0,0,(P9*((LOG(P9))/LOG(2)))) -> 0 | T9: =N9 -> 121 | U9: =COUNTIF(L7:L11,T9) -> 0 | V9: =U9/(W4-U11) -> 0 | W9: =IF(V9=0,0,(V9*((LOG(V9))/LOG(2)))) -> 0 | Y9: =N9 -> 121 | Z9: =COUNTIF(L12:L17,Y9) -> 0 | AA9: =Z9/(AB4-Z11) -> 0 | AB9: =IF(AA9=0,0,(AA9*((LOG(AA9))/LOG(2)))) -> 0 | AD9: =N9 -> 121 | AE9: =COUNTIF(L18:L22,AD9) -> 0 | AF9: =AE9/(AG4-AE11) -> 0 | AG9: =IF(AF9=0,0,(AF9*((LOG(AF9))/LOG(2)))) -> 0 | AI9: =N9 -> 121 | AJ9: =COUNTIF(L23:L27,AI9) -> 0 | AK9: =AJ9/(AL4-AJ11) -> 0 | AL9: =IF(AK9=0,0,(AK9*((LOG(AK9))/LOG(2)))) -> 0 | AN9: =N9 -> 121 | AO9: =COUNTIF(L28:L33,AN9) -> 0 | AP9: =AO9/(AQ4-AO11) -> 0 | AQ9: =IF(AP9=0,0,(AP9*((LOG(AP9))/LOG(2)))) -> 0 | AS9: =N9 -> 121 | AT9: =COUNTIF(L34:L38,AS9) -> 0 | AU9: =AT9/(AV4-AT11) -> 0 | AV9: =IF(AU9=0,0,(AU9*((LOG(AU9))/LOG(2)))) -> 0
A10: 12 | B10: 410 | C10: 13 | D10: 415 | E10: 13 | F10: 419 | K10: 0 | L10: 111 | N10: 122 | O10: =COUNTIF($L$7:$L$500,N10) -> 0 | P10: =O10/$Q$4 -> 0 | Q10: =IF(P10=0,0,(P10*((LOG(P10))/LOG(2)))) -> 0 | T10: =N10 -> 122 | U10: =COUNTIF(L7:L11,T10) -> 0 | V10: =U10/(W4-U11) -> 0 | W10: =IF(V10=0,0,(V10*((LOG(V10))/LOG(2)))) -> 0 | Y10: =N10 -> 122 | Z10: =COUNTIF(L12:L17,Y10) -> 0 | AA10: =Z10/(AB4-Z11) -> 0 | AB10: =IF(AA10=0,0,(AA10*((LOG(AA10))/LOG(2)))) -> 0 | AD10: =N10 -> 122 | AE10: =COUNTIF(L18:L22,AD10) -> 0 | AF10: =AE10/(AG4-AE11) -> 0 | AG10: =IF(AF10=0,0,(AF10*((LOG(AF10))/LOG(2)))) -> 0 | AI10: =N10 -> 122 | AJ10: =COUNTIF(L23:L27,AI10) -> 0 | AK10: =AJ10/(AL4-AJ11) -> 0 | AL10: =IF(AK10=0,0,(AK10*((LOG(AK10))/LOG(2)))) -> 0 | AN10: =N10 -> 122 | AO10: =COUNTIF(L28:L33,AN10) -> 0 | AP10: =AO10/(AQ4-AO11) -> 0 | AQ10: =IF(AP10=0,0,(AP10*((LOG(AP10))/LOG(2)))) -> 0 | AS10: =N10 -> 122 | AT10: =COUNTIF(L34:L38,AS10) -> 0 | AU10: =AT10/(AV4-AT11) -> 0 | AV10: =IF(AU10=0,0,(AU10*((LOG(AU10))/LOG(2)))) -> 0
A11: 12 | B11: 516 | C11: 13 | D11: 520 | E11: 13 | F11: 525 | K11: 0 | L11: 111 | N11: 211 | O11: =COUNTIF($L$7:$L$500,N11) -> 0 | P11: =O11/$Q$4 -> 0 | Q11: =IF(P11=0,0,(P11*((LOG(P11))/LOG(2)))) -> 0 | T11: =N11 -> 211 | U11: =COUNTIF(L7:L11,T11) -> 0 | Y11: =N11 -> 211 | Z11: =COUNTIF(L12:L17,Y11) -> 0 | AD11: =N11 -> 211 | AE11: =COUNTIF(L18:L22,AD11) -> 0 | AI11: =N11 -> 211 | AJ11: =COUNTIF(L23:L27,AI11) -> 0 | AN11: =N11 -> 211 | AO11: =COUNTIF(L28:L33,AN11) -> 0 | AS11: =N11 -> 211 | AT11: =COUNTIF(L34:L38,AS11) -> 0
A12: 12 | B12: 628 | C12: 13 | D12: 635 | E12: 13 | F12: 656 | K12: 0 | L12: 111 | N12: 212 | O12: =COUNTIF($L$7:$L$500,N12) -> 0 | P12: =O12/$Q$4 -> 0 | Q12: =IF(P12=0,0,(P12*((LOG(P12))/LOG(2)))) -> 0 | T12: =N12 -> 212 | U12: =COUNTIF(L7:L11,T12) -> 0 | V12: =U12/(W4-U11) -> 0 | W12: =IF(V12=0,0,(V12*((LOG(V12))/LOG(2)))) -> 0 | Y12: =N12 -> 212 | Z12: =COUNTIF(L12:L17,Y12) -> 0 | AA12: =Z12/(AB4-Z11) -> 0 | AB12: =IF(AA12=0,0,(AA12*((LOG(AA12))/LOG(2)))) -> 0 | AD12: =N12 -> 212 | AE12: =COUNTIF(L18:L22,AD12) -> 0 | AF12: =AE12/(AG4-AE11) -> 0 | AG12: =IF(AF12=0,0,(AF12*((LOG(AF12))/LOG(2)))) -> 0 | AI12: =N12 -> 212 | AJ12: =COUNTIF(L23:L27,AI12) -> 0 | AK12: =AJ12/(AL4-AJ11) -> 0 | AL12: =IF(AK12=0,0,(AK12*((LOG(AK12))/LOG(2)))) -> 0 | AN12: =N12 -> 212 | AO12: =COUNTIF(L28:L33,AN12) -> 0 | AP12: =AO12/(AQ4-AO11) -> 0 | AQ12: =IF(AP12=0,0,(AP12*((LOG(AP12))/LOG(2)))) -> 0 | AS12: =N12 -> 212 | AT12: =COUNTIF(L34:L38,AS12) -> 0 | AU12: =AT12/(AV4-AT11) -> 0 | AV12: =IF(AU12=0,0,(AU12*((LOG(AU12))/LOG(2)))) -> 0
A13: 12 | B13: 773 | C13: 13 | D13: 778 | E13: 13 | F13: 782 | K13: 0 | L13: 111 | N13: 221 | O13: =COUNTIF($L$7:$L$500,N13) -> 0 | P13: =O13/$Q$4 -> 0 | Q13: =IF(P13=0,0,(P13*((LOG(P13))/LOG(2)))) -> 0 | T13: =N13 -> 221 | U13: =COUNTIF(L7:L11,T13) -> 0 | V13: =U13/(W4-U11) -> 0 | W13: =IF(V13=0,0,(V13*((LOG(V13))/LOG(2)))) -> 0 | Y13: =N13 -> 221 | Z13: =COUNTIF(L12:L17,Y13) -> 0 | AA13: =Z13/(AB4-Z11) -> 0 | AB13: =IF(AA13=0,0,(AA13*((LOG(AA13))/LOG(2)))) -> 0 | AD13: =N13 -> 221 | AE13: =COUNTIF(L18:L22,AD13) -> 0 | AF13: =AE13/(AG4-AE11) -> 0 | AG13: =IF(AF13=0,0,(AF13*((LOG(AF13))/LOG(2)))) -> 0 | AI13: =N13 -> 221 | AJ13: =COUNTIF(L23:L27,AI13) -> 0 | AK13: =AJ13/(AL4-AJ11) -> 0 | AL13: =IF(AK13=0,0,(AK13*((LOG(AK13))/LOG(2)))) -> 0 | AN13: =N13 -> 221 | AO13: =COUNTIF(L28:L33,AN13) -> 0 | AP13: =AO13/(AQ4-AO11) -> 0 | AQ13: =IF(AP13=0,0,(AP13*((LOG(AP13))/LOG(2)))) -> 0 | AS13: =N13 -> 221 | AT13: =COUNTIF(L34:L38,AS13) -> 0 | AU13: =AT13/(AV4-AT11) -> 0 | AV13: =IF(AU13=0,0,(AU13*((LOG(AU13))/LOG(2)))) -> 0
A14: 21 | B14: 1002 | C14: 22 | D14: 1007 | E14: 24 | F14: 1011 | K14: 0 | L14: 222 | N14: 222 | O14: =COUNTIF($L$7:$L$500,N14) -> 3 | P14: =O14/$Q$4 -> 0.09375 | Q14: =IF(P14=0,0,(P14*((LOG(P14))/LOG(2)))) -> -0.3201597656 | T14: =N14 -> 222 | U14: =COUNTIF(L7:L11,T14) -> 0 | V14: =U14/(W4-U11) -> 0 | W14: =IF(V14=0,0,(V14*((LOG(V14))/LOG(2)))) -> 0 | Y14: =N14 -> 222 | Z14: =COUNTIF(L12:L17,Y14) -> 2 | AA14: =Z14/(AB4-Z11) -> 0.3333333333 | AB14: =IF(AA14=0,0,(AA14*((LOG(AA14))/LOG(2)))) -> -0.5283208336 | AD14: =N14 -> 222 | AE14: =COUNTIF(L18:L22,AD14) -> 0 | AF14: =AE14/(AG4-AE11) -> 0 | AG14: =IF(AF14=0,0,(AF14*((LOG(AF14))/LOG(2)))) -> 0 | AI14: =N14 -> 222 | AJ14: =COUNTIF(L23:L27,AI14) -> 1 | AK14: =AJ14/(AL4-AJ11) -> 0.2 | AL14: =IF(AK14=0,0,(AK14*((LOG(AK14))/LOG(2)))) -> -0.464385619 | AN14: =N14 -> 222 | AO14: =COUNTIF(L28:L33,AN14) -> 0 | AP14: =AO14/(AQ4-AO11) -> 0 | AQ14: =IF(AP14=0,0,(AP14*((LOG(AP14))/LOG(2)))) -> 0 | AS14: =N14 -> 222 | AT14: =COUNTIF(L34:L38,AS14) -> 0 | AU14: =AT14/(AV4-AT11) -> 0 | AV14: =IF(AU14=0,0,(AU14*((LOG(AU14))/LOG(2)))) -> 0
A15: 21 | B15: 1171 | C15: 22 | D15: 1177 | E15: 24 | F15: 1182 | K15: 0 | L15: 222 | P15: =SUM(P7:P14) -> 1 | Q15: =-SUM(Q7:Q14) -> 0.4488644887 | V15: =SUM(V7:V14) -> 1 | W15: =-SUM(W7:W14) -> 0 | AA15: =SUM(AA7:AA14) -> 1 | AB15: =-SUM(AB7:AB14) -> 0.9182958341 | AF15: =SUM(AF7:AF14) -> 1 | AG15: =-SUM(AG7:AG14) -> 0 | AK15: =SUM(AK7:AK14) -> 1 | AL15: =-SUM(AL7:AL14) -> 0.7219280949 | AP15: =SUM(AP7:AP14) -> 1 | AQ15: =-SUM(AQ7:AQ14) -> 0 | AU15: =SUM(AU7:AU14) -> 1 | AV15: =-SUM(AV7:AV14) -> 0
A16: 12 | B16: 1283 | C16: 13 | D16: 1288 | E16: 13 | F16: 1292 | K16: 0 | L16: 111 | P16: U= | Q16: =Q15/(LOG(Q4)/LOG(2)) -> 0.08977289774 | V16: U1= | W16: =W15/(LOG(W4)/LOG(2)) -> 0 | AA16: U2= | AB16: =AB15/(LOG(AB4)/LOG(2)) -> 0.3552453213 | AF16: U3= | AG16: =AG15/(LOG(AG4)/LOG(2)) -> 0 | AK16: U4= | AL16: =AL15/(LOG(AL4)/LOG(2)) -> 0.3109175071 | AP16: U5= | AQ16: =AQ15/(LOG(AQ4)/LOG(2)) -> 0 | AU16: U6= | AV16: =AV15/(LOG(AV4)/LOG(2)) -> 0
A17: 12 | B17: 1421 | C17: 13 | D17: 1426 | E17: 13 | F17: 1437 | K17: 0 | L17: 111
A18: 12 | B18: 1555 | C18: 13 | D18: 1559 | E18: 13 | F18: 1564 | K18: 0 | L18: 111
A19: 12 | B19: 1694 | C19: 13 | D19: 1699 | E19: 13 | F19: 1704 | K19: 0 | L19: 111 | N19: Total Target Seq
A20: 12 | B20: 1919 | C20: 13 | D20: 1924 | E20: 13 | F20: 1929 | K20: 0 | L20: 111 | N20: =COUNTIF(L7:L38,G3) -> 0 | P20: 5 | Q20: 6 | R20: 5 | S20: 5 | T20: 6 | U20: 5
A21: 12 | B21: 2684 | C21: 13 | D21: 2691 | E21: 13 | F21: 2697 | K21: 0 | L21: 111 | P21: % of reinforcement given in 6 equal intervals based on number of trials
A22: 12 | B22: 2863 | C22: 13 | D22: 2871 | E22: 13 | F22: 2882 | K22: 0 | L22: 111 | P22: %_1 | Q22: %_2 | R22: %_3 | S22: %_4 | T22: %_5 | U22: %_6
A23: 12 | B23: 3976 | C23: 13 | D23: 3981 | E23: 13 | F23: 3986 | K23: 0 | L23: 111 | O23: target sequence | P23: =$G$3 -> 211 | Q23: =$G$3 -> 211 | R23: =$G$3 -> 211 | S23: =$G$3 -> 211 | T23: =$G$3 -> 211 | U23: =$G$3 -> 211
A24: 12 | B24: 4103 | C24: 13 | D24: 4110 | E24: 13 | F24: 4115 | K24: 0 | L24: 111 | O24: total reinforcement | P24: =U11 -> 0 | Q24: =Z11 -> 0 | R24: =AE11 -> 0 | S24: =AJ11 -> 0 | T24: =AO11 -> 0 | U24: =AT11 -> 0
A25: 21 | B25: 4722 | C25: 22 | D25: 4727 | E25: 24 | F25: 4732 | K25: 0 | L25: 222 | O25: % target
A26: 12 | B26: 4888 | C26: 13 | D26: 4893 | E26: 13 | F26: 4898 | K26: 0 | L26: 111 | O26: CCRF
A27: 12 | B27: 5207 | C27: 13 | D27: 5211 | E27: 13 | F27: 5216 | K27: 0 | L27: 111 | O27: % CCRf
A28: 12 | B28: 5331 | C28: 13 | D28: 5339 | E28: 13 | F28: 5344 | K28: 0 | L28: 111 | O28: average response rate | P28: =F11/P20 -> 105 | Q28: =(F17-F11)/Q20 -> 152 | R28: =(F22-F17)/R20 -> 289 | S28: =(F27-F22)/S20 -> 466.8 | T28: =(F33-F27)/T20 -> 156.3333333 | U28: =(F38-F33)/U20 -> 1621.4
A29: 12 | B29: 5476 | C29: 13 | D29: 5481 | E29: 13 | F29: 5486 | K29: 0 | L29: 111
A30: 12 | B30: 5596 | C30: 13 | D30: 5600 | E30: 13 | F30: 5606 | K30: 0 | L30: 111
A31: 12 | B31: 5727 | C31: 13 | D31: 5734 | E31: 13 | F31: 5740 | K31: 0 | L31: 111
A32: 12 | B32: 5995 | C32: 13 | D32: 6000 | E32: 13 | F32: 6006 | K32: 0 | L32: 111
A33: 12 | B33: 6144 | C33: 13 | D33: 6149 | E33: 13 | F33: 6154 | K33: 0 | L33: 111
A34: 12 | B34: 8603 | C34: 13 | D34: 8608 | E34: 13 | F34: 8612 | K34: 0 | L34: 111
A35: 12 | B35: 11730 | C35: 13 | D35: 11739 | E35: 13 | F35: 11744 | K35: 0 | L35: 111
A36: 12 | B36: 12520 | C36: 13 | D36: 12531 | E36: 13 | F36: 12536 | K36: 0 | L36: 111
A37: 12 | B37: 14128 | C37: 13 | D37: 14133 | E37: 13 | F37: 14139 | K37: 0 | L37: 111
A38: 12 | B38: 14251 | C38: 13 | D38: 14256 | E38: 13 | F38: 14261 | K38: 0 | L38: 111

Sheet !N105910.010
A1: Report for:!N105910.010
A2: Date: | B2: <date>
A3: Hen: | B3: <hen> | F3: Correct Sequence | G3: =Start!J2 -> 211 | P3: Total Sequences in Data | Q3: =4994-COUNTBLANK(L7:L5000) -> 32 | V3: Total Sequences in Block Data | W3: =COUNTA(L7:L11) -> 5 | AA3: Total Sequences in Block Data | AB3: =COUNTA(L12:L17) -> 6 | AF3: Total Sequences in Block Data | AG3: =COUNTA(L18:L22) -> 5 | AK3: Total Sequences in Block Data | AL3: =COUNTA(L23:L27) -> 5 | AP3: Total Sequences in Block Data | AQ3: =COUNTA(L28:L33) -> 6 | AU3: Total Sequences in Block Data | AV3: =COUNTA(L34:L38) -> 5
P4: Total Sequences in Summary | Q4: =SUM(O7:O14) -> 32 | V4: Total Sequences in Block Summary | W4: =SUM(U7:U14) -> 5 | AA4: Total Sequences in Block Summary | AB4: =SUM(Z7:Z14) -> 6 | AF4: Total Sequences in Block Summary | AG4: =SUM(AE7:AE14) -> 5 | AK4: Total Sequences in Block Summary | AL4: =SUM(AJ7:AJ14) -> 5 | AP4: Total Sequences in Block Summary | AQ4: =SUM(AO7:AO14) -> 6 | AU4: Total Sequences in Block Summary | AV4: =SUM(AT7:AT14) -> 5
T5: Block 1 | Y5: Block 2 | AD5: Block 3 | AI5: Block 4 | AN5: Block 5 | AS5: Block 6
A6: Sequence Component 1 | B6: Time 1 | C6: Sequence Component 2 | D6: Time 2 | E6: Sequence Component 3 | F6: Time 3 | G6: Sequence Component 4 | H6: Time 4 | I6: Sequence Component 5 | J6: Time 5 | K6: Correct? 0=No 1=Yes | L6: Sequence | N6: Frequency | P6: Relative Frequency | Q6: Variability | T6: Frequency | V6: Relative Frequency | W6: Variability | Y6: Frequency | AA6: Relative Frequency | AB6: Variability | AD6: Frequency | AF6: Relative Frequency | AG6: Variability | AI6: Frequency | AK6: Relative Frequency | AL6: Variability | AN6: Frequency | AP6: Relative Frequency | AQ6: Variability | AS6: Frequency | AU6: Relative Frequency | AV6: Variability
A7: 12 | B7: 176 | C7: 13 | D7: 181 | E7: 13 | F7: 186 | K7: 0 | L7: 111 | N7: 111 | O7: =COUNTIF($L$7:$L$500,N7) -> 24 | P7: =O7/$Q$4 -> 0.75 | Q7: =IF(P7=0,0,(P7*((LOG(P7))/LOG(2)))) -> -0.3112781245 | T7: =N7 -> 111 | U7: =COUNTIF(L7:L11,T7) -> 5 | V7: =U7/(W4-U11) -> 1 | W7: =IF(V7=0,0,(V7*((LOG(V7))/LOG(2)))) -> 0 | Y7: =N7 -> 111 | Z7: =COUNTIF(L12:L17,Y7) -> 4 | AA7: =Z7/(AB4-Z11) -> 0.6666666667 | AB7: =IF(AA7=0,0,(AA7*((LOG(AA7))/LOG(2)))) -> -0.3899750005 | AD7: =N7 -> 111 | AE7: =COUNTIF(L18:L22,AD7) -> 4 | AF7: =AE7/(AG4-AE11) -> 0.8 | AG7: =IF(AF7=0,0,(AF7*((LOG(AF7))/LOG(2)))) -> -0.2575424759 | AI7: =N7 -> 111 | AJ7: =COUNTIF(L23:L27,AI7) -> 5 | AK7: =AJ7/(AL4-AJ11) -> 1 | AL7: =IF(AK7=0,0,(AK7*((LOG(AK7))/LOG(2)))) -> 0 | AN7: =N7 -> 111 | AO7: =COUNTIF(L28:L33,AN7) -> 3 | AP7: =AO7/(AQ4-AO11) -> 0.5 | AQ7: =IF(AP7=0,0,(AP7*((LOG(AP7))/LOG(2)))) -> -0.5 | AS7: =N7 -> 111 | AT7: =COUNTIF(L34:L38,AS7) -> 3 | AU7: =AT7/(AV4-AT11) -> 0.6 | AV7: =IF(AU7=0,0,(AU7*((LOG(AU7))/LOG(2)))) -> -0.4421793565
A8: 12 | B8: 292 | C8: 13 | D8: 296 | E8: 13 | F8: 300 | K8: 0 | L8: 111 | N8: 112 | O8: =COUNTIF($L$7:$L$500,N8) -> 0 | P8: =O8/$Q$4 -> 0 | Q8: =IF(P8=0,0,(P8*((LOG(P8))/LOG(2)))) -> 0 | T8: =N8 -> 112 | U8: =COUNTIF(L7:L11,T8) -> 0 | V8: =U8/(W4-U11) -> 0 | W8: =IF(V8=0,0,(V8*((LOG(V8))/LOG(2)))) -> 0 | Y8: =N8 -> 112 | Z8: =COUNTIF(L12:L17,Y8) -> 0 | AA8: =Z8/(AB4-Z11) -> 0 | AB8: =IF(AA8=0,0,(AA8*((LOG(AA8))/LOG(2)))) -> 0 | AD8: =N8 -> 112 | AE8: =COUNTIF(L18:L22,AD8) -> 0 | AF8: =AE8/(AG4-AE11) -> 0 | AG8: =IF(AF8=0,0,(AF8*((LOG(AF8))/LOG(2)))) -> 0 | AI8: =N8 -> 112 | AJ8: =COUNTIF(L23:L27,AI8) -> 0 | AK8: =AJ8/(AL4-AJ11) -> 0 | AL8: =IF(AK8=0,0,(AK8*((LOG(AK8))/LOG(2)))) -> 0 | AN8: =N8 -> 112 | AO8: =COUNTIF(L28:L33,AN8) -> 0 | AP8: =AO8/(AQ4-AO11) -> 0 | AQ8: =IF(AP8=0,0,(AP8*((LOG(AP8))/LOG(2)))) -> 0 | AS8: =N8 -> 112 | AT8: =COUNTIF(L34:L38,AS8) -> 0 | AU8: =AT8/(AV4-AT11) -> 0 | AV8: =IF(AU8=0,0,(AU8*((LOG(AU8))/LOG(2)))) -> 0
A9: 12 | B9: 406 | C9: 13 | D9: 410 | E9: 13 | F9: 415 | K9: 0 | L9: 111 | N9: 121 | O9: =COUNTIF($L$7:$L$500,N9) -> 0 | P9: =O9/$Q$4 -> 0 | Q9: =IF(P9=0,0,(P9*((LOG(P9))/LOG(2)))) -> 0 | T9: =N9 -> 121 | U9: =COUNTIF(L7:L11,T9) -> 0 | V9: =U9/(W4-U11) -> 0 | W9: =IF(V9=0,0,(V9*((LOG(V9))/LOG(2)))) -> 0 | Y9: =N9 -> 121 | Z9: =COUNTIF(L12:L17,Y9) -> 0 | AA9: =Z9/(AB4-Z11) -> 0 | AB9: =IF(AA9=0,0,(AA9*((LOG(AA9))/LOG(2)))) -> 0 | AD9: =N9 -> 121 | AE9: =COUNTIF(L18:L22,AD9) -> 0 | AF9: =AE9/(AG4-AE11) -> 0 | AG9: =IF(AF9=0,0,(AF9*((LOG(AF9))/LOG(2)))) -> 0 | AI9: =N9 -> 121 | AJ9: =COUNTIF(L23:L27,AI9) -> 0 | AK9: =AJ9/(AL4-AJ11) -> 0 | AL9: =IF(AK9=0,0,(AK9*((LOG(AK9))/LOG(2)))) -> 0 | AN9: =N9 -> 121 | AO9: =COUNTIF(L28:L33,AN9) -> 0 | AP9: =AO9/(AQ4-AO11) -> 0 | AQ9: =IF(AP9=0,0,(AP9*((LOG(AP9))/LOG(2)))) -> 0 | AS9: =N9 -> 121 | AT9: =COUNTIF(L34:L38,AS9) -> 0 | AU9: =AT9/(AV4-AT11) -> 0 | AV9: =IF(AU9=0,0,(AU9*((LOG(AU9))/LOG(2)))) -> 0
A10: 12 | B10: 524 | C10: 13 | D10: 529 | E10: 13 | F10: 541 | K10: 0 | L10: 111 | N10: 122 | O10: =COUNTIF($L$7:$L$500,N10) -> 0 | P10: =O10/$Q$4 -> 0 | Q10: =IF(P10=0,0,(P10*((LOG(P10))/LOG(2)))) -> 0 | T10: =N10 -> 122 | U10: =COUNTIF(L7:L11,T10) -> 0 | V10: =U10/(W4-U11) -> 0 | W10: =IF(V10=0,0,(V10*((LOG(V10))/LOG(2)))) -> 0 | Y10: =N10 -> 122 | Z10: =COUNTIF(L12:L17,Y10) -> 0 | AA10: =Z10/(AB4-Z11) -> 0 | AB10: =IF(AA10=0,0,(AA10*((LOG(AA10))/LOG(2)))) -> 0 | AD10: =N10 -> 122 | AE10: =COUNTIF(L18:L22,AD10) -> 0 | AF10: =AE10/(AG4-AE11) -> 0 | AG10: =IF(AF10=0,0,(AF10*((LOG(AF10))/LOG(2)))) -> 0 | AI10: =N10 -> 122 | AJ10: =COUNTIF(L23:L27,AI10) -> 0 | AK10: =AJ10/(AL4-AJ11) -> 0 | AL10: =IF(AK10=0,0,(AK10*((LOG(AK10))/LOG(2)))) -> 0 | AN10: =N10 -> 122 | AO10: =COUNTIF(L28:L33,AN10) -> 0 | AP10: =AO10/(AQ4-AO11) -> 0 | AQ10: =IF(AP10=0,0,(AP10*((LOG(AP10))/LOG(2)))) -> 0 | AS10: =N10 -> 122 | AT10: =COUNTIF(L34:L38,AS10) -> 0 | AU10: =AT10/(AV4-AT11) -> 0 | AV10: =IF(AU10=0,0,(AU10*((LOG(AU10))/LOG(2)))) -> 0
A11: 12 | B11: 642 | C11: 13 | D11: 646 | E11: 13 | F11: 650 | K11: 0 | L11: 111 | N11: 211 | O11: =COUNTIF($L$7:$L$500,N11) -> 0 | P11: =O11/$Q$4 -> 0 | Q11: =IF(P11=0,0,(P11*((LOG(P11))/LOG(2)))) -> 0 | T11: =N11 -> 211 | U11: =COUNTIF(L7:L11,T11) -> 0 | Y11: =N11 -> 211 | Z11: =COUNTIF(L12:L17,Y11) -> 0 | AD11: =N11 -> 211 | AE11: =COUNTIF(L18:L22,AD11) -> 0 | AI11: =N11 -> 211 | AJ11: =COUNTIF(L23:L27,AI11) -> 0 | AN11: =N11 -> 211 | AO11: =COUNTIF(L28:L33,AN11) -> 0 | AS11: =N11 -> 211 | AT11: =COUNTIF(L34:L38,AS11) -> 0
A12: 12 | B12: 754 | C12: 13 | D12: 758 | E12: 13 | F12: 767 | K12: 0 | L12: 111 | N12: 212 | O12: =COUNTIF($L$7:$L$500,N12) -> 0 | P12: =O12/$Q$4 -> 0 | Q12: =IF(P12=0,0,(P12*((LOG(P12))/LOG(2)))) -> 0 | T12: =N12 -> 212 | U12: =COUNTIF(L7:L11,T12) -> 0 | V12: =U12/(W4-U11) -> 0 | W12: =IF(V12=0,0,(V12*((LOG(V12))/LOG(2)))) -> 0 | Y12: =N12 -> 212 | Z12: =COUNTIF(L12:L17,Y12) -> 0 | AA12: =Z12/(AB4-Z11) -> 0 | AB12: =IF(AA12=0,0,(AA12*((LOG(AA12))/LOG(2)))) -> 0 | AD12: =N12 -> 212 | AE12: =COUNTIF(L18:L22,AD12) -> 0 | AF12: =AE12/(AG4-AE11) -> 0 | AG12: =IF(AF12=0,0,(AF12*((LOG(AF12))/LOG(2)))) -> 0 | AI12: =N12 -> 212 | AJ12: =COUNTIF(L23:L27,AI12) -> 0 | AK12: =AJ12/(AL4-AJ11) -> 0 | AL12: =IF(AK12=0,0,(AK12*((LOG(AK12))/LOG(2)))) -> 0 | AN12: =N12 -> 212 | AO12: =COUNTIF(L28:L33,AN12) -> 0 | AP12: =AO12/(AQ4-AO11) -> 0 | AQ12: =IF(AP12=0,0,(AP12*((LOG(AP12))/LOG(2)))) -> 0 | AS12: =N12 -> 212 | AT12: =COUNTIF(L34:L38,AS12) -> 0 | AU12: =AT12/(AV4-AT11) -> 0 | AV12: =IF(AU12=0,0,(AU12*((LOG(AU12))/LOG(2)))) -> 0
A13: 12 | B13: 880 | C13: 13 | D13: 885 | E13: 13 | F13: 889 | K13: 0 | L13: 111 | N13: 221 | O13: =COUNTIF($L$7:$L$500,N13) -> 0 | P13: =O13/$Q$4 -> 0 | Q13: =IF(P13=0,0,(P13*((LOG(P13))/LOG(2)))) -> 0 | T13: =N13 -> 221 | U13: =COUNTIF(L7:L11,T13) -> 0 | V13: =U13/(W4-U11) -> 0 | W13: =IF(V13=0,0,(V13*((LOG(V13))/LOG(2)))) -> 0 | Y13: =N13 -> 221 | Z13: =COUNTIF(L12:L17,Y13) -> 0 | AA13: =Z13/(AB4-Z11) -> 0 | AB13: =IF(AA13=0,0,(AA13*((LOG(AA13))/LOG(2)))) -> 0 | AD13: =N13 -> 221 | AE13: =COUNTIF(L18:L22,AD13) -> 0 | AF13: =AE13/(AG4-AE11) -> 0 | AG13: =IF(AF13=0,0,(AF13*((LOG(AF13))/LOG(2)))) -> 0 | AI13: =N13 -> 221 | AJ13: =COUNTIF(L23:L27,AI13) -> 0 | AK13: =AJ13/(AL4-AJ11) -> 0 | AL13: =IF(AK13=0,0,(AK13*((LOG(AK13))/LOG(2)))) -> 0 | AN13: =N13 -> 221 | AO13: =COUNTIF(L28:L33,AN13) -> 0 | AP13: =AO13/(AQ4-AO11) -> 0 | AQ13: =IF(AP13=0,0,(AP13*((LOG(AP13))/LOG(2)))) -> 0 | AS13: =N13 -> 221 | AT13: =COUNTIF(L34:L38,AS13) -> 0 | AU13: =AT13/(AV4-AT11) -> 0 | AV13: =IF(AU13=0,0,(AU13*((LOG(AU13))/LOG(2)))) -> 0
A14: 12 | B14: 1144 | C14: 13 | D14: 1148 | E14: 13 | F14: 1152 | K14: 0 | L14: 111 | N14: 222 | O14: =COUNTIF($L$7:$L$500,N14) -> 8 | P14: =O14/$Q$4 -> 0.25 | Q14: =IF(P14=0,0,(P14*((LOG(P14))/LOG(2)))) -> -0.5 | T14: =N14 -> 222 | U14: =COUNTIF(L7:L11,T14) -> 0 | V14: =U14/(W4-U11) -> 0 | W14: =IF(V14=0,0,(V14*((LOG(V14))/LOG(2)))) -> 0 | Y14: =N14 -> 222 | Z14: =COUNTIF(L12:L17,Y14) -> 2 | AA14: =Z14/(AB4-Z11) -> 0.3333333333 | AB14: =IF(AA14=0,0,(AA14*((LOG(AA14))/LOG(2)))) -> -0.5283208336 | AD14: =N14 -> 222 | AE14: =COUNTIF(L18:L22,AD14) -> 1 | AF14: =AE14/(AG4-AE11) -> 0.2 | AG14: =IF(AF14=0,0,(AF14*((LOG(AF14))/LOG(2)))) -> -0.464385619 | AI14: =N14 -> 222 | AJ14: =COUNTIF(L23:L27,AI14) -> 0 | AK14: =AJ14/(AL4-AJ11) -> 0 | AL14: =IF(AK14=0,0,(AK14*((LOG(AK14))/LOG(2)))) -> 0 | AN14: =N14 -> 222 | AO14: =COUNTIF(L28:L33,AN14) -> 3 | AP14: =AO14/(AQ4-AO11) -> 0.5 | AQ14: =IF(AP14=0,0,(AP14*((LOG(AP14))/LOG(2)))) -> -0.5 | AS14: =N14 -> 222 | AT14: =COUNTIF(L34:L38,AS14) -> 2 | AU14: =AT14/(AV4-AT11) -> 0.4 | AV14: =IF(AU14=0,0,(AU14*((LOG(AU14))/LOG(2)))) -> -0.528771238
A15: 12 | B15: 1287 | C15: 13 | D15: 1292 | E15: 13 | F15: 1296 | K15: 0 | L15: 111 | P15: =SUM(P7:P14) -> 1 | Q15: =-SUM(Q7:Q14) -> 0.8112781245 | V15: =SUM(V7:V14) -> 1 | W15: =-SUM(W7:W14) -> 0 | AA15: =SUM(AA7:AA14) -> 1 | AB15: =-SUM(AB7:AB14) -> 0.9182958341 | AF15: =SUM(AF7:AF14) -> 1 | AG15: =-SUM(AG7:AG14) -> 0.7219280949 | AK15: =SUM(AK7:AK14) -> 1 | AL15: =-SUM(AL7:AL14) -> 0 | AP15: =SUM(AP7:AP14) -> 1 | AQ15: =-SUM(AQ7:AQ14) -> 1 | AU15: =SUM(AU7:AU14) -> 1 | AV15: =-SUM(AV7:AV14) -> 0.9709505945
A16: 21 | B16: 1726 | C16: 22 | D16: 1734 | E16: 24 | F16: 1750 | K16: 0 | L16: 222 | P16: U= | Q16: =Q15/(LOG(Q4)/LOG(2)) -> 0.1622556249 | V16: U1= | W16: =W15/(LOG(W4)/LOG(2)) -> 0 | AA16: U2= | AB16: =AB15/(LOG(AB4)/LOG(2)) -> 0.3552453213 | AF16: U3= | AG16: =AG15/(LOG(AG4)/LOG(2)) -> 0.3109175071 | AK16: U4= | AL16: =AL15/(LOG(AL4)/LOG(2)) -> 0 | AP16: U5= | AQ16: =AQ15/(LOG(AQ4)/LOG(2)) -> 0.3868528072 | AU16: U6= | AV16: =AV15/(LOG(AV4)/LOG(2)) -> 0.4181656601
A17: 21 | B17: 3139 | C17: 22 | D17: 3147 | E17: 24 | F17: 3152 | K17: 0 | L17: 222
A18: 12 | B18: 4914 | C18: 13 | D18: 4919 | E18: 13 | F18: 4925 | K18: 0 | L18: 111
A19: 12 | B19: 5069 | C19: 13 | D19: 5082 | E19: 13 | F19: 5088 | K19: 0 | L19: 111 | N19: Total Target Seq
A20: 12 | B20: 5239 | C20: 13 | D20: 5244 | E20: 13 | F20: 5250 | K20: 0 | L20: 111 | N20: =COUNTIF(L7:L38,G3) -> 0 | P20: 5 | Q20: 6 | R20: 5 | S20: 5 | T20: 6 | U20: 5
A21: 12 | B21: 5371 | C21: 13 | D21: 5378 | E21: 13 | F21: 5383 | K21: 0 | L21: 111 | P21: % of reinforcement given in 6 equal intervals based on number of trials
A22: 21 | B22: 5557 | C22: 22 | D22: 5564 | E22: 24 | F22: 5575 | K22: 0 | L22: 222 | P22: %_1 | Q22: %_2 | R22: %_3 | S22: %_4 | T22: %_5 | U22: %_6
A23: 12 | B23: 5714 | C23: 13 | D23: 5719 | E23: 13 | F23: 5724 | K23: 0 | L23: 111 | O23: target sequence | P23: =$G$3 -> 211 | Q23: =$G$3 -> 211 | R23: =$G$3 -> 211 | S23: =$G$3 -> 211 | T23: =$G$3 -> 211 | U23: =$G$3 -> 211
A24: 12 | B24: 5850 | C24: 13 | D24: 5855 | E24: 13 | F24: 5860 | K24: 0 | L24: 111 | O24: total reinforcement | P24: =U11 -> 0 | Q24: =Z11 -> 0 | R24: =AE11 -> 0 | S24: =AJ11 -> 0 | T24: =AO11 -> 0 | U24: =AT11 -> 0
A25: 12 | B25: 6006 | C25: 13 | D25: 6016 | E25: 13 | F25: 6021 | K25: 0 | L25: 111 | O25: % target
A26: 12 | B26: 6334 | C26: 13 | D26: 6340 | E26: 13 | F26: 6346 | K26: 0 | L26: 111 | O26: CCRF
A27: 12 | B27: 6465 | C27: 13 | D27: 6470 | E27: 13 | F27: 6478 | K27: 0 | L27: 111 | O27: % CCRf
A28: 12 | B28: 6785 | C28: 13 | D28: 6792 | E28: 13 | F28: 6798 | K28: 0 | L28: 111 | O28: average response rate | P28: =F11/P20 -> 130 | Q28: =(F17-F11)/Q20 -> 417 | R28: =(F22-F17)/R20 -> 484.6 | S28: =(F27-F22)/S20 -> 180.6 | T28: =(F33-F27)/T20 -> 416.5 | U28: =(F38-F33)/U20 -> 2497
A29: 12 | B29: 7489 | C29: 13 | D29: 7494 | E29: 13 | F29: 7516 | K29: 0 | L29: 111
A30: 21 | B30: 8429 | C30: 22 | D30: 8435 | E30: 24 | F30: 8440 | K30: 0 | L30: 222
A31: 21 | B31: 8549 | C31: 22 | D31: 8557 | E31: 24 | F31: 8562 | K31: 0 | L31: 222
A32: 21 | B32: 8674 | C32: 22 | D32: 8679 | E32: 24 | F32: 8685 | K32: 0 | L32: 222
A33: 12 | B33: 8966 | C33: 13 | D33: 8971 | E33: 13 | F33: 8977 | K33: 0 | L33: 111
A34: 12 | B34: 10178 | C34: 13 | D34: 10183 | E34: 13 | F34: 10191 | K34: 0 | L34: 111
A35: 21 | B35: 10372 | C35: 22 | D35: 10381 | E35: 24 | F35: 10386 | K35: 0 | L35: 222
A36: 12 | B36: 10890 | C36: 13 | D36: 10901 | E36: 13 | F36: 10906 | K36: 0 | L36: 111
A37: 21 | B37: 14986 | C37: 22 | D37: 15021 | E37: 24 | F37: 15031 | K37: 0 | L37: 222
A38: 12 | B38: 21451 | C38: 13 | D38: 21456 | E38: 13 | F38: 21462 | K38: 0 | L38: 111

Sheet !N106740.010
A1: Report for:!N106740.010
A2: Date: | B2: <date>
A3: Hen: | B3: <hen> | F3: Correct Sequence | G3: =Start!J2 -> 211 | P3: Total Sequences in Data | Q3: =4994-COUNTBLANK(L7:L5000) -> 28 | V3: Total Sequences in Block Data | W3: =COUNTA(L7:L11) -> 5 | AA3: Total Sequences in Block Data | AB3: =COUNTA(L12:L15) -> 4 | AF3: Total Sequences in Block Data | AG3: =COUNTA(L16:L20) -> 5 | AK3: Total Sequences in Block Data | AL3: =COUNTA(L21:L25) -> 5 | AP3: Total Sequences in Block Data | AQ3: =COUNTA(L26:L29) -> 4 | AU3: Total Sequences in Block Data | AV3: =COUNTA(L30:L34) -> 5
P4: Total Sequences in Summary | Q4: =SUM(O7:O14) -> 28 | V4: Total Sequences in Block Summary | W4: =SUM(U7:U14) -> 5 | AA4: Total Sequences in Block Summary | AB4: =SUM(Z7:Z14) -> 4 | AF4: Total Sequences in Block Summary | AG4: =SUM(AE7:AE14) -> 5 | AK4: Total Sequences in Block Summary | AL4: =SUM(AJ7:AJ14) -> 5 | AP4: Total Sequences in Block Summary | AQ4: =SUM(AO7:AO14) -> 4 | AU4: Total Sequences in Block Summary | AV4: =SUM(AT7:AT14) -> 5
T5: Block 1 | Y5: Block 2 | AD5: Block 3 | AI5: Block 4 | AN5: Block 5 | AS5: Block 6
A6: Sequence Component 1 | B6: Time 1 | C6: Sequence Component 2 | D6: Time 2 | E6: Sequence Component 3 | F6: Time 3 | G6: Sequence Component 4 | H6: Time 4 | I6: Sequence Component 5 | J6: Time 5 | K6: Correct? 0=No 1=Yes | L6: Sequence | N6: Frequency | P6: Relative Frequency | Q6: Variability | T6: Frequency | V6: Relative Frequency | W6: Variability | Y6: Frequency | AA6: Relative Frequency | AB6: Variability | AD6: Frequency | AF6: Relative Frequency | AG6: Variability | AI6: Frequency | AK6: Relative Frequency | AL6: Variability | AN6: Frequency | AP6: Relative Frequency | AQ6: Variability | AS6: Frequency | AU6: Relative Frequency | AV6: Variability
A7: 12 | B7: 22 | C7: 13 | D7: 27 | E7: 13 | F7: 31 | K7: 0 | L7: 111 | N7: 111 | O7: =COUNTIF($L$7:$L$500,N7) -> 25 | P7: =O7/$Q$4 -> 0.8928571429 | Q7: =IF(P7=0,0,(P7*((LOG(P7))/LOG(2)))) -> -0.145981011 | T7: =N7 -> 111 | U7: =COUNTIF(L7:L11,T7) -> 5 | V7: =U7/(W4-U11) -> 1 | W7: =IF(V7=0,0,(V7*((LOG(V7))/LOG(2)))) -> 0 | Y7: =N7 -> 111 | Z7: =COUNTIF(L12:L15,Y7) -> 4 | AA7: =Z7/(AB4-Z11) -> 1 | AB7: =IF(AA7=0,0,(AA7*((LOG(AA7))/LOG(2)))) -> 0 | AD7: =N7 -> 111 | AE7: =COUNTIF(L16:L20,AD7) -> 4 | AF7: =AE7/(AG4-AE11) -> 0.8 | AG7: =IF(AF7=0,0,(AF7*((LOG(AF7))/LOG(2)))) -> -0.2575424759 | AI7: =N7 -> 111 | AJ7: =COUNTIF(L21:L25,AI7) -> 5 | AK7: =AJ7/(AL4-AJ11) -> 1 | AL7: =IF(AK7=0,0,(AK7*((LOG(AK7))/LOG(2)))) -> 0 | AN7: =N7 -> 111 | AO7: =COUNTIF(L26:L29,AN7) -> 4 | AP7: =AO7/(AQ4-AO11) -> 1 | AQ7: =IF(AP7=0,0,(AP7*((LOG(AP7))/LOG(2)))) -> 0 | AS7: =N7 -> 111 | AT7: =COUNTIF(L30:L34,AS7) -> 3 | AU7: =AT7/(AV4-AT11) -> 0.6 | AV7: =IF(AU7=0,0,(AU7*((LOG(AU7))/LOG(2)))) -> -0.4421793565
A8: 12 | B8: 135 | C8: 13 | D8: 144 | E8: 13 | F8: 149 | K8: 0 | L8: 111 | N8: 112 | O8: =COUNTIF($L$7:$L$500,N8) -> 0 | P8: =O8/$Q$4 -> 0 | Q8: =IF(P8=0,0,(P8*((LOG(P8))/LOG(2)))) -> 0 | T8: =N8 -> 112 | U8: =COUNTIF(L7:L11,T8) -> 0 | V8: =U8/(W4-U11) -> 0 | W8: =IF(V8=0,0,(V8*((LOG(V8))/LOG(2)))) -> 0 | Y8: =N8 -> 112 | Z8: =COUNTIF(L12:L15,Y8) -> 0 | AA8: =Z8/(AB4-Z11) -> 0 | AB8: =IF(AA8=0,0,(AA8*((LOG(AA8))/LOG(2)))) -> 0 | AD8: =N8 -> 112 | AE8: =COUNTIF(L16:L20,AD8) -> 0 | AF8: =AE8/(AG4-AE11) -> 0 | AG8: =IF(AF8=0,0,(AF8*((LOG(AF8))/LOG(2)))) -> 0 | AI8: =N8 -> 112 | AJ8: =COUNTIF(L21:L25,AI8) -> 0 | AK8: =AJ8/(AL4-AJ11) -> 0 | AL8: =IF(AK8=0,0,(AK8*((LOG(AK8))/LOG(2)))) -> 0 | AN8: =N8 -> 112 | AO8: =COUNTIF(L26:L29,AN8) -> 0 | AP8: =AO8/(AQ4-AO11) -> 0 | AQ8: =IF(AP8=0,0,(AP8*((LOG(AP8))/LOG(2)))) -> 0 | AS8: =N8 -> 112 | AT8: =COUNTIF(L30:L34,AS8) -> 0 | AU8: =AT8/(AV4-AT11) -> 0 | AV8: =IF(AU8=0,0,(AU8*((LOG(AU8))/LOG(2)))) -> 0
A9: 12 | B9: 276 | C9: 13 | D9: 282 | E9: 13 | F9: 286 | K9: 0 | L9: 111 | N9: 121 | O9: =COUNTIF($L$7:$L$500,N9) -> 0 | P9: =O9/$Q$4 -> 0 | Q9: =IF(P9=0,0,(P9*((LOG(P9))/LOG(2)))) -> 0 | T9: =N9 -> 121 | U9: =COUNTIF(L7:L11,T9) -> 0 | V9: =U9/(W4-U11) -> 0 | W9: =IF(V9=0,0,(V9*((LOG(V9))/LOG(2)))) -> 0 | Y9: =N9 -> 121 | Z9: =COUNTIF(L12:L15,Y9) -> 0 | AA9: =Z9/(AB4-Z11) -> 0 | AB9: =IF(AA9=0,0,(AA9*((LOG(AA9))/LOG(2)))) -> 0 | AD9: =N9 -> 121 | AE9: =COUNTIF(L16:L20,AD9) -> 0 | AF9: =AE9/(AG4-AE11) -> 0 | AG9: =IF(AF9=0,0,(AF9*((LOG(AF9))/LOG(2)))) -> 0 | AI9: =N9 -> 121 | AJ9: =COUNTIF(L21:L25,AI9) -> 0 | AK9: =AJ9/(AL4-AJ11) -> 0 | AL9: =IF(AK9=0,0,(AK9*((LOG(AK9))/LOG(2)))) -> 0 | AN9: =N9 -> 121 | AO9: =COUNTIF(L26:L29,AN9) -> 0 | AP9: =AO9/(AQ4-AO11) -> 0 | AQ9: =IF(AP9=0,0,(AP9*((LOG(AP9))/LOG(2)))) -> 0 | AS9: =N9 -> 121 | AT9: =COUNTIF(L30:L34,AS9) -> 0 | AU9: =AT9/(AV4-AT11) -> 0 | AV9: =IF(AU9=0,0,(AU9*((LOG(AU9))/LOG(2)))) -> 0
A10: 12 | B10: 391 | C10: 13 | D10: 395 | E10: 13 | F10: 400 | K10: 0 | L10: 111 | N10: 122 | O10: =COUNTIF($L$7:$L$500,N10) -> 0 | P10: =O10/$Q$4 -> 0 | Q10: =IF(P10=0,0,(P10*((LOG(P10))/LOG(2)))) -> 0 | T10: =N10 -> 122 | U10: =COUNTIF(L7:L11,T10) -> 0 | V10: =U10/(W4-U11) -> 0 | W10: =IF(V10=0,0,(V10*((LOG(V10))/LOG(2)))) -> 0 | Y10: =N10 -> 122 | Z10: =COUNTIF(L12:L15,Y10) -> 0 | AA10: =Z10/(AB4-Z11) -> 0 | AB10: =IF(AA10=0,0,(AA10*((LOG(AA10))/LOG(2)))) -> 0 | AD10: =N10 -> 122 | AE10: =COUNTIF(L16:L20,AD10) -> 0 | AF10: =AE10/(AG4-AE11) -> 0 | AG10: =IF(AF10=0,0,(AF10*((LOG(AF10))/LOG(2)))) -> 0 | AI10: =N10 -> 122 | AJ10: =COUNTIF(L21:L25,AI10) -> 0 | AK10: =AJ10/(AL4-AJ11) -> 0 | AL10: =IF(AK10=0,0,(AK10*((LOG(AK10))/LOG(2)))) -> 0 | AN10: =N10 -> 122 | AO10: =COUNTIF(L26:L29,AN10) -> 0 | AP10: =AO10/(AQ4-AO11) -> 0 | AQ10: =IF(AP10=0,0,(AP10*((LOG(AP10))/LOG(2)))) -> 0 | AS10: =N10 -> 122 | AT10: =COUNTIF(L30:L34,AS10) -> 0 | AU10: =AT10/(AV4-AT11) -> 0 | AV10: =IF(AU10=0,0,(AU10*((LOG(AU10))/LOG(2)))) -> 0
A11: 12 | B11: 509 | C11: 13 | D11: 514 | E11: 13 | F11: 519 | K11: 0 | L11: 111 | N11: 211 | O11: =COUNTIF($L$7:$L$500,N11) -> 0 | P11: =O11/$Q$4 -> 0 | Q11: =IF(P11=0,0,(P11*((LOG(P11))/LOG(2)))) -> 0 | T11: =N11 -> 211 | U11: =COUNTIF(L7:L11,T11) -> 0 | Y11: =N11 -> 211 | Z11: =COUNTIF(L12:L15,Y11) -> 0 | AD11: =N11 -> 211 | AE11: =COUNTIF(L16:L20,AD11) -> 0 | AI11: =N11 -> 211 | AJ11: =COUNTIF(L21:L25,AI11) -> 0 | AN11: =N11 -> 211 | AO11: =COUNTIF(L26:L29,AN11) -> 0 | AS11: =N11 -> 211 | AT11: =COUNTIF(L30:L34,AS11) -> 0
A12: 12 | B12: 626 | C12: 13 | D12: 632 | E12: 13 | F12: 637 | K12: 0 | L12: 111 | N12: 212 | O12: =COUNTIF($L$7:$L$500,N12) -> 0 | P12: =O12/$Q$4 -> 0 | Q12: =IF(P12=0,0,(P12*((LOG(P12))/LOG(2)))) -> 0 | T12: =N12 -> 212 | U12: =COUNTIF(L7:L11,T12) -> 0 | V12: =U12/(W4-U11) -> 0 | W12: =IF(V12=0,0,(V12*((LOG(V12))/LOG(2)))) -> 0 | Y12: =N12 -> 212 | Z12: =COUNTIF(L12:L15,Y12) -> 0 | AA12: =Z12/(AB4-Z11) -> 0 | AB12: =IF(AA12=0,0,(AA12*((LOG(AA12))/LOG(2)))) -> 0 | AD12: =N12 -> 212 | AE12: =COUNTIF(L16:L20,AD12) -> 0 | AF12: =AE12/(AG4-AE11) -> 0 | AG12: =IF(AF12=0,0,(AF12*((LOG(AF12))/LOG(2)))) -> 0 | AI12: =N12 -> 212 | AJ12: =COUNTIF(L21:L25,AI12) -> 0 | AK12: =AJ12/(AL4-AJ11) -> 0 | AL12: =IF(AK12=0,0,(AK12*((LOG(AK12))/LOG(2)))) -> 0 | AN12: =N12 -> 212 | AO12: =COUNTIF(L26:L29,AN12) -> 0 | AP12: =AO12/(AQ4-AO11) -> 0 | AQ12: =IF(AP12=0,0,(AP12*((LOG(AP12))/LOG(2)))) -> 0 | AS12: =N12 -> 212 | AT12: =COUNTIF(L30:L34,AS12) -> 0 | AU12: =AT12/(AV4-AT11) -> 0 | AV12: =IF(AU12=0,0,(AU12*((LOG(AU12))/LOG(2)))) -> 0
A13: 12 | B13: 910 | C13: 13 | D13: 915 | E13: 13 | F13: 920 | K13: 0 | L13: 111 | N13: 221 | O13: =COUNTIF($L$7:$L$500,N13) -> 0 | P13: =O13/$Q$4 -> 0 | Q13: =IF(P13=0,0,(P13*((LOG(P13))/LOG(2)))) -> 0 | T13: =N13 -> 221 | U13: =COUNTIF(L7:L11,T13) -> 0 | V13: =U13/(W4-U11) -> 0 | W13: =IF(V13=0,0,(V13*((LOG(V13))/LOG(2)))) -> 0 | Y13: =N13 -> 221 | Z13: =COUNTIF(L12:L15,Y13) -> 0 | AA13: =Z13/(AB4-Z11) -> 0 | AB13: =IF(AA13=0,0,(AA13*((LOG(AA13))/LOG(2)))) -> 0 | AD13: =N13 -> 221 | AE13: =COUNTIF(L16:L20,AD13) -> 0 | AF13: =AE13/(AG4-AE11) -> 0 | AG13: =IF(AF13=0,0,(AF13*((LOG(AF13))/LOG(2)))) -> 0 | AI13: =N13 -> 221 | AJ13: =COUNTIF(L21:L25,AI13) -> 0 | AK13: =AJ13/(AL4-AJ11) -> 0 | AL13: =IF(AK13=0,0,(AK13*((LOG(AK13))/LOG(2)))) -> 0 | AN13: =N13 -> 221 | AO13: =COUNTIF(L26:L29,AN13) -> 0 | AP13: =AO13/(AQ4-AO11) -> 0 | AQ13: =IF(AP13=0,0,(AP13*((LOG(AP13))/LOG(2)))) -> 0 | AS13: =N13 -> 221 | AT13: =COUNTIF(L30:L34,AS13) -> 0 | AU13: =AT13/(AV4-AT11) -> 0 | AV13: =IF(AU13=0,0,(AU13*((LOG(AU13))/LOG(2)))) -> 0
A14: 12 | B14: 1188 | C14: 13 | D14: 1194 | E14: 13 | F14: 1198 | K14: 0 | L14: 111 | N14: 222 | O14: =COUNTIF($L$7:$L$500,N14) -> 3 | P14: =O14/$Q$4 -> 0.1071428571 | Q14: =IF(P14=0,0,(P14*((LOG(P14))/LOG(2)))) -> -0.3452563309 | T14: =N14 -> 222 | U14: =COUNTIF(L7:L11,T14) -> 0 | V14: =U14/(W4-U11) -> 0 | W14: =IF(V14=0,0,(V14*((LOG(V14))/LOG(2)))) -> 0 | Y14: =N14 -> 222 | Z14: =COUNTIF(L12:L15,Y14) -> 0 | AA14: =Z14/(AB4-Z11) -> 0 | AB14: =IF(AA14=0,0,(AA14*((LOG(AA14))/LOG(2)))) -> 0 | AD14: =N14 -> 222 | AE14: =COUNTIF(L16:L20,AD14) -> 1 | AF14: =AE14/(AG4-AE11) -> 0.2 | AG14: =IF(AF14=0,0,(AF14*((LOG(AF14))/LOG(2)))) -> -0.464385619 | AI14: =N14 -> 222 | AJ14: =COUNTIF(L21:L25,AI14) -> 0 | AK14: =AJ14/(AL4-AJ11) -> 0 | AL14: =IF(AK14=0,0,(AK14*((LOG(AK14))/LOG(2)))) -> 0 | AN14: =N14 -> 222 | AO14: =COUNTIF(L26:L29,AN14) -> 0 | AP14: =AO14/(AQ4-AO11) -> 0 | AQ14: =IF(AP14=0,0,(AP14*((LOG(AP14))/LOG(2)))) -> 0 | AS14: =N14 -> 222 | AT14: =COUNTIF(L30:L34,AS14) -> 2 | AU14: =AT14/(AV4-AT11) -> 0.4 | AV14: =IF(AU14=0,0,(AU14*((LOG(AU14))/LOG(2)))) -> -0.528771238
A15: 12 | B15: 1360 | C15: 13 | D15: 1365 | E15: 13 | F15: 1369 | K15: 0 | L15: 111 | P15: =SUM(P7:P14) -> 1 | Q15: =-SUM(Q7:Q14) -> 0.4912373418 | V15: =SUM(V7:V14) -> 1 | W15: =-SUM(W7:W14) -> 0 | AA15: =SUM(AA7:AA14) -> 1 | AB15: =-SUM(AB7:AB14) -> 0 | AF15: =SUM(AF7:AF14) -> 1 | AG15: =-SUM(AG7:AG14) -> 0.7219280949 | AK15: =SUM(AK7:AK14) -> 1 | AL15: =-SUM(AL7:AL14) -> 0 | AP15: =SUM(AP7:AP14) -> 1 | AQ15: =-SUM(AQ7:AQ14) -> 0 | AU15: =SUM(AU7:AU14) -> 1 | AV15: =-SUM(AV7:AV14) -> 0.9709505945
A16: 12 | B16: 1604 | C16: 13 | D16: 1609 | E16: 13 | F16: 1615 | K16: 0 | L16: 111 | P16: U= | Q16: =Q15/(LOG(Q4)/LOG(2)) -> 0.102184538 | V16: U1= | W16: =W15/(LOG(W4)/LOG(2)) -> 0 | AA16: U2= | AB16: =AB15/(LOG(AB4)/LOG(2)) -> 0 | AF16: U3= | AG16: =AG15/(LOG(AG4)/LOG(2)) -> 0.3109175071 | AK16: U4= | AL16: =AL15/(LOG(AL4)/LOG(2)) -> 0 | AP16: U5= | AQ16: =AQ15/(LOG(AQ4)/LOG(2)) -> 0 | AU16: U6= | AV16: =AV15/(LOG(AV4)/LOG(2)) -> 0.4181656601
A17: 21 | B17: 2641 | C17: 22 | D17: 2647 | E17: 24 | F17: 2652 | K17: 0 | L17: 222
A18: 12 | B18: 2782 | C18: 13 | D18: 2789 | E18: 13 | F18: 2794 | K18: 0 | L18: 111
A19: 12 | B19: 6428 | C19: 13 | D19: 6433 | E19: 13 | F19: 6446 | K19: 0 | L19: 111 | N19: Total Target Seq
A20: 12 | B20: 6867 | C20: 13 | D20: 6876 | E20: 13 | F20: 6881 | K20: 0 | L20: 111 | N20: =COUNTIF(L7:L34,G3) -> 0 | P20: 5 | Q20: 4 | R20: 5 | S20: 5 | T20: 4 | U20: 5
A21: 12 | B21: 7068 | C21: 13 | D21: 7074 | E21: 13 | F21: 7080 | K21: 0 | L21: 111 | P21: % of reinforcement given in 6 equal intervals based on number of trials
A22: 12 | B22: 9285 | C22: 13 | D22: 9298 | E22: 13 | F22: 9306 | K22: 0 | L22: 111 | P22: %_1 | Q22: %_2 | R22: %_3 | S22: %_4 | T22: %_5 | U22: %_6
A23: 12 | B23: 9431 | C23: 13 | D23: 9456 | E23: 13 | F23: 9461 | K23: 0 | L23: 111 | O23: target sequence | P23: =$G$3 -> 211 | Q23: =$G$3 -> 211 | R23: =$G$3 -> 211 | S23: =$G$3 -> 211 | T23: =$G$3 -> 211 | U23: =$G$3 -> 211
A24: 12 | B24: 9601 | C24: 13 | D24: 9608 | E24: 13 | F24: 9613 | K24: 0 | L24: 111 | O24: total reinforcement | P24: =U11 -> 0 | Q24: =Z11 -> 0 | R24: =AE11 -> 0 | S24: =AJ11 -> 0 | T24: =AO11 -> 0 | U24: =AT11 -> 0
A25: 12 | B25: 9818 | C25: 13 | D25: 9823 | E25: 13 | F25: 9828 | K25: 0 | L25: 111 | O25: % target
A26: 12 | B26: 10256 | C26: 13 | D26: 10267 | E26: 13 | F26: 10272 | K26: 0 | L26: 111 | O26: CCRF
A27: 12 | B27: 10437 | C27: 13 | D27: 10442 | E27: 13 | F27: 10446 | K27: 0 | L27: 111 | O27: % CCRf
A28: 12 | B28: 10811 | C28: 13 | D28: 10821 | E28: 13 | F28: 10826 | K28: 0 | L28: 111 | O28: average response rate | P28: =F11/P20 -> 103.8 | Q28: =(F15-F11)/Q20 -> 212.5 | R28: =(F20-F15)/R20 -> 1102.4 | S28: =(F25-F20)/S20 -> 589.4 | T28: =(F29-F25)/T20 -> 884 | U28: =(F34-F29)/U20 -> 1598.6
A29: 12 | B29: 13352 | C29: 13 | D29: 13358 | E29: 13 | F29: 13364 | K29: 0 | L29: 111
A30: 21 | B30: 17412 | C30: 22 | D30: 17420 | E30: 24 | F30: 17426 | K30: 0 | L30: 222
A31: 12 | B31: 18118 | C31: 13 | D31: 18125 | E31: 13 | F31: 18139 | K31: 0 | L31: 111
A32: 12 | B32: 20474 | C32: 13 | D32: 20480 | E32: 13 | F32: 20487 | K32: 0 | L32: 111
A33: 12 | B33: 20647 | C33: 13 | D33: 20652 | E33: 13 | F33: 20661 | K33: 0 | L33: 111
A34: 21 | B34: 21345 | C34: 22 | D34: 21351 | E34: 24 | F34: 21357 | K34: 0 | L34: 222

Sheet !N107800.010
A1: Report for:!N107800.010
A2: Date: | B2: <date>
A3: Hen: | B3: <hen> | F3: Correct Sequence | G3: =Start!J2 -> 211 | P3: Total Sequences in Data | Q3: =4994-COUNTBLANK(L7:L5000) -> 35 | V3: Total Sequences in Block Data | W3: =COUNTA(L7:L12) -> 6 | AA3: Total Sequences in Block Data | AB3: =COUNTA(L13:L18) -> 6 | AF3: Total Sequences in Block Data | AG3: =COUNTA(L19:L23) -> 5 | AK3: Total Sequences in Block Data | AL3: =COUNTA(L24:L29) -> 6 | AP3: Total Sequences in Block Data | AQ3: =COUNTA(L30:L35) -> 6 | AU3: Total Sequences in Block Data | AV3: =COUNTA(L36:L41) -> 6
P4: Total Sequences in Summary | Q4: =SUM(O7:O14) -> 35 | V4: Total Sequences in Block Summary | W4: =SUM(U7:U14) -> 6 | AA4: Total Sequences in Block Summary | AB4: =SUM(Z7:Z14) -> 6 | AF4: Total Sequences in Block Summary | AG4: =SUM(AE7:AE14) -> 5 | AK4: Total Sequences in Block Summary | AL4: =SUM(AJ7:AJ14) -> 6 | AP4: Total Sequences in Block Summary | AQ4: =SUM(AO7:AO14) -> 6 | AU4: Total Sequences in Block Summary | AV4: =SUM(AT7:AT14) -> 6
T5: Block 1 | Y5: Block 2 | AD5: Block 3 | AI5: Block 4 | AN5: Block 5 | AS5: Block 6
A6: Sequence Component 1 | B6: Time 1 | C6: Sequence Component 2 | D6: Time 2 | E6: Sequence Component 3 | F6: Time 3 | G6: Sequence Component 4 | H6: Time 4 | I6: Sequence Component 5 | J6: Time 5 | K6: Correct? 0=No 1=Yes | L6: Sequence | N6: Frequency | P6: Relative Frequency | Q6: Variability | T6: Frequency | V6: Relative Frequency | W6: Variability | Y6: Frequency | AA6: Relative Frequency | AB6: Variability | AD6: Frequency | AF6: Relative Frequency | AG6: Variability | AI6: Frequency | AK6: Relative Frequency | AL6: Variability | AN6: Frequency | AP6: Relative Frequency | AQ6: Variability | AS6: Frequency | AU6: Relative Frequency | AV6: Variability
A7: 12 | B7: 125 | C7: 13 | D7: 129 | E7: 13 | F7: 134 | K7: 0 | L7: 111 | N7: 111 | O7: =COUNTIF($L$7:$L$500,N7) -> 28 | P7: =O7/$Q$4 -> 0.8 | Q7: =IF(P7=0,0,(P7*((LOG(P7))/LOG(2)))) -> -0.2575424759 | T7: =N7 -> 111 | U7: =COUNTIF(L7:L12,T7) -> 4 | V7: =U7/(W4-U11) -> 0.6666666667 | W7: =IF(V7=0,0,(V7*((LOG(V7))/LOG(2)))) -> -0.3899750005 | Y7: =N7 -> 111 | Z7: =COUNTIF(L13:L18,Y7) -> 6 | AA7: =Z7/(AB4-Z11) -> 1 | AB7: =IF(AA7=0,0,(AA7*((LOG(AA7))/LOG(2)))) -> 0 | AD7: =N7 -> 111 | AE7: =COUNTIF(L19:L23,AD7) -> 5 | AF7: =AE7/(AG4-AE11) -> 1 | AG7: =IF(AF7=0,0,(AF7*((LOG(AF7))/LOG(2)))) -> 0 | AI7: =N7 -> 111 | AJ7: =COUNTIF(L24:L29,AI7) -> 5 | AK7: =AJ7/(AL4-AJ11) -> 0.8333333333 | AL7: =IF(AK7=0,0,(AK7*((LOG(AK7))/LOG(2)))) -> -0.2191953382 | AN7: =N7 -> 111 | AO7: =COUNTIF(L30:L35,AN7) -> 3 | AP7: =AO7/(AQ4-AO11) -> 0.5 | AQ7: =IF(AP7=0,0,(AP7*((LOG(AP7))/LOG(2)))) -> -0.5 | AS7: =N7 -> 111 | AT7: =COUNTIF(L36:L41,AS7) -> 5 | AU7: =AT7/(AV4-AT11) -> 0.8333333333 | AV7: =IF(AU7=0,0,(AU7*((LOG(AU7))/LOG(2)))) -> -0.2191953382
A8: 12 | B8: 252 | C8: 13 | D8: 257 | E8: 13 | F8: 261 | K8: 0 | L8: 111 | N8: 112 | O8: =COUNTIF($L$7:$L$500,N8) -> 0 | P8: =O8/$Q$4 -> 0 | Q8: =IF(P8=0,0,(P8*((LOG(P8))/LOG(2)))) -> 0 | T8: =N8 -> 112 | U8: =COUNTIF(L7:L12,T8) -> 0 | V8: =U8/(W4-U11) -> 0 | W8: =IF(V8=0,0,(V8*((LOG(V8))/LOG(2)))) -> 0 | Y8: =N8 -> 112 | Z8: =COUNTIF(L13:L18,Y8) -> 0 | AA8: =Z8/(AB4-Z11) -> 0 | AB8: =IF(AA8=0,0,(AA8*((LOG(AA8))/LOG(2)))) -> 0 | AD8: =N8 -> 112 | AE8: =COUNTIF(L19:L23,AD8) -> 0 | AF8: =AE8/(AG4-AE11) -> 0 | AG8: =IF(AF8=0,0,(AF8*((LOG(AF8))/LOG(2)))) -> 0 | AI8: =N8 -> 112 | AJ8: =COUNTIF(L24:L29,AI8) -> 0 | AK8: =AJ8/(AL4-AJ11) -> 0 | AL8: =IF(AK8=0,0,(AK8*((LOG(AK8))/LOG(2)))) -> 0 | AN8: =N8 -> 112 | AO8: =COUNTIF(L30:L35,AN8) -> 0 | AP8: =AO8/(AQ4-AO11) -> 0 | AQ8: =IF(AP8=0,0,(AP8*((LOG(AP8))/LOG(2)))) -> 0 | AS8: =N8 -> 112 | AT8: =COUNTIF(L36:L41,AS8) -> 0 | AU8: =AT8/(AV4-AT11) -> 0 | AV8: =IF(AU8=0,0,(AU8*((LOG(AU8))/LOG(2)))) -> 0
A9: 12 | B9: 368 | C9: 13 | D9: 373 | E9: 13 | F9: 378 | K9: 0 | L9: 111 | N9: 121 | O9: =COUNTIF($L$7:$L$500,N9) -> 0 | P9: =O9/$Q$4 -> 0 | Q9: =IF(P9=0,0,(P9*((LOG(P9))/LOG(2)))) -> 0 | T9: =N9 -> 121 | U9: =COUNTIF(L7:L12,T9) -> 0 | V9: =U9/(W4-U11) -> 0 | W9: =IF(V9=0,0,(V9*((LOG(V9))/LOG(2)))) -> 0 | Y9: =N9 -> 121 | Z9: =COUNTIF(L13:L18,Y9) -> 0 | AA9: =Z9/(AB4-Z11) -> 0 | AB9: =IF(AA9=0,0,(AA9*((LOG(AA9))/LOG(2)))) -> 0 | AD9: =N9 -> 121 | AE9: =COUNTIF(L19:L23,AD9) -> 0 | AF9: =AE9/(AG4-AE11) -> 0 | AG9: =IF(AF9=0,0,(AF9*((LOG(AF9))/LOG(2)))) -> 0 | AI9: =N9 -> 121 | AJ9: =COUNTIF(L24:L29,AI9) -> 0 | AK9: =AJ9/(AL4-AJ11) -> 0 | AL9: =IF(AK9=0,0,(AK9*((LOG(AK9))/LOG(2)))) -> 0 | AN9: =N9 -> 121 | AO9: =COUNTIF(L30:L35,AN9) -> 0 | AP9: =AO9/(AQ4-AO11) -> 0 | AQ9: =IF(AP9=0,0,(AP9*((LOG(AP9))/LOG(2)))) -> 0 | AS9: =N9 -> 121 | AT9: =COUNTIF(L36:L41,AS9) -> 0 | AU9: =AT9/(AV4-AT11) -> 0 | AV9: =IF(AU9=0,0,(AU9*((LOG(AU9))/LOG(2)))) -> 0
A10: 12 | B10: 624 | C10: 13 | D10: 629 | E10: 13 | F10: 634 | K10: 0 | L10: 111 | N10: 122 | O10: =COUNTIF($L$7:$L$500,N10) -> 0 | P10: =O10/$Q$4 -> 0 | Q10: =IF(P10=0,0,(P10*((LOG(P10))/LOG(2)))) -> 0 | T10: =N10 -> 122 | U10: =COUNTIF(L7:L12,T10) -> 0 | V10: =U10/(W4-U11) -> 0 | W10: =IF(V10=0,0,(V10*((LOG(V10))/LOG(2)))) -> 0 | Y10: =N10 -> 122 | Z10: =COUNTIF(L13:L18,Y10) -> 0 | AA10: =Z10/(AB4-Z11) -> 0 | AB10: =IF(AA10=0,0,(AA10*((LOG(AA10))/LOG(2)))) -> 0 | AD10: =N10 -> 122 | AE10: =COUNTIF(L19:L23,AD10) -> 0 | AF10: =AE10/(AG4-AE11) -> 0 | AG10: =IF(AF10=0,0,(AF10*((LOG(AF10))/LOG(2)))) -> 0 | AI10: =N10 -> 122 | AJ10: =COUNTIF(L24:L29,AI10) -> 0 | AK10: =AJ10/(AL4-AJ11) -> 0 | AL10: =IF(AK10=0,0,(AK10*((LOG(AK10))/LOG(2)))) -> 0 | AN10: =N10 -> 122 | AO10: =COUNTIF(L30:L35,AN10) -> 0 | AP10: =AO10/(AQ4-AO11) -> 0 | AQ10: =IF(AP10=0,0,(AP10*((LOG(AP10))/LOG(2)))) -> 0 | AS10: =N10 -> 122 | AT10: =COUNTIF(L36:L41,AS10) -> 0 | AU10: =AT10/(AV4-AT11) -> 0 | AV10: =IF(AU10=0,0,(AU10*((LOG(AU10))/LOG(2)))) -> 0
A11: 21 | B11: 759 | C11: 22 | D11: 765 | E11: 24 | F11: 771 | K11: 0 | L11: 222 | N11: 211 | O11: =COUNTIF($L$7:$L$500,N11) -> 0 | P11: =O11/$Q$4 -> 0 | Q11: =IF(P11=0,0,(P11*((LOG(P11))/LOG(2)))) -> 0 | T11: =N11 -> 211 | U11: =COUNTIF(L7:L12,T11) -> 0 | Y11: =N11 -> 211 | Z11: =COUNTIF(L13:L18,Y11) -> 0 | AD11: =N11 -> 211 | AE11: =COUNTIF(L19:L23,AD11) -> 0 | AI11: =N11 -> 211 | AJ11: =COUNTIF(L24:L29,AI11) -> 0 | AN11: =N11 -> 211 | AO11: =COUNTIF(L30:L35,AN11) -> 0 | AS11: =N11 -> 211 | AT11: =COUNTIF(L36:L41,AS11) -> 0
A12: 21 | B12: 1014 | C12: 22 | D12: 1019 | E12: 24 | F12: 1024 | K12: 0 | L12: 222 | N12: 212 | O12: =COUNTIF($L$7:$L$500,N12) -> 0 | P12: =O12/$Q$4 -> 0 | Q12: =IF(P12=0,0,(P12*((LOG(P12))/LOG(2)))) -> 0 | T12: =N12 -> 212 | U12: =COUNTIF(L7:L12,T12) -> 0 | V12: =U12/(W4-U11) -> 0 | W12: =IF(V12=0,0,(V12*((LOG(V12))/LOG(2)))) -> 0 | Y12: =N12 -> 212 | Z12: =COUNTIF(L13:L18,Y12) -> 0 | AA12: =Z12/(AB4-Z11) -> 0 | AB12: =IF(AA12=0,0,(AA12*((LOG(AA12))/LOG(2)))) -> 0 | AD12: =N12 -> 212 | AE12: =COUNTIF(L19:L23,AD12) -> 0 | AF12: =AE12/(AG4-AE11) -> 0 | AG12: =IF(AF12=0,0,(AF12*((LOG(AF12))/LOG(2)))) -> 0 | AI12: =N12 -> 212 | AJ12: =COUNTIF(L24:L29,AI12) -> 0 | AK12: =AJ12/(AL4-AJ11) -> 0 | AL12: =IF(AK12=0,0,(AK12*((LOG(AK12))/LOG(2)))) -> 0 | AN12: =N12 -> 212 | AO12: =COUNTIF(L30:L35,AN12) -> 0 | AP12: =AO12/(AQ4-AO11) -> 0 | AQ12: =IF(AP12=0,0,(AP12*((LOG(AP12))/LOG(2)))) -> 0 | AS12: =N12 -> 212 | AT12: =COUNTIF(L36:L41,AS12) -> 0 | AU12: =AT12/(AV4-AT11) -> 0 | AV12: =IF(AU12=0,0,(AU12*((LOG(AU12))/LOG(2)))) -> 0
A13: 12 | B13: 1266 | C13: 13 | D13: 1271 | E13: 13 | F13: 1276 | K13: 0 | L13: 111 | N13: 221 | O13: =COUNTIF($L$7:$L$500,N13) -> 0 | P13: =O13/$Q$4 -> 0 | Q13: =IF(P13=0,0,(P13*((LOG(P13))/LOG(2)))) -> 0 | T13: =N13 -> 221 | U13: =COUNTIF(L7:L12,T13) -> 0 | V13: =U13/(W4-U11) -> 0 | W13: =IF(V13=0,0,(V13*((LOG(V13))/LOG(2)))) -> 0 | Y13: =N13 -> 221 | Z13: =COUNTIF(L13:L18,Y13) -> 0 | AA13: =Z13/(AB4-Z11) -> 0 | AB13: =IF(AA13=0,0,(AA13*((LOG(AA13))/LOG(2)))) -> 0 | AD13: =N13 -> 221 | AE13: =COUNTIF(L19:L23,AD13) -> 0 | AF13: =AE13/(AG4-AE11) -> 0 | AG13: =IF(AF13=0,0,(AF13*((LOG(AF13))/LOG(2)))) -> 0 | AI13: =N13 -> 221 | AJ13: =COUNTIF(L24:L29,AI13) -> 0 | AK13: =AJ13/(AL4-AJ11) -> 0 | AL13: =IF(AK13=0,0,(AK13*((LOG(AK13))/LOG(2)))) -> 0 | AN13: =N13 -> 221 | AO13: =COUNTIF(L30:L35,AN13) -> 0 | AP13: =AO13/(AQ4-AO11) -> 0 | AQ13: =IF(AP13=0,0,(AP13*((LOG(AP13))/LOG(2)))) -> 0 | AS13: =N13 -> 221 | AT13: =COUNTIF(L36:L41,AS13) -> 0 | AU13: =AT13/(AV4-AT11) -> 0 | AV13: =IF(AU13=0,0,(AU13*((LOG(AU13))/LOG(2)))) -> 0
A14: 12 | B14: 1469 | C14: 13 | D14: 1475 | E14: 13 | F14: 1504 | K14: 0 | L14: 111 | N14: 222 | O14: =COUNTIF($L$7:$L$500,N14) -> 7 | P14: =O14/$Q$4 -> 0.2 | Q14: =IF(P14=0,0,(P14*((LOG(P14))/LOG(2)))) -> -0.464385619 | T14: =N14 -> 222 | U14: =COUNTIF(L7:L12,T14) -> 2 | V14: =U14/(W4-U11) -> 0.3333333333 | W14: =IF(V14=0,0,(V14*((LOG(V14))/LOG(2)))) -> -0.5283208336 | Y14: =N14 -> 222 | Z14: =COUNTIF(L13:L18,Y14) -> 0 | AA14: =Z14/(AB4-Z11) -> 0 | AB14: =IF(AA14=0,0,(AA14*((LOG(AA14))/LOG(2)))) -> 0 | AD14: =N14 -> 222 | AE14: =COUNTIF(L19:L23,AD14) -> 0 | AF14: =AE14/(AG4-AE11) -> 0 | AG14: =IF(AF14=0,0,(AF14*((LOG(AF14))/LOG(2)))) -> 0 | AI14: =N14 -> 222 | AJ14: =COUNTIF(L24:L29,AI14) -> 1 | AK14: =AJ14/(AL4-AJ11) -> 0.1666666667 | AL14: =IF(AK14=0,0,(AK14*((LOG(AK14))/LOG(2)))) -> -0.4308270835 | AN14: =N14 -> 222 | AO14: =COUNTIF(L30:L35,AN14) -> 3 | AP14: =AO14/(AQ4-AO11) -> 0.5 | AQ14: =IF(AP14=0,0,(AP14*((LOG(AP14))/LOG(2)))) -> -0.5 | AS14: =N14 -> 222 | AT14: =COUNTIF(L36:L41,AS14) -> 1 | AU14: =AT14/(AV4-AT11) -> 0.1666666667 | AV14: =IF(AU14=0,0,(AU14*((LOG(AU14))/LOG(2)))) -> -0.4308270835
A15: 12 | B15: 2058 | C15: 13 | D15: 2064 | E15: 13 | F15: 2069 | K15: 0 | L15: 111 | P15: =SUM(P7:P14) -> 1 | Q15: =-SUM(Q7:Q14) -> 0.7219280949 | V15: =SUM(V7:V14) -> 1 | W15: =-SUM(W7:W14) -> 0.9182958341 | AA15: =SUM(AA7:AA14) -> 1 | AB15: =-SUM(AB7:AB14) -> 0 | AF15: =SUM(AF7:AF14) -> 1 | AG15: =-SUM(AG7:AG14) -> 0 | AK15: =SUM(AK7:AK14) -> 1 | AL15: =-SUM(AL7:AL14) -> 0.6500224216 | AP15: =SUM(AP7:AP14) -> 1 | AQ15: =-SUM(AQ7:AQ14) -> 1 | AU15: =SUM(AU7:AU14) -> 1 | AV15: =-SUM(AV7:AV14) -> 0.6500224216
A16: 12 | B16: 2486 | C16: 13 | D16: 2494 | E16: 13 | F16: 2512 | K16: 0 | L16: 111 | P16: U= | Q16: =Q15/(LOG(Q4)/LOG(2)) -> 0.1407463953 | V16: U1= | W16: =W15/(LOG(W4)/LOG(2)) -> 0.3552453213 | AA16: U2= | AB16: =AB15/(LOG(AB4)/LOG(2)) -> 0 | AF16: U3= | AG16: =AG15/(LOG(AG4)/LOG(2)) -> 0 | AK16: U4= | AL16: =AL15/(LOG(AL4)/LOG(2)) -> 0.2514629986 | AP16: U5= | AQ16: =AQ15/(LOG(AQ4)/LOG(2)) -> 0.3868528072 | AU16: U6= | AV16: =AV15/(LOG(AV4)/LOG(2)) -> 0.2514629986
A17: 12 | B17: 3003 | C17: 13 | D17: 3016 | E17: 13 | F17: 3027 | K17: 0 | L17: 111
A18: 12 | B18: 3281 | C18: 13 | D18: 3286 | E18: 13 | F18: 3296 | K18: 0 | L18: 111
A19: 12 | B19: 4556 | C19: 13 | D19: 4563 | E19: 13 | F19: 4573 | K19: 0 | L19: 111 | N19: Total Target Seq
A20: 12 | B20: 5771 | C20: 13 | D20: 5776 | E20: 13 | F20: 5783 | K20: 0 | L20: 111 | N20: =COUNTIF(L7:L41,G3) -> 0 | P20: 6 | Q20: 6 | R20: 5 | S20: 6 | T20: 6 | U20: 6
A21: 12 | B21: 7404 | C21: 13 | D21: 7417 | E21: 13 | F21: 7428 | K21: 0 | L21: 111 | P21: % of reinforcement given in 6 equal intervals based on number of trials
A22: 12 | B22: 8129 | C22: 13 | D22: 8144 | E22: 13 | F22: 8154 | K22: 0 | L22: 111 | P22: %_1 | Q22: %_2 | R22: %_3 | S22: %_4 | T22: %_5 | U22: %_6
A23: 12 | B23: 8762 | C23: 13 | D23: 8768 | E23: 13 | F23: 8773 | K23: 0 | L23: 111 | O23: target sequence | P23: =$G$3 -> 211 | Q23: =$G$3 -> 211 | R23: =$G$3 -> 211 | S23: =$G$3 -> 211 | T23: =$G$3 -> 211 | U23: =$G$3 -> 211
A24: 12 | B24: 8979 | C24: 13 | D24: 8987 | E24: 13 | F24: 8991 | K24: 0 | L24: 111 | O24: total reinforcement | P24: =U11 -> 0 | Q24: =Z11 -> 0 | R24: =AE11 -> 0 | S24: =AJ11 -> 0 | T24: =AO11 -> 0 | U24: =AT11 -> 0
A25: 12 | B25: 9100 | C25: 13 | D25: 9105 | E25: 13 | F25: 9110 | K25: 0 | L25: 111 | O25: % target
A26: 12 | B26: 18585 | C26: 13 | D26: 18660 | E26: 13 | F26: 18666 | K26: 0 | L26: 111 | O26: CCRF
A27: 12 | B27: 18870 | C27: 13 | D27: 18876 | E27: 13 | F27: 18881 | K27: 0 | L27: 111 | O27: % CCRf
A28: 21 | B28: 19046 | C28: 22 | D28: 19055 | E28: 24 | F28: 19061 | K28: 0 | L28: 222 | O28: average response rate | P28: =F12/P20 -> 170.6666667 | Q28: =(F18-F12)/Q20 -> 378.6666667 | R28: =(F23-F18)/R20 -> 1095.4 | S28: =(F29-F23)/S20 -> 1746.833333 | T28: =(F35-F29)/T20 -> 570.8333333 | U28: =(F41-F35)/U20 -> 174.3333333
A29: 12 | B29: 19239 | C29: 13 | D29: 19248 | E29: 13 | F29: 19254 | K29: 0 | L29: 111
A30: 21 | B30: 21707 | C30: 22 | D30: 21714 | E30: 24 | F30: 21719 | K30: 0 | L30: 222
A31: 12 | B31: 21968 | C31: 13 | D31: 21974 | E31: 13 | F31: 21983 | K31: 0 | L31: 111
A32: 12 | B32: 22110 | C32: 13 | D32: 22116 | E32: 13 | F32: 22121 | K32: 0 | L32: 111
A33: 21 | B33: 22261 | C33: 22 | D33: 22266 | E33: 24 | F33: 22273 | K33: 0 | L33: 222
A34: 12 | B34: 22530 | C34: 13 | D34: 22536 | E34: 13 | F34: 22547 | K34: 0 | L34: 111
A35: 21 | B35: 22668 | C35: 22 | D35: 22674 | E35: 24 | F35: 22679 | K35: 0 | L35: 222
A36: 12 | B36: 22978 | C36: 13 | D36: 22984 | E36: 13 | F36: 22989 | K36: 0 | L36: 111
A37: 12 | B37: 23166 | C37: 13 | D37: 23175 | E37: 13 | F37: 23180 | K37: 0 | L37: 111
A38: 12 | B38: 23300 | C38: 13 | D38: 23306 | E38: 13 | F38: 23311 | K38: 0 | L38: 111
A39: 12 | B39: 23429 | C39: 13 | D39: 23437 | E39: 13 | F39: 23443 | K39: 0 | L39: 111
A40: 21 | B40: 23562 | C40: 22 | D40: 23574 | E40: 24 | F40: 23579 | K40: 0 | L40: 222
A41: 12 | B41: 23710 | C41: 13 | D41: 23719 | E41: 13 | F41: 23725 | K41: 0 | L41: 111

Sheet !N108850.010
A1: Report for:!N108850.010
A2: Date: | B2: <date>
A3: Hen: | B3: <hen> | F3: Correct Sequence | G3: =Start!J2 -> 211 | P3: Total Sequences in Data | Q3: =4994-COUNTBLANK(L7:L5000) -> 31 | V3: Total Sequences in Block Data | W3: =COUNTA(L7:L11) -> 5 | AA3: Total Sequences in Block Data | AB3: =COUNTA(L12:L16) -> 5 | AF3: Total Sequences in Block Data | AG3: =COUNTA(L17:L22) -> 6 | AK3: Total Sequences in Block Data | AL3: =COUNTA(L23:L27) -> 5 | AP3: Total Sequences in Block Data | AQ3: =COUNTA(L28:L32) -> 5 | AU3: Total Sequences in Block Data | AV3: =COUNTA(L33:L37) -> 5
P4: Total Sequences in Summary | Q4: =SUM(O7:O14) -> 31 | V4: Total Sequences in Block Summary | W4: =SUM(U7:U14) -> 5 | AA4: Total Sequences in Block Summary | AB4: =SUM(Z7:Z14) -> 5 | AF4: Total Sequences in Block Summary | AG4: =SUM(AE7:AE14) -> 6 | AK4: Total Sequences in Block Summary | AL4: =SUM(AJ7:AJ14) -> 5 | AP4: Total Sequences in Block Summary | AQ4: =SUM(AO7:AO14) -> 5 | AU4: Total Sequences in Block Summary | AV4: =SUM(AT7:AT14) -> 5
T5: Block 1 | Y5: Block 2 | AD5: Block 3 | AI5: Block 4 | AN5: Block 5 | AS5: Block 6
A6: Sequence Component 1 | B6: Time 1 | C6: Sequence Component 2 | D6: Time 2 | E6: Sequence Component 3 | F6: Time 3 | G6: Sequence Component 4 | H6: Time 4 | I6: Sequence Component 5 | J6: Time 5 | K6: Correct? 0=No 1=Yes | L6: Sequence | N6: Frequency | P6: Relative Frequency | Q6: Variability | T6: Frequency | V6: Relative Frequency | W6: Variability | Y6: Frequency | AA6: Relative Frequency | AB6: Variability | AD6: Frequency | AF6: Relative Frequency | AG6: Variability | AI6: Frequency | AK6: Relative Frequency | AL6: Variability | AN6: Frequency | AP6: Relative Frequency | AQ6: Variability | AS6: Frequency | AU6: Relative Frequency | AV6: Variability
A7: 12 | B7: 97 | C7: 13 | D7: 104 | E7: 13 | F7: 108 | K7: 0 | L7: 111 | N7: 111 | O7: =COUNTIF($L$7:$L$500,N7) -> 24 | P7: =O7/$Q$4 -> 0.7741935484 | Q7: =IF(P7=0,0,(P7*((LOG(P7))/LOG(2)))) -> -0.2858584333 | T7: =N7 -> 111 | U7: =COUNTIF(L7:L11,T7) -> 5 | V7: =U7/(W4-U11) -> 1 | W7: =IF(V7=0,0,(V7*((LOG(V7))/LOG(2)))) -> 0 | Y7: =N7 -> 111 | Z7: =COUNTIF(L12:L16,Y7) -> 5 | AA7: =Z7/(AB4-Z11) -> 1 | AB7: =IF(AA7=0,0,(AA7*((LOG(AA7))/LOG(2)))) -> 0 | AD7: =N7 -> 111 | AE7: =COUNTIF(L17:L22,AD7) -> 2 | AF7: =AE7/(AG4-AE11) -> 0.3333333333 | AG7: =IF(AF7=0,0,(AF7*((LOG(AF7))/LOG(2)))) -> -0.5283208336 | AI7: =N7 -> 111 | AJ7: =COUNTIF(L23:L27,AI7) -> 4 | AK7: =AJ7/(AL4-AJ11) -> 0.8 | AL7: =IF(AK7=0,0,(AK7*((LOG(AK7))/LOG(2)))) -> -0.2575424759 | AN7: =N7 -> 111 | AO7: =COUNTIF(L28:L32,AN7) -> 4 | AP7: =AO7/(AQ4-AO11) -> 0.8 | AQ7: =IF(AP7=0,0,(AP7*((LOG(AP7))/LOG(2)))) -> -0.2575424759 | AS7: =N7 -> 111 | AT7: =COUNTIF(L33:L37,AS7) -> 4 | AU7: =AT7/(AV4-AT11) -> 0.8 | AV7: =IF(AU7=0,0,(AU7*((LOG(AU7))/LOG(2)))) -> -0.2575424759
A8: 12 | B8: 208 | C8: 13 | D8: 214 | E8: 13 | F8: 220 | K8: 0 | L8: 111 | N8: 112 | O8: =COUNTIF($L$7:$L$500,N8) -> 0 | P8: =O8/$Q$4 -> 0 | Q8: =IF(P8=0,0,(P8*((LOG(P8))/LOG(2)))) -> 0 | T8: =N8 -> 112 | U8: =COUNTIF(L7:L11,T8) -> 0 | V8: =U8/(W4-U11) -> 0 | W8: =IF(V8=0,0,(V8*((LOG(V8))/LOG(2)))) -> 0 | Y8: =N8 -> 112 | Z8: =COUNTIF(L12:L16,Y8) -> 0 | AA8: =Z8/(AB4-Z11) -> 0 | AB8: =IF(AA8=0,0,(AA8*((LOG(AA8))/LOG(2)))) -> 0 | AD8: =N8 -> 112 | AE8: =COUNTIF(L17:L22,AD8) -> 0 | AF8: =AE8/(AG4-AE11) -> 0 | AG8: =IF(AF8=0,0,(AF8*((LOG(AF8))/LOG(2)))) -> 0 | AI8: =N8 -> 112 | AJ8: =COUNTIF(L23:L27,AI8) -> 0 | AK8: =AJ8/(AL4-AJ11) -> 0 | AL8: =IF(AK8=0,0,(AK8*((LOG(AK8))/LOG(2)))) -> 0 | AN8: =N8 -> 112 | AO8: =COUNTIF(L28:L32,AN8) -> 0 | AP8: =AO8/(AQ4-AO11) -> 0 | AQ8: =IF(AP8=0,0,(AP8*((LOG(AP8))/LOG(2)))) -> 0 | AS8: =N8 -> 112 | AT8: =COUNTIF(L33:L37,AS8) -> 0 | AU8: =AT8/(AV4-AT11) -> 0 | AV8: =IF(AU8=0,0,(AU8*((LOG(AU8))/LOG(2)))) -> 0
A9: 12 | B9: 330 | C9: 13 | D9: 335 | E9: 13 | F9: 340 | K9: 0 | L9: 111 | N9: 121 | O9: =COUNTIF($L$7:$L$500,N9) -> 0 | P9: =O9/$Q$4 -> 0 | Q9: =IF(P9=0,0,(P9*((LOG(P9))/LOG(2)))) -> 0 | T9: =N9 -> 121 | U9: =COUNTIF(L7:L11,T9) -> 0 | V9: =U9/(W4-U11) -> 0 | W9: =IF(V9=0,0,(V9*((LOG(V9))/LOG(2)))) -> 0 | Y9: =N9 -> 121 | Z9: =COUNTIF(L12:L16,Y9) -> 0 | AA9: =Z9/(AB4-Z11) -> 0 | AB9: =IF(AA9=0,0,(AA9*((LOG(AA9))/LOG(2)))) -> 0 | AD9: =N9 -> 121 | AE9: =COUNTIF(L17:L22,AD9) -> 0 | AF9: =AE9/(AG4-AE11) -> 0 | AG9: =IF(AF9=0,0,(AF9*((LOG(AF9))/LOG(2)))) -> 0 | AI9: =N9 -> 121 | AJ9: =COUNTIF(L23:L27,AI9) -> 0 | AK9: =AJ9/(AL4-AJ11) -> 0 | AL9: =IF(AK9=0,0,(AK9*((LOG(AK9))/LOG(2)))) -> 0 | AN9: =N9 -> 121 | AO9: =COUNTIF(L28:L32,AN9) -> 0 | AP9: =AO9/(AQ4-AO11) -> 0 | AQ9: =IF(AP9=0,0,(AP9*((LOG(AP9))/LOG(2)))) -> 0 | AS9: =N9 -> 121 | AT9: =COUNTIF(L33:L37,AS9) -> 0 | AU9: =AT9/(AV4-AT11) -> 0 | AV9: =IF(AU9=0,0,(AU9*((LOG(AU9))/LOG(2)))) -> 0
A10: 12 | B10: 441 | C10: 13 | D10: 445 | E10: 13 | F10: 450 | K10: 0 | L10: 111 | N10: 122 | O10: =COUNTIF($L$7:$L$500,N10) -> 0 | P10: =O10/$Q$4 -> 0 | Q10: =IF(P10=0,0,(P10*((LOG(P10))/LOG(2)))) -> 0 | T10: =N10 -> 122 | U10: =COUNTIF(L7:L11,T10) -> 0 | V10: =U10/(W4-U11) -> 0 | W10: =IF(V10=0,0,(V10*((LOG(V10))/LOG(2)))) -> 0 | Y10: =N10 -> 122 | Z10: =COUNTIF(L12:L16,Y10) -> 0 | AA10: =Z10/(AB4-Z11) -> 0 | AB10: =IF(AA10=0,0,(AA10*((LOG(AA10))/LOG(2)))) -> 0 | AD10: =N10 -> 122 | AE10: =COUNTIF(L17:L22,AD10) -> 0 | AF10: =AE10/(AG4-AE11) -> 0 | AG10: =IF(AF10=0,0,(AF10*((LOG(AF10))/LOG(2)))) -> 0 | AI10: =N10 -> 122 | AJ10: =COUNTIF(L23:L27,AI10) -> 0 | AK10: =AJ10/(AL4-AJ11) -> 0 | AL10: =IF(AK10=0,0,(AK10*((LOG(AK10))/LOG(2)))) -> 0 | AN10: =N10 -> 122 | AO10: =COUNTIF(L28:L32,AN10) -> 0 | AP10: =AO10/(AQ4-AO11) -> 0 | AQ10: =IF(AP10=0,0,(AP10*((LOG(AP10))/LOG(2)))) -> 0 | AS10: =N10 -> 122 | AT10: =COUNTIF(L33:L37,AS10) -> 0 | AU10: =AT10/(AV4-AT11) -> 0 | AV10: =IF(AU10=0,0,(AU10*((LOG(AU10))/LOG(2)))) -> 0
A11: 12 | B11: 790 | C11: 13 | D11: 795 | E11: 13 | F11: 804 | K11: 0 | L11: 111 | N11: 211 | O11: =COUNTIF($L$7:$L$500,N11) -> 0 | P11: =O11/$Q$4 -> 0 | Q11: =IF(P11=0,0,(P11*((LOG(P11))/LOG(2)))) -> 0 | T11: =N11 -> 211 | U11: =COUNTIF(L7:L11,T11) -> 0 | Y11: =N11 -> 211 | Z11: =COUNTIF(L12:L16,Y11) -> 0 | AD11: =N11 -> 211 | AE11: =COUNTIF(L17:L22,AD11) -> 0 | AI11: =N11 -> 211 | AJ11: =COUNTIF(L23:L27,AI11) -> 0 | AN11: =N11 -> 211 | AO11: =COUNTIF(L28:L32,AN11) -> 0 | AS11: =N11 -> 211 | AT11: =COUNTIF(L33:L37,AS11) -> 0
A12: 12 | B12: 913 | C12: 13 | D12: 918 | E12: 13 | F12: 923 | K12: 0 | L12: 111 | N12: 212 | O12: =COUNTIF($L$7:$L$500,N12) -> 0 | P12: =O12/$Q$4 -> 0 | Q12: =IF(P12=0,0,(P12*((LOG(P12))/LOG(2)))) -> 0 | T12: =N12 -> 212 | U12: =COUNTIF(L7:L11,T12) -> 0 | V12: =U12/(W4-U11) -> 0 | W12: =IF(V12=0,0,(V12*((LOG(V12))/LOG(2)))) -> 0 | Y12: =N12 -> 212 | Z12: =COUNTIF(L12:L16,Y12) -> 0 | AA12: =Z12/(AB4-Z11) -> 0 | AB12: =IF(AA12=0,0,(AA12*((LOG(AA12))/LOG(2)))) -> 0 | AD12: =N12 -> 212 | AE12: =COUNTIF(L17:L22,AD12) -> 0 | AF12: =AE12/(AG4-AE11) -> 0 | AG12: =IF(AF12=0,0,(AF12*((LOG(AF12))/LOG(2)))) -> 0 | AI12: =N12 -> 212 | AJ12: =COUNTIF(L23:L27,AI12) -> 0 | AK12: =AJ12/(AL4-AJ11) -> 0 | AL12: =IF(AK12=0,0,(AK12*((LOG(AK12))/LOG(2)))) -> 0 | AN12: =N12 -> 212 | AO12: =COUNTIF(L28:L32,AN12) -> 0 | AP12: =AO12/(AQ4-AO11) -> 0 | AQ12: =IF(AP12=0,0,(AP12*((LOG(AP12))/LOG(2)))) -> 0 | AS12: =N12 -> 212 | AT12: =COUNTIF(L33:L37,AS12) -> 0 | AU12: =AT12/(AV4-AT11) -> 0 | AV12: =IF(AU12=0,0,(AU12*((LOG(AU12))/LOG(2)))) -> 0
A13: 12 | B13: 1068 | C13: 13 | D13: 1073 | E13: 13 | F13: 1077 | K13: 0 | L13: 111 | N13: 221 | O13: =COUNTIF($L$7:$L$500,N13) -> 0 | P13: =O13/$Q$4 -> 0 | Q13: =IF(P13=0,0,(P13*((LOG(P13))/LOG(2)))) -> 0 | T13: =N13 -> 221 | U13: =COUNTIF(L7:L11,T13) -> 0 | V13: =U13/(W4-U11) -> 0 | W13: =IF(V13=0,0,(V13*((LOG(V13))/LOG(2)))) -> 0 | Y13: =N13 -> 221 | Z13: =COUNTIF(L12:L16,Y13) -> 0 | AA13: =Z13/(AB4-Z11) -> 0 | AB13: =IF(AA13=0,0,(AA13*((LOG(AA13))/LOG(2)))) -> 0 | AD13: =N13 -> 221 | AE13: =COUNTIF(L17:L22,AD13) -> 0 | AF13: =AE13/(AG4-AE11) -> 0 | AG13: =IF(AF13=0,0,(AF13*((LOG(AF13))/LOG(2)))) -> 0 | AI13: =N13 -> 221 | AJ13: =COUNTIF(L23:L27,AI13) -> 0 | AK13: =AJ13/(AL4-AJ11) -> 0 | AL13: =IF(AK13=0,0,(AK13*((LOG(AK13))/LOG(2)))) -> 0 | AN13: =N13 -> 221 | AO13: =COUNTIF(L28:L32,AN13) -> 0 | AP13: =AO13/(AQ4-AO11) -> 0 | AQ13: =IF(AP13=0,0,(AP13*((LOG(AP13))/LOG(2)))) -> 0 | AS13: =N13 -> 221 | AT13: =COUNTIF(L33:L37,AS13) -> 0 | AU13: =AT13/(AV4-AT11) -> 0 | AV13: =IF(AU13=0,0,(AU13*((LOG(AU13))/LOG(2)))) -> 0
A14: 12 | B14: 1335 | C14: 13 | D14: 1342 | E14: 13 | F14: 1347 | K14: 0 | L14: 111 | N14: 222 | O14: =COUNTIF($L$7:$L$500,N14) -> 7 | P14: =O14/$Q$4 -> 0.2258064516 | Q14: =IF(P14=0,0,(P14*((LOG(P14))/LOG(2)))) -> -0.4847706361 | T14: =N14 -> 222 | U14: =COUNTIF(L7:L11,T14) -> 0 | V14: =U14/(W4-U11) -> 0 | W14: =IF(V14=0,0,(V14*((LOG(V14))/LOG(2)))) -> 0 | Y14: =N14 -> 222 | Z14: =COUNTIF(L12:L16,Y14) -> 0 | AA14: =Z14/(AB4-Z11) -> 0 | AB14: =IF(AA14=0,0,(AA14*((LOG(AA14))/LOG(2)))) -> 0 | AD14: =N14 -> 222 | AE14: =COUNTIF(L17:L22,AD14) -> 4 | AF14: =AE14/(AG4-AE11) -> 0.6666666667 | AG14: =IF(AF14=0,0,(AF14*((LOG(AF14))/LOG(2)))) -> -0.3899750005 | AI14: =N14 -> 222 | AJ14: =COUNTIF(L23:L27,AI14) -> 1 | AK14: =AJ14/(AL4-AJ11) -> 0.2 | AL14: =IF(AK14=0,0,(AK14*((LOG(AK14))/LOG(2)))) -> -0.464385619 | AN14: =N14 -> 222 | AO14: =COUNTIF(L28:L32,AN14) -> 1 | AP14: =AO14/(AQ4-AO11) -> 0.2 | AQ14: =IF(AP14=0,0,(AP14*((LOG(AP14))/LOG(2)))) -> -0.464385619 | AS14: =N14 -> 222 | AT14: =COUNTIF(L33:L37,AS14) -> 1 | AU14: =AT14/(AV4-AT11) -> 0.2 | AV14: =IF(AU14=0,0,(AU14*((LOG(AU14))/LOG(2)))) -> -0.464385619
A15: 12 | B15: 1452 | C15: 13 | D15: 1459 | E15: 13 | F15: 1464 | K15: 0 | L15: 111 | P15: =SUM(P7:P14) -> 1 | Q15: =-SUM(Q7:Q14) -> 0.7706290694 | V15: =SUM(V7:V14) -> 1 | W15: =-SUM(W7:W14) -> 0 | AA15: =SUM(AA7:AA14) -> 1 | AB15: =-SUM(AB7:AB14) -> 0 | AF15: =SUM(AF7:AF14) -> 1 | AG15: =-SUM(AG7:AG14) -> 0.9182958341 | AK15: =SUM(AK7:AK14) -> 1 | AL15: =-SUM(AL7:AL14) -> 0.7219280949 | AP15: =SUM(AP7:AP14) -> 1 | AQ15: =-SUM(AQ7:AQ14) -> 0.7219280949 | AU15: =SUM(AU7:AU14) -> 1 | AV15: =-SUM(AV7:AV14) -> 0.7219280949
A16: 12 | B16: 2294 | C16: 13 | D16: 2299 | E16: 13 | F16: 2305 | K16: 0 | L16: 111 | P16: U= | Q16: =Q15/(LOG(Q4)/LOG(2)) -> 0.1555507737 | V16: U1= | W16: =W15/(LOG(W4)/LOG(2)) -> 0 | AA16: U2= | AB16: =AB15/(LOG(AB4)/LOG(2)) -> 0 | AF16: U3= | AG16: =AG15/(LOG(AG4)/LOG(2)) -> 0.3552453213 | AK16: U4= | AL16: =AL15/(LOG(AL4)/LOG(2)) -> 0.3109175071 | AP16: U5= | AQ16: =AQ15/(LOG(AQ4)/LOG(2)) -> 0.3109175071 | AU16: U6= | AV16: =AV15/(LOG(AV4)/LOG(2)) -> 0.3109175071
A17: 12 | B17: 2440 | C17: 13 | D17: 2445 | E17: 13 | F17: 2449 | K17: 0 | L17: 111
A18: 12 | B18: 3390 | C18: 13 | D18: 3396 | E18: 13 | F18: 3412 | K18: 0 | L18: 111
A19: 21 | B19: 3582 | C19: 22 | D19: 3588 | E19: 24 | F19: 3594 | K19: 0 | L19: 222 | N19: Total Target Seq
A20: 21 | B20: 3737 | C20: 22 | D20: 3743 | E20: 24 | F20: 3749 | K20: 0 | L20: 222 | N20: =COUNTIF(L7:L37,G3) -> 0 | P20: 5 | Q20: 5 | R20: 6 | S20: 5 | T20: 5 | U20: 5
A21: 21 | B21: 3912 | C21: 22 | D21: 3922 | E21: 24 | F21: 3928 | K21: 0 | L21: 222 | P21: % of reinforcement given in 6 equal intervals based on number of trials
A22: 21 | B22: 4048 | C22: 22 | D22: 4054 | E22: 24 | F22: 4060 | K22: 0 | L22: 222 | P22: %_1 | Q22: %_2 | R22: %_3 | S22: %_4 | T22: %_5 | U22: %_6
A23: 12 | B23: 4209 | C23: 13 | D23: 4215 | E23: 13 | F23: 4221 | K23: 0 | L23: 111 | O23: target sequence | P23: =$G$3 -> 211 | Q23: =$G$3 -> 211 | R23: =$G$3 -> 211 | S23: =$G$3 -> 211 | T23: =$G$3 -> 211 | U23: =$G$3 -> 211
A24: 12 | B24: 9745 | C24: 13 | D24: 9750 | E24: 13 | F24: 9755 | K24: 0 | L24: 111 | O24: total reinforcement | P24: =U11 -> 0 | Q24: =Z11 -> 0 | R24: =AE11 -> 0 | S24: =AJ11 -> 0 | T24: =AO11 -> 0 | U24: =AT11 -> 0
A25: 12 | B25: 9981 | C25: 13 | D25: 9993 | E25: 13 | F25: 9999 | K25: 0 | L25: 111 | O25: % target
A26: 21 | B26: 10385 | C26: 22 | D26: 10392 | E26: 24 | F26: 10398 | K26: 0 | L26: 222 | O26: CCRF
A27: 12 | B27: 14791 | C27: 13 | D27: 14801 | E27: 13 | F27: 14807 | K27: 0 | L27: 111 | O27: % CCRf
A28: 12 | B28: 15010 | C28: 13 | D28: 15026 | E28: 13 | F28: 15032 | K28: 0 | L28: 111 | O28: average response rate | P28: =F11/P20 -> 160.8 | Q28: =(F16-F11)/Q20 -> 300.2 | R28: =(F22-F16)/R20 -> 292.5 | S28: =(F27-F22)/S20 -> 2149.4 | T28: =(F32-F27)/T20 -> 307.2 | U28: =(F37-F32)/U20 -> 219.8
A29: 12 | B29: 15621 | C29: 13 | D29: 15626 | E29: 13 | F29: 15631 | K29: 0 | L29: 111
A30: 12 | B30: 15784 | C30: 13 | D30: 15789 | E30: 13 | F30: 15794 | K30: 0 | L30: 111
A31: 12 | B31: 16185 | C31: 13 | D31: 16195 | E31: 13 | F31: 16200 | K31: 0 | L31: 111
A32: 21 | B32: 16331 | C32: 22 | D32: 16335 | E32: 24 | F32: 16343 | K32: 0 | L32: 222
A33: 12 | B33: 16903 | C33: 13 | D33: 16908 | E33: 13 | F33: 16913 | K33: 0 | L33: 111
A34: 21 | B34: 17050 | C34: 22 | D34: 17055 | E34: 24 | F34: 17061 | K34: 0 | L34: 222
A35: 12 | B35: 17183 | C35: 13 | D35: 17189 | E35: 13 | F35: 17193 | K35: 0 | L35: 111
A36: 12 | B36: 17314 | C36: 13 | D36: 17319 | E36: 13 | F36: 17328 | K36: 0 | L36: 111
A37: 12 | B37: 17430 | C37: 13 | D37: 17437 | E37: 13 | F37: 17442 | K37: 0 | L37: 111

Sheet !N109740.010
A1: Report for:!N109740.010
A2: Date: | B2: <date>
A3: Hen: | B3: <hen> | F3: Correct Sequence | G3: =Start!J2 -> 211 | P3: Total Sequences in Data | Q3: =4994-COUNTBLANK(L7:L5000) -> 9 | V3: Total Sequences in Block Data | W3: =COUNTA(L7:L8) -> 2 | AA3: Total Sequences in Block Data | AB3: =COUNTA(L9:L9) -> 1 | AF3: Total Sequences in Block Data | AG3: =COUNTA(L10:L11) -> 2 | AK3: Total Sequences in Block Data | AL3: =COUNTA(L12:L12) -> 1 | AP3: Total Sequences in Block Data | AQ3: =COUNTA(L13:L14) -> 2 | AU3: Total Sequences in Block Data | AV3: =COUNTA(L15:L15) -> 1
P4: Total Sequences in Summary | Q4: =SUM(O7:O14) -> 9 | V4: Total Sequences in Block Summary | W4: =SUM(U7:U14) -> 2 | AA4: Total Sequences in Block Summary | AB4: =SUM(Z7:Z14) -> 1 | AF4: Total Sequences in Block Summary | AG4: =SUM(AE7:AE14) -> 2 | AK4: Total Sequences in Block Summary | AL4: =SUM(AJ7:AJ14) -> 1 | AP4: Total Sequences in Block Summary | AQ4: =SUM(AO7:AO14) -> 2 | AU4: Total Sequences in Block Summary | AV4: =SUM(AT7:AT14) -> 1
T5: Block 1 | Y5: Block 2 | AD5: Block 3 | AI5: Block 4 | AN5: Block 5 | AS5: Block 6
A6: Sequence Component 1 | B6: Time 1 | C6: Sequence Component 2 | D6: Time 2 | E6: Sequence Component 3 | F6: Time 3 | G6: Sequence Component 4 | H6: Time 4 | I6: Sequence Component 5 | J6: Time 5 | K6: Correct? 0=No 1=Yes | L6: Sequence | N6: Frequency | P6: Relative Frequency | Q6: Variability | T6: Frequency | V6: Relative Frequency | W6: Variability | Y6: Frequency | AA6: Relative Frequency | AB6: Variability | AD6: Frequency | AF6: Relative Frequency | AG6: Variability | AI6: Frequency | AK6: Relative Frequency | AL6: Variability | AN6: Frequency | AP6: Relative Frequency | AQ6: Variability | AS6: Frequency | AU6: Relative Frequency | AV6: Variability
A7: 21 | B7: 32 | C7: 22 | D7: 37 | E7: 24 | F7: 42 | K7: 0 | L7: 222 | N7: 111 | O7: =COUNTIF($L$7:$L$500,N7) -> 5 | P7: =O7/$Q$4 -> 0.5555555556 | Q7: =IF(P7=0,0,(P7*((LOG(P7))/LOG(2)))) -> -0.4711093925 | T7: =N7 -> 111 | U7: =COUNTIF(L7:L8,T7) -> 1 | V7: =U7/(W4-U11) -> 0.5 | W7: =IF(V7=0,0,(V7*((LOG(V7))/LOG(2)))) -> -0.5 | Y7: =N7 -> 111 | Z7: =COUNTIF(L9:L9,Y7) -> 0 | AA7: =Z7/(AB4-Z11) -> 0 | AB7: =IF(AA7=0,0,(AA7*((LOG(AA7))/LOG(2)))) -> 0 | AD7: =N7 -> 111 | AE7: =COUNTIF(L10:L11,AD7) -> 1 | AF7: =AE7/(AG4-AE11) -> 0.5 | AG7: =IF(AF7=0,0,(AF7*((LOG(AF7))/LOG(2)))) -> -0.5 | AI7: =N7 -> 111 | AJ7: =COUNTIF(L12:L12,AI7) -> 1 | AK7: =AJ7/(AL4-AJ11) -> 1 | AL7: =IF(AK7=0,0,(AK7*((LOG(AK7))/LOG(2)))) -> 0 | AN7: =N7 -> 111 | AO7: =COUNTIF(L13:L14,AN7) -> 1 | AP7: =AO7/(AQ4-AO11) -> 0.5 | AQ7: =IF(AP7=0,0,(AP7*((LOG(AP7))/LOG(2)))) -> -0.5 | AS7: =N7 -> 111 | AT7: =COUNTIF(L15:L15,AS7) -> 1 | AU7: =AT7/(AV4-AT11) -> 1 | AV7: =IF(AU7=0,0,(AU7*((LOG(AU7))/LOG(2)))) -> 0
A8: 12 | B8: 173 | C8: 13 | D8: 179 | E8: 13 | F8: 184 | K8: 0 | L8: 111 | N8: 112 | O8: =COUNTIF($L$7:$L$500,N8) -> 0 | P8: =O8/$Q$4 -> 0 | Q8: =IF(P8=0,0,(P8*((LOG(P8))/LOG(2)))) -> 0 | T8: =N8 -> 112 | U8: =COUNTIF(L7:L8,T8) -> 0 | V8: =U8/(W4-U11) -> 0 | W8: =IF(V8=0,0,(V8*((LOG(V8))/LOG(2)))) -> 0 | Y8: =N8 -> 112 | Z8: =COUNTIF(L9:L9,Y8) -> 0 | AA8: =Z8/(AB4-Z11) -> 0 | AB8: =IF(AA8=0,0,(AA8*((LOG(AA8))/LOG(2)))) -> 0 | AD8: =N8 -> 112 | AE8: =COUNTIF(L10:L11,AD8) -> 0 | AF8: =AE8/(AG4-AE11) -> 0 | AG8: =IF(AF8=0,0,(AF8*((LOG(AF8))/LOG(2)))) -> 0 | AI8: =N8 -> 112 | AJ8: =COUNTIF(L12:L12,AI8) -> 0 | AK8: =AJ8/(AL4-AJ11) -> 0 | AL8: =IF(AK8=0,0,(AK8*((LOG(AK8))/LOG(2)))) -> 0 | AN8: =N8 -> 112 | AO8: =COUNTIF(L13:L14,AN8) -> 0 | AP8: =AO8/(AQ4-AO11) -> 0 | AQ8: =IF(AP8=0,0,(AP8*((LOG(AP8))/LOG(2)))) -> 0 | AS8: =N8 -> 112 | AT8: =COUNTIF(L15:L15,AS8) -> 0 | AU8: =AT8/(AV4-AT11) -> 0 | AV8: =IF(AU8=0,0,(AU8*((LOG(AU8))/LOG(2)))) -> 0
A9: 21 | B9: 468 | C9: 22 | D9: 473 | E9: 24 | F9: 478 | K9: 0 | L9: 222 | N9: 121 | O9: =COUNTIF($L$7:$L$500,N9) -> 0 | P9: =O9/$Q$4 -> 0 | Q9: =IF(P9=0,0,(P9*((LOG(P9))/LOG(2)))) -> 0 | T9: =N9 -> 121 | U9: =COUNTIF(L7:L8,T9) -> 0 | V9: =U9/(W4-U11) -> 0 | W9: =IF(V9=0,0,(V9*((LOG(V9))/LOG(2)))) -> 0 | Y9: =N9 -> 121 | Z9: =COUNTIF(L9:L9,Y9) -> 0 | AA9: =Z9/(AB4-Z11) -> 0 | AB9: =IF(AA9=0,0,(AA9*((LOG(AA9))/LOG(2)))) -> 0 | AD9: =N9 -> 121 | AE9: =COUNTIF(L10:L11,AD9) -> 0 | AF9: =AE9/(AG4-AE11) -> 0 | AG9: =IF(AF9=0,0,(AF9*((LOG(AF9))/LOG(2)))) -> 0 | AI9: =N9 -> 121 | AJ9: =COUNTIF(L12:L12,AI9) -> 0 | AK9: =AJ9/(AL4-AJ11) -> 0 | AL9: =IF(AK9=0,0,(AK9*((LOG(AK9))/LOG(2)))) -> 0 | AN9: =N9 -> 121 | AO9: =COUNTIF(L13:L14,AN9) -> 0 | AP9: =AO9/(AQ4-AO11) -> 0 | AQ9: =IF(AP9=0,0,(AP9*((LOG(AP9))/LOG(2)))) -> 0 | AS9: =N9 -> 121 | AT9: =COUNTIF(L15:L15,AS9) -> 0 | AU9: =AT9/(AV4-AT11) -> 0 | AV9: =IF(AU9=0,0,(AU9*((LOG(AU9))/LOG(2)))) -> 0
A10: 12 | B10: 616 | C10: 13 | D10: 621 | E10: 13 | F10: 627 | K10: 0 | L10: 111 | N10: 122 | O10: =COUNTIF($L$7:$L$500,N10) -> 0 | P10: =O10/$Q$4 -> 0 | Q10: =IF(P10=0,0,(P10*((LOG(P10))/LOG(2)))) -> 0 | T10: =N10 -> 122 | U10: =COUNTIF(L7:L8,T10) -> 0 | V10: =U10/(W4-U11) -> 0 | W10: =IF(V10=0,0,(V10*((LOG(V10))/LOG(2)))) -> 0 | Y10: =N10 -> 122 | Z10: =COUNTIF(L9:L9,Y10) -> 0 | AA10: =Z10/(AB4-Z11) -> 0 | AB10: =IF(AA10=0,0,(AA10*((LOG(AA10))/LOG(2)))) -> 0 | AD10: =N10 -> 122 | AE10: =COUNTIF(L10:L11,AD10) -> 0 | AF10: =AE10/(AG4-AE11) -> 0 | AG10: =IF(AF10=0,0,(AF10*((LOG(AF10))/LOG(2)))) -> 0 | AI10: =N10 -> 122 | AJ10: =COUNTIF(L12:L12,AI10) -> 0 | AK10: =AJ10/(AL4-AJ11) -> 0 | AL10: =IF(AK10=0,0,(AK10*((LOG(AK10))/LOG(2)))) -> 0 | AN10: =N10 -> 122 | AO10: =COUNTIF(L13:L14,AN10) -> 0 | AP10: =AO10/(AQ4-AO11) -> 0 | AQ10: =IF(AP10=0,0,(AP10*((LOG(AP10))/LOG(2)))) -> 0 | AS10: =N10 -> 122 | AT10: =COUNTIF(L15:L15,AS10) -> 0 | AU10: =AT10/(AV4-AT11) -> 0 | AV10: =IF(AU10=0,0,(AU10*((LOG(AU10))/LOG(2)))) -> 0
A11: 21 | B11: 1027 | C11: 22 | D11: 1033 | E11: 24 | F11: 1043 | K11: 0 | L11: 222 | N11: 211 | O11: =COUNTIF($L$7:$L$500,N11) -> 0 | P11: =O11/$Q$4 -> 0 | Q11: =IF(P11=0,0,(P11*((LOG(P11))/LOG(2)))) -> 0 | T11: =N11 -> 211 | U11: =COUNTIF(L7:L8,T11) -> 0 | Y11: =N11 -> 211 | Z11: =COUNTIF(L9:L9,Y11) -> 0 | AD11: =N11 -> 211 | AE11: =COUNTIF(L10:L11,AD11) -> 0 | AI11: =N11 -> 211 | AJ11: =COUNTIF(L12:L12,AI11) -> 0 | AN11: =N11 -> 211 | AO11: =COUNTIF(L13:L14,AN11) -> 0 | AS11: =N11 -> 211 | AT11: =COUNTIF(L15:L15,AS11) -> 0
A12: 12 | B12: 1181 | C12: 13 | D12: 1186 | E12: 13 | F12: 1191 | K12: 0 | L12: 111 | N12: 212 | O12: =COUNTIF($L$7:$L$500,N12) -> 0 | P12: =O12/$Q$4 -> 0 | Q12: =IF(P12=0,0,(P12*((LOG(P12))/LOG(2)))) -> 0 | T12: =N12 -> 212 | U12: =COUNTIF(L7:L8,T12) -> 0 | V12: =U12/(W4-U11) -> 0 | W12: =IF(V12=0,0,(V12*((LOG(V12))/LOG(2)))) -> 0 | Y12: =N12 -> 212 | Z12: =COUNTIF(L9:L9,Y12) -> 0 | AA12: =Z12/(AB4-Z11) -> 0 | AB12: =IF(AA12=0,0,(AA12*((LOG(AA12))/LOG(2)))) -> 0 | AD12: =N12 -> 212 | AE12: =COUNTIF(L10:L11,AD12) -> 0 | AF12: =AE12/(AG4-AE11) -> 0 | AG12: =IF(AF12=0,0,(AF12*((LOG(AF12))/LOG(2)))) -> 0 | AI12: =N12 -> 212 | AJ12: =COUNTIF(L12:L12,AI12) -> 0 | AK12: =AJ12/(AL4-AJ11) -> 0 | AL12: =IF(AK12=0,0,(AK12*((LOG(AK12))/LOG(2)))) -> 0 | AN12: =N12 -> 212 | AO12: =COUNTIF(L13:L14,AN12) -> 0 | AP12: =AO12/(AQ4-AO11) -> 0 | AQ12: =IF(AP12=0,0,(AP12*((LOG(AP12))/LOG(2)))) -> 0 | AS12: =N12 -> 212 | AT12: =COUNTIF(L15:L15,AS12) -> 0 | AU12: =AT12/(AV4-AT11) -> 0 | AV12: =IF(AU12=0,0,(AU12*((LOG(AU12))/LOG(2)))) -> 0
A13: 12 | B13: 5932 | C13: 13 | D13: 5948 | E13: 13 | F13: 5955 | K13: 0 | L13: 111 | N13: 221 | O13: =COUNTIF($L$7:$L$500,N13) -> 0 | P13: =O13/$Q$4 -> 0 | Q13: =IF(P13=0,0,(P13*((LOG(P13))/LOG(2)))) -> 0 | T13: =N13 -> 221 | U13: =COUNTIF(L7:L8,T13) -> 0 | V13: =U13/(W4-U11) -> 0 | W13: =IF(V13=0,0,(V13*((LOG(V13))/LOG(2)))) -> 0 | Y13: =N13 -> 221 | Z13: =COUNTIF(L9:L9,Y13) -> 0 | AA13: =Z13/(AB4-Z11) -> 0 | AB13: =IF(AA13=0,0,(AA13*((LOG(AA13))/LOG(2)))) -> 0 | AD13: =N13 -> 221 | AE13: =COUNTIF(L10:L11,AD13) -> 0 | AF13: =AE13/(AG4-AE11) -> 0 | AG13: =IF(AF13=0,0,(AF13*((LOG(AF13))/LOG(2)))) -> 0 | AI13: =N13 -> 221 | AJ13: =COUNTIF(L12:L12,AI13) -> 0 | AK13: =AJ13/(AL4-AJ11) -> 0 | AL13: =IF(AK13=0,0,(AK13*((LOG(AK13))/LOG(2)))) -> 0 | AN13: =N13 -> 221 | AO13: =COUNTIF(L13:L14,AN13) -> 0 | AP13: =AO13/(AQ4-AO11) -> 0 | AQ13: =IF(AP13=0,0,(AP13*((LOG(AP13))/LOG(2)))) -> 0 | AS13: =N13 -> 221 | AT13: =COUNTIF(L15:L15,AS13) -> 0 | AU13: =AT13/(AV4-AT11) -> 0 | AV13: =IF(AU13=0,0,(AU13*((LOG(AU13))/LOG(2)))) -> 0
A14: 21 | B14: 6759 | C14: 22 | D14: 6770 | E14: 24 | F14: 6778 | K14: 0 | L14: 222 | N14: 222 | O14: =COUNTIF($L$7:$L$500,N14) -> 4 | P14: =O14/$Q$4 -> 0.4444444444 | Q14: =IF(P14=0,0,(P14*((LOG(P14))/LOG(2)))) -> -0.5199666673 | T14: =N14 -> 222 | U14: =COUNTIF(L7:L8,T14) -> 1 | V14: =U14/(W4-U11) -> 0.5 | W14: =IF(V14=0,0,(V14*((LOG(V14))/LOG(2)))) -> -0.5 | Y14: =N14 -> 222 | Z14: =COUNTIF(L9:L9,Y14) -> 1 | AA14: =Z14/(AB4-Z11) -> 1 | AB14: =IF(AA14=0,0,(AA14*((LOG(AA14))/LOG(2)))) -> 0 | AD14: =N14 -> 222 | AE14: =COUNTIF(L10:L11,AD14) -> 1 | AF14: =AE14/(AG4-AE11) -> 0.5 | AG14: =IF(AF14=0,0,(AF14*((LOG(AF14))/LOG(2)))) -> -0.5 | AI14: =N14 -> 222 | AJ14: =COUNTIF(L12:L12,AI14) -> 0 | AK14: =AJ14/(AL4-AJ11) -> 0 | AL14: =IF(AK14=0,0,(AK14*((LOG(AK14))/LOG(2)))) -> 0 | AN14: =N14 -> 222 | AO14: =COUNTIF(L13:L14,AN14) -> 1 | AP14: =AO14/(AQ4-AO11) -> 0.5 | AQ14: =IF(AP14=0,0,(AP14*((LOG(AP14))/LOG(2)))) -> -0.5 | AS14: =N14 -> 222 | AT14: =COUNTIF(L15:L15,AS14) -> 0 | AU14: =AT14/(AV4-AT11) -> 0 | AV14: =IF(AU14=0,0,(AU14*((LOG(AU14))/LOG(2)))) -> 0
A15: 12 | B15: 16675 | C15: 13 | D15: 16707 | E15: 13 | F15: 16714 | K15: 0 | L15: 111 | P15: =SUM(P7:P14) -> 1 | Q15: =-SUM(Q7:Q14) -> 0.9910760598 | V15: =SUM(V7:V14) -> 1 | W15: =-SUM(W7:W14) -> 1 | AA15: =SUM(AA7:AA14) -> 1 | AB15: =-SUM(AB7:AB14) -> 0 | AF15: =SUM(AF7:AF14) -> 1 | AG15: =-SUM(AG7:AG14) -> 1 | AK15: =SUM(AK7:AK14) -> 1 | AL15: =-SUM(AL7:AL14) -> 0 | AP15: =SUM(AP7:AP14) -> 1 | AQ15: =-SUM(AQ7:AQ14) -> 1 | AU15: =SUM(AU7:AU14) -> 1 | AV15: =-SUM(AV7:AV14) -> 0
P16: U= | Q16: =Q15/(LOG(Q4)/LOG(2)) -> 0.3126496871 | V16: U1= | W16: =W15/(LOG(W4)/LOG(2)) -> 1 | AA16: U2= | AB16: =AB15/(LOG(AB4)/LOG(2)) ->  | AF16: U3= | AG16: =AG15/(LOG(AG4)/LOG(2)) -> 1 | AK16: U4= | AL16: =AL15/(LOG(AL4)/LOG(2)) ->  | AP16: U5= | AQ16: =AQ15/(LOG(AQ4)/LOG(2)) -> 1 | AU16: U6= | AV16: =AV15/(LOG(AV4)/LOG(2)) -> 
N19: Total Target Seq
N20: =COUNTIF(L7:L15,G3) -> 0 | P20: 2 | Q20: 1 | R20: 2 | S20: 1 | T20: 2 | U20: 1
P21: % of reinforcement given in 6 equal intervals based on number of trials
P22: %_1 | Q22: %_2 | R22: %_3 | S22: %_4 | T22: %_5 | U22: %_6
O23: target sequence | P23: =$G$3 -> 211 | Q23: =$G$3 -> 211 | R23: =$G$3 -> 211 | S23: =$G$3 -> 211 | T23: =$G$3 -> 211 | U23: =$G$3 -> 211
O24: total reinforcement | P24: =U11 -> 0 | Q24: =Z11 -> 0 | R24: =AE11 -> 0 | S24: =AJ11 -> 0 | T24: =AO11 -> 0 | U24: =AT11 -> 0
O25: % target
O26: CCRF
O27: % CCRf
O28: average response rate | P28: =F8/P20 -> 92 | Q28: =(F9-F8)/Q20 -> 294 | R28: =(F11-F9)/R20 -> 282.5 | S28: =(F12-F11)/S20 -> 148 | T28: =(F14-F12)/T20 -> 2793.5 | U28: =(F15-F14)/U20 -> 9936

Sheet !N110900.010
A1: Report for:!N110900.010
A2: Date: | B2: <date>
A3: Hen: | B3: <hen> | F3: Correct Sequence | G3: =Start!J2 -> 211 | P3: Total Sequences in Data | Q3: =4994-COUNTBLANK(L7:L5000) -> 21 | V3: Total Sequences in Block Data | W3: =COUNTA(L7:L10) -> 4 | AA3: Total Sequences in Block Data | AB3: =COUNTA(L11:L13) -> 3 | AF3: Total Sequences in Block Data | AG3: =COUNTA(L14:L17) -> 4 | AK3: Total Sequences in Block Data | AL3: =COUNTA(L18:L20) -> 3 | AP3: Total Sequences in Block Data | AQ3: =COUNTA(L21:L24) -> 4 | AU3: Total Sequences in Block Data | AV3: =COUNTA(L25:L27) -> 3
P4: Total Sequences in Summary | Q4: =SUM(O7:O14) -> 21 | V4: Total Sequences in Block Summary | W4: =SUM(U7:U14) -> 4 | AA4: Total Sequences in Block Summary | AB4: =SUM(Z7:Z14) -> 3 | AF4: Total Sequences in Block Summary | AG4: =SUM(AE7:AE14) -> 4 | AK4: Total Sequences in Block Summary | AL4: =SUM(AJ7:AJ14) -> 3 | AP4: Total Sequences in Block Summary | AQ4: =SUM(AO7:AO14) -> 4 | AU4: Total Sequences in Block Summary | AV4: =SUM(AT7:AT14) -> 3
T5: Block 1 | Y5: Block 2 | AD5: Block 3 | AI5: Block 4 | AN5: Block 5 | AS5: Block 6
A6: Sequence Component 1 | B6: Time 1 | C6: Sequence Component 2 | D6: Time 2 | E6: Sequence Component 3 | F6: Time 3 | G6: Sequence Component 4 | H6: Time 4 | I6: Sequence Component 5 | J6: Time 5 | K6: Correct? 0=No 1=Yes | L6: Sequence | N6: Frequency | P6: Relative Frequency | Q6: Variability | T6: Frequency | V6: Relative Frequency | W6: Variability | Y6: Frequency | AA6: Relative Frequency | AB6: Variability | AD6: Frequency | AF6: Relative Frequency | AG6: Variability | AI6: Frequency | AK6: Relative Frequency | AL6: Variability | AN6: Frequency | AP6: Relative Frequency | AQ6: Variability | AS6: Frequency | AU6: Relative Frequency | AV6: Variability
A7: 12 | B7: 47 | C7: 13 | D7: 52 | E7: 13 | F7: 57 | K7: 0 | L7: 111 | N7: 111 | O7: =COUNTIF($L$7:$L$500,N7) -> 15 | P7: =O7/$Q$4 -> 0.7142857143 | Q7: =IF(P7=0,0,(P7*((LOG(P7))/LOG(2)))) -> -0.346733448 | T7: =N7 -> 111 | U7: =COUNTIF(L7:L10,T7) -> 4 | V7: =U7/(W4-U11) -> 1 | W7: =IF(V7=0,0,(V7*((LOG(V7))/LOG(2)))) -> 0 | Y7: =N7 -> 111 | Z7: =COUNTIF(L11:L13,Y7) -> 3 | AA7: =Z7/(AB4-Z11) -> 1 | AB7: =IF(AA7=0,0,(AA7*((LOG(AA7))/LOG(2)))) -> 0 | AD7: =N7 -> 111 | AE7: =COUNTIF(L14:L17,AD7) -> 3 | AF7: =AE7/(AG4-AE11) -> 0.75 | AG7: =IF(AF7=0,0,(AF7*((LOG(AF7))/LOG(2)))) -> -0.3112781245 | AI7: =N7 -> 111 | AJ7: =COUNTIF(L18:L20,AI7) -> 1 | AK7: =AJ7/(AL4-AJ11) -> 0.3333333333 | AL7: =IF(AK7=0,0,(AK7*((LOG(AK7))/LOG(2)))) -> -0.5283208336 | AN7: =N7 -> 111 | AO7: =COUNTIF(L21:L24,AN7) -> 2 | AP7: =AO7/(AQ4-AO11) -> 0.5 | AQ7: =IF(AP7=0,0,(AP7*((LOG(AP7))/LOG(2)))) -> -0.5 | AS7: =N7 -> 111 | AT7: =COUNTIF(L25:L27,AS7) -> 2 | AU7: =AT7/(AV4-AT11) -> 0.6666666667 | AV7: =IF(AU7=0,0,(AU7*((LOG(AU7))/LOG(2)))) -> -0.3899750005
A8: 12 | B8: 167 | C8: 13 | D8: 172 | E8: 13 | F8: 177 | K8: 0 | L8: 111 | N8: 112 | O8: =COUNTIF($L$7:$L$500,N8) -> 0 | P8: =O8/$Q$4 -> 0 | Q8: =IF(P8=0,0,(P8*((LOG(P8))/LOG(2)))) -> 0 | T8: =N8 -> 112 | U8: =COUNTIF(L7:L10,T8) -> 0 | V8: =U8/(W4-U11) -> 0 | W8: =IF(V8=0,0,(V8*((LOG(V8))/LOG(2)))) -> 0 | Y8: =N8 -> 112 | Z8: =COUNTIF(L11:L13,Y8) -> 0 | AA8: =Z8/(AB4-Z11) -> 0 | AB8: =IF(AA8=0,0,(AA8*((LOG(AA8))/LOG(2)))) -> 0 | AD8: =N8 -> 112 | AE8: =COUNTIF(L14:L17,AD8) -> 0 | AF8: =AE8/(AG4-AE11) -> 0 | AG8: =IF(AF8=0,0,(AF8*((LOG(AF8))/LOG(2)))) -> 0 | AI8: =N8 -> 112 | AJ8: =COUNTIF(L18:L20,AI8) -> 0 | AK8: =AJ8/(AL4-AJ11) -> 0 | AL8: =IF(AK8=0,0,(AK8*((LOG(AK8))/LOG(2)))) -> 0 | AN8: =N8 -> 112 | AO8: =COUNTIF(L21:L24,AN8) -> 0 | AP8: =AO8/(AQ4-AO11) -> 0 | AQ8: =IF(AP8=0,0,(AP8*((LOG(AP8))/LOG(2)))) -> 0 | AS8: =N8 -> 112 | AT8: =COUNTIF(L25:L27,AS8) -> 0 | AU8: =AT8/(AV4-AT11) -> 0 | AV8: =IF(AU8=0,0,(AU8*((LOG(AU8))/LOG(2)))) -> 0
A9: 12 | B9: 317 | C9: 13 | D9: 322 | E9: 13 | F9: 326 | K9: 0 | L9: 111 | N9: 121 | O9: =COUNTIF($L$7:$L$500,N9) -> 0 | P9: =O9/$Q$4 -> 0 | Q9: =IF(P9=0,0,(P9*((LOG(P9))/LOG(2)))) -> 0 | T9: =N9 -> 121 | U9: =COUNTIF(L7:L10,T9) -> 0 | V9: =U9/(W4-U11) -> 0 | W9: =IF(V9=0,0,(V9*((LOG(V9))/LOG(2)))) -> 0 | Y9: =N9 -> 121 | Z9: =COUNTIF(L11:L13,Y9) -> 0 | AA9: =Z9/(AB4-Z11) -> 0 | AB9: =IF(AA9=0,0,(AA9*((LOG(AA9))/LOG(2)))) -> 0 | AD9: =N9 -> 121 | AE9: =COUNTIF(L14:L17,AD9) -> 0 | AF9: =AE9/(AG4-AE11) -> 0 | AG9: =IF(AF9=0,0,(AF9*((LOG(AF9))/LOG(2)))) -> 0 | AI9: =N9 -> 121 | AJ9: =COUNTIF(L18:L20,AI9) -> 0 | AK9: =AJ9/(AL4-AJ11) -> 0 | AL9: =IF(AK9=0,0,(AK9*((LOG(AK9))/LOG(2)))) -> 0 | AN9: =N9 -> 121 | AO9: =COUNTIF(L21:L24,AN9) -> 0 | AP9: =AO9/(AQ4-AO11) -> 0 | AQ9: =IF(AP9=0,0,(AP9*((LOG(AP9))/LOG(2)))) -> 0 | AS9: =N9 -> 121 | AT9: =COUNTIF(L25:L27,AS9) -> 0 | AU9: =AT9/(AV4-AT11) -> 0 | AV9: =IF(AU9=0,0,(AU9*((LOG(AU9))/LOG(2)))) -> 0
A10: 12 | B10: 441 | C10: 13 | D10: 446 | E10: 13 | F10: 451 | K10: 0 | L10: 111 | N10: 122 | O10: =COUNTIF($L$7:$L$500,N10) -> 0 | P10: =O10/$Q$4 -> 0 | Q10: =IF(P10=0,0,(P10*((LOG(P10))/LOG(2)))) -> 0 | T10: =N10 -> 122 | U10: =COUNTIF(L7:L10,T10) -> 0 | V10: =U10/(W4-U11) -> 0 | W10: =IF(V10=0,0,(V10*((LOG(V10))/LOG(2)))) -> 0 | Y10: =N10 -> 122 | Z10: =COUNTIF(L11:L13,Y10) -> 0 | AA10: =Z10/(AB4-Z11) -> 0 | AB10: =IF(AA10=0,0,(AA10*((LOG(AA10))/LOG(2)))) -> 0 | AD10: =N10 -> 122 | AE10: =COUNTIF(L14:L17,AD10) -> 0 | AF10: =AE10/(AG4-AE11) -> 0 | AG10: =IF(AF10=0,0,(AF10*((LOG(AF10))/LOG(2)))) -> 0 | AI10: =N10 -> 122 | AJ10: =COUNTIF(L18:L20,AI10) -> 0 | AK10: =AJ10/(AL4-AJ11) -> 0 | AL10: =IF(AK10=0,0,(AK10*((LOG(AK10))/LOG(2)))) -> 0 | AN10: =N10 -> 122 | AO10: =COUNTIF(L21:L24,AN10) -> 0 | AP10: =AO10/(AQ4-AO11) -> 0 | AQ10: =IF(AP10=0,0,(AP10*((LOG(AP10))/LOG(2)))) -> 0 | AS10: =N10 -> 122 | AT10: =COUNTIF(L25:L27,AS10) -> 0 | AU10: =AT10/(AV4-AT11) -> 0 | AV10: =IF(AU10=0,0,(AU10*((LOG(AU10))/LOG(2)))) -> 0
A11: 12 | B11: 667 | C11: 13 | D11: 674 | E11: 13 | F11: 683 | K11: 0 | L11: 111 | N11: 211 | O11: =COUNTIF($L$7:$L$500,N11) -> 0 | P11: =O11/$Q$4 -> 0 | Q11: =IF(P11=0,0,(P11*((LOG(P11))/LOG(2)))) -> 0 | T11: =N11 -> 211 | U11: =COUNTIF(L7:L10,T11) -> 0 | Y11: =N11 -> 211 | Z11: =COUNTIF(L11:L13,Y11) -> 0 | AD11: =N11 -> 211 | AE11: =COUNTIF(L14:L17,AD11) -> 0 | AI11: =N11 -> 211 | AJ11: =COUNTIF(L18:L20,AI11) -> 0 | AN11: =N11 -> 211 | AO11: =COUNTIF(L21:L24,AN11) -> 0 | AS11: =N11 -> 211 | AT11: =COUNTIF(L25:L27,AS11) -> 0
A12: 12 | B12: 919 | C12: 13 | D12: 925 | E12: 13 | F12: 938 | K12: 0 | L12: 111 | N12: 212 | O12: =COUNTIF($L$7:$L$500,N12) -> 0 | P12: =O12/$Q$4 -> 0 | Q12: =IF(P12=0,0,(P12*((LOG(P12))/LOG(2)))) -> 0 | T12: =N12 -> 212 | U12: =COUNTIF(L7:L10,T12) -> 0 | V12: =U12/(W4-U11) -> 0 | W12: =IF(V12=0,0,(V12*((LOG(V12))/LOG(2)))) -> 0 | Y12: =N12 -> 212 | Z12: =COUNTIF(L11:L13,Y12) -> 0 | AA12: =Z12/(AB4-Z11) -> 0 | AB12: =IF(AA12=0,0,(AA12*((LOG(AA12))/LOG(2)))) -> 0 | AD12: =N12 -> 212 | AE12: =COUNTIF(L14:L17,AD12) -> 0 | AF12: =AE12/(AG4-AE11) -> 0 | AG12: =IF(AF12=0,0,(AF12*((LOG(AF12))/LOG(2)))) -> 0 | AI12: =N12 -> 212 | AJ12: =COUNTIF(L18:L20,AI12) -> 0 | AK12: =AJ12/(AL4-AJ11) -> 0 | AL12: =IF(AK12=0,0,(AK12*((LOG(AK12))/LOG(2)))) -> 0 | AN12: =N12 -> 212 | AO12: =COUNTIF(L21:L24,AN12) -> 0 | AP12: =AO12/(AQ4-AO11) -> 0 | AQ12: =IF(AP12=0,0,(AP12*((LOG(AP12))/LOG(2)))) -> 0 | AS12: =N12 -> 212 | AT12: =COUNTIF(L25:L27,AS12) -> 0 | AU12: =AT12/(AV4-AT11) -> 0 | AV12: =IF(AU12=0,0,(AU12*((LOG(AU12))/LOG(2)))) -> 0
A13: 12 | B13: 1080 | C13: 13 | D13: 1092 | E13: 13 | F13: 1098 | K13: 0 | L13: 111 | N13: 221 | O13: =COUNTIF($L$7:$L$500,N13) -> 0 | P13: =O13/$Q$4 -> 0 | Q13: =IF(P13=0,0,(P13*((LOG(P13))/LOG(2)))) -> 0 | T13: =N13 -> 221 | U13: =COUNTIF(L7:L10,T13) -> 0 | V13: =U13/(W4-U11) -> 0 | W13: =IF(V13=0,0,(V13*((LOG(V13))/LOG(2)))) -> 0 | Y13: =N13 -> 221 | Z13: =COUNTIF(L11:L13,Y13) -> 0 | AA13: =Z13/(AB4-Z11) -> 0 | AB13: =IF(AA13=0,0,(AA13*((LOG(AA13))/LOG(2)))) -> 0 | AD13: =N13 -> 221 | AE13: =COUNTIF(L14:L17,AD13) -> 0 | AF13: =AE13/(AG4-AE11) -> 0 | AG13: =IF(AF13=0,0,(AF13*((LOG(AF13))/LOG(2)))) -> 0 | AI13: =N13 -> 221 | AJ13: =COUNTIF(L18:L20,AI13) -> 0 | AK13: =AJ13/(AL4-AJ11) -> 0 | AL13: =IF(AK13=0,0,(AK13*((LOG(AK13))/LOG(2)))) -> 0 | AN13: =N13 -> 221 | AO13: =COUNTIF(L21:L24,AN13) -> 0 | AP13: =AO13/(AQ4-AO11) -> 0 | AQ13: =IF(AP13=0,0,(AP13*((LOG(AP13))/LOG(2)))) -> 0 | AS13: =N13 -> 221 | AT13: =COUNTIF(L25:L27,AS13) -> 0 | AU13: =AT13/(AV4-AT11) -> 0 | AV13: =IF(AU13=0,0,(AU13*((LOG(AU13))/LOG(2)))) -> 0
A14: 12 | B14: 4657 | C14: 13 | D14: 4663 | E14: 13 | F14: 4673 | K14: 0 | L14: 111 | N14: 222 | O14: =COUNTIF($L$7:$L$500,N14) -> 6 | P14: =O14/$Q$4 -> 0.2857142857 | Q14: =IF(P14=0,0,(P14*((LOG(P14))/LOG(2)))) -> -0.5163871206 | T14: =N14 -> 222 | U14: =COUNTIF(L7:L10,T14) -> 0 | V14: =U14/(W4-U11) -> 0 | W14: =IF(V14=0,0,(V14*((LOG(V14))/LOG(2)))) -> 0 | Y14: =N14 -> 222 | Z14: =COUNTIF(L11:L13,Y14) -> 0 | AA14: =Z14/(AB4-Z11) -> 0 | AB14: =IF(AA14=0,0,(AA14*((LOG(AA14))/LOG(2)))) -> 0 | AD14: =N14 -> 222 | AE14: =COUNTIF(L14:L17,AD14) -> 1 | AF14: =AE14/(AG4-AE11) -> 0.25 | AG14: =IF(AF14=0,0,(AF14*((LOG(AF14))/LOG(2)))) -> -0.5 | AI14: =N14 -> 222 | AJ14: =COUNTIF(L18:L20,AI14) -> 2 | AK14: =AJ14/(AL4-AJ11) -> 0.6666666667 | AL14: =IF(AK14=0,0,(AK14*((LOG(AK14))/LOG(2)))) -> -0.3899750005 | AN14: =N14 -> 222 | AO14: =COUNTIF(L21:L24,AN14) -> 2 | AP14: =AO14/(AQ4-AO11) -> 0.5 | AQ14: =IF(AP14=0,0,(AP14*((LOG(AP14))/LOG(2)))) -> -0.5 | AS14: =N14 -> 222 | AT14: =COUNTIF(L25:L27,AS14) -> 1 | AU14: =AT14/(AV4-AT11) -> 0.3333333333 | AV14: =IF(AU14=0,0,(AU14*((LOG(AU14))/LOG(2)))) -> -0.5283208336
A15: 12 | B15: 5951 | C15: 13 | D15: 5964 | E15: 13 | F15: 5989 | K15: 0 | L15: 111 | P15: =SUM(P7:P14) -> 1 | Q15: =-SUM(Q7:Q14) -> 0.8631205686 | V15: =SUM(V7:V14) -> 1 | W15: =-SUM(W7:W14) -> 0 | AA15: =SUM(AA7:AA14) -> 1 | AB15: =-SUM(AB7:AB14) -> 0 | AF15: =SUM(AF7:AF14) -> 1 | AG15: =-SUM(AG7:AG14) -> 0.8112781245 | AK15: =SUM(AK7:AK14) -> 1 | AL15: =-SUM(AL7:AL14) -> 0.9182958341 | AP15: =SUM(AP7:AP14) -> 1 | AQ15: =-SUM(AQ7:AQ14) -> 1 | AU15: =SUM(AU7:AU14) -> 1 | AV15: =-SUM(AV7:AV14) -> 0.9182958341
A16: 21 | B16: 6161 | C16: 22 | D16: 6170 | E16: 24 | F16: 6176 | K16: 0 | L16: 222 | P16: U= | Q16: =Q15/(LOG(Q4)/LOG(2)) -> 0.1965068745 | V16: U1= | W16: =W15/(LOG(W4)/LOG(2)) -> 0 | AA16: U2= | AB16: =AB15/(LOG(AB4)/LOG(2)) -> 0 | AF16: U3= | AG16: =AG15/(LOG(AG4)/LOG(2)) -> 0.4056390622 | AK16: U4= | AL16: =AL15/(LOG(AL4)/LOG(2)) -> 0.5793801643 | AP16: U5= | AQ16: =AQ15/(LOG(AQ4)/LOG(2)) -> 0.5 | AU16: U6= | AV16: =AV15/(LOG(AV4)/LOG(2)) -> 0.5793801643
A17: 12 | B17: 6445 | C17: 13 | D17: 6458 | E17: 13 | F17: 6462 | K17: 0 | L17: 111
A18: 21 | B18: 6597 | C18: 22 | D18: 6608 | E18: 24 | F18: 6617 | K18: 0 | L18: 222
A19: 21 | B19: 7189 | C19: 22 | D19: 7199 | E19: 24 | F19: 7204 | K19: 0 | L19: 222 | N19: Total Target Seq
A20: 12 | B20: 7310 | C20: 13 | D20: 7320 | E20: 13 | F20: 7325 | K20: 0 | L20: 111 | N20: =COUNTIF(L7:L27,G3) -> 0 | P20: 4 | Q20: 3 | R20: 4 | S20: 3 | T20: 4 | U20: 3
A21: 12 | B21: 7438 | C21: 13 | D21: 7443 | E21: 13 | F21: 7447 | K21: 0 | L21: 111 | P21: % of reinforcement given in 6 equal intervals based on number of trials
A22: 21 | B22: 7550 | C22: 22 | D22: 7555 | E22: 24 | F22: 7560 | K22: 0 | L22: 222 | P22: %_1 | Q22: %_2 | R22: %_3 | S22: %_4 | T22: %_5 | U22: %_6
A23: 12 | B23: 7659 | C23: 13 | D23: 7664 | E23: 13 | F23: 7668 | K23: 0 | L23: 111 | O23: target sequence | P23: =$G$3 -> 211 | Q23: =$G$3 -> 211 | R23: =$G$3 -> 211 | S23: =$G$3 -> 211 | T23: =$G$3 -> 211 | U23: =$G$3 -> 211
A24: 21 | B24: 7773 | C24: 22 | D24: 7779 | E24: 24 | F24: 7787 | K24: 0 | L24: 222 | O24: total reinforcement | P24: =U11 -> 0 | Q24: =Z11 -> 0 | R24: =AE11 -> 0 | S24: =AJ11 -> 0 | T24: =AO11 -> 0 | U24: =AT11 -> 0
A25: 12 | B25: 7886 | C25: 13 | D25: 7891 | E25: 13 | F25: 7897 | K25: 0 | L25: 111 | O25: % target
A26: 12 | B26: 8040 | C26: 13 | D26: 8045 | E26: 13 | F26: 8055 | K26: 0 | L26: 111 | O26: CCRF
A27: 21 | B27: 8179 | C27: 22 | D27: 8184 | E27: 24 | F27: 8189 | K27: 0 | L27: 222 | O27: % CCRf
O28: average response rate | P28: =F10/P20 -> 112.75 | Q28: =(F13-F10)/Q20 -> 215.6666667 | R28: =(F17-F13)/R20 -> 1341 | S28: =(F20-F17)/S20 -> 287.6666667 | T28: =(F24-F20)/T20 -> 115.5 | U28: =(F27-F24)/U20 -> 134

Sheet !N111930.010
A1: Report for:!N111930.010
A2: Date: | B2: <date>
A3: Hen: | B3: <hen> | F3: Correct Sequence | G3: =Start!J2 -> 211 | P3: Total Sequences in Data | Q3: =4994-COUNTBLANK(L7:L5000) -> 7 | V3: Total Sequences in Block Data | W3: =COUNTA(L7:L7) -> 1 | AA3: Total Sequences in Block Data | AB3: =COUNTA(L8:L8) -> 1 | AF3: Total Sequences in Block Data | AG3: =COUNTA(L9:L10) -> 2 | AK3: Total Sequences in Block Data | AL3: =COUNTA(L11:L11) -> 1 | AP3: Total Sequences in Block Data | AQ3: =COUNTA(L12:L12) -> 1 | AU3: Total Sequences in Block Data | AV3: =COUNTA(L13:L13) -> 1
P4: Total Sequences in Summary | Q4: =SUM(O7:O14) -> 7 | V4: Total Sequences in Block Summary | W4: =SUM(U7:U14) -> 1 | AA4: Total Sequences in Block Summary | AB4: =SUM(Z7:Z14) -> 1 | AF4: Total Sequences in Block Summary | AG4: =SUM(AE7:AE14) -> 2 | AK4: Total Sequences in Block Summary | AL4: =SUM(AJ7:AJ14) -> 1 | AP4: Total Sequences in Block Summary | AQ4: =SUM(AO7:AO14) -> 1 | AU4: Total Sequences in Block Summary | AV4: =SUM(AT7:AT14) -> 1
T5: Block 1 | Y5: Block 2 | AD5: Block 3 | AI5: Block 4 | AN5: Block 5 | AS5: Block 6
A6: Sequence Component 1 | B6: Time 1 | C6: Sequence Component 2 | D6: Time 2 | E6: Sequence Component 3 | F6: Time 3 | G6: Sequence Component 4 | H6: Time 4 | I6: Sequence Component 5 | J6: Time 5 | K6: Correct? 0=No 1=Yes | L6: Sequence | N6: Frequency | P6: Relative Frequency | Q6: Variability | T6: Frequency | V6: Relative Frequency | W6: Variability | Y6: Frequency | AA6: Relative Frequency | AB6: Variability | AD6: Frequency | AF6: Relative Frequency | AG6: Variability | AI6: Frequency | AK6: Relative Frequency | AL6: Variability | AN6: Frequency | AP6: Relative Frequency | AQ6: Variability | AS6: Frequency | AU6: Relative Frequency | AV6: Variability
A7: 12 | B7: 71 | C7: 13 | D7: 81 | E7: 13 | F7: 87 | K7: 0 | L7: 111 | N7: 111 | O7: =COUNTIF($L$7:$L$500,N7) -> 3 | P7: =O7/$Q$4 -> 0.4285714286 | Q7: =IF(P7=0,0,(P7*((LOG(P7))/LOG(2)))) -> -0.5238824663 | T7: =N7 -> 111 | U7: =COUNTIF(L7:L7,T7) -> 1 | V7: =U7/(W4-U11) -> 1 | W7: =IF(V7=0,0,(V7*((LOG(V7))/LOG(2)))) -> 0 | Y7: =N7 -> 111 | Z7: =COUNTIF(L8:L8,Y7) -> 0 | AA7: =Z7/(AB4-Z11) -> 0 | AB7: =IF(AA7=0,0,(AA7*((LOG(AA7))/LOG(2)))) -> 0 | AD7: =N7 -> 111 | AE7: =COUNTIF(L9:L10,AD7) -> 0 | AF7: =AE7/(AG4-AE11) -> 0 | AG7: =IF(AF7=0,0,(AF7*((LOG(AF7))/LOG(2)))) -> 0 | AI7: =N7 -> 111 | AJ7: =COUNTIF(L11:L11,AI7) -> 1 | AK7: =AJ7/(AL4-AJ11) -> 1 | AL7: =IF(AK7=0,0,(AK7*((LOG(AK7))/LOG(2)))) -> 0 | AN7: =N7 -> 111 | AO7: =COUNTIF(L12:L12,AN7) -> 1 | AP7: =AO7/(AQ4-AO11) -> 1 | AQ7: =IF(AP7=0,0,(AP7*((LOG(AP7))/LOG(2)))) -> 0 | AS7: =N7 -> 111 | AT7: =COUNTIF(L13:L13,AS7) -> 0 | AU7: =AT7/(AV4-AT11) -> 0 | AV7: =IF(AU7=0,0,(AU7*((LOG(AU7))/LOG(2)))) -> 0
A8: 21 | B8: 226 | C8: 22 | D8: 232 | E8: 13 | F8: 254 | K8: 0 | L8: 221 | N8: 112 | O8: =COUNTIF($L$7:$L$500,N8) -> 0 | P8: =O8/$Q$4 -> 0 | Q8: =IF(P8=0,0,(P8*((LOG(P8))/LOG(2)))) -> 0 | T8: =N8 -> 112 | U8: =COUNTIF(L7:L7,T8) -> 0 | V8: =U8/(W4-U11) -> 0 | W8: =IF(V8=0,0,(V8*((LOG(V8))/LOG(2)))) -> 0 | Y8: =N8 -> 112 | Z8: =COUNTIF(L8:L8,Y8) -> 0 | AA8: =Z8/(AB4-Z11) -> 0 | AB8: =IF(AA8=0,0,(AA8*((LOG(AA8))/LOG(2)))) -> 0 | AD8: =N8 -> 112 | AE8: =COUNTIF(L9:L10,AD8) -> 0 | AF8: =AE8/(AG4-AE11) -> 0 | AG8: =IF(AF8=0,0,(AF8*((LOG(AF8))/LOG(2)))) -> 0 | AI8: =N8 -> 112 | AJ8: =COUNTIF(L11:L11,AI8) -> 0 | AK8: =AJ8/(AL4-AJ11) -> 0 | AL8: =IF(AK8=0,0,(AK8*((LOG(AK8))/LOG(2)))) -> 0 | AN8: =N8 -> 112 | AO8: =COUNTIF(L12:L12,AN8) -> 0 | AP8: =AO8/(AQ4-AO11) -> 0 | AQ8: =IF(AP8=0,0,(AP8*((LOG(AP8))/LOG(2)))) -> 0 | AS8: =N8 -> 112 | AT8: =COUNTIF(L13:L13,AS8) -> 0 | AU8: =AT8/(AV4-AT11) -> 0 | AV8: =IF(AU8=0,0,(AU8*((LOG(AU8))/LOG(2)))) -> 0
A9: 21 | B9: 604 | C9: 22 | D9: 610 | E9: 24 | F9: 616 | K9: 0 | L9: 222 | N9: 121 | O9: =COUNTIF($L$7:$L$500,N9) -> 0 | P9: =O9/$Q$4 -> 0 | Q9: =IF(P9=0,0,(P9*((LOG(P9))/LOG(2)))) -> 0 | T9: =N9 -> 121 | U9: =COUNTIF(L7:L7,T9) -> 0 | V9: =U9/(W4-U11) -> 0 | W9: =IF(V9=0,0,(V9*((LOG(V9))/LOG(2)))) -> 0 | Y9: =N9 -> 121 | Z9: =COUNTIF(L8:L8,Y9) -> 0 | AA9: =Z9/(AB4-Z11) -> 0 | AB9: =IF(AA9=0,0,(AA9*((LOG(AA9))/LOG(2)))) -> 0 | AD9: =N9 -> 121 | AE9: =COUNTIF(L9:L10,AD9) -> 0 | AF9: =AE9/(AG4-AE11) -> 0 | AG9: =IF(AF9=0,0,(AF9*((LOG(AF9))/LOG(2)))) -> 0 | AI9: =N9 -> 121 | AJ9: =COUNTIF(L11:L11,AI9) -> 0 | AK9: =AJ9/(AL4-AJ11) -> 0 | AL9: =IF(AK9=0,0,(AK9*((LOG(AK9))/LOG(2)))) -> 0 | AN9: =N9 -> 121 | AO9: =COUNTIF(L12:L12,AN9) -> 0 | AP9: =AO9/(AQ4-AO11) -> 0 | AQ9: =IF(AP9=0,0,(AP9*((LOG(AP9))/LOG(2)))) -> 0 | AS9: =N9 -> 121 | AT9: =COUNTIF(L13:L13,AS9) -> 0 | AU9: =AT9/(AV4-AT11) -> 0 | AV9: =IF(AU9=0,0,(AU9*((LOG(AU9))/LOG(2)))) -> 0
A10: 21 | B10: 740 | C10: 22 | D10: 746 | E10: 24 | F10: 755 | K10: 0 | L10: 222 | N10: 122 | O10: =COUNTIF($L$7:$L$500,N10) -> 0 | P10: =O10/$Q$4 -> 0 | Q10: =IF(P10=0,0,(P10*((LOG(P10))/LOG(2)))) -> 0 | T10: =N10 -> 122 | U10: =COUNTIF(L7:L7,T10) -> 0 | V10: =U10/(W4-U11) -> 0 | W10: =IF(V10=0,0,(V10*((LOG(V10))/LOG(2)))) -> 0 | Y10: =N10 -> 122 | Z10: =COUNTIF(L8:L8,Y10) -> 0 | AA10: =Z10/(AB4-Z11) -> 0 | AB10: =IF(AA10=0,0,(AA10*((LOG(AA10))/LOG(2)))) -> 0 | AD10: =N10 -> 122 | AE10: =COUNTIF(L9:L10,AD10) -> 0 | AF10: =AE10/(AG4-AE11) -> 0 | AG10: =IF(AF10=0,0,(AF10*((LOG(AF10))/LOG(2)))) -> 0 | AI10: =N10 -> 122 | AJ10: =COUNTIF(L11:L11,AI10) -> 0 | AK10: =AJ10/(AL4-AJ11) -> 0 | AL10: =IF(AK10=0,0,(AK10*((LOG(AK10))/LOG(2)))) -> 0 | AN10: =N10 -> 122 | AO10: =COUNTIF(L12:L12,AN10) -> 0 | AP10: =AO10/(AQ4-AO11) -> 0 | AQ10: =IF(AP10=0,0,(AP10*((LOG(AP10))/LOG(2)))) -> 0 | AS10: =N10 -> 122 | AT10: =COUNTIF(L13:L13,AS10) -> 0 | AU10: =AT10/(AV4-AT11) -> 0 | AV10: =IF(AU10=0,0,(AU10*((LOG(AU10))/LOG(2)))) -> 0
A11: 12 | B11: 928 | C11: 13 | D11: 936 | E11: 13 | F11: 948 | K11: 0 | L11: 111 | N11: 211 | O11: =COUNTIF($L$7:$L$500,N11) -> 0 | P11: =O11/$Q$4 -> 0 | Q11: =IF(P11=0,0,(P11*((LOG(P11))/LOG(2)))) -> 0 | T11: =N11 -> 211 | U11: =COUNTIF(L7:L7,T11) -> 0 | Y11: =N11 -> 211 | Z11: =COUNTIF(L8:L8,Y11) -> 0 | AD11: =N11 -> 211 | AE11: =COUNTIF(L9:L10,AD11) -> 0 | AI11: =N11 -> 211 | AJ11: =COUNTIF(L11:L11,AI11) -> 0 | AN11: =N11 -> 211 | AO11: =COUNTIF(L12:L12,AN11) -> 0 | AS11: =N11 -> 211 | AT11: =COUNTIF(L13:L13,AS11) -> 0
A12: 12 | B12: 1060 | C12: 13 | D12: 1066 | E12: 13 | F12: 1070 | K12: 0 | L12: 111 | N12: 212 | O12: =COUNTIF($L$7:$L$500,N12) -> 0 | P12: =O12/$Q$4 -> 0 | Q12: =IF(P12=0,0,(P12*((LOG(P12))/LOG(2)))) -> 0 | T12: =N12 -> 212 | U12: =COUNTIF(L7:L7,T12) -> 0 | V12: =U12/(W4-U11) -> 0 | W12: =IF(V12=0,0,(V12*((LOG(V12))/LOG(2)))) -> 0 | Y12: =N12 -> 212 | Z12: =COUNTIF(L8:L8,Y12) -> 0 | AA12: =Z12/(AB4-Z11) -> 0 | AB12: =IF(AA12=0,0,(AA12*((LOG(AA12))/LOG(2)))) -> 0 | AD12: =N12 -> 212 | AE12: =COUNTIF(L9:L10,AD12) -> 0 | AF12: =AE12/(AG4-AE11) -> 0 | AG12: =IF(AF12=0,0,(AF12*((LOG(AF12))/LOG(2)))) -> 0 | AI12: =N12 -> 212 | AJ12: =COUNTIF(L11:L11,AI12) -> 0 | AK12: =AJ12/(AL4-AJ11) -> 0 | AL12: =IF(AK12=0,0,(AK12*((LOG(AK12))/LOG(2)))) -> 0 | AN12: =N12 -> 212 | AO12: =COUNTIF(L12:L12,AN12) -> 0 | AP12: =AO12/(AQ4-AO11) -> 0 | AQ12: =IF(AP12=0,0,(AP12*((LOG(AP12))/LOG(2)))) -> 0 | AS12: =N12 -> 212 | AT12: =COUNTIF(L13:L13,AS12) -> 0 | AU12: =AT12/(AV4-AT11) -> 0 | AV12: =IF(AU12=0,0,(AU12*((LOG(AU12))/LOG(2)))) -> 0
A13: 21 | B13: 23843 | C13: 22 | D13: 23865 | E13: 24 | F13: 23874 | K13: 0 | L13: 222 | N13: 221 | O13: =COUNTIF($L$7:$L$500,N13) -> 1 | P13: =O13/$Q$4 -> 0.1428571429 | Q13: =IF(P13=0,0,(P13*((LOG(P13))/LOG(2)))) -> -0.4010507032 | T13: =N13 -> 221 | U13: =COUNTIF(L7:L7,T13) -> 0 | V13: =U13/(W4-U11) -> 0 | W13: =IF(V13=0,0,(V13*((LOG(V13))/LOG(2)))) -> 0 | Y13: =N13 -> 221 | Z13: =COUNTIF(L8:L8,Y13) -> 1 | AA13: =Z13/(AB4-Z11) -> 1 | AB13: =IF(AA13=0,0,(AA13*((LOG(AA13))/LOG(2)))) -> 0 | AD13: =N13 -> 221 | AE13: =COUNTIF(L9:L10,AD13) -> 0 | AF13: =AE13/(AG4-AE11) -> 0 | AG13: =IF(AF13=0,0,(AF13*((LOG(AF13))/LOG(2)))) -> 0 | AI13: =N13 -> 221 | AJ13: =COUNTIF(L11:L11,AI13) -> 0 | AK13: =AJ13/(AL4-AJ11) -> 0 | AL13: =IF(AK13=0,0,(AK13*((LOG(AK13))/LOG(2)))) -> 0 | AN13: =N13 -> 221 | AO13: =COUNTIF(L12:L12,AN13) -> 0 | AP13: =AO13/(AQ4-AO11) -> 0 | AQ13: =IF(AP13=0,0,(AP13*((LOG(AP13))/LOG(2)))) -> 0 | AS13: =N13 -> 221 | AT13: =COUNTIF(L13:L13,AS13) -> 0 | AU13: =AT13/(AV4-AT11) -> 0 | AV13: =IF(AU13=0,0,(AU13*((LOG(AU13))/LOG(2)))) -> 0
N14: 222 | O14: =COUNTIF($L$7:$L$500,N14) -> 3 | P14: =O14/$Q$4 -> 0.4285714286 | Q14: =IF(P14=0,0,(P14*((LOG(P14))/LOG(2)))) -> -0.5238824663 | T14: =N14 -> 222 | U14: =COUNTIF(L7:L7,T14) -> 0 | V14: =U14/(W4-U11) -> 0 | W14: =IF(V14=0,0,(V14*((LOG(V14))/LOG(2)))) -> 0 | Y14: =N14 -> 222 | Z14: =COUNTIF(L8:L8,Y14) -> 0 | AA14: =Z14/(AB4-Z11) -> 0 | AB14: =IF(AA14=0,0,(AA14*((LOG(AA14))/LOG(2)))) -> 0 | AD14: =N14 -> 222 | AE14: =COUNTIF(L9:L10,AD14) -> 2 | AF14: =AE14/(AG4-AE11) -> 1 | AG14: =IF(AF14=0,0,(AF14*((LOG(AF14))/LOG(2)))) -> 0 | AI14: =N14 -> 222 | AJ14: =COUNTIF(L11:L11,AI14) -> 0 | AK14: =AJ14/(AL4-AJ11) -> 0 | AL14: =IF(AK14=0,0,(AK14*((LOG(AK14))/LOG(2)))) -> 0 | AN14: =N14 -> 222 | AO14: =COUNTIF(L12:L12,AN14) -> 0 | AP14: =AO14/(AQ4-AO11) -> 0 | AQ14: =IF(AP14=0,0,(AP14*((LOG(AP14))/LOG(2)))) -> 0 | AS14: =N14 -> 222 | AT14: =COUNTIF(L13:L13,AS14) -> 1 | AU14: =AT14/(AV4-AT11) -> 1 | AV14: =IF(AU14=0,0,(AU14*((LOG(AU14))/LOG(2)))) -> 0
P15: =SUM(P7:P14) -> 1 | Q15: =-SUM(Q7:Q14) -> 1.448815636 | V15: =SUM(V7:V14) -> 1 | W15: =-SUM(W7:W14) -> 0 | AA15: =SUM(AA7:AA14) -> 1 | AB15: =-SUM(AB7:AB14) -> 0 | AF15: =SUM(AF7:AF14) -> 1 | AG15: =-SUM(AG7:AG14) -> 0 | AK15: =SUM(AK7:AK14) -> 1 | AL15: =-SUM(AL7:AL14) -> 0 | AP15: =SUM(AP7:AP14) -> 1 | AQ15: =-SUM(AQ7:AQ14) -> 0 | AU15: =SUM(AU7:AU14) -> 1 | AV15: =-SUM(AV7:AV14) -> 0
P16: U= | Q16: =Q15/(LOG(Q4)/LOG(2)) -> 0.5160785422 | V16: U1= | W16: =W15/(LOG(W4)/LOG(2)) ->  | AA16: U2= | AB16: =AB15/(LOG(AB4)/LOG(2)) ->  | AF16: U3= | AG16: =AG15/(LOG(AG4)/LOG(2)) -> 0 | AK16: U4= | AL16: =AL15/(LOG(AL4)/LOG(2)) ->  | AP16: U5= | AQ16: =AQ15/(LOG(AQ4)/LOG(2)) ->  | AU16: U6= | AV16: =AV15/(LOG(AV4)/LOG(2)) -> 
N19: Total Target Seq
N20: =COUNTIF(L7:L13,G3) -> 0 | P20: 1 | Q20: 1 | R20: 2 | S20: 1 | T20: 1 | U20: 1
P21: % of reinforcement given in 6 equal intervals based on number of trials
P22: %_1 | Q22: %_2 | R22: %_3 | S22: %_4 | T22: %_5 | U22: %_6
O23: target sequence | P23: =$G$3 -> 211 | Q23: =$G$3 -> 211 | R23: =$G$3 -> 211 | S23: =$G$3 -> 211 | T23: =$G$3 -> 211 | U23: =$G$3 -> 211
O24: total reinforcement | P24: =U11 -> 0 | Q24: =Z11 -> 0 | R24: =AE11 -> 0 | S24: =AJ11 -> 0 | T24: =AO11 -> 0 | U24: =AT11 -> 0
O25: % target
O26: CCRF
O27: % CCRf
O28: average response rate | P28: =F7/P20 -> 87 | Q28: =(F8-F7)/Q20 -> 167 | R28: =(F10-F8)/R20 -> 250.5 | S28: =(F11-F10)/S20 -> 193 | T28: =(F12-F11)/T20 -> 122 | U28: =(F13-F12)/U20 -> 22804

Sheet !N112750.010
A1: Report for:!N112750.010
A2: Date: | B2: <date>
A3: Hen: | B3: <hen> | F3: Correct Sequence | G3: =Start!J2 -> 211 | P3: Total Sequences in Data | Q3: =4994-COUNTBLANK(L7:L5000) -> 9 | V3: Total Sequences in Block Data | W3: =COUNTA(L7:L8) -> 2 | AA3: Total Sequences in Block Data | AB3: =COUNTA(L9:L9) -> 1 | AF3: Total Sequences in Block Data | AG3: =COUNTA(L10:L11) -> 2 | AK3: Total Sequences in Block Data | AL3: =COUNTA(L12:L12) -> 1 | AP3: Total Sequences in Block Data | AQ3: =COUNTA(L13:L14) -> 2 | AU3: Total Sequences in Block Data | AV3: =COUNTA(L15:L15) -> 1
P4: Total Sequences in Summary | Q4: =SUM(O7:O14) -> 9 | V4: Total Sequences in Block Summary | W4: =SUM(U7:U14) -> 2 | AA4: Total Sequences in Block Summary | AB4: =SUM(Z7:Z14) -> 1 | AF4: Total Sequences in Block Summary | AG4: =SUM(AE7:AE14) -> 2 | AK4: Total Sequences in Block Summary | AL4: =SUM(AJ7:AJ14) -> 1 | AP4: Total Sequences in Block Summary | AQ4: =SUM(AO7:AO14) -> 2 | AU4: Total Sequences in Block Summary | AV4: =SUM(AT7:AT14) -> 1
T5: Block 1 | Y5: Block 2 | AD5: Block 3 | AI5: Block 4 | AN5: Block 5 | AS5: Block 6
A6: Sequence Component 1 | B6: Time 1 | C6: Sequence Component 2 | D6: Time 2 | E6: Sequence Component 3 | F6: Time 3 | G6: Sequence Component 4 | H6: Time 4 | I6: Sequence Component 5 | J6: Time 5 | K6: Correct? 0=No 1=Yes | L6: Sequence | N6: Frequency | P6: Relative Frequency | Q6: Variability | T6: Frequency | V6: Relative Frequency | W6: Variability | Y6: Frequency | AA6: Relative Frequency | AB6: Variability | AD6: Frequency | AF6: Relative Frequency | AG6: Variability | AI6: Frequency | AK6: Relative Frequency | AL6: Variability | AN6: Frequency | AP6: Relative Frequency | AQ6: Variability | AS6: Frequency | AU6: Relative Frequency | AV6: Variability
A7: 21 | B7: 237 | C7: 22 | D7: 246 | E7: 24 | F7: 254 | K7: 0 | L7: 222 | N7: 111 | O7: =COUNTIF($L$7:$L$500,N7) -> 7 | P7: =O7/$Q$4 -> 0.7777777778 | Q7: =IF(P7=0,0,(P7*((LOG(P7))/LOG(2)))) -> -0.2819989506 | T7: =N7 -> 111 | U7: =COUNTIF(L7:L8,T7) -> 1 | V7: =U7/(W4-U11) -> 0.5 | W7: =IF(V7=0,0,(V7*((LOG(V7))/LOG(2)))) -> -0.5 | Y7: =N7 -> 111 | Z7: =COUNTIF(L9:L9,Y7) -> 1 | AA7: =Z7/(AB4-Z11) -> 1 | AB7: =IF(AA7=0,0,(AA7*((LOG(AA7))/LOG(2)))) -> 0 | AD7: =N7 -> 111 | AE7: =COUNTIF(L10:L11,AD7) -> 2 | AF7: =AE7/(AG4-AE11) -> 1 | AG7: =IF(AF7=0,0,(AF7*((LOG(AF7))/LOG(2)))) -> 0 | AI7: =N7 -> 111 | AJ7: =COUNTIF(L12:L12,AI7) -> 1 | AK7: =AJ7/(AL4-AJ11) -> 1 | AL7: =IF(AK7=0,0,(AK7*((LOG(AK7))/LOG(2)))) -> 0 | AN7: =N7 -> 111 | AO7: =COUNTIF(L13:L14,AN7) -> 2 | AP7: =AO7/(AQ4-AO11) -> 1 | AQ7: =IF(AP7=0,0,(AP7*((LOG(AP7))/LOG(2)))) -> 0 | AS7: =N7 -> 111 | AT7: =COUNTIF(L15:L15,AS7) -> 0 | AU7: =AT7/(AV4-AT11) -> 0 | AV7: =IF(AU7=0,0,(AU7*((LOG(AU7))/LOG(2)))) -> 0
A8: 12 | B8: 394 | C8: 13 | D8: 398 | E8: 13 | F8: 403 | K8: 0 | L8: 111 | N8: 112 | O8: =COUNTIF($L$7:$L$500,N8) -> 0 | P8: =O8/$Q$4 -> 0 | Q8: =IF(P8=0,0,(P8*((LOG(P8))/LOG(2)))) -> 0 | T8: =N8 -> 112 | U8: =COUNTIF(L7:L8,T8) -> 0 | V8: =U8/(W4-U11) -> 0 | W8: =IF(V8=0,0,(V8*((LOG(V8))/LOG(2)))) -> 0 | Y8: =N8 -> 112 | Z8: =COUNTIF(L9:L9,Y8) -> 0 | AA8: =Z8/(AB4-Z11) -> 0 | AB8: =IF(AA8=0,0,(AA8*((LOG(AA8))/LOG(2)))) -> 0 | AD8: =N8 -> 112 | AE8: =COUNTIF(L10:L11,AD8) -> 0 | AF8: =AE8/(AG4-AE11) -> 0 | AG8: =IF(AF8=0,0,(AF8*((LOG(AF8))/LOG(2)))) -> 0 | AI8: =N8 -> 112 | AJ8: =COUNTIF(L12:L12,AI8) -> 0 | AK8: =AJ8/(AL4-AJ11) -> 0 | AL8: =IF(AK8=0,0,(AK8*((LOG(AK8))/LOG(2)))) -> 0 | AN8: =N8 -> 112 | AO8: =COUNTIF(L13:L14,AN8) -> 0 | AP8: =AO8/(AQ4-AO11) -> 0 | AQ8: =IF(AP8=0,0,(AP8*((LOG(AP8))/LOG(2)))) -> 0 | AS8: =N8 -> 112 | AT8: =COUNTIF(L15:L15,AS8) -> 0 | AU8: =AT8/(AV4-AT11) -> 0 | AV8: =IF(AU8=0,0,(AU8*((LOG(AU8))/LOG(2)))) -> 0
A9: 12 | B9: 667 | C9: 13 | D9: 672 | E9: 13 | F9: 677 | K9: 0 | L9: 111 | N9: 121 | O9: =COUNTIF($L$7:$L$500,N9) -> 0 | P9: =O9/$Q$4 -> 0 | Q9: =IF(P9=0,0,(P9*((LOG(P9))/LOG(2)))) -> 0 | T9: =N9 -> 121 | U9: =COUNTIF(L7:L8,T9) -> 0 | V9: =U9/(W4-U11) -> 0 | W9: =IF(V9=0,0,(V9*((LOG(V9))/LOG(2)))) -> 0 | Y9: =N9 -> 121 | Z9: =COUNTIF(L9:L9,Y9) -> 0 | AA9: =Z9/(AB4-Z11) -> 0 | AB9: =IF(AA9=0,0,(AA9*((LOG(AA9))/LOG(2)))) -> 0 | AD9: =N9 -> 121 | AE9: =COUNTIF(L10:L11,AD9) -> 0 | AF9: =AE9/(AG4-AE11) -> 0 | AG9: =IF(AF9=0,0,(AF9*((LOG(AF9))/LOG(2)))) -> 0 | AI9: =N9 -> 121 | AJ9: =COUNTIF(L12:L12,AI9) -> 0 | AK9: =AJ9/(AL4-AJ11) -> 0 | AL9: =IF(AK9=0,0,(AK9*((LOG(AK9))/LOG(2)))) -> 0 | AN9: =N9 -> 121 | AO9: =COUNTIF(L13:L14,AN9) -> 0 | AP9: =AO9/(AQ4-AO11) -> 0 | AQ9: =IF(AP9=0,0,(AP9*((LOG(AP9))/LOG(2)))) -> 0 | AS9: =N9 -> 121 | AT9: =COUNTIF(L15:L15,AS9) -> 0 | AU9: =AT9/(AV4-AT11) -> 0 | AV9: =IF(AU9=0,0,(AU9*((LOG(AU9))/LOG(2)))) -> 0
A10: 12 | B10: 1159 | C10: 13 | D10: 1164 | E10: 13 | F10: 1169 | K10: 0 | L10: 111 | N10: 122 | O10: =COUNTIF($L$7:$L$500,N10) -> 0 | P10: =O10/$Q$4 -> 0 | Q10: =IF(P10=0,0,(P10*((LOG(P10))/LOG(2)))) -> 0 | T10: =N10 -> 122 | U10: =COUNTIF(L7:L8,T10) -> 0 | V10: =U10/(W4-U11) -> 0 | W10: =IF(V10=0,0,(V10*((LOG(V10))/LOG(2)))) -> 0 | Y10: =N10 -> 122 | Z10: =COUNTIF(L9:L9,Y10) -> 0 | AA10: =Z10/(AB4-Z11) -> 0 | AB10: =IF(AA10=0,0,(AA10*((LOG(AA10))/LOG(2)))) -> 0 | AD10: =N10 -> 122 | AE10: =COUNTIF(L10:L11,AD10) -> 0 | AF10: =AE10/(AG4-AE11) -> 0 | AG10: =IF(AF10=0,0,(AF10*((LOG(AF10))/LOG(2)))) -> 0 | AI10: =N10 -> 122 | AJ10: =COUNTIF(L12:L12,AI10) -> 0 | AK10: =AJ10/(AL4-AJ11) -> 0 | AL10: =IF(AK10=0,0,(AK10*((LOG(AK10))/LOG(2)))) -> 0 | AN10: =N10 -> 122 | AO10: =COUNTIF(L13:L14,AN10) -> 0 | AP10: =AO10/(AQ4-AO11) -> 0 | AQ10: =IF(AP10=0,0,(AP10*((LOG(AP10))/LOG(2)))) -> 0 | AS10: =N10 -> 122 | AT10: =COUNTIF(L15:L15,AS10) -> 0 | AU10: =AT10/(AV4-AT11) -> 0 | AV10: =IF(AU10=0,0,(AU10*((LOG(AU10))/LOG(2)))) -> 0
A11: 12 | B11: 1309 | C11: 13 | D11: 1314 | E11: 13 | F11: 1319 | K11: 0 | L11: 111 | N11: 211 | O11: =COUNTIF($L$7:$L$500,N11) -> 0 | P11: =O11/$Q$4 -> 0 | Q11: =IF(P11=0,0,(P11*((LOG(P11))/LOG(2)))) -> 0 | T11: =N11 -> 211 | U11: =COUNTIF(L7:L8,T11) -> 0 | Y11: =N11 -> 211 | Z11: =COUNTIF(L9:L9,Y11) -> 0 | AD11: =N11 -> 211 | AE11: =COUNTIF(L10:L11,AD11) -> 0 | AI11: =N11 -> 211 | AJ11: =COUNTIF(L12:L12,AI11) -> 0 | AN11: =N11 -> 211 | AO11: =COUNTIF(L13:L14,AN11) -> 0 | AS11: =N11 -> 211 | AT11: =COUNTIF(L15:L15,AS11) -> 0
A12: 12 | B12: 2028 | C12: 13 | D12: 2047 | E12: 13 | F12: 2056 | K12: 0 | L12: 111 | N12: 212 | O12: =COUNTIF($L$7:$L$500,N12) -> 0 | P12: =O12/$Q$4 -> 0 | Q12: =IF(P12=0,0,(P12*((LOG(P12))/LOG(2)))) -> 0 | T12: =N12 -> 212 | U12: =COUNTIF(L7:L8,T12) -> 0 | V12: =U12/(W4-U11) -> 0 | W12: =IF(V12=0,0,(V12*((LOG(V12))/LOG(2)))) -> 0 | Y12: =N12 -> 212 | Z12: =COUNTIF(L9:L9,Y12) -> 0 | AA12: =Z12/(AB4-Z11) -> 0 | AB12: =IF(AA12=0,0,(AA12*((LOG(AA12))/LOG(2)))) -> 0 | AD12: =N12 -> 212 | AE12: =COUNTIF(L10:L11,AD12) -> 0 | AF12: =AE12/(AG4-AE11) -> 0 | AG12: =IF(AF12=0,0,(AF12*((LOG(AF12))/LOG(2)))) -> 0 | AI12: =N12 -> 212 | AJ12: =COUNTIF(L12:L12,AI12) -> 0 | AK12: =AJ12/(AL4-AJ11) -> 0 | AL12: =IF(AK12=0,0,(AK12*((LOG(AK12))/LOG(2)))) -> 0 | AN12: =N12 -> 212 | AO12: =COUNTIF(L13:L14,AN12) -> 0 | AP12: =AO12/(AQ4-AO11) -> 0 | AQ12: =IF(AP12=0,0,(AP12*((LOG(AP12))/LOG(2)))) -> 0 | AS12: =N12 -> 212 | AT12: =COUNTIF(L15:L15,AS12) -> 0 | AU12: =AT12/(AV4-AT11) -> 0 | AV12: =IF(AU12=0,0,(AU12*((LOG(AU12))/LOG(2)))) -> 0
A13: 12 | B13: 2173 | C13: 13 | D13: 2187 | E13: 13 | F13: 2192 | K13: 0 | L13: 111 | N13: 221 | O13: =COUNTIF($L$7:$L$500,N13) -> 0 | P13: =O13/$Q$4 -> 0 | Q13: =IF(P13=0,0,(P13*((LOG(P13))/LOG(2)))) -> 0 | T13: =N13 -> 221 | U13: =COUNTIF(L7:L8,T13) -> 0 | V13: =U13/(W4-U11) -> 0 | W13: =IF(V13=0,0,(V13*((LOG(V13))/LOG(2)))) -> 0 | Y13: =N13 -> 221 | Z13: =COUNTIF(L9:L9,Y13) -> 0 | AA13: =Z13/(AB4-Z11) -> 0 | AB13: =IF(AA13=0,0,(AA13*((LOG(AA13))/LOG(2)))) -> 0 | AD13: =N13 -> 221 | AE13: =COUNTIF(L10:L11,AD13) -> 0 | AF13: =AE13/(AG4-AE11) -> 0 | AG13: =IF(AF13=0,0,(AF13*((LOG(AF13))/LOG(2)))) -> 0 | AI13: =N13 -> 221 | AJ13: =COUNTIF(L12:L12,AI13) -> 0 | AK13: =AJ13/(AL4-AJ11) -> 0 | AL13: =IF(AK13=0,0,(AK13*((LOG(AK13))/LOG(2)))) -> 0 | AN13: =N13 -> 221 | AO13: =COUNTIF(L13:L14,AN13) -> 0 | AP13: =AO13/(AQ4-AO11) -> 0 | AQ13: =IF(AP13=0,0,(AP13*((LOG(AP13))/LOG(2)))) -> 0 | AS13: =N13 -> 221 | AT13: =COUNTIF(L15:L15,AS13) -> 0 | AU13: =AT13/(AV4-AT11) -> 0 | AV13: =IF(AU13=0,0,(AU13*((LOG(AU13))/LOG(2)))) -> 0
A14: 12 | B14: 4695 | C14: 13 | D14: 4705 | E14: 13 | F14: 4712 | K14: 0 | L14: 111 | N14: 222 | O14: =COUNTIF($L$7:$L$500,N14) -> 2 | P14: =O14/$Q$4 -> 0.2222222222 | Q14: =IF(P14=0,0,(P14*((LOG(P14))/LOG(2)))) -> -0.4822055559 | T14: =N14 -> 222 | U14: =COUNTIF(L7:L8,T14) -> 1 | V14: =U14/(W4-U11) -> 0.5 | W14: =IF(V14=0,0,(V14*((LOG(V14))/LOG(2)))) -> -0.5 | Y14: =N14 -> 222 | Z14: =COUNTIF(L9:L9,Y14) -> 0 | AA14: =Z14/(AB4-Z11) -> 0 | AB14: =IF(AA14=0,0,(AA14*((LOG(AA14))/LOG(2)))) -> 0 | AD14: =N14 -> 222 | AE14: =COUNTIF(L10:L11,AD14) -> 0 | AF14: =AE14/(AG4-AE11) -> 0 | AG14: =IF(AF14=0,0,(AF14*((LOG(AF14))/LOG(2)))) -> 0 | AI14: =N14 -> 222 | AJ14: =COUNTIF(L12:L12,AI14) -> 0 | AK14: =AJ14/(AL4-AJ11) -> 0 | AL14: =IF(AK14=0,0,(AK14*((LOG(AK14))/LOG(2)))) -> 0 | AN14: =N14 -> 222 | AO14: =COUNTIF(L13:L14,AN14) -> 0 | AP14: =AO14/(AQ4-AO11) -> 0 | AQ14: =IF(AP14=0,0,(AP14*((LOG(AP14))/LOG(2)))) -> 0 | AS14: =N14 -> 222 | AT14: =COUNTIF(L15:L15,AS14) -> 1 | AU14: =AT14/(AV4-AT11) -> 1 | AV14: =IF(AU14=0,0,(AU14*((LOG(AU14))/LOG(2)))) -> 0
A15: 21 | B15: 11232 | C15: 22 | D15: 11241 | E15: 24 | F15: 11248 | K15: 0 | L15: 222 | P15: =SUM(P7:P14) -> 1 | Q15: =-SUM(Q7:Q14) -> 0.7642045065 | V15: =SUM(V7:V14) -> 1 | W15: =-SUM(W7:W14) -> 1 | AA15: =SUM(AA7:AA14) -> 1 | AB15: =-SUM(AB7:AB14) -> 0 | AF15: =SUM(AF7:AF14) -> 1 | AG15: =-SUM(AG7:AG14) -> 0 | AK15: =SUM(AK7:AK14) -> 1 | AL15: =-SUM(AL7:AL14) -> 0 | AP15: =SUM(AP7:AP14) -> 1 | AQ15: =-SUM(AQ7:AQ14) -> 0 | AU15: =SUM(AU7:AU14) -> 1 | AV15: =-SUM(AV7:AV14) -> 0
P16: U= | Q16: =Q15/(LOG(Q4)/LOG(2)) -> 0.2410796805 | V16: U1= | W16: =W15/(LOG(W4)/LOG(2)) -> 1 | AA16: U2= | AB16: =AB15/(LOG(AB4)/LOG(2)) ->  | AF16: U3= | AG16: =AG15/(LOG(AG4)/LOG(2)) -> 0 | AK16: U4= | AL16: =AL15/(LOG(AL4)/LOG(2)) ->  | AP16: U5= | AQ16: =AQ15/(LOG(AQ4)/LOG(2)) -> 0 | AU16: U6= | AV16: =AV15/(LOG(AV4)/LOG(2)) -> 
N19: Total Target Seq
N20: =COUNTIF(L7:L15,G3) -> 0 | P20: 2 | Q20: 1 | R20: 2 | S20: 1 | T20: 2 | U20: 1
P21: % of reinforcement given in 6 equal intervals based on number of trials
P22: %_1 | Q22: %_2 | R22: %_3 | S22: %_4 | T22: %_5 | U22: %_6
O23: target sequence | P23: =$G$3 -> 211 | Q23: =$G$3 -> 211 | R23: =$G$3 -> 211 | S23: =$G$3 -> 211 | T23: =$G$3 -> 211 | U23: =$G$3 -> 211
O24: total reinforcement | P24: =U11 -> 0 | Q24: =Z11 -> 0 | R24: =AE11 -> 0 | S24: =AJ11 -> 0 | T24: =AO11 -> 0 | U24: =AT11 -> 0
O25: % target
O26: CCRF
O27: % CCRf
O28: average response rate | P28: =F8/P20 -> 201.5 | Q28: =(F9-F8)/Q20 -> 274 | R28: =(F11-F9)/R20 -> 321 | S28: =(F12-F11)/S20 -> 737 | T28: =(F14-F12)/T20 -> 1328 | U28: =(F15-F14)/U20 -> 6536

Sheet !N113900.010
A1: Report for:!N113900.010
A2: Date: | B2: <date>
A3: Hen: | B3: <hen> | F3: Correct Sequence | G3: =Start!J2 -> 211 | P3: Total Sequences in Data | Q3: =4994-COUNTBLANK(L7:L5000) -> 15 | V3: Total Sequences in Block Data | W3: =COUNTA(L7:L9) -> 3 | AA3: Total Sequences in Block Data | AB3: =COUNTA(L10:L11) -> 2 | AF3: Total Sequences in Block Data | AG3: =COUNTA(L12:L14) -> 3 | AK3: Total Sequences in Block Data | AL3: =COUNTA(L15:L16) -> 2 | AP3: Total Sequences in Block Data | AQ3: =COUNTA(L17:L19) -> 3 | AU3: Total Sequences in Block Data | AV3: =COUNTA(L20:L21) -> 2
P4: Total Sequences in Summary | Q4: =SUM(O7:O14) -> 15 | V4: Total Sequences in Block Summary | W4: =SUM(U7:U14) -> 3 | AA4: Total Sequences in Block Summary | AB4: =SUM(Z7:Z14) -> 2 | AF4: Total Sequences in Block Summary | AG4: =SUM(AE7:AE14) -> 3 | AK4: Total Sequences in Block Summary | AL4: =SUM(AJ7:AJ14) -> 2 | AP4: Total Sequences in Block Summary | AQ4: =SUM(AO7:AO14) -> 3 | AU4: Total Sequences in Block Summary | AV4: =SUM(AT7:AT14) -> 2
T5: Block 1 | Y5: Block 2 | AD5: Block 3 | AI5: Block 4 | AN5: Block 5 | AS5: Block 6
A6: Sequence Component 1 | B6: Time 1 | C6: Sequence Component 2 | D6: Time 2 | E6: Sequence Component 3 | F6: Time 3 | G6: Sequence Component 4 | H6: Time 4 | I6: Sequence Component 5 | J6: Time 5 | K6: Correct? 0=No 1=Yes | L6: Sequence | N6: Frequency | P6: Relative Frequency | Q6: Variability | T6: Frequency | V6: Relative Frequency | W6: Variability | Y6: Frequency | AA6: Relative Frequency | AB6: Variability | AD6: Frequency | AF6: Relative Frequency | AG6: Variability | AI6: Frequency | AK6: Relative Frequency | AL6: Variability | AN6: Frequency | AP6: Relative Frequency | AQ6: Variability | AS6: Frequency | AU6: Relative Frequency | AV6: Variability
A7: 12 | B7: 47 | C7: 13 | D7: 53 | E7: 13 | F7: 59 | K7: 0 | L7: 111 | N7: 111 | O7: =COUNTIF($L$7:$L$500,N7) -> 10 | P7: =O7/$Q$4 -> 0.6666666667 | Q7: =IF(P7=0,0,(P7*((LOG(P7))/LOG(2)))) -> -0.3899750005 | T7: =N7 -> 111 | U7: =COUNTIF(L7:L9,T7) -> 3 | V7: =U7/(W4-U11) -> 1 | W7: =IF(V7=0,0,(V7*((LOG(V7))/LOG(2)))) -> 0 | Y7: =N7 -> 111 | Z7: =COUNTIF(L10:L11,Y7) -> 2 | AA7: =Z7/(AB4-Z11) -> 1 | AB7: =IF(AA7=0,0,(AA7*((LOG(AA7))/LOG(2)))) -> 0 | AD7: =N7 -> 111 | AE7: =COUNTIF(L12:L14,AD7) -> 3 | AF7: =AE7/(AG4-AE11) -> 1 | AG7: =IF(AF7=0,0,(AF7*((LOG(AF7))/LOG(2)))) -> 0 | AI7: =N7 -> 111 | AJ7: =COUNTIF(L15:L16,AI7) -> 1 | AK7: =AJ7/(AL4-AJ11) -> 0.5 | AL7: =IF(AK7=0,0,(AK7*((LOG(AK7))/LOG(2)))) -> -0.5 | AN7: =N7 -> 111 | AO7: =COUNTIF(L17:L19,AN7) -> 0 | AP7: =AO7/(AQ4-AO11) -> 0 | AQ7: =IF(AP7=0,0,(AP7*((LOG(AP7))/LOG(2)))) -> 0 | AS7: =N7 -> 111 | AT7: =COUNTIF(L20:L21,AS7) -> 1 | AU7: =AT7/(AV4-AT11) -> 0.5 | AV7: =IF(AU7=0,0,(AU7*((LOG(AU7))/LOG(2)))) -> -0.5
A8: 12 | B8: 313 | C8: 13 | D8: 317 | E8: 13 | F8: 326 | K8: 0 | L8: 111 | N8: 112 | O8: =COUNTIF($L$7:$L$500,N8) -> 0 | P8: =O8/$Q$4 -> 0 | Q8: =IF(P8=0,0,(P8*((LOG(P8))/LOG(2)))) -> 0 | T8: =N8 -> 112 | U8: =COUNTIF(L7:L9,T8) -> 0 | V8: =U8/(W4-U11) -> 0 | W8: =IF(V8=0,0,(V8*((LOG(V8))/LOG(2)))) -> 0 | Y8: =N8 -> 112 | Z8: =COUNTIF(L10:L11,Y8) -> 0 | AA8: =Z8/(AB4-Z11) -> 0 | AB8: =IF(AA8=0,0,(AA8*((LOG(AA8))/LOG(2)))) -> 0 | AD8: =N8 -> 112 | AE8: =COUNTIF(L12:L14,AD8) -> 0 | AF8: =AE8/(AG4-AE11) -> 0 | AG8: =IF(AF8=0,0,(AF8*((LOG(AF8))/LOG(2)))) -> 0 | AI8: =N8 -> 112 | AJ8: =COUNTIF(L15:L16,AI8) -> 0 | AK8: =AJ8/(AL4-AJ11) -> 0 | AL8: =IF(AK8=0,0,(AK8*((LOG(AK8))/LOG(2)))) -> 0 | AN8: =N8 -> 112 | AO8: =COUNTIF(L17:L19,AN8) -> 0 | AP8: =AO8/(AQ4-AO11) -> 0 | AQ8: =IF(AP8=0,0,(AP8*((LOG(AP8))/LOG(2)))) -> 0 | AS8: =N8 -> 112 | AT8: =COUNTIF(L20:L21,AS8) -> 0 | AU8: =AT8/(AV4-AT11) -> 0 | AV8: =IF(AU8=0,0,(AU8*((LOG(AU8))/LOG(2)))) -> 0
A9: 12 | B9: 432 | C9: 13 | D9: 439 | E9: 13 | F9: 444 | K9: 0 | L9: 111 | N9: 121 | O9: =COUNTIF($L$7:$L$500,N9) -> 0 | P9: =O9/$Q$4 -> 0 | Q9: =IF(P9=0,0,(P9*((LOG(P9))/LOG(2)))) -> 0 | T9: =N9 -> 121 | U9: =COUNTIF(L7:L9,T9) -> 0 | V9: =U9/(W4-U11) -> 0 | W9: =IF(V9=0,0,(V9*((LOG(V9))/LOG(2)))) -> 0 | Y9: =N9 -> 121 | Z9: =COUNTIF(L10:L11,Y9) -> 0 | AA9: =Z9/(AB4-Z11) -> 0 | AB9: =IF(AA9=0,0,(AA9*((LOG(AA9))/LOG(2)))) -> 0 | AD9: =N9 -> 121 | AE9: =COUNTIF(L12:L14,AD9) -> 0 | AF9: =AE9/(AG4-AE11) -> 0 | AG9: =IF(AF9=0,0,(AF9*((LOG(AF9))/LOG(2)))) -> 0 | AI9: =N9 -> 121 | AJ9: =COUNTIF(L15:L16,AI9) -> 0 | AK9: =AJ9/(AL4-AJ11) -> 0 | AL9: =IF(AK9=0,0,(AK9*((LOG(AK9))/LOG(2)))) -> 0 | AN9: =N9 -> 121 | AO9: =COUNTIF(L17:L19,AN9) -> 0 | AP9: =AO9/(AQ4-AO11) -> 0 | AQ9: =IF(AP9=0,0,(AP9*((LOG(AP9))/LOG(2)))) -> 0 | AS9: =N9 -> 121 | AT9: =COUNTIF(L20:L21,AS9) -> 0 | AU9: =AT9/(AV4-AT11) -> 0 | AV9: =IF(AU9=0,0,(AU9*((LOG(AU9))/LOG(2)))) -> 0
A10: 12 | B10: 550 | C10: 13 | D10: 554 | E10: 13 | F10: 560 | K10: 0 | L10: 111 | N10: 122 | O10: =COUNTIF($L$7:$L$500,N10) -> 0 | P10: =O10/$Q$4 -> 0 | Q10: =IF(P10=0,0,(P10*((LOG(P10))/LOG(2)))) -> 0 | T10: =N10 -> 122 | U10: =COUNTIF(L7:L9,T10) -> 0 | V10: =U10/(W4-U11) -> 0 | W10: =IF(V10=0,0,(V10*((LOG(V10))/LOG(2)))) -> 0 | Y10: =N10 -> 122 | Z10: =COUNTIF(L10:L11,Y10) -> 0 | AA10: =Z10/(AB4-Z11) -> 0 | AB10: =IF(AA10=0,0,(AA10*((LOG(AA10))/LOG(2)))) -> 0 | AD10: =N10 -> 122 | AE10: =COUNTIF(L12:L14,AD10) -> 0 | AF10: =AE10/(AG4-AE11) -> 0 | AG10: =IF(AF10=0,0,(AF10*((LOG(AF10))/LOG(2)))) -> 0 | AI10: =N10 -> 122 | AJ10: =COUNTIF(L15:L16,AI10) -> 0 | AK10: =AJ10/(AL4-AJ11) -> 0 | AL10: =IF(AK10=0,0,(AK10*((LOG(AK10))/LOG(2)))) -> 0 | AN10: =N10 -> 122 | AO10: =COUNTIF(L17:L19,AN10) -> 0 | AP10: =AO10/(AQ4-AO11) -> 0 | AQ10: =IF(AP10=0,0,(AP10*((LOG(AP10))/LOG(2)))) -> 0 | AS10: =N10 -> 122 | AT10: =COUNTIF(L20:L21,AS10) -> 0 | AU10: =AT10/(AV4-AT11) -> 0 | AV10: =IF(AU10=0,0,(AU10*((LOG(AU10))/LOG(2)))) -> 0
A11: 12 | B11: 668 | C11: 13 | D11: 673 | E11: 13 | F11: 678 | K11: 0 | L11: 111 | N11: 211 | O11: =COUNTIF($L$7:$L$500,N11) -> 0 | P11: =O11/$Q$4 -> 0 | Q11: =IF(P11=0,0,(P11*((LOG(P11))/LOG(2)))) -> 0 | T11: =N11 -> 211 | U11: =COUNTIF(L7:L9,T11) -> 0 | Y11: =N11 -> 211 | Z11: =COUNTIF(L10:L11,Y11) -> 0 | AD11: =N11 -> 211 | AE11: =COUNTIF(L12:L14,AD11) -> 0 | AI11: =N11 -> 211 | AJ11: =COUNTIF(L15:L16,AI11) -> 0 | AN11: =N11 -> 211 | AO11: =COUNTIF(L17:L19,AN11) -> 0 | AS11: =N11 -> 211 | AT11: =COUNTIF(L20:L21,AS11) -> 0
A12: 12 | B12: 822 | C12: 13 | D12: 831 | E12: 13 | F12: 836 | K12: 0 | L12: 111 | N12: 212 | O12: =COUNTIF($L$7:$L$500,N12) -> 0 | P12: =O12/$Q$4 -> 0 | Q12: =IF(P12=0,0,(P12*((LOG(P12))/LOG(2)))) -> 0 | T12: =N12 -> 212 | U12: =COUNTIF(L7:L9,T12) -> 0 | V12: =U12/(W4-U11) -> 0 | W12: =IF(V12=0,0,(V12*((LOG(V12))/LOG(2)))) -> 0 | Y12: =N12 -> 212 | Z12: =COUNTIF(L10:L11,Y12) -> 0 | AA12: =Z12/(AB4-Z11) -> 0 | AB12: =IF(AA12=0,0,(AA12*((LOG(AA12))/LOG(2)))) -> 0 | AD12: =N12 -> 212 | AE12: =COUNTIF(L12:L14,AD12) -> 0 | AF12: =AE12/(AG4-AE11) -> 0 | AG12: =IF(AF12=0,0,(AF12*((LOG(AF12))/LOG(2)))) -> 0 | AI12: =N12 -> 212 | AJ12: =COUNTIF(L15:L16,AI12) -> 0 | AK12: =AJ12/(AL4-AJ11) -> 0 | AL12: =IF(AK12=0,0,(AK12*((LOG(AK12))/LOG(2)))) -> 0 | AN12: =N12 -> 212 | AO12: =COUNTIF(L17:L19,AN12) -> 0 | AP12: =AO12/(AQ4-AO11) -> 0 | AQ12: =IF(AP12=0,0,(AP12*((LOG(AP12))/LOG(2)))) -> 0 | AS12: =N12 -> 212 | AT12: =COUNTIF(L20:L21,AS12) -> 0 | AU12: =AT12/(AV4-AT11) -> 0 | AV12: =IF(AU12=0,0,(AU12*((LOG(AU12))/LOG(2)))) -> 0
A13: 12 | B13: 1156 | C13: 13 | D13: 1161 | E13: 13 | F13: 1167 | K13: 0 | L13: 111 | N13: 221 | O13: =COUNTIF($L$7:$L$500,N13) -> 0 | P13: =O13/$Q$4 -> 0 | Q13: =IF(P13=0,0,(P13*((LOG(P13))/LOG(2)))) -> 0 | T13: =N13 -> 221 | U13: =COUNTIF(L7:L9,T13) -> 0 | V13: =U13/(W4-U11) -> 0 | W13: =IF(V13=0,0,(V13*((LOG(V13))/LOG(2)))) -> 0 | Y13: =N13 -> 221 | Z13: =COUNTIF(L10:L11,Y13) -> 0 | AA13: =Z13/(AB4-Z11) -> 0 | AB13: =IF(AA13=0,0,(AA13*((LOG(AA13))/LOG(2)))) -> 0 | AD13: =N13 -> 221 | AE13: =COUNTIF(L12:L14,AD13) -> 0 | AF13: =AE13/(AG4-AE11) -> 0 | AG13: =IF(AF13=0,0,(AF13*((LOG(AF13))/LOG(2)))) -> 0 | AI13: =N13 -> 221 | AJ13: =COUNTIF(L15:L16,AI13) -> 0 | AK13: =AJ13/(AL4-AJ11) -> 0 | AL13: =IF(AK13=0,0,(AK13*((LOG(AK13))/LOG(2)))) -> 0 | AN13: =N13 -> 221 | AO13: =COUNTIF(L17:L19,AN13) -> 0 | AP13: =AO13/(AQ4-AO11) -> 0 | AQ13: =IF(AP13=0,0,(AP13*((LOG(AP13))/LOG(2)))) -> 0 | AS13: =N13 -> 221 | AT13: =COUNTIF(L20:L21,AS13) -> 0 | AU13: =AT13/(AV4-AT11) -> 0 | AV13: =IF(AU13=0,0,(AU13*((LOG(AU13))/LOG(2)))) -> 0
A14: 12 | B14: 4068 | C14: 13 | D14: 4074 | E14: 13 | F14: 4082 | K14: 0 | L14: 111 | N14: 222 | O14: =COUNTIF($L$7:$L$500,N14) -> 5 | P14: =O14/$Q$4 -> 0.3333333333 | Q14: =IF(P14=0,0,(P14*((LOG(P14))/LOG(2)))) -> -0.5283208336 | T14: =N14 -> 222 | U14: =COUNTIF(L7:L9,T14) -> 0 | V14: =U14/(W4-U11) -> 0 | W14: =IF(V14=0,0,(V14*((LOG(V14))/LOG(2)))) -> 0 | Y14: =N14 -> 222 | Z14: =COUNTIF(L10:L11,Y14) -> 0 | AA14: =Z14/(AB4-Z11) -> 0 | AB14: =IF(AA14=0,0,(AA14*((LOG(AA14))/LOG(2)))) -> 0 | AD14: =N14 -> 222 | AE14: =COUNTIF(L12:L14,AD14) -> 0 | AF14: =AE14/(AG4-AE11) -> 0 | AG14: =IF(AF14=0,0,(AF14*((LOG(AF14))/LOG(2)))) -> 0 | AI14: =N14 -> 222 | AJ14: =COUNTIF(L15:L16,AI14) -> 1 | AK14: =AJ14/(AL4-AJ11) -> 0.5 | AL14: =IF(AK14=0,0,(AK14*((LOG(AK14))/LOG(2)))) -> -0.5 | AN14: =N14 -> 222 | AO14: =COUNTIF(L17:L19,AN14) -> 3 | AP14: =AO14/(AQ4-AO11) -> 1 | AQ14: =IF(AP14=0,0,(AP14*((LOG(AP14))/LOG(2)))) -> 0 | AS14: =N14 -> 222 | AT14: =COUNTIF(L20:L21,AS14) -> 1 | AU14: =AT14/(AV4-AT11) -> 0.5 | AV14: =IF(AU14=0,0,(AU14*((LOG(AU14))/LOG(2)))) -> -0.5
A15: 21 | B15: 9963 | C15: 22 | D15: 9969 | E15: 24 | F15: 9983 | K15: 0 | L15: 222 | P15: =SUM(P7:P14) -> 1 | Q15: =-SUM(Q7:Q14) -> 0.9182958341 | V15: =SUM(V7:V14) -> 1 | W15: =-SUM(W7:W14) -> 0 | AA15: =SUM(AA7:AA14) -> 1 | AB15: =-SUM(AB7:AB14) -> 0 | AF15: =SUM(AF7:AF14) -> 1 | AG15: =-SUM(AG7:AG14) -> 0 | AK15: =SUM(AK7:AK14) -> 1 | AL15: =-SUM(AL7:AL14) -> 1 | AP15: =SUM(AP7:AP14) -> 1 | AQ15: =-SUM(AQ7:AQ14) -> 0 | AU15: =SUM(AU7:AU14) -> 1 | AV15: =-SUM(AV7:AV14) -> 1
A16: 12 | B16: 14940 | C16: 13 | D16: 14947 | E16: 13 | F16: 14952 | K16: 0 | L16: 111 | P16: U= | Q16: =Q15/(LOG(Q4)/LOG(2)) -> 0.2350451879 | V16: U1= | W16: =W15/(LOG(W4)/LOG(2)) -> 0 | AA16: U2= | AB16: =AB15/(LOG(AB4)/LOG(2)) -> 0 | AF16: U3= | AG16: =AG15/(LOG(AG4)/LOG(2)) -> 0 | AK16: U4= | AL16: =AL15/(LOG(AL4)/LOG(2)) -> 1 | AP16: U5= | AQ16: =AQ15/(LOG(AQ4)/LOG(2)) -> 0 | AU16: U6= | AV16: =AV15/(LOG(AV4)/LOG(2)) -> 1
A17: 21 | B17: 15735 | C17: 22 | D17: 15747 | E17: 24 | F17: 15757 | K17: 0 | L17: 222
A18: 21 | B18: 15875 | C18: 22 | D18: 15885 | E18: 24 | F18: 15890 | K18: 0 | L18: 222
A19: 21 | B19: 16883 | C19: 22 | D19: 16899 | E19: 24 | F19: 16907 | K19: 0 | L19: 222 | N19: Total Target Seq
A20: 21 | B20: 17110 | C20: 22 | D20: 17116 | E20: 24 | F20: 17125 | K20: 0 | L20: 222 | N20: =COUNTIF(L7:L21,G3) -> 0 | P20: 3 | Q20: 2 | R20: 3 | S20: 2 | T20: 3 | U20: 2
A21: 12 | B21: 21595 | C21: 13 | D21: 21601 | E21: 13 | F21: 21606 | K21: 0 | L21: 111 | P21: % of reinforcement given in 6 equal intervals based on number of trials
P22: %_1 | Q22: %_2 | R22: %_3 | S22: %_4 | T22: %_5 | U22: %_6
O23: target sequence | P23: =$G$3 -> 211 | Q23: =$G$3 -> 211 | R23: =$G$3 -> 211 | S23: =$G$3 -> 211 | T23: =$G$3 -> 211 | U23: =$G$3 -> 211
O24: total reinforcement | P24: =U11 -> 0 | Q24: =Z11 -> 0 | R24: =AE11 -> 0 | S24: =AJ11 -> 0 | T24: =AO11 -> 0 | U24: =AT11 -> 0
O25: % target
O26: CCRF
O27: % CCRf
O28: average response rate | P28: =F9/P20 -> 148 | Q28: =(F11-F9)/Q20 -> 117 | R28: =(F14-F11)/R20 -> 1134.666667 | S28: =(F16-F14)/S20 -> 5435 | T28: =(F19-F16)/T20 -> 651.6666667 | U28: =(F21-F19)/U20 -> 2349.5

Sheet !N114830.010
A1: Report for:!N114830.010
A2: Date: | B2: <date>
A3: Hen: | B3: <hen> | F3: Correct Sequence | G3: =Start!J2 -> 211 | P3: Total Sequences in Data | Q3: =4994-COUNTBLANK(L7:L5000) -> 2 | V3: Total Sequences in Block Data | W3: =COUNTA(L6:L7) -> 2 | AA3: Total Sequences in Block Data | AB3: =COUNTA(L7:L7) -> 1 | AF3: Total Sequences in Block Data | AG3: =COUNTA(L7:L8) -> 2 | AK3: Total Sequences in Block Data | AL3: =COUNTA(L7:L8) -> 2 | AP3: Total Sequences in Block Data | AQ3: =COUNTA(L8:L8) -> 1 | AU3: Total Sequences in Block Data | AV3: =COUNTA(L8:L9) -> 1
P4: Total Sequences in Summary | Q4: =SUM(O7:O14) -> 2 | V4: Total Sequences in Block Summary | W4: =SUM(U7:U14) -> 1 | AA4: Total Sequences in Block Summary | AB4: =SUM(Z7:Z14) -> 1 | AF4: Total Sequences in Block Summary | AG4: =SUM(AE7:AE14) -> 2 | AK4: Total Sequences in Block Summary | AL4: =SUM(AJ7:AJ14) -> 2 | AP4: Total Sequences in Block Summary | AQ4: =SUM(AO7:AO14) -> 1 | AU4: Total Sequences in Block Summary | AV4: =SUM(AT7:AT14) -> 1
T5: Block 1 | Y5: Block 2 | AD5: Block 3 | AI5: Block 4 | AN5: Block 5 | AS5: Block 6
A6: Sequence Component 1 | B6: Time 1 | C6: Sequence Component 2 | D6: Time 2 | E6: Sequence Component 3 | F6: Time 3 | G6: Sequence Component 4 | H6: Time 4 | I6: Sequence Component 5 | J6: Time 5 | K6: Correct? 0=No 1=Yes | L6: Sequence | N6: Frequency | P6: Relative Frequency | Q6: Variability | T6: Frequency | V6: Relative Frequency | W6: Variability | Y6: Frequency | AA6: Relative Frequency | AB6: Variability | AD6: Frequency | AF6: Relative Frequency | AG6: Variability | AI6: Frequency | AK6: Relative Frequency | AL6: Variability | AN6: Frequency | AP6: Relative Frequency | AQ6: Variability | AS6: Frequency | AU6: Relative Frequency | AV6: Variability
A7: 12 | B7: 127 | C7: 13 | D7: 134 | E7: 13 | F7: 141 | K7: 0 | L7: 111 | N7: 111 | O7: =COUNTIF($L$7:$L$500,N7) -> 2 | P7: =O7/$Q$4 -> 1 | Q7: =IF(P7=0,0,(P7*((LOG(P7))/LOG(2)))) -> 0 | T7: =N7 -> 111 | U7: =COUNTIF(L6:L7,T7) -> 1 | V7: =U7/(W4-U11) -> 1 | W7: =IF(V7=0,0,(V7*((LOG(V7))/LOG(2)))) -> 0 | Y7: =N7 -> 111 | Z7: =COUNTIF(L7:L7,Y7) -> 1 | AA7: =Z7/(AB4-Z11) -> 1 | AB7: =IF(AA7=0,0,(AA7*((LOG(AA7))/LOG(2)))) -> 0 | AD7: =N7 -> 111 | AE7: =COUNTIF(L7:L8,AD7) -> 2 | AF7: =AE7/(AG4-AE11) -> 1 | AG7: =IF(AF7=0,0,(AF7*((LOG(AF7))/LOG(2)))) -> 0 | AI7: =N7 -> 111 | AJ7: =COUNTIF(L7:L8,AI7) -> 2 | AK7: =AJ7/(AL4-AJ11) -> 1 | AL7: =IF(AK7=0,0,(AK7*((LOG(AK7))/LOG(2)))) -> 0 | AN7: =N7 -> 111 | AO7: =COUNTIF(L8:L8,AN7) -> 1 | AP7: =AO7/(AQ4-AO11) -> 1 | AQ7: =IF(AP7=0,0,(AP7*((LOG(AP7))/LOG(2)))) -> 0 | AS7: =N7 -> 111 | AT7: =COUNTIF(L8:L9,AS7) -> 1 | AU7: =AT7/(AV4-AT11) -> 1 | AV7: =IF(AU7=0,0,(AU7*((LOG(AU7))/LOG(2)))) -> 0
A8: 12 | B8: 10763 | C8: 13 | D8: 10775 | E8: 13 | F8: 10782 | K8: 0 | L8: 111 | N8: 112 | O8: =COUNTIF($L$7:$L$500,N8) -> 0 | P8: =O8/$Q$4 -> 0 | Q8: =IF(P8=0,0,(P8*((LOG(P8))/LOG(2)))) -> 0 | T8: =N8 -> 112 | U8: =COUNTIF(L6:L7,T8) -> 0 | V8: =U8/(W4-U11) -> 0 | W8: =IF(V8=0,0,(V8*((LOG(V8))/LOG(2)))) -> 0 | Y8: =N8 -> 112 | Z8: =COUNTIF(L7:L7,Y8) -> 0 | AA8: =Z8/(AB4-Z11) -> 0 | AB8: =IF(AA8=0,0,(AA8*((LOG(AA8))/LOG(2)))) -> 0 | AD8: =N8 -> 112 | AE8: =COUNTIF(L7:L8,AD8) -> 0 | AF8: =AE8/(AG4-AE11) -> 0 | AG8: =IF(AF8=0,0,(AF8*((LOG(AF8))/LOG(2)))) -> 0 | AI8: =N8 -> 112 | AJ8: =COUNTIF(L7:L8,AI8) -> 0 | AK8: =AJ8/(AL4-AJ11) -> 0 | AL8: =IF(AK8=0,0,(AK8*((LOG(AK8))/LOG(2)))) -> 0 | AN8: =N8 -> 112 | AO8: =COUNTIF(L8:L8,AN8) -> 0 | AP8: =AO8/(AQ4-AO11) -> 0 | AQ8: =IF(AP8=0,0,(AP8*((LOG(AP8))/LOG(2)))) -> 0 | AS8: =N8 -> 112 | AT8: =COUNTIF(L8:L9,AS8) -> 0 | AU8: =AT8/(AV4-AT11) -> 0 | AV8: =IF(AU8=0,0,(AU8*((LOG(AU8))/LOG(2)))) -> 0
N9: 121 | O9: =COUNTIF($L$7:$L$500,N9) -> 0 | P9: =O9/$Q$4 -> 0 | Q9: =IF(P9=0,0,(P9*((LOG(P9))/LOG(2)))) -> 0 | T9: =N9 -> 121 | U9: =COUNTIF(L6:L7,T9) -> 0 | V9: =U9/(W4-U11) -> 0 | W9: =IF(V9=0,0,(V9*((LOG(V9))/LOG(2)))) -> 0 | Y9: =N9 -> 121 | Z9: =COUNTIF(L7:L7,Y9) -> 0 | AA9: =Z9/(AB4-Z11) -> 0 | AB9: =IF(AA9=0,0,(AA9*((LOG(AA9))/LOG(2)))) -> 0 | AD9: =N9 -> 121 | AE9: =COUNTIF(L7:L8,AD9) -> 0 | AF9: =AE9/(AG4-AE11) -> 0 | AG9: =IF(AF9=0,0,(AF9*((LOG(AF9))/LOG(2)))) -> 0 | AI9: =N9 -> 121 | AJ9: =COUNTIF(L7:L8,AI9) -> 0 | AK9: =AJ9/(AL4-AJ11) -> 0 | AL9: =IF(AK9=0,0,(AK9*((LOG(AK9))/LOG(2)))) -> 0 | AN9: =N9 -> 121 | AO9: =COUNTIF(L8:L8,AN9) -> 0 | AP9: =AO9/(AQ4-AO11) -> 0 | AQ9: =IF(AP9=0,0,(AP9*((LOG(AP9))/LOG(2)))) -> 0 | AS9: =N9 -> 121 | AT9: =COUNTIF(L8:L9,AS9) -> 0 | AU9: =AT9/(AV4-AT11) -> 0 | AV9: =IF(AU9=0,0,(AU9*((LOG(AU9))/LOG(2)))) -> 0
N10: 122 | O10: =COUNTIF($L$7:$L$500,N10) -> 0 | P10: =O10/$Q$4 -> 0 | Q10: =IF(P10=0,0,(P10*((LOG(P10))/LOG(2)))) -> 0 | T10: =N10 -> 122 | U10: =COUNTIF(L6:L7,T10) -> 0 | V10: =U10/(W4-U11) -> 0 | W10: =IF(V10=0,0,(V10*((LOG(V10))/LOG(2)))) -> 0 | Y10: =N10 -> 122 | Z10: =COUNTIF(L7:L7,Y10) -> 0 | AA10: =Z10/(AB4-Z11) -> 0 | AB10: =IF(AA10=0,0,(AA10*((LOG(AA10))/LOG(2)))) -> 0 | AD10: =N10 -> 122 | AE10: =COUNTIF(L7:L8,AD10) -> 0 | AF10: =AE10/(AG4-AE11) -> 0 | AG10: =IF(AF10=0,0,(AF10*((LOG(AF10))/LOG(2)))) -> 0 | AI10: =N10 -> 122 | AJ10: =COUNTIF(L7:L8,AI10) -> 0 | AK10: =AJ10/(AL4-AJ11) -> 0 | AL10: =IF(AK10=0,0,(AK10*((LOG(AK10))/LOG(2)))) -> 0 | AN10: =N10 -> 122 | AO10: =COUNTIF(L8:L8,AN10) -> 0 | AP10: =AO10/(AQ4-AO11) -> 0 | AQ10: =IF(AP10=0,0,(AP10*((LOG(AP10))/LOG(2)))) -> 0 | AS10: =N10 -> 122 | AT10: =COUNTIF(L8:L9,AS10) -> 0 | AU10: =AT10/(AV4-AT11) -> 0 | AV10: =IF(AU10=0,0,(AU10*((LOG(AU10))/LOG(2)))) -> 0
N11: 211 | O11: =COUNTIF($L$7:$L$500,N11) -> 0 | P11: =O11/$Q$4 -> 0 | Q11: =IF(P11=0,0,(P11*((LOG(P11))/LOG(2)))) -> 0 | T11: =N11 -> 211 | U11: =COUNTIF(L6:L7,T11) -> 0 | Y11: =N11 -> 211 | Z11: =COUNTIF(L7:L7,Y11) -> 0 | AD11: =N11 -> 211 | AE11: =COUNTIF(L7:L8,AD11) -> 0 | AI11: =N11 -> 211 | AJ11: =COUNTIF(L7:L8,AI11) -> 0 | AN11: =N11 -> 211 | AO11: =COUNTIF(L8:L8,AN11) -> 0 | AS11: =N11 -> 211 | AT11: =COUNTIF(L8:L9,AS11) -> 0
N12: 212 | O12: =COUNTIF($L$7:$L$500,N12) -> 0 | P12: =O12/$Q$4 -> 0 | Q12: =IF(P12=0,0,(P12*((LOG(P12))/LOG(2)))) -> 0 | T12: =N12 -> 212 | U12: =COUNTIF(L6:L7,T12) -> 0 | V12: =U12/(W4-U11) -> 0 | W12: =IF(V12=0,0,(V12*((LOG(V12))/LOG(2)))) -> 0 | Y12: =N12 -> 212 | Z12: =COUNTIF(L7:L7,Y12) -> 0 | AA12: =Z12/(AB4-Z11) -> 0 | AB12: =IF(AA12=0,0,(AA12*((LOG(AA12))/LOG(2)))) -> 0 | AD12: =N12 -> 212 | AE12: =COUNTIF(L7:L8,AD12) -> 0 | AF12: =AE12/(AG4-AE11) -> 0 | AG12: =IF(AF12=0,0,(AF12*((LOG(AF12))/LOG(2)))) -> 0 | AI12: =N12 -> 212 | AJ12: =COUNTIF(L7:L8,AI12) -> 0 | AK12: =AJ12/(AL4-AJ11) -> 0 | AL12: =IF(AK12=0,0,(AK12*((LOG(AK12))/LOG(2)))) -> 0 | AN12: =N12 -> 212 | AO12: =COUNTIF(L8:L8,AN12) -> 0 | AP12: =AO12/(AQ4-AO11) -> 0 | AQ12: =IF(AP12=0,0,(AP12*((LOG(AP12))/LOG(2)))) -> 0 | AS12: =N12 -> 212 | AT12: =COUNTIF(L8:L9,AS12) -> 0 | AU12: =AT12/(AV4-AT11) -> 0 | AV12: =IF(AU12=0,0,(AU12*((LOG(AU12))/LOG(2)))) -> 0
N13: 221 | O13: =COUNTIF($L$7:$L$500,N13) -> 0 | P13: =O13/$Q$4 -> 0 | Q13: =IF(P13=0,0,(P13*((LOG(P13))/LOG(2)))) -> 0 | T13: =N13 -> 221 | U13: =COUNTIF(L6:L7,T13) -> 0 | V13: =U13/(W4-U11) -> 0 | W13: =IF(V13=0,0,(V13*((LOG(V13))/LOG(2)))) -> 0 | Y13: =N13 -> 221 | Z13: =COUNTIF(L7:L7,Y13) -> 0 | AA13: =Z13/(AB4-Z11) -> 0 | AB13: =IF(AA13=0,0,(AA13*((LOG(AA13))/LOG(2)))) -> 0 | AD13: =N13 -> 221 | AE13: =COUNTIF(L7:L8,AD13) -> 0 | AF13: =AE13/(AG4-AE11) -> 0 | AG13: =IF(AF13=0,0,(AF13*((LOG(AF13))/LOG(2)))) -> 0 | AI13: =N13 -> 221 | AJ13: =COUNTIF(L7:L8,AI13) -> 0 | AK13: =AJ13/(AL4-AJ11) -> 0 | AL13: =IF(AK13=0,0,(AK13*((LOG(AK13))/LOG(2)))) -> 0 | AN13: =N13 -> 221 | AO13: =COUNTIF(L8:L8,AN13) -> 0 | AP13: =AO13/(AQ4-AO11) -> 0 | AQ13: =IF(AP13=0,0,(AP13*((LOG(AP13))/LOG(2)))) -> 0 | AS13: =N13 -> 221 | AT13: =COUNTIF(L8:L9,AS13) -> 0 | AU13: =AT13/(AV4-AT11) -> 0 | AV13: =IF(AU13=0,0,(AU13*((LOG(AU13))/LOG(2)))) -> 0
N14: 222 | O14: =COUNTIF($L$7:$L$500,N14) -> 0 | P14: =O14/$Q$4 -> 0 | Q14: =IF(P14=0,0,(P14*((LOG(P14))/LOG(2)))) -> 0 | T14: =N14 -> 222 | U14: =COUNTIF(L6:L7,T14) -> 0 | V14: =U14/(W4-U11) -> 0 | W14: =IF(V14=0,0,(V14*((LOG(V14))/LOG(2)))) -> 0 | Y14: =N14 -> 222 | Z14: =COUNTIF(L7:L7,Y14) -> 0 | AA14: =Z14/(AB4-Z11) -> 0 | AB14: =IF(AA14=0,0,(AA14*((LOG(AA14))/LOG(2)))) -> 0 | AD14: =N14 -> 222 | AE14: =COUNTIF(L7:L8,AD14) -> 0 | AF14: =AE14/(AG4-AE11) -> 0 | AG14: =IF(AF14=0,0,(AF14*((LOG(AF14))/LOG(2)))) -> 0 | AI14: =N14 -> 222 | AJ14: =COUNTIF(L7:L8,AI14) -> 0 | AK14: =AJ14/(AL4-AJ11) -> 0 | AL14: =IF(AK14=0,0,(AK14*((LOG(AK14))/LOG(2)))) -> 0 | AN14: =N14 -> 222 | AO14: =COUNTIF(L8:L8,AN14) -> 0 | AP14: =AO14/(AQ4-AO11) -> 0 | AQ14: =IF(AP14=0,0,(AP14*((LOG(AP14))/LOG(2)))) -> 0 | AS14: =N14 -> 222 | AT14: =COUNTIF(L8:L9,AS14) -> 0 | AU14: =AT14/(AV4-AT11) -> 0 | AV14: =IF(AU14=0,0,(AU14*((LOG(AU14))/LOG(2)))) -> 0
P15: =SUM(P7:P14) -> 1 | Q15: =-SUM(Q7:Q14) -> 0 | V15: =SUM(V7:V14) -> 1 | W15: =-SUM(W7:W14) -> 0 | AA15: =SUM(AA7:AA14) -> 1 | AB15: =-SUM(AB7:AB14) -> 0 | AF15: =SUM(AF7:AF14) -> 1 | AG15: =-SUM(AG7:AG14) -> 0 | AK15: =SUM(AK7:AK14) -> 1 | AL15: =-SUM(AL7:AL14) -> 0 | AP15: =SUM(AP7:AP14) -> 1 | AQ15: =-SUM(AQ7:AQ14) -> 0 | AU15: =SUM(AU7:AU14) -> 1 | AV15: =-SUM(AV7:AV14) -> 0
P16: U= | Q16: =Q15/(LOG(Q4)/LOG(2)) -> 0 | V16: U1= | W16: =W15/(LOG(W4)/LOG(2)) ->  | AA16: U2= | AB16: =AB15/(LOG(AB4)/LOG(2)) ->  | AF16: U3= | AG16: =AG15/(LOG(AG4)/LOG(2)) -> 0 | AK16: U4= | AL16: =AL15/(LOG(AL4)/LOG(2)) -> 0 | AP16: U5= | AQ16: =AQ15/(LOG(AQ4)/LOG(2)) ->  | AU16: U6= | AV16: =AV15/(LOG(AV4)/LOG(2)) -> 
N19: Total Target Seq
N20: =COUNTIF(L7:L8,G3) -> 0 | P20: 0 | Q20: 1 | R20: 0 | S20: 0 | T20: 1 | U20: 0
P21: % of reinforcement given in 6 equal intervals based on number of trials
P22: %_1 | Q22: %_2 | R22: %_3 | S22: %_4 | T22: %_5 | U22: %_6
O23: target sequence | P23: =$G$3 -> 211 | Q23: =$G$3 -> 211 | R23: =$G$3 -> 211 | S23: =$G$3 -> 211 | T23: =$G$3 -> 211 | U23: =$G$3 -> 211
O24: total reinforcement | P24: =U11 -> 0 | Q24: =Z11 -> 0 | R24: =AE11 -> 0 | S24: =AJ11 -> 0 | T24: =AO11 -> 0 | U24: =AT11 -> 0
O25: % target
O26: CCRF
O27: % CCRf
O28: average response rate | P28: =F6/P20 ->  | Q28: =(F7-F6)/Q20 ->  | R28: =(F7-F7)/R20 ->  | S28: =(F7-F7)/S20 ->  | T28: =(F8-F7)/T20 -> 10641 | U28: =(F8-F8)/U20 -> 

Sheet !N115840.010
A1: Report for:!N115840.010
A2: Date: | B2: <date>
A3: Hen: | B3: <hen> | F3: Correct Sequence | G3: =Start!J2 -> 211 | P3: Total Sequences in Data | Q3: =4994-COUNTBLANK(L7:L5000) -> 9 | V3: Total Sequences in Block Data | W3: =COUNTA(L7:L8) -> 2 | AA3: Total Sequences in Block Data | AB3: =COUNTA(L9:L9) -> 1 | AF3: Total Sequences in Block Data | AG3: =COUNTA(L10:L11) -> 2 | AK3: Total Sequences in Block Data | AL3: =COUNTA(L12:L12) -> 1 | AP3: Total Sequences in Block Data | AQ3: =COUNTA(L13:L14) -> 2 | AU3: Total Sequences in Block Data | AV3: =COUNTA(L15:L15) -> 1
P4: Total Sequences in Summary | Q4: =SUM(O7:O14) -> 9 | V4: Total Sequences in Block Summary | W4: =SUM(U7:U14) -> 2 | AA4: Total Sequences in Block Summary | AB4: =SUM(Z7:Z14) -> 1 | AF4: Total Sequences in Block Summary | AG4: =SUM(AE7:AE14) -> 2 | AK4: Total Sequences in Block Summary | AL4: =SUM(AJ7:AJ14) -> 1 | AP4: Total Sequences in Block Summary | AQ4: =SUM(AO7:AO14) -> 2 | AU4: Total Sequences in Block Summary | AV4: =SUM(AT7:AT14) -> 1
T5: Block 1 | Y5: Block 2 | AD5: Block 3 | AI5: Block 4 | AN5: Block 5 | AS5: Block 6
A6: Sequence Component 1 | B6: Time 1 | C6: Sequence Component 2 | D6: Time 2 | E6: Sequence Component 3 | F6: Time 3 | G6: Sequence Component 4 | H6: Time 4 | I6: Sequence Component 5 | J6: Time 5 | K6: Correct? 0=No 1=Yes | L6: Sequence | N6: Frequency | P6: Relative Frequency | Q6: Variability | T6: Frequency | V6: Relative Frequency | W6: Variability | Y6: Frequency | AA6: Relative Frequency | AB6: Variability | AD6: Frequency | AF6: Relative Frequency | AG6: Variability | AI6: Frequency | AK6: Relative Frequency | AL6: Variability | AN6: Frequency | AP6: Relative Frequency | AQ6: Variability | AS6: Frequency | AU6: Relative Frequency | AV6: Variability
A7: 21 | B7: 71 | C7: 22 | D7: 76 | E7: 24 | F7: 82 | K7: 0 | L7: 222 | N7: 111 | O7: =COUNTIF($L$7:$L$500,N7) -> 6 | P7: =O7/$Q$4 -> 0.6666666667 | Q7: =IF(P7=0,0,(P7*((LOG(P7))/LOG(2)))) -> -0.3899750005 | T7: =N7 -> 111 | U7: =COUNTIF(L7:L8,T7) -> 1 | V7: =U7/(W4-U11) -> 0.5 | W7: =IF(V7=0,0,(V7*((LOG(V7))/LOG(2)))) -> -0.5 | Y7: =N7 -> 111 | Z7: =COUNTIF(L9:L9,Y7) -> 0 | AA7: =Z7/(AB4-Z11) -> 0 | AB7: =IF(AA7=0,0,(AA7*((LOG(AA7))/LOG(2)))) -> 0 | AD7: =N7 -> 111 | AE7: =COUNTIF(L10:L11,AD7) -> 2 | AF7: =AE7/(AG4-AE11) -> 1 | AG7: =IF(AF7=0,0,(AF7*((LOG(AF7))/LOG(2)))) -> 0 | AI7: =N7 -> 111 | AJ7: =COUNTIF(L12:L12,AI7) -> 0 | AK7: =AJ7/(AL4-AJ11) -> 0 | AL7: =IF(AK7=0,0,(AK7*((LOG(AK7))/LOG(2)))) -> 0 | AN7: =N7 -> 111 | AO7: =COUNTIF(L13:L14,AN7) -> 2 | AP7: =AO7/(AQ4-AO11) -> 1 | AQ7: =IF(AP7=0,0,(AP7*((LOG(AP7))/LOG(2)))) -> 0 | AS7: =N7 -> 111 | AT7: =COUNTIF(L15:L15,AS7) -> 1 | AU7: =AT7/(AV4-AT11) -> 1 | AV7: =IF(AU7=0,0,(AU7*((LOG(AU7))/LOG(2)))) -> 0
A8: 12 | B8: 640 | C8: 13 | D8: 646 | E8: 13 | F8: 650 | K8: 0 | L8: 111 | N8: 112 | O8: =COUNTIF($L$7:$L$500,N8) -> 0 | P8: =O8/$Q$4 -> 0 | Q8: =IF(P8=0,0,(P8*((LOG(P8))/LOG(2)))) -> 0 | T8: =N8 -> 112 | U8: =COUNTIF(L7:L8,T8) -> 0 | V8: =U8/(W4-U11) -> 0 | W8: =IF(V8=0,0,(V8*((LOG(V8))/LOG(2)))) -> 0 | Y8: =N8 -> 112 | Z8: =COUNTIF(L9:L9,Y8) -> 0 | AA8: =Z8/(AB4-Z11) -> 0 | AB8: =IF(AA8=0,0,(AA8*((LOG(AA8))/LOG(2)))) -> 0 | AD8: =N8 -> 112 | AE8: =COUNTIF(L10:L11,AD8) -> 0 | AF8: =AE8/(AG4-AE11) -> 0 | AG8: =IF(AF8=0,0,(AF8*((LOG(AF8))/LOG(2)))) -> 0 | AI8: =N8 -> 112 | AJ8: =COUNTIF(L12:L12,AI8) -> 0 | AK8: =AJ8/(AL4-AJ11) -> 0 | AL8: =IF(AK8=0,0,(AK8*((LOG(AK8))/LOG(2)))) -> 0 | AN8: =N8 -> 112 | AO8: =COUNTIF(L13:L14,AN8) -> 0 | AP8: =AO8/(AQ4-AO11) -> 0 | AQ8: =IF(AP8=0,0,(AP8*((LOG(AP8))/LOG(2)))) -> 0 | AS8: =N8 -> 112 | AT8: =COUNTIF(L15:L15,AS8) -> 0 | AU8: =AT8/(AV4-AT11) -> 0 | AV8: =IF(AU8=0,0,(AU8*((LOG(AU8))/LOG(2)))) -> 0
A9: 21 | B9: 910 | C9: 22 | D9: 920 | E9: 24 | F9: 928 | K9: 0 | L9: 222 | N9: 121 | O9: =COUNTIF($L$7:$L$500,N9) -> 0 | P9: =O9/$Q$4 -> 0 | Q9: =IF(P9=0,0,(P9*((LOG(P9))/LOG(2)))) -> 0 | T9: =N9 -> 121 | U9: =COUNTIF(L7:L8,T9) -> 0 | V9: =U9/(W4-U11) -> 0 | W9: =IF(V9=0,0,(V9*((LOG(V9))/LOG(2)))) -> 0 | Y9: =N9 -> 121 | Z9: =COUNTIF(L9:L9,Y9) -> 0 | AA9: =Z9/(AB4-Z11) -> 0 | AB9: =IF(AA9=0,0,(AA9*((LOG(AA9))/LOG(2)))) -> 0 | AD9: =N9 -> 121 | AE9: =COUNTIF(L10:L11,AD9) -> 0 | AF9: =AE9/(AG4-AE11) -> 0 | AG9: =IF(AF9=0,0,(AF9*((LOG(AF9))/LOG(2)))) -> 0 | AI9: =N9 -> 121 | AJ9: =COUNTIF(L12:L12,AI9) -> 0 | AK9: =AJ9/(AL4-AJ11) -> 0 | AL9: =IF(AK9=0,0,(AK9*((LOG(AK9))/LOG(2)))) -> 0 | AN9: =N9 -> 121 | AO9: =COUNTIF(L13:L14,AN9) -> 0 | AP9: =AO9/(AQ4-AO11) -> 0 | AQ9: =IF(AP9=0,0,(AP9*((LOG(AP9))/LOG(2)))) -> 0 | AS9: =N9 -> 121 | AT9: =COUNTIF(L15:L15,AS9) -> 0 | AU9: =AT9/(AV4-AT11) -> 0 | AV9: =IF(AU9=0,0,(AU9*((LOG(AU9))/LOG(2)))) -> 0
A10: 12 | B10: 7257 | C10: 13 | D10: 7263 | E10: 13 | F10: 7268 | K10: 0 | L10: 111 | N10: 122 | O10: =COUNTIF($L$7:$L$500,N10) -> 0 | P10: =O10/$Q$4 -> 0 | Q10: =IF(P10=0,0,(P10*((LOG(P10))/LOG(2)))) -> 0 | T10: =N10 -> 122 | U10: =COUNTIF(L7:L8,T10) -> 0 | V10: =U10/(W4-U11) -> 0 | W10: =IF(V10=0,0,(V10*((LOG(V10))/LOG(2)))) -> 0 | Y10: =N10 -> 122 | Z10: =COUNTIF(L9:L9,Y10) -> 0 | AA10: =Z10/(AB4-Z11) -> 0 | AB10: =IF(AA10=0,0,(AA10*((LOG(AA10))/LOG(2)))) -> 0 | AD10: =N10 -> 122 | AE10: =COUNTIF(L10:L11,AD10) -> 0 | AF10: =AE10/(AG4-AE11) -> 0 | AG10: =IF(AF10=0,0,(AF10*((LOG(AF10))/LOG(2)))) -> 0 | AI10: =N10 -> 122 | AJ10: =COUNTIF(L12:L12,AI10) -> 0 | AK10: =AJ10/(AL4-AJ11) -> 0 | AL10: =IF(AK10=0,0,(AK10*((LOG(AK10))/LOG(2)))) -> 0 | AN10: =N10 -> 122 | AO10: =COUNTIF(L13:L14,AN10) -> 0 | AP10: =AO10/(AQ4-AO11) -> 0 | AQ10: =IF(AP10=0,0,(AP10*((LOG(AP10))/LOG(2)))) -> 0 | AS10: =N10 -> 122 | AT10: =COUNTIF(L15:L15,AS10) -> 0 | AU10: =AT10/(AV4-AT11) -> 0 | AV10: =IF(AU10=0,0,(AU10*((LOG(AU10))/LOG(2)))) -> 0
A11: 12 | B11: 7405 | C11: 13 | D11: 7414 | E11: 13 | F11: 7418 | K11: 0 | L11: 111 | N11: 211 | O11: =COUNTIF($L$7:$L$500,N11) -> 0 | P11: =O11/$Q$4 -> 0 | Q11: =IF(P11=0,0,(P11*((LOG(P11))/LOG(2)))) -> 0 | T11: =N11 -> 211 | U11: =COUNTIF(L7:L8,T11) -> 0 | Y11: =N11 -> 211 | Z11: =COUNTIF(L9:L9,Y11) -> 0 | AD11: =N11 -> 211 | AE11: =COUNTIF(L10:L11,AD11) -> 0 | AI11: =N11 -> 211 | AJ11: =COUNTIF(L12:L12,AI11) -> 0 | AN11: =N11 -> 211 | AO11: =COUNTIF(L13:L14,AN11) -> 0 | AS11: =N11 -> 211 | AT11: =COUNTIF(L15:L15,AS11) -> 0
A12: 21 | B12: 14918 | C12: 22 | D12: 14925 | E12: 24 | F12: 14935 | K12: 0 | L12: 222 | N12: 212 | O12: =COUNTIF($L$7:$L$500,N12) -> 0 | P12: =O12/$Q$4 -> 0 | Q12: =IF(P12=0,0,(P12*((LOG(P12))/LOG(2)))) -> 0 | T12: =N12 -> 212 | U12: =COUNTIF(L7:L8,T12) -> 0 | V12: =U12/(W4-U11) -> 0 | W12: =IF(V12=0,0,(V12*((LOG(V12))/LOG(2)))) -> 0 | Y12: =N12 -> 212 | Z12: =COUNTIF(L9:L9,Y12) -> 0 | AA12: =Z12/(AB4-Z11) -> 0 | AB12: =IF(AA12=0,0,(AA12*((LOG(AA12))/LOG(2)))) -> 0 | AD12: =N12 -> 212 | AE12: =COUNTIF(L10:L11,AD12) -> 0 | AF12: =AE12/(AG4-AE11) -> 0 | AG12: =IF(AF12=0,0,(AF12*((LOG(AF12))/LOG(2)))) -> 0 | AI12: =N12 -> 212 | AJ12: =COUNTIF(L12:L12,AI12) -> 0 | AK12: =AJ12/(AL4-AJ11) -> 0 | AL12: =IF(AK12=0,0,(AK12*((LOG(AK12))/LOG(2)))) -> 0 | AN12: =N12 -> 212 | AO12: =COUNTIF(L13:L14,AN12) -> 0 | AP12: =AO12/(AQ4-AO11) -> 0 | AQ12: =IF(AP12=0,0,(AP12*((LOG(AP12))/LOG(2)))) -> 0 | AS12: =N12 -> 212 | AT12: =COUNTIF(L15:L15,AS12) -> 0 | AU12: =AT12/(AV4-AT11) -> 0 | AV12: =IF(AU12=0,0,(AU12*((LOG(AU12))/LOG(2)))) -> 0
A13: 12 | B13: 17893 | C13: 13 | D13: 17901 | E13: 13 | F13: 17905 | K13: 0 | L13: 111 | N13: 221 | O13: =COUNTIF($L$7:$L$500,N13) -> 0 | P13: =O13/$Q$4 -> 0 | Q13: =IF(P13=0,0,(P13*((LOG(P13))/LOG(2)))) -> 0 | T13: =N13 -> 221 | U13: =COUNTIF(L7:L8,T13) -> 0 | V13: =U13/(W4-U11) -> 0 | W13: =IF(V13=0,0,(V13*((LOG(V13))/LOG(2)))) -> 0 | Y13: =N13 -> 221 | Z13: =COUNTIF(L9:L9,Y13) -> 0 | AA13: =Z13/(AB4-Z11) -> 0 | AB13: =IF(AA13=0,0,(AA13*((LOG(AA13))/LOG(2)))) -> 0 | AD13: =N13 -> 221 | AE13: =COUNTIF(L10:L11,AD13) -> 0 | AF13: =AE13/(AG4-AE11) -> 0 | AG13: =IF(AF13=0,0,(AF13*((LOG(AF13))/LOG(2)))) -> 0 | AI13: =N13 -> 221 | AJ13: =COUNTIF(L12:L12,AI13) -> 0 | AK13: =AJ13/(AL4-AJ11) -> 0 | AL13: =IF(AK13=0,0,(AK13*((LOG(AK13))/LOG(2)))) -> 0 | AN13: =N13 -> 221 | AO13: =COUNTIF(L13:L14,AN13) -> 0 | AP13: =AO13/(AQ4-AO11) -> 0 | AQ13: =IF(AP13=0,0,(AP13*((LOG(AP13))/LOG(2)))) -> 0 | AS13: =N13 -> 221 | AT13: =COUNTIF(L15:L15,AS13) -> 0 | AU13: =AT13/(AV4-AT11) -> 0 | AV13: =IF(AU13=0,0,(AU13*((LOG(AU13))/LOG(2)))) -> 0
A14: 12 | B14: 18021 | C14: 13 | D14: 18087 | E14: 13 | F14: 18134 | K14: 0 | L14: 111 | N14: 222 | O14: =COUNTIF($L$7:$L$500,N14) -> 3 | P14: =O14/$Q$4 -> 0.3333333333 | Q14: =IF(P14=0,0,(P14*((LOG(P14))/LOG(2)))) -> -0.5283208336 | T14: =N14 -> 222 | U14: =COUNTIF(L7:L8,T14) -> 1 | V14: =U14/(W4-U11) -> 0.5 | W14: =IF(V14=0,0,(V14*((LOG(V14))/LOG(2)))) -> -0.5 | Y14: =N14 -> 222 | Z14: =COUNTIF(L9:L9,Y14) -> 1 | AA14: =Z14/(AB4-Z11) -> 1 | AB14: =IF(AA14=0,0,(AA14*((LOG(AA14))/LOG(2)))) -> 0 | AD14: =N14 -> 222 | AE14: =COUNTIF(L10:L11,AD14) -> 0 | AF14: =AE14/(AG4-AE11) -> 0 | AG14: =IF(AF14=0,0,(AF14*((LOG(AF14))/LOG(2)))) -> 0 | AI14: =N14 -> 222 | AJ14: =COUNTIF(L12:L12,AI14) -> 1 | AK14: =AJ14/(AL4-AJ11) -> 1 | AL14: =IF(AK14=0,0,(AK14*((LOG(AK14))/LOG(2)))) -> 0 | AN14: =N14 -> 222 | AO14: =COUNTIF(L13:L14,AN14) -> 0 | AP14: =AO14/(AQ4-AO11) -> 0 | AQ14: =IF(AP14=0,0,(AP14*((LOG(AP14))/LOG(2)))) -> 0 | AS14: =N14 -> 222 | AT14: =COUNTIF(L15:L15,AS14) -> 0 | AU14: =AT14/(AV4-AT11) -> 0 | AV14: =IF(AU14=0,0,(AU14*((LOG(AU14))/LOG(2)))) -> 0
A15: 12 | B15: 19139 | C15: 13 | D15: 19145 | E15: 13 | F15: 19154 | K15: 0 | L15: 111 | P15: =SUM(P7:P14) -> 1 | Q15: =-SUM(Q7:Q14) -> 0.9182958341 | V15: =SUM(V7:V14) -> 1 | W15: =-SUM(W7:W14) -> 1 | AA15: =SUM(AA7:AA14) -> 1 | AB15: =-SUM(AB7:AB14) -> 0 | AF15: =SUM(AF7:AF14) -> 1 | AG15: =-SUM(AG7:AG14) -> 0 | AK15: =SUM(AK7:AK14) -> 1 | AL15: =-SUM(AL7:AL14) -> 0 | AP15: =SUM(AP7:AP14) -> 1 | AQ15: =-SUM(AQ7:AQ14) -> 0 | AU15: =SUM(AU7:AU14) -> 1 | AV15: =-SUM(AV7:AV14) -> 0
P16: U= | Q16: =Q15/(LOG(Q4)/LOG(2)) -> 0.2896900821 | V16: U1= | W16: =W15/(LOG(W4)/LOG(2)) -> 1 | AA16: U2= | AB16: =AB15/(LOG(AB4)/LOG(2)) ->  | AF16: U3= | AG16: =AG15/(LOG(AG4)/LOG(2)) -> 0 | AK16: U4= | AL16: =AL15/(LOG(AL4)/LOG(2)) ->  | AP16: U5= | AQ16: =AQ15/(LOG(AQ4)/LOG(2)) -> 0 | AU16: U6= | AV16: =AV15/(LOG(AV4)/LOG(2)) -> 
N19: Total Target Seq
N20: =COUNTIF(L7:L15,G3) -> 0 | P20: 2 | Q20: 1 | R20: 2 | S20: 1 | T20: 2 | U20: 1
P21: % of reinforcement given in 6 equal intervals based on number of trials
P22: %_1 | Q22: %_2 | R22: %_3 | S22: %_4 | T22: %_5 | U22: %_6
O23: target sequence | P23: =$G$3 -> 211 | Q23: =$G$3 -> 211 | R23: =$G$3 -> 211 | S23: =$G$3 -> 211 | T23: =$G$3 -> 211 | U23: =$G$3 -> 211
O24: total reinforcement | P24: =U11 -> 0 | Q24: =Z11 -> 0 | R24: =AE11 -> 0 | S24: =AJ11 -> 0 | T24: =AO11 -> 0 | U24: =AT11 -> 0
O25: % target
O26: CCRF
O27: % CCRf
O28: average response rate | P28: =F8/P20 -> 325 | Q28: =(F9-F8)/Q20 -> 278 | R28: =(F11-F9)/R20 -> 3245 | S28: =(F12-F11)/S20 -> 7517 | T28: =(F14-F12)/T20 -> 1599.5 | U28: =(F15-F14)/U20 -> 1020

Sheet !N116820.010
A1: Report for:!N116820.010
A2: Date: | B2: <date>
A3: Hen: | B3: <hen> | F3: Correct Sequence | G3: =Start!J2 -> 211 | P3: Total Sequences in Data | Q3: =4994-COUNTBLANK(L7:L5000) -> 13 | V3: Total Sequences in Block Data | W3: =COUNTA(L7:L8) -> 2 | AA3: Total Sequences in Block Data | AB3: =COUNTA(L9:L10) -> 2 | AF3: Total Sequences in Block Data | AG3: =COUNTA(L11:L13) -> 3 | AK3: Total Sequences in Block Data | AL3: =COUNTA(L14:L15) -> 2 | AP3: Total Sequences in Block Data | AQ3: =COUNTA(L16:L17) -> 2 | AU3: Total Sequences in Block Data | AV3: =COUNTA(L18:L19) -> 2
P4: Total Sequences in Summary | Q4: =SUM(O7:O14) -> 13 | V4: Total Sequences in Block Summary | W4: =SUM(U7:U14) -> 2 | AA4: Total Sequences in Block Summary | AB4: =SUM(Z7:Z14) -> 2 | AF4: Total Sequences in Block Summary | AG4: =SUM(AE7:AE14) -> 3 | AK4: Total Sequences in Block Summary | AL4: =SUM(AJ7:AJ14) -> 2 | AP4: Total Sequences in Block Summary | AQ4: =SUM(AO7:AO14) -> 2 | AU4: Total Sequences in Block Summary | AV4: =SUM(AT7:AT14) -> 2
T5: Block 1 | Y5: Block 2 | AD5: Block 3 | AI5: Block 4 | AN5: Block 5 | AS5: Block 6
A6: Sequence Component 1 | B6: Time 1 | C6: Sequence Component 2 | D6: Time 2 | E6: Sequence Component 3 | F6: Time 3 | G6: Sequence Component 4 | H6: Time 4 | I6: Sequence Component 5 | J6: Time 5 | K6: Correct? 0=No 1=Yes | L6: Sequence | N6: Frequency | P6: Relative Frequency | Q6: Variability | T6: Frequency | V6: Relative Frequency | W6: Variability | Y6: Frequency | AA6: Relative Frequency | AB6: Variability | AD6: Frequency | AF6: Relative Frequency | AG6: Variability | AI6: Frequency | AK6: Relative Frequency | AL6: Variability | AN6: Frequency | AP6: Relative Frequency | AQ6: Variability | AS6: Frequency | AU6: Relative Frequency | AV6: Variability
A7: 12 | B7: 165 | C7: 13 | D7: 171 | E7: 13 | F7: 175 | K7: 0 | L7: 111 | N7: 111 | O7: =COUNTIF($L$7:$L$500,N7) -> 10 | P7: =O7/$Q$4 -> 0.7692307692 | Q7: =IF(P7=0,0,(P7*((LOG(P7))/LOG(2)))) -> -0.2911627871 | T7: =N7 -> 111 | U7: =COUNTIF(L7:L8,T7) -> 2 | V7: =U7/(W4-U11) -> 1 | W7: =IF(V7=0,0,(V7*((LOG(V7))/LOG(2)))) -> 0 | Y7: =N7 -> 111 | Z7: =COUNTIF(L9:L10,Y7) -> 1 | AA7: =Z7/(AB4-Z11) -> 0.5 | AB7: =IF(AA7=0,0,(AA7*((LOG(AA7))/LOG(2)))) -> -0.5 | AD7: =N7 -> 111 | AE7: =COUNTIF(L11:L13,AD7) -> 3 | AF7: =AE7/(AG4-AE11) -> 1 | AG7: =IF(AF7=0,0,(AF7*((LOG(AF7))/LOG(2)))) -> 0 | AI7: =N7 -> 111 | AJ7: =COUNTIF(L14:L15,AI7) -> 1 | AK7: =AJ7/(AL4-AJ11) -> 0.5 | AL7: =IF(AK7=0,0,(AK7*((LOG(AK7))/LOG(2)))) -> -0.5 | AN7: =N7 -> 111 | AO7: =COUNTIF(L16:L17,AN7) -> 2 | AP7: =AO7/(AQ4-AO11) -> 1 | AQ7: =IF(AP7=0,0,(AP7*((LOG(AP7))/LOG(2)))) -> 0 | AS7: =N7 -> 111 | AT7: =COUNTIF(L18:L19,AS7) -> 1 | AU7: =AT7/(AV4-AT11) -> 0.5 | AV7: =IF(AU7=0,0,(AU7*((LOG(AU7))/LOG(2)))) -> -0.5
A8: 12 | B8: 555 | C8: 13 | D8: 560 | E8: 13 | F8: 566 | K8: 0 | L8: 111 | N8: 112 | O8: =COUNTIF($L$7:$L$500,N8) -> 0 | P8: =O8/$Q$4 -> 0 | Q8: =IF(P8=0,0,(P8*((LOG(P8))/LOG(2)))) -> 0 | T8: =N8 -> 112 | U8: =COUNTIF(L7:L8,T8) -> 0 | V8: =U8/(W4-U11) -> 0 | W8: =IF(V8=0,0,(V8*((LOG(V8))/LOG(2)))) -> 0 | Y8: =N8 -> 112 | Z8: =COUNTIF(L9:L10,Y8) -> 0 | AA8: =Z8/(AB4-Z11) -> 0 | AB8: =IF(AA8=0,0,(AA8*((LOG(AA8))/LOG(2)))) -> 0 | AD8: =N8 -> 112 | AE8: =COUNTIF(L11:L13,AD8) -> 0 | AF8: =AE8/(AG4-AE11) -> 0 | AG8: =IF(AF8=0,0,(AF8*((LOG(AF8))/LOG(2)))) -> 0 | AI8: =N8 -> 112 | AJ8: =COUNTIF(L14:L15,AI8) -> 0 | AK8: =AJ8/(AL4-AJ11) -> 0 | AL8: =IF(AK8=0,0,(AK8*((LOG(AK8))/LOG(2)))) -> 0 | AN8: =N8 -> 112 | AO8: =COUNTIF(L16:L17,AN8) -> 0 | AP8: =AO8/(AQ4-AO11) -> 0 | AQ8: =IF(AP8=0,0,(AP8*((LOG(AP8))/LOG(2)))) -> 0 | AS8: =N8 -> 112 | AT8: =COUNTIF(L18:L19,AS8) -> 0 | AU8: =AT8/(AV4-AT11) -> 0 | AV8: =IF(AU8=0,0,(AU8*((LOG(AU8))/LOG(2)))) -> 0
A9: 12 | B9: 716 | C9: 13 | D9: 722 | E9: 13 | F9: 728 | K9: 0 | L9: 111 | N9: 121 | O9: =COUNTIF($L$7:$L$500,N9) -> 0 | P9: =O9/$Q$4 -> 0 | Q9: =IF(P9=0,0,(P9*((LOG(P9))/LOG(2)))) -> 0 | T9: =N9 -> 121 | U9: =COUNTIF(L7:L8,T9) -> 0 | V9: =U9/(W4-U11) -> 0 | W9: =IF(V9=0,0,(V9*((LOG(V9))/LOG(2)))) -> 0 | Y9: =N9 -> 121 | Z9: =COUNTIF(L9:L10,Y9) -> 0 | AA9: =Z9/(AB4-Z11) -> 0 | AB9: =IF(AA9=0,0,(AA9*((LOG(AA9))/LOG(2)))) -> 0 | AD9: =N9 -> 121 | AE9: =COUNTIF(L11:L13,AD9) -> 0 | AF9: =AE9/(AG4-AE11) -> 0 | AG9: =IF(AF9=0,0,(AF9*((LOG(AF9))/LOG(2)))) -> 0 | AI9: =N9 -> 121 | AJ9: =COUNTIF(L14:L15,AI9) -> 0 | AK9: =AJ9/(AL4-AJ11) -> 0 | AL9: =IF(AK9=0,0,(AK9*((LOG(AK9))/LOG(2)))) -> 0 | AN9: =N9 -> 121 | AO9: =COUNTIF(L16:L17,AN9) -> 0 | AP9: =AO9/(AQ4-AO11) -> 0 | AQ9: =IF(AP9=0,0,(AP9*((LOG(AP9))/LOG(2)))) -> 0 | AS9: =N9 -> 121 | AT9: =COUNTIF(L18:L19,AS9) -> 0 | AU9: =AT9/(AV4-AT11) -> 0 | AV9: =IF(AU9=0,0,(AU9*((LOG(AU9))/LOG(2)))) -> 0
A10: 21 | B10: 4937 | C10: 22 | D10: 4946 | E10: 24 | F10: 4952 | K10: 0 | L10: 222 | N10: 122 | O10: =COUNTIF($L$7:$L$500,N10) -> 0 | P10: =O10/$Q$4 -> 0 | Q10: =IF(P10=0,0,(P10*((LOG(P10))/LOG(2)))) -> 0 | T10: =N10 -> 122 | U10: =COUNTIF(L7:L8,T10) -> 0 | V10: =U10/(W4-U11) -> 0 | W10: =IF(V10=0,0,(V10*((LOG(V10))/LOG(2)))) -> 0 | Y10: =N10 -> 122 | Z10: =COUNTIF(L9:L10,Y10) -> 0 | AA10: =Z10/(AB4-Z11) -> 0 | AB10: =IF(AA10=0,0,(AA10*((LOG(AA10))/LOG(2)))) -> 0 | AD10: =N10 -> 122 | AE10: =COUNTIF(L11:L13,AD10) -> 0 | AF10: =AE10/(AG4-AE11) -> 0 | AG10: =IF(AF10=0,0,(AF10*((LOG(AF10))/LOG(2)))) -> 0 | AI10: =N10 -> 122 | AJ10: =COUNTIF(L14:L15,AI10) -> 0 | AK10: =AJ10/(AL4-AJ11) -> 0 | AL10: =IF(AK10=0,0,(AK10*((LOG(AK10))/LOG(2)))) -> 0 | AN10: =N10 -> 122 | AO10: =COUNTIF(L16:L17,AN10) -> 0 | AP10: =AO10/(AQ4-AO11) -> 0 | AQ10: =IF(AP10=0,0,(AP10*((LOG(AP10))/LOG(2)))) -> 0 | AS10: =N10 -> 122 | AT10: =COUNTIF(L18:L19,AS10) -> 0 | AU10: =AT10/(AV4-AT11) -> 0 | AV10: =IF(AU10=0,0,(AU10*((LOG(AU10))/LOG(2)))) -> 0
A11: 12 | B11: 5081 | C11: 13 | D11: 5088 | E11: 13 | F11: 5093 | K11: 0 | L11: 111 | N11: 211 | O11: =COUNTIF($L$7:$L$500,N11) -> 0 | P11: =O11/$Q$4 -> 0 | Q11: =IF(P11=0,0,(P11*((LOG(P11))/LOG(2)))) -> 0 | T11: =N11 -> 211 | U11: =COUNTIF(L7:L8,T11) -> 0 | Y11: =N11 -> 211 | Z11: =COUNTIF(L9:L10,Y11) -> 0 | AD11: =N11 -> 211 | AE11: =COUNTIF(L11:L13,AD11) -> 0 | AI11: =N11 -> 211 | AJ11: =COUNTIF(L14:L15,AI11) -> 0 | AN11: =N11 -> 211 | AO11: =COUNTIF(L16:L17,AN11) -> 0 | AS11: =N11 -> 211 | AT11: =COUNTIF(L18:L19,AS11) -> 0
A12: 12 | B12: 11372 | C12: 13 | D12: 11399 | E12: 13 | F12: 11404 | K12: 0 | L12: 111 | N12: 212 | O12: =COUNTIF($L$7:$L$500,N12) -> 0 | P12: =O12/$Q$4 -> 0 | Q12: =IF(P12=0,0,(P12*((LOG(P12))/LOG(2)))) -> 0 | T12: =N12 -> 212 | U12: =COUNTIF(L7:L8,T12) -> 0 | V12: =U12/(W4-U11) -> 0 | W12: =IF(V12=0,0,(V12*((LOG(V12))/LOG(2)))) -> 0 | Y12: =N12 -> 212 | Z12: =COUNTIF(L9:L10,Y12) -> 0 | AA12: =Z12/(AB4-Z11) -> 0 | AB12: =IF(AA12=0,0,(AA12*((LOG(AA12))/LOG(2)))) -> 0 | AD12: =N12 -> 212 | AE12: =COUNTIF(L11:L13,AD12) -> 0 | AF12: =AE12/(AG4-AE11) -> 0 | AG12: =IF(AF12=0,0,(AF12*((LOG(AF12))/LOG(2)))) -> 0 | AI12: =N12 -> 212 | AJ12: =COUNTIF(L14:L15,AI12) -> 0 | AK12: =AJ12/(AL4-AJ11) -> 0 | AL12: =IF(AK12=0,0,(AK12*((LOG(AK12))/LOG(2)))) -> 0 | AN12: =N12 -> 212 | AO12: =COUNTIF(L16:L17,AN12) -> 0 | AP12: =AO12/(AQ4-AO11) -> 0 | AQ12: =IF(AP12=0,0,(AP12*((LOG(AP12))/LOG(2)))) -> 0 | AS12: =N12 -> 212 | AT12: =COUNTIF(L18:L19,AS12) -> 0 | AU12: =AT12/(AV4-AT11) -> 0 | AV12: =IF(AU12=0,0,(AU12*((LOG(AU12))/LOG(2)))) -> 0
A13: 12 | B13: 12817 | C13: 13 | D13: 12823 | E13: 13 | F13: 12833 | K13: 0 | L13: 111 | N13: 221 | O13: =COUNTIF($L$7:$L$500,N13) -> 0 | P13: =O13/$Q$4 -> 0 | Q13: =IF(P13=0,0,(P13*((LOG(P13))/LOG(2)))) -> 0 | T13: =N13 -> 221 | U13: =COUNTIF(L7:L8,T13) -> 0 | V13: =U13/(W4-U11) -> 0 | W13: =IF(V13=0,0,(V13*((LOG(V13))/LOG(2)))) -> 0 | Y13: =N13 -> 221 | Z13: =COUNTIF(L9:L10,Y13) -> 0 | AA13: =Z13/(AB4-Z11) -> 0 | AB13: =IF(AA13=0,0,(AA13*((LOG(AA13))/LOG(2)))) -> 0 | AD13: =N13 -> 221 | AE13: =COUNTIF(L11:L13,AD13) -> 0 | AF13: =AE13/(AG4-AE11) -> 0 | AG13: =IF(AF13=0,0,(AF13*((LOG(AF13))/LOG(2)))) -> 0 | AI13: =N13 -> 221 | AJ13: =COUNTIF(L14:L15,AI13) -> 0 | AK13: =AJ13/(AL4-AJ11) -> 0 | AL13: =IF(AK13=0,0,(AK13*((LOG(AK13))/LOG(2)))) -> 0 | AN13: =N13 -> 221 | AO13: =COUNTIF(L16:L17,AN13) -> 0 | AP13: =AO13/(AQ4-AO11) -> 0 | AQ13: =IF(AP13=0,0,(AP13*((LOG(AP13))/LOG(2)))) -> 0 | AS13: =N13 -> 221 | AT13: =COUNTIF(L18:L19,AS13) -> 0 | AU13: =AT13/(AV4-AT11) -> 0 | AV13: =IF(AU13=0,0,(AU13*((LOG(AU13))/LOG(2)))) -> 0
A14: 12 | B14: 17954 | C14: 13 | D14: 17962 | E14: 13 | F14: 17967 | K14: 0 | L14: 111 | N14: 222 | O14: =COUNTIF($L$7:$L$500,N14) -> 3 | P14: =O14/$Q$4 -> 0.2307692308 | Q14: =IF(P14=0,0,(P14*((LOG(P14))/LOG(2)))) -> -0.4881870502 | T14: =N14 -> 222 | U14: =COUNTIF(L7:L8,T14) -> 0 | V14: =U14/(W4-U11) -> 0 | W14: =IF(V14=0,0,(V14*((LOG(V14))/LOG(2)))) -> 0 | Y14: =N14 -> 222 | Z14: =COUNTIF(L9:L10,Y14) -> 1 | AA14: =Z14/(AB4-Z11) -> 0.5 | AB14: =IF(AA14=0,0,(AA14*((LOG(AA14))/LOG(2)))) -> -0.5 | AD14: =N14 -> 222 | AE14: =COUNTIF(L11:L13,AD14) -> 0 | AF14: =AE14/(AG4-AE11) -> 0 | AG14: =IF(AF14=0,0,(AF14*((LOG(AF14))/LOG(2)))) -> 0 | AI14: =N14 -> 222 | AJ14: =COUNTIF(L14:L15,AI14) -> 1 | AK14: =AJ14/(AL4-AJ11) -> 0.5 | AL14: =IF(AK14=0,0,(AK14*((LOG(AK14))/LOG(2)))) -> -0.5 | AN14: =N14 -> 222 | AO14: =COUNTIF(L16:L17,AN14) -> 0 | AP14: =AO14/(AQ4-AO11) -> 0 | AQ14: =IF(AP14=0,0,(AP14*((LOG(AP14))/LOG(2)))) -> 0 | AS14: =N14 -> 222 | AT14: =COUNTIF(L18:L19,AS14) -> 1 | AU14: =AT14/(AV4-AT11) -> 0.5 | AV14: =IF(AU14=0,0,(AU14*((LOG(AU14))/LOG(2)))) -> -0.5
A15: 21 | B15: 18293 | C15: 22 | D15: 18303 | E15: 24 | F15: 18309 | K15: 0 | L15: 222 | P15: =SUM(P7:P14) -> 1 | Q15: =-SUM(Q7:Q14) -> 0.7793498373 | V15: =SUM(V7:V14) -> 1 | W15: =-SUM(W7:W14) -> 0 | AA15: =SUM(AA7:AA14) -> 1 | AB15: =-SUM(AB7:AB14) -> 1 | AF15: =SUM(AF7:AF14) -> 1 | AG15: =-SUM(AG7:AG14) -> 0 | AK15: =SUM(AK7:AK14) -> 1 | AL15: =-SUM(AL7:AL14) -> 1 | AP15: =SUM(AP7:AP14) -> 1 | AQ15: =-SUM(AQ7:AQ14) -> 0 | AU15: =SUM(AU7:AU14) -> 1 | AV15: =-SUM(AV7:AV14) -> 1
A16: 12 | B16: 19818 | C16: 13 | D16: 19823 | E16: 13 | F16: 19833 | K16: 0 | L16: 111 | P16: U= | Q16: =Q15/(LOG(Q4)/LOG(2)) -> 0.2106100617 | V16: U1= | W16: =W15/(LOG(W4)/LOG(2)) -> 0 | AA16: U2= | AB16: =AB15/(LOG(AB4)/LOG(2)) -> 1 | AF16: U3= | AG16: =AG15/(LOG(AG4)/LOG(2)) -> 0 | AK16: U4= | AL16: =AL15/(LOG(AL4)/LOG(2)) -> 1 | AP16: U5= | AQ16: =AQ15/(LOG(AQ4)/LOG(2)) -> 0 | AU16: U6= | AV16: =AV15/(LOG(AV4)/LOG(2)) -> 1
A17: 12 | B17: 19971 | C17: 13 | D17: 19975 | E17: 13 | F17: 19980 | K17: 0 | L17: 111
A18: 21 | B18: 20581 | C18: 22 | D18: 20586 | E18: 24 | F18: 20591 | K18: 0 | L18: 222
A19: 12 | B19: 20753 | C19: 13 | D19: 20758 | E19: 13 | F19: 20770 | K19: 0 | L19: 111 | N19: Total Target Seq
N20: =COUNTIF(L7:L19,G3) -> 0 | P20: 2 | Q20: 2 | R20: 3 | S20: 2 | T20: 2 | U20: 2
P21: % of reinforcement given in 6 equal intervals based on number of trials
P22: %_1 | Q22: %_2 | R22: %_3 | S22: %_4 | T22: %_5 | U22: %_6
O23: target sequence | P23: =$G$3 -> 211 | Q23: =$G$3 -> 211 | R23: =$G$3 -> 211 | S23: =$G$3 -> 211 | T23: =$G$3 -> 211 | U23: =$G$3 -> 211
O24: total reinforcement | P24: =U11 -> 0 | Q24: =Z11 -> 0 | R24: =AE11 -> 0 | S24: =AJ11 -> 0 | T24: =AO11 -> 0 | U24: =AT11 -> 0
O25: % target
O26: CCRF
O27: % CCRf
O28: average response rate | P28: =F8/P20 -> 283 | Q28: =(F10-F8)/Q20 -> 2193 | R28: =(F13-F10)/R20 -> 2627 | S28: =(F15-F13)/S20 -> 2738 | T28: =(F17-F15)/T20 -> 835.5 | U28: =(F19-F17)/U20 -> 395

Sheet !N117A40.010
A1: Report for:!N117A40.010
A2: Date: | B2: <date>
A3: Hen: | B3: <hen> | F3: Correct Sequence | G3: =Start!J2 -> 211 | P3: Total Sequences in Data | Q3: =4994-COUNTBLANK(L7:L5000) -> 20 | V3: Total Sequences in Block Data | W3: =COUNTA(L7:L9) -> 3 | AA3: Total Sequences in Block Data | AB3: =COUNTA(L10:L13) -> 4 | AF3: Total Sequences in Block Data | AG3: =COUNTA(L14:L16) -> 3 | AK3: Total Sequences in Block Data | AL3: =COUNTA(L17:L19) -> 3 | AP3: Total Sequences in Block Data | AQ3: =COUNTA(L20:L23) -> 4 | AU3: Total Sequences in Block Data | AV3: =COUNTA(L24:L26) -> 3
P4: Total Sequences in Summary | Q4: =SUM(O7:O14) -> 20 | V4: Total Sequences in Block Summary | W4: =SUM(U7:U14) -> 3 | AA4: Total Sequences in Block Summary | AB4: =SUM(Z7:Z14) -> 4 | AF4: Total Sequences in Block Summary | AG4: =SUM(AE7:AE14) -> 3 | AK4: Total Sequences in Block Summary | AL4: =SUM(AJ7:AJ14) -> 3 | AP4: Total Sequences in Block Summary | AQ4: =SUM(AO7:AO14) -> 4 | AU4: Total Sequences in Block Summary | AV4: =SUM(AT7:AT14) -> 3
T5: Block 1 | Y5: Block 2 | AD5: Block 3 | AI5: Block 4 | AN5: Block 5 | AS5: Block 6
A6: Sequence Component 1 | B6: Time 1 | C6: Sequence Component 2 | D6: Time 2 | E6: Sequence Component 3 | F6: Time 3 | G6: Sequence Component 4 | H6: Time 4 | I6: Sequence Component 5 | J6: Time 5 | K6: Correct? 0=No 1=Yes | L6: Sequence | N6: Frequency | P6: Relative Frequency | Q6: Variability | T6: Frequency | V6: Relative Frequency | W6: Variability | Y6: Frequency | AA6: Relative Frequency | AB6: Variability | AD6: Frequency | AF6: Relative Frequency | AG6: Variability | AI6: Frequency | AK6: Relative Frequency | AL6: Variability | AN6: Frequency | AP6: Relative Frequency | AQ6: Variability | AS6: Frequency | AU6: Relative Frequency | AV6: Variability
A7: 21 | B7: 175 | C7: 22 | D7: 181 | E7: 24 | F7: 186 | K7: 0 | L7: 222 | N7: 111 | O7: =COUNTIF($L$7:$L$500,N7) -> 10 | P7: =O7/$Q$4 -> 0.5 | Q7: =IF(P7=0,0,(P7*((LOG(P7))/LOG(2)))) -> -0.5 | T7: =N7 -> 111 | U7: =COUNTIF(L7:L9,T7) -> 1 | V7: =U7/(W4-U11) -> 0.3333333333 | W7: =IF(V7=0,0,(V7*((LOG(V7))/LOG(2)))) -> -0.5283208336 | Y7: =N7 -> 111 | Z7: =COUNTIF(L10:L13,Y7) -> 4 | AA7: =Z7/(AB4-Z11) -> 1 | AB7: =IF(AA7=0,0,(AA7*((LOG(AA7))/LOG(2)))) -> 0 | AD7: =N7 -> 111 | AE7: =COUNTIF(L14:L16,AD7) -> 2 | AF7: =AE7/(AG4-AE11) -> 0.6666666667 | AG7: =IF(AF7=0,0,(AF7*((LOG(AF7))/LOG(2)))) -> -0.3899750005 | AI7: =N7 -> 111 | AJ7: =COUNTIF(L17:L19,AI7) -> 1 | AK7: =AJ7/(AL4-AJ11) -> 0.3333333333 | AL7: =IF(AK7=0,0,(AK7*((LOG(AK7))/LOG(2)))) -> -0.5283208336 | AN7: =N7 -> 111 | AO7: =COUNTIF(L20:L23,AN7) -> 2 | AP7: =AO7/(AQ4-AO11) -> 0.5 | AQ7: =IF(AP7=0,0,(AP7*((LOG(AP7))/LOG(2)))) -> -0.5 | AS7: =N7 -> 111 | AT7: =COUNTIF(L24:L26,AS7) -> 0 | AU7: =AT7/(AV4-AT11) -> 0 | AV7: =IF(AU7=0,0,(AU7*((LOG(AU7))/LOG(2)))) -> 0
A8: 21 | B8: 295 | C8: 22 | D8: 309 | E8: 24 | F8: 317 | K8: 0 | L8: 222 | N8: 112 | O8: =COUNTIF($L$7:$L$500,N8) -> 0 | P8: =O8/$Q$4 -> 0 | Q8: =IF(P8=0,0,(P8*((LOG(P8))/LOG(2)))) -> 0 | T8: =N8 -> 112 | U8: =COUNTIF(L7:L9,T8) -> 0 | V8: =U8/(W4-U11) -> 0 | W8: =IF(V8=0,0,(V8*((LOG(V8))/LOG(2)))) -> 0 | Y8: =N8 -> 112 | Z8: =COUNTIF(L10:L13,Y8) -> 0 | AA8: =Z8/(AB4-Z11) -> 0 | AB8: =IF(AA8=0,0,(AA8*((LOG(AA8))/LOG(2)))) -> 0 | AD8: =N8 -> 112 | AE8: =COUNTIF(L14:L16,AD8) -> 0 | AF8: =AE8/(AG4-AE11) -> 0 | AG8: =IF(AF8=0,0,(AF8*((LOG(AF8))/LOG(2)))) -> 0 | AI8: =N8 -> 112 | AJ8: =COUNTIF(L17:L19,AI8) -> 0 | AK8: =AJ8/(AL4-AJ11) -> 0 | AL8: =IF(AK8=0,0,(AK8*((LOG(AK8))/LOG(2)))) -> 0 | AN8: =N8 -> 112 | AO8: =COUNTIF(L20:L23,AN8) -> 0 | AP8: =AO8/(AQ4-AO11) -> 0 | AQ8: =IF(AP8=0,0,(AP8*((LOG(AP8))/LOG(2)))) -> 0 | AS8: =N8 -> 112 | AT8: =COUNTIF(L24:L26,AS8) -> 0 | AU8: =AT8/(AV4-AT11) -> 0 | AV8: =IF(AU8=0,0,(AU8*((LOG(AU8))/LOG(2)))) -> 0
A9: 12 | B9: 424 | C9: 13 | D9: 429 | E9: 13 | F9: 433 | K9: 0 | L9: 111 | N9: 121 | O9: =COUNTIF($L$7:$L$500,N9) -> 0 | P9: =O9/$Q$4 -> 0 | Q9: =IF(P9=0,0,(P9*((LOG(P9))/LOG(2)))) -> 0 | T9: =N9 -> 121 | U9: =COUNTIF(L7:L9,T9) -> 0 | V9: =U9/(W4-U11) -> 0 | W9: =IF(V9=0,0,(V9*((LOG(V9))/LOG(2)))) -> 0 | Y9: =N9 -> 121 | Z9: =COUNTIF(L10:L13,Y9) -> 0 | AA9: =Z9/(AB4-Z11) -> 0 | AB9: =IF(AA9=0,0,(AA9*((LOG(AA9))/LOG(2)))) -> 0 | AD9: =N9 -> 121 | AE9: =COUNTIF(L14:L16,AD9) -> 0 | AF9: =AE9/(AG4-AE11) -> 0 | AG9: =IF(AF9=0,0,(AF9*((LOG(AF9))/LOG(2)))) -> 0 | AI9: =N9 -> 121 | AJ9: =COUNTIF(L17:L19,AI9) -> 0 | AK9: =AJ9/(AL4-AJ11) -> 0 | AL9: =IF(AK9=0,0,(AK9*((LOG(AK9))/LOG(2)))) -> 0 | AN9: =N9 -> 121 | AO9: =COUNTIF(L20:L23,AN9) -> 0 | AP9: =AO9/(AQ4-AO11) -> 0 | AQ9: =IF(AP9=0,0,(AP9*((LOG(AP9))/LOG(2)))) -> 0 | AS9: =N9 -> 121 | AT9: =COUNTIF(L24:L26,AS9) -> 0 | AU9: =AT9/(AV4-AT11) -> 0 | AV9: =IF(AU9=0,0,(AU9*((LOG(AU9))/LOG(2)))) -> 0
A10: 12 | B10: 539 | C10: 13 | D10: 543 | E10: 13 | F10: 548 | K10: 0 | L10: 111 | N10: 122 | O10: =COUNTIF($L$7:$L$500,N10) -> 0 | P10: =O10/$Q$4 -> 0 | Q10: =IF(P10=0,0,(P10*((LOG(P10))/LOG(2)))) -> 0 | T10: =N10 -> 122 | U10: =COUNTIF(L7:L9,T10) -> 0 | V10: =U10/(W4-U11) -> 0 | W10: =IF(V10=0,0,(V10*((LOG(V10))/LOG(2)))) -> 0 | Y10: =N10 -> 122 | Z10: =COUNTIF(L10:L13,Y10) -> 0 | AA10: =Z10/(AB4-Z11) -> 0 | AB10: =IF(AA10=0,0,(AA10*((LOG(AA10))/LOG(2)))) -> 0 | AD10: =N10 -> 122 | AE10: =COUNTIF(L14:L16,AD10) -> 0 | AF10: =AE10/(AG4-AE11) -> 0 | AG10: =IF(AF10=0,0,(AF10*((LOG(AF10))/LOG(2)))) -> 0 | AI10: =N10 -> 122 | AJ10: =COUNTIF(L17:L19,AI10) -> 0 | AK10: =AJ10/(AL4-AJ11) -> 0 | AL10: =IF(AK10=0,0,(AK10*((LOG(AK10))/LOG(2)))) -> 0 | AN10: =N10 -> 122 | AO10: =COUNTIF(L20:L23,AN10) -> 0 | AP10: =AO10/(AQ4-AO11) -> 0 | AQ10: =IF(AP10=0,0,(AP10*((LOG(AP10))/LOG(2)))) -> 0 | AS10: =N10 -> 122 | AT10: =COUNTIF(L24:L26,AS10) -> 0 | AU10: =AT10/(AV4-AT11) -> 0 | AV10: =IF(AU10=0,0,(AU10*((LOG(AU10))/LOG(2)))) -> 0
A11: 12 | B11: 655 | C11: 13 | D11: 660 | E11: 13 | F11: 664 | K11: 0 | L11: 111 | N11: 211 | O11: =COUNTIF($L$7:$L$500,N11) -> 0 | P11: =O11/$Q$4 -> 0 | Q11: =IF(P11=0,0,(P11*((LOG(P11))/LOG(2)))) -> 0 | T11: =N11 -> 211 | U11: =COUNTIF(L7:L9,T11) -> 0 | Y11: =N11 -> 211 | Z11: =COUNTIF(L10:L13,Y11) -> 0 | AD11: =N11 -> 211 | AE11: =COUNTIF(L14:L16,AD11) -> 0 | AI11: =N11 -> 211 | AJ11: =COUNTIF(L17:L19,AI11) -> 0 | AN11: =N11 -> 211 | AO11: =COUNTIF(L20:L23,AN11) -> 0 | AS11: =N11 -> 211 | AT11: =COUNTIF(L24:L26,AS11) -> 0
A12: 12 | B12: 769 | C12: 13 | D12: 774 | E12: 13 | F12: 779 | K12: 0 | L12: 111 | N12: 212 | O12: =COUNTIF($L$7:$L$500,N12) -> 0 | P12: =O12/$Q$4 -> 0 | Q12: =IF(P12=0,0,(P12*((LOG(P12))/LOG(2)))) -> 0 | T12: =N12 -> 212 | U12: =COUNTIF(L7:L9,T12) -> 0 | V12: =U12/(W4-U11) -> 0 | W12: =IF(V12=0,0,(V12*((LOG(V12))/LOG(2)))) -> 0 | Y12: =N12 -> 212 | Z12: =COUNTIF(L10:L13,Y12) -> 0 | AA12: =Z12/(AB4-Z11) -> 0 | AB12: =IF(AA12=0,0,(AA12*((LOG(AA12))/LOG(2)))) -> 0 | AD12: =N12 -> 212 | AE12: =COUNTIF(L14:L16,AD12) -> 0 | AF12: =AE12/(AG4-AE11) -> 0 | AG12: =IF(AF12=0,0,(AF12*((LOG(AF12))/LOG(2)))) -> 0 | AI12: =N12 -> 212 | AJ12: =COUNTIF(L17:L19,AI12) -> 0 | AK12: =AJ12/(AL4-AJ11) -> 0 | AL12: =IF(AK12=0,0,(AK12*((LOG(AK12))/LOG(2)))) -> 0 | AN12: =N12 -> 212 | AO12: =COUNTIF(L20:L23,AN12) -> 0 | AP12: =AO12/(AQ4-AO11) -> 0 | AQ12: =IF(AP12=0,0,(AP12*((LOG(AP12))/LOG(2)))) -> 0 | AS12: =N12 -> 212 | AT12: =COUNTIF(L24:L26,AS12) -> 0 | AU12: =AT12/(AV4-AT11) -> 0 | AV12: =IF(AU12=0,0,(AU12*((LOG(AU12))/LOG(2)))) -> 0
A13: 12 | B13: 874 | C13: 13 | D13: 879 | E13: 13 | F13: 883 | K13: 0 | L13: 111 | N13: 221 | O13: =COUNTIF($L$7:$L$500,N13) -> 0 | P13: =O13/$Q$4 -> 0 | Q13: =IF(P13=0,0,(P13*((LOG(P13))/LOG(2)))) -> 0 | T13: =N13 -> 221 | U13: =COUNTIF(L7:L9,T13) -> 0 | V13: =U13/(W4-U11) -> 0 | W13: =IF(V13=0,0,(V13*((LOG(V13))/LOG(2)))) -> 0 | Y13: =N13 -> 221 | Z13: =COUNTIF(L10:L13,Y13) -> 0 | AA13: =Z13/(AB4-Z11) -> 0 | AB13: =IF(AA13=0,0,(AA13*((LOG(AA13))/LOG(2)))) -> 0 | AD13: =N13 -> 221 | AE13: =COUNTIF(L14:L16,AD13) -> 0 | AF13: =AE13/(AG4-AE11) -> 0 | AG13: =IF(AF13=0,0,(AF13*((LOG(AF13))/LOG(2)))) -> 0 | AI13: =N13 -> 221 | AJ13: =COUNTIF(L17:L19,AI13) -> 0 | AK13: =AJ13/(AL4-AJ11) -> 0 | AL13: =IF(AK13=0,0,(AK13*((LOG(AK13))/LOG(2)))) -> 0 | AN13: =N13 -> 221 | AO13: =COUNTIF(L20:L23,AN13) -> 0 | AP13: =AO13/(AQ4-AO11) -> 0 | AQ13: =IF(AP13=0,0,(AP13*((LOG(AP13))/LOG(2)))) -> 0 | AS13: =N13 -> 221 | AT13: =COUNTIF(L24:L26,AS13) -> 0 | AU13: =AT13/(AV4-AT11) -> 0 | AV13: =IF(AU13=0,0,(AU13*((LOG(AU13))/LOG(2)))) -> 0
A14: 12 | B14: 1164 | C14: 13 | D14: 1168 | E14: 13 | F14: 1173 | K14: 0 | L14: 111 | N14: 222 | O14: =COUNTIF($L$7:$L$500,N14) -> 10 | P14: =O14/$Q$4 -> 0.5 | Q14: =IF(P14=0,0,(P14*((LOG(P14))/LOG(2)))) -> -0.5 | T14: =N14 -> 222 | U14: =COUNTIF(L7:L9,T14) -> 2 | V14: =U14/(W4-U11) -> 0.6666666667 | W14: =IF(V14=0,0,(V14*((LOG(V14))/LOG(2)))) -> -0.3899750005 | Y14: =N14 -> 222 | Z14: =COUNTIF(L10:L13,Y14) -> 0 | AA14: =Z14/(AB4-Z11) -> 0 | AB14: =IF(AA14=0,0,(AA14*((LOG(AA14))/LOG(2)))) -> 0 | AD14: =N14 -> 222 | AE14: =COUNTIF(L14:L16,AD14) -> 1 | AF14: =AE14/(AG4-AE11) -> 0.3333333333 | AG14: =IF(AF14=0,0,(AF14*((LOG(AF14))/LOG(2)))) -> -0.5283208336 | AI14: =N14 -> 222 | AJ14: =COUNTIF(L17:L19,AI14) -> 2 | AK14: =AJ14/(AL4-AJ11) -> 0.6666666667 | AL14: =IF(AK14=0,0,(AK14*((LOG(AK14))/LOG(2)))) -> -0.3899750005 | AN14: =N14 -> 222 | AO14: =COUNTIF(L20:L23,AN14) -> 2 | AP14: =AO14/(AQ4-AO11) -> 0.5 | AQ14: =IF(AP14=0,0,(AP14*((LOG(AP14))/LOG(2)))) -> -0.5 | AS14: =N14 -> 222 | AT14: =COUNTIF(L24:L26,AS14) -> 3 | AU14: =AT14/(AV4-AT11) -> 1 | AV14: =IF(AU14=0,0,(AU14*((LOG(AU14))/LOG(2)))) -> 0
A15: 12 | B15: 1275 | C15: 13 | D15: 1280 | E15: 13 | F15: 1285 | K15: 0 | L15: 111 | P15: =SUM(P7:P14) -> 1 | Q15: =-SUM(Q7:Q14) -> 1 | V15: =SUM(V7:V14) -> 1 | W15: =-SUM(W7:W14) -> 0.9182958341 | AA15: =SUM(AA7:AA14) -> 1 | AB15: =-SUM(AB7:AB14) -> 0 | AF15: =SUM(AF7:AF14) -> 1 | AG15: =-SUM(AG7:AG14) -> 0.9182958341 | AK15: =SUM(AK7:AK14) -> 1 | AL15: =-SUM(AL7:AL14) -> 0.9182958341 | AP15: =SUM(AP7:AP14) -> 1 | AQ15: =-SUM(AQ7:AQ14) -> 1 | AU15: =SUM(AU7:AU14) -> 1 | AV15: =-SUM(AV7:AV14) -> 0
A16: 21 | B16: 2502 | C16: 22 | D16: 2508 | E16: 24 | F16: 2514 | K16: 0 | L16: 222 | P16: U= | Q16: =Q15/(LOG(Q4)/LOG(2)) -> 0.2313782132 | V16: U1= | W16: =W15/(LOG(W4)/LOG(2)) -> 0.5793801643 | AA16: U2= | AB16: =AB15/(LOG(AB4)/LOG(2)) -> 0 | AF16: U3= | AG16: =AG15/(LOG(AG4)/LOG(2)) -> 0.5793801643 | AK16: U4= | AL16: =AL15/(LOG(AL4)/LOG(2)) -> 0.5793801643 | AP16: U5= | AQ16: =AQ15/(LOG(AQ4)/LOG(2)) -> 0.5 | AU16: U6= | AV16: =AV15/(LOG(AV4)/LOG(2)) -> 0
A17: 21 | B17: 2625 | C17: 22 | D17: 2636 | E17: 24 | F17: 2644 | K17: 0 | L17: 222
A18: 12 | B18: 2776 | C18: 13 | D18: 2781 | E18: 13 | F18: 2795 | K18: 0 | L18: 111
A19: 21 | B19: 3765 | C19: 22 | D19: 3779 | E19: 24 | F19: 3789 | K19: 0 | L19: 222 | N19: Total Target Seq
A20: 12 | B20: 4561 | C20: 13 | D20: 4571 | E20: 13 | F20: 4577 | K20: 0 | L20: 111 | N20: =COUNTIF(L7:L26,G3) -> 0 | P20: 3 | Q20: 4 | R20: 3 | S20: 3 | T20: 4 | U20: 3
A21: 12 | B21: 9259 | C21: 13 | D21: 9270 | E21: 13 | F21: 9280 | K21: 0 | L21: 111 | P21: % of reinforcement given in 6 equal intervals based on number of trials
A22: 21 | B22: 10680 | C22: 22 | D22: 10687 | E22: 24 | F22: 10692 | K22: 0 | L22: 222 | P22: %_1 | Q22: %_2 | R22: %_3 | S22: %_4 | T22: %_5 | U22: %_6
A23: 21 | B23: 16956 | C23: 22 | D23: 16966 | E23: 24 | F23: 16985 | K23: 0 | L23: 222 | O23: target sequence | P23: =$G$3 -> 211 | Q23: =$G$3 -> 211 | R23: =$G$3 -> 211 | S23: =$G$3 -> 211 | T23: =$G$3 -> 211 | U23: =$G$3 -> 211
A24: 21 | B24: 17256 | C24: 22 | D24: 17268 | E24: 24 | F24: 17274 | K24: 0 | L24: 222 | O24: total reinforcement | P24: =U11 -> 0 | Q24: =Z11 -> 0 | R24: =AE11 -> 0 | S24: =AJ11 -> 0 | T24: =AO11 -> 0 | U24: =AT11 -> 0
A25: 21 | B25: 17495 | C25: 22 | D25: 17500 | E25: 24 | F25: 17505 | K25: 0 | L25: 222 | O25: % target
A26: 21 | B26: 22584 | C26: 22 | D26: 22590 | E26: 24 | F26: 22596 | K26: 0 | L26: 222 | O26: CCRF
O27: % CCRf
O28: average response rate | P28: =F9/P20 -> 144.3333333 | Q28: =(F13-F9)/Q20 -> 112.5 | R28: =(F16-F13)/R20 -> 543.6666667 | S28: =(F19-F16)/S20 -> 425 | T28: =(F23-F19)/T20 -> 3299 | U28: =(F26-F23)/U20 -> 1870.333333

Sheet !N118950.010
A1: Report for:!N118950.010
A2: Date: | B2: <date>
A3: Hen: | B3: <hen> | F3: Correct Sequence | G3: =Start!J2 -> 211 | P3: Total Sequences in Data | Q3: =4994-COUNTBLANK(L7:L5000) -> 5 | V3: Total Sequences in Block Data | W3: =COUNTA(L7:L7) -> 1 | AA3: Total Sequences in Block Data | AB3: =COUNTA(L8:L8) -> 1 | AF3: Total Sequences in Block Data | AG3: =COUNTA(L8:L9) -> 2 | AK3: Total Sequences in Block Data | AL3: =COUNTA(L9:L9) -> 1 | AP3: Total Sequences in Block Data | AQ3: =COUNTA(L10:L10) -> 1 | AU3: Total Sequences in Block Data | AV3: =COUNTA(L11:L11) -> 1
P4: Total Sequences in Summary | Q4: =SUM(O7:O14) -> 5 | V4: Total Sequences in Block Summary | W4: =SUM(U7:U14) -> 1 | AA4: Total Sequences in Block Summary | AB4: =SUM(Z7:Z14) -> 1 | AF4: Total Sequences in Block Summary | AG4: =SUM(AE7:AE14) -> 2 | AK4: Total Sequences in Block Summary | AL4: =SUM(AJ7:AJ14) -> 1 | AP4: Total Sequences in Block Summary | AQ4: =SUM(AO7:AO14) -> 1 | AU4: Total Sequences in Block Summary | AV4: =SUM(AT7:AT14) -> 1
T5: Block 1 | Y5: Block 2 | AD5: Block 3 | AI5: Block 4 | AN5: Block 5 | AS5: Block 6
A6: Sequence Component 1 | B6: Time 1 | C6: Sequence Component 2 | D6: Time 2 | E6: Sequence Component 3 | F6: Time 3 | G6: Sequence Component 4 | H6: Time 4 | I6: Sequence Component 5 | J6: Time 5 | K6: Correct? 0=No 1=Yes | L6: Sequence | N6: Frequency | P6: Relative Frequency | Q6: Variability | T6: Frequency | V6: Relative Frequency | W6: Variability | Y6: Frequency | AA6: Relative Frequency | AB6: Variability | AD6: Frequency | AF6: Relative Frequency | AG6: Variability | AI6: Frequency | AK6: Relative Frequency | AL6: Variability | AN6: Frequency | AP6: Relative Frequency | AQ6: Variability | AS6: Frequency | AU6: Relative Frequency | AV6: Variability
A7: 12 | B7: 183 | C7: 13 | D7: 189 | E7: 13 | F7: 195 | K7: 0 | L7: 111 | N7: 111 | O7: =COUNTIF($L$7:$L$500,N7) -> 5 | P7: =O7/$Q$4 -> 1 | Q7: =IF(P7=0,0,(P7*((LOG(P7))/LOG(2)))) -> 0 | T7: =N7 -> 111 | U7: =COUNTIF(L7:L7,T7) -> 1 | V7: =U7/(W4-U11) -> 1 | W7: =IF(V7=0,0,(V7*((LOG(V7))/LOG(2)))) -> 0 | Y7: =N7 -> 111 | Z7: =COUNTIF(L8:L8,Y7) -> 1 | AA7: =Z7/(AB4-Z11) -> 1 | AB7: =IF(AA7=0,0,(AA7*((LOG(AA7))/LOG(2)))) -> 0 | AD7: =N7 -> 111 | AE7: =COUNTIF(L8:L9,AD7) -> 2 | AF7: =AE7/(AG4-AE11) -> 1 | AG7: =IF(AF7=0,0,(AF7*((LOG(AF7))/LOG(2)))) -> 0 | AI7: =N7 -> 111 | AJ7: =COUNTIF(L9:L9,AI7) -> 1 | AK7: =AJ7/(AL4-AJ11) -> 1 | AL7: =IF(AK7=0,0,(AK7*((LOG(AK7))/LOG(2)))) -> 0 | AN7: =N7 -> 111 | AO7: =COUNTIF(L10:L10,AN7) -> 1 | AP7: =AO7/(AQ4-AO11) -> 1 | AQ7: =IF(AP7=0,0,(AP7*((LOG(AP7))/LOG(2)))) -> 0 | AS7: =N7 -> 111 | AT7: =COUNTIF(L11:L11,AS7) -> 1 | AU7: =AT7/(AV4-AT11) -> 1 | AV7: =IF(AU7=0,0,(AU7*((LOG(AU7))/LOG(2)))) -> 0
A8: 12 | B8: 310 | C8: 13 | D8: 319 | E8: 13 | F8: 323 | K8: 0 | L8: 111 | N8: 112 | O8: =COUNTIF($L$7:$L$500,N8) -> 0 | P8: =O8/$Q$4 -> 0 | Q8: =IF(P8=0,0,(P8*((LOG(P8))/LOG(2)))) -> 0 | T8: =N8 -> 112 | U8: =COUNTIF(L7:L7,T8) -> 0 | V8: =U8/(W4-U11) -> 0 | W8: =IF(V8=0,0,(V8*((LOG(V8))/LOG(2)))) -> 0 | Y8: =N8 -> 112 | Z8: =COUNTIF(L8:L8,Y8) -> 0 | AA8: =Z8/(AB4-Z11) -> 0 | AB8: =IF(AA8=0,0,(AA8*((LOG(AA8))/LOG(2)))) -> 0 | AD8: =N8 -> 112 | AE8: =COUNTIF(L8:L9,AD8) -> 0 | AF8: =AE8/(AG4-AE11) -> 0 | AG8: =IF(AF8=0,0,(AF8*((LOG(AF8))/LOG(2)))) -> 0 | AI8: =N8 -> 112 | AJ8: =COUNTIF(L9:L9,AI8) -> 0 | AK8: =AJ8/(AL4-AJ11) -> 0 | AL8: =IF(AK8=0,0,(AK8*((LOG(AK8))/LOG(2)))) -> 0 | AN8: =N8 -> 112 | AO8: =COUNTIF(L10:L10,AN8) -> 0 | AP8: =AO8/(AQ4-AO11) -> 0 | AQ8: =IF(AP8=0,0,(AP8*((LOG(AP8))/LOG(2)))) -> 0 | AS8: =N8 -> 112 | AT8: =COUNTIF(L11:L11,AS8) -> 0 | AU8: =AT8/(AV4-AT11) -> 0 | AV8: =IF(AU8=0,0,(AU8*((LOG(AU8))/LOG(2)))) -> 0
A9: 12 | B9: 662 | C9: 13 | D9: 687 | E9: 13 | F9: 698 | K9: 0 | L9: 111 | N9: 121 | O9: =COUNTIF($L$7:$L$500,N9) -> 0 | P9: =O9/$Q$4 -> 0 | Q9: =IF(P9=0,0,(P9*((LOG(P9))/LOG(2)))) -> 0 | T9: =N9 -> 121 | U9: =COUNTIF(L7:L7,T9) -> 0 | V9: =U9/(W4-U11) -> 0 | W9: =IF(V9=0,0,(V9*((LOG(V9))/LOG(2)))) -> 0 | Y9: =N9 -> 121 | Z9: =COUNTIF(L8:L8,Y9) -> 0 | AA9: =Z9/(AB4-Z11) -> 0 | AB9: =IF(AA9=0,0,(AA9*((LOG(AA9))/LOG(2)))) -> 0 | AD9: =N9 -> 121 | AE9: =COUNTIF(L8:L9,AD9) -> 0 | AF9: =AE9/(AG4-AE11) -> 0 | AG9: =IF(AF9=0,0,(AF9*((LOG(AF9))/LOG(2)))) -> 0 | AI9: =N9 -> 121 | AJ9: =COUNTIF(L9:L9,AI9) -> 0 | AK9: =AJ9/(AL4-AJ11) -> 0 | AL9: =IF(AK9=0,0,(AK9*((LOG(AK9))/LOG(2)))) -> 0 | AN9: =N9 -> 121 | AO9: =COUNTIF(L10:L10,AN9) -> 0 | AP9: =AO9/(AQ4-AO11) -> 0 | AQ9: =IF(AP9=0,0,(AP9*((LOG(AP9))/LOG(2)))) -> 0 | AS9: =N9 -> 121 | AT9: =COUNTIF(L11:L11,AS9) -> 0 | AU9: =AT9/(AV4-AT11) -> 0 | AV9: =IF(AU9=0,0,(AU9*((LOG(AU9))/LOG(2)))) -> 0
A10: 12 | B10: 877 | C10: 13 | D10: 882 | E10: 13 | F10: 886 | K10: 0 | L10: 111 | N10: 122 | O10: =COUNTIF($L$7:$L$500,N10) -> 0 | P10: =O10/$Q$4 -> 0 | Q10: =IF(P10=0,0,(P10*((LOG(P10))/LOG(2)))) -> 0 | T10: =N10 -> 122 | U10: =COUNTIF(L7:L7,T10) -> 0 | V10: =U10/(W4-U11) -> 0 | W10: =IF(V10=0,0,(V10*((LOG(V10))/LOG(2)))) -> 0 | Y10: =N10 -> 122 | Z10: =COUNTIF(L8:L8,Y10) -> 0 | AA10: =Z10/(AB4-Z11) -> 0 | AB10: =IF(AA10=0,0,(AA10*((LOG(AA10))/LOG(2)))) -> 0 | AD10: =N10 -> 122 | AE10: =COUNTIF(L8:L9,AD10) -> 0 | AF10: =AE10/(AG4-AE11) -> 0 | AG10: =IF(AF10=0,0,(AF10*((LOG(AF10))/LOG(2)))) -> 0 | AI10: =N10 -> 122 | AJ10: =COUNTIF(L9:L9,AI10) -> 0 | AK10: =AJ10/(AL4-AJ11) -> 0 | AL10: =IF(AK10=0,0,(AK10*((LOG(AK10))/LOG(2)))) -> 0 | AN10: =N10 -> 122 | AO10: =COUNTIF(L10:L10,AN10) -> 0 | AP10: =AO10/(AQ4-AO11) -> 0 | AQ10: =IF(AP10=0,0,(AP10*((LOG(AP10))/LOG(2)))) -> 0 | AS10: =N10 -> 122 | AT10: =COUNTIF(L11:L11,AS10) -> 0 | AU10: =AT10/(AV4-AT11) -> 0 | AV10: =IF(AU10=0,0,(AU10*((LOG(AU10))/LOG(2)))) -> 0
A11: 12 | B11: 18872 | C11: 13 | D11: 18883 | E11: 13 | F11: 18888 | K11: 0 | L11: 111 | N11: 211 | O11: =COUNTIF($L$7:$L$500,N11) -> 0 | P11: =O11/$Q$4 -> 0 | Q11: =IF(P11=0,0,(P11*((LOG(P11))/LOG(2)))) -> 0 | T11: =N11 -> 211 | U11: =COUNTIF(L7:L7,T11) -> 0 | Y11: =N11 -> 211 | Z11: =COUNTIF(L8:L8,Y11) -> 0 | AD11: =N11 -> 211 | AE11: =COUNTIF(L8:L9,AD11) -> 0 | AI11: =N11 -> 211 | AJ11: =COUNTIF(L9:L9,AI11) -> 0 | AN11: =N11 -> 211 | AO11: =COUNTIF(L10:L10,AN11) -> 0 | AS11: =N11 -> 211 | AT11: =COUNTIF(L11:L11,AS11) -> 0
N12: 212 | O12: =COUNTIF($L$7:$L$500,N12) -> 0 | P12: =O12/$Q$4 -> 0 | Q12: =IF(P12=0,0,(P12*((LOG(P12))/LOG(2)))) -> 0 | T12: =N12 -> 212 | U12: =COUNTIF(L7:L7,T12) -> 0 | V12: =U12/(W4-U11) -> 0 | W12: =IF(V12=0,0,(V12*((LOG(V12))/LOG(2)))) -> 0 | Y12: =N12 -> 212 | Z12: =COUNTIF(L8:L8,Y12) -> 0 | AA12: =Z12/(AB4-Z11) -> 0 | AB12: =IF(AA12=0,0,(AA12*((LOG(AA12))/LOG(2)))) -> 0 | AD12: =N12 -> 212 | AE12: =COUNTIF(L8:L9,AD12) -> 0 | AF12: =AE12/(AG4-AE11) -> 0 | AG12: =IF(AF12=0,0,(AF12*((LOG(AF12))/LOG(2)))) -> 0 | AI12: =N12 -> 212 | AJ12: =COUNTIF(L9:L9,AI12) -> 0 | AK12: =AJ12/(AL4-AJ11) -> 0 | AL12: =IF(AK12=0,0,(AK12*((LOG(AK12))/LOG(2)))) -> 0 | AN12: =N12 -> 212 | AO12: =COUNTIF(L10:L10,AN12) -> 0 | AP12: =AO12/(AQ4-AO11) -> 0 | AQ12: =IF(AP12=0,0,(AP12*((LOG(AP12))/LOG(2)))) -> 0 | AS12: =N12 -> 212 | AT12: =COUNTIF(L11:L11,AS12) -> 0 | AU12: =AT12/(AV4-AT11) -> 0 | AV12: =IF(AU12=0,0,(AU12*((LOG(AU12))/LOG(2)))) -> 0
N13: 221 | O13: =COUNTIF($L$7:$L$500,N13) -> 0 | P13: =O13/$Q$4 -> 0 | Q13: =IF(P13=0,0,(P13*((LOG(P13))/LOG(2)))) -> 0 | T13: =N13 -> 221 | U13: =COUNTIF(L7:L7,T13) -> 0 | V13: =U13/(W4-U11) -> 0 | W13: =IF(V13=0,0,(V13*((LOG(V13))/LOG(2)))) -> 0 | Y13: =N13 -> 221 | Z13: =COUNTIF(L8:L8,Y13) -> 0 | AA13: =Z13/(AB4-Z11) -> 0 | AB13: =IF(AA13=0,0,(AA13*((LOG(AA13))/LOG(2)))) -> 0 | AD13: =N13 -> 221 | AE13: =COUNTIF(L8:L9,AD13) -> 0 | AF13: =AE13/(AG4-AE11) -> 0 | AG13: =IF(AF13=0,0,(AF13*((LOG(AF13))/LOG(2)))) -> 0 | AI13: =N13 -> 221 | AJ13: =COUNTIF(L9:L9,AI13) -> 0 | AK13: =AJ13/(AL4-AJ11) -> 0 | AL13: =IF(AK13=0,0,(AK13*((LOG(AK13))/LOG(2)))) -> 0 | AN13: =N13 -> 221 | AO13: =COUNTIF(L10:L10,AN13) -> 0 | AP13: =AO13/(AQ4-AO11) -> 0 | AQ13: =IF(AP13=0,0,(AP13*((LOG(AP13))/LOG(2)))) -> 0 | AS13: =N13 -> 221 | AT13: =COUNTIF(L11:L11,AS13) -> 0 | AU13: =AT13/(AV4-AT11) -> 0 | AV13: =IF(AU13=0,0,(AU13*((LOG(AU13))/LOG(2)))) -> 0
N14: 222 | O14: =COUNTIF($L$7:$L$500,N14) -> 0 | P14: =O14/$Q$4 -> 0 | Q14: =IF(P14=0,0,(P14*((LOG(P14))/LOG(2)))) -> 0 | T14: =N14 -> 222 | U14: =COUNTIF(L7:L7,T14) -> 0 | V14: =U14/(W4-U11) -> 0 | W14: =IF(V14=0,0,(V14*((LOG(V14))/LOG(2)))) -> 0 | Y14: =N14 -> 222 | Z14: =COUNTIF(L8:L8,Y14) -> 0 | AA14: =Z14/(AB4-Z11) -> 0 | AB14: =IF(AA14=0,0,(AA14*((LOG(AA14))/LOG(2)))) -> 0 | AD14: =N14 -> 222 | AE14: =COUNTIF(L8:L9,AD14) -> 0 | AF14: =AE14/(AG4-AE11) -> 0 | AG14: =IF(AF14=0,0,(AF14*((LOG(AF14))/LOG(2)))) -> 0 | AI14: =N14 -> 222 | AJ14: =COUNTIF(L9:L9,AI14) -> 0 | AK14: =AJ14/(AL4-AJ11) -> 0 | AL14: =IF(AK14=0,0,(AK14*((LOG(AK14))/LOG(2)))) -> 0 | AN14: =N14 -> 222 | AO14: =COUNTIF(L10:L10,AN14) -> 0 | AP14: =AO14/(AQ4-AO11) -> 0 | AQ14: =IF(AP14=0,0,(AP14*((LOG(AP14))/LOG(2)))) -> 0 | AS14: =N14 -> 222 | AT14: =COUNTIF(L11:L11,AS14) -> 0 | AU14: =AT14/(AV4-AT11) -> 0 | AV14: =IF(AU14=0,0,(AU14*((LOG(AU14))/LOG(2)))) -> 0
P15: =SUM(P7:P14) -> 1 | Q15: =-SUM(Q7:Q14) -> 0 | V15: =SUM(V7:V14) -> 1 | W15: =-SUM(W7:W14) -> 0 | AA15: =SUM(AA7:AA14) -> 1 | AB15: =-SUM(AB7:AB14) -> 0 | AF15: =SUM(AF7:AF14) -> 1 | AG15: =-SUM(AG7:AG14) -> 0 | AK15: =SUM(AK7:AK14) -> 1 | AL15: =-SUM(AL7:AL14) -> 0 | AP15: =SUM(AP7:AP14) -> 1 | AQ15: =-SUM(AQ7:AQ14) -> 0 | AU15: =SUM(AU7:AU14) -> 1 | AV15: =-SUM(AV7:AV14) -> 0
P16: U= | Q16: =Q15/(LOG(Q4)/LOG(2)) -> 0 | V16: U1= | W16: =W15/(LOG(W4)/LOG(2)) ->  | AA16: U2= | AB16: =AB15/(LOG(AB4)/LOG(2)) ->  | AF16: U3= | AG16: =AG15/(LOG(AG4)/LOG(2)) -> 0 | AK16: U4= | AL16: =AL15/(LOG(AL4)/LOG(2)) ->  | AP16: U5= | AQ16: =AQ15/(LOG(AQ4)/LOG(2)) ->  | AU16: U6= | AV16: =AV15/(LOG(AV4)/LOG(2)) -> 
N19: Total Target Seq
N20: =COUNTIF(L7:L11,G3) -> 0 | P20: 1 | Q20: 1 | R20: 0 | S20: 1 | T20: 1 | U20: 1
P21: % of reinforcement given in 6 equal intervals based on number of trials
P22: %_1 | Q22: %_2 | R22: %_3 | S22: %_4 | T22: %_5 | U22: %_6
O23: target sequence | P23: =$G$3 -> 211 | Q23: =$G$3 -> 211 | R23: =$G$3 -> 211 | S23: =$G$3 -> 211 | T23: =$G$3 -> 211 | U23: =$G$3 -> 211
O24: total reinforcement | P24: =U11 -> 0 | Q24: =Z11 -> 0 | R24: =AE11 -> 0 | S24: =AJ11 -> 0 | T24: =AO11 -> 0 | U24: =AT11 -> 0
O25: % target
O26: CCRF
O27: % CCRf
O28: average response rate | P28: =F7/P20 -> 195 | Q28: =(F8-F7)/Q20 -> 128 | R28: =(F8-F8)/R20 ->  | S28: =(F9-F8)/S20 -> 375 | T28: =(F10-F9)/T20 -> 188 | U28: =(F11-F10)/U20 -> 18002

Sheet !N119830.010
A1: Report for:!N119830.010
A2: Date: | B2: <date>
A3: Hen: | B3: <hen> | F3: Correct Sequence | G3: =Start!J2 -> 211 | P3: Total Sequences in Data | Q3: =4994-COUNTBLANK(L7:L5000) -> 19 | V3: Total Sequences in Block Data | W3: =COUNTA(L7:L9) -> 3 | AA3: Total Sequences in Block Data | AB3: =COUNTA(L10:L12) -> 3 | AF3: Total Sequences in Block Data | AG3: =COUNTA(L13:L16) -> 4 | AK3: Total Sequences in Block Data | AL3: =COUNTA(L17:L19) -> 3 | AP3: Total Sequences in Block Data | AQ3: =COUNTA(L20:L22) -> 3 | AU3: Total Sequences in Block Data | AV3: =COUNTA(L23:L25) -> 3
P4: Total Sequences in Summary | Q4: =SUM(O7:O14) -> 19 | V4: Total Sequences in Block Summary | W4: =SUM(U7:U14) -> 3 | AA4: Total Sequences in Block Summary | AB4: =SUM(Z7:Z14) -> 3 | AF4: Total Sequences in Block Summary | AG4: =SUM(AE7:AE14) -> 4 | AK4: Total Sequences in Block Summary | AL4: =SUM(AJ7:AJ14) -> 3 | AP4: Total Sequences in Block Summary | AQ4: =SUM(AO7:AO14) -> 3 | AU4: Total Sequences in Block Summary | AV4: =SUM(AT7:AT14) -> 3
T5: Block 1 | Y5: Block 2 | AD5: Block 3 | AI5: Block 4 | AN5: Block 5 | AS5: Block 6
A6: Sequence Component 1 | B6: Time 1 | C6: Sequence Component 2 | D6: Time 2 | E6: Sequence Component 3 | F6: Time 3 | G6: Sequence Component 4 | H6: Time 4 | I6: Sequence Component 5 | J6: Time 5 | K6: Correct? 0=No 1=Yes | L6: Sequence | N6: Frequency | P6: Relative Frequency | Q6: Variability | T6: Frequency | V6: Relative Frequency | W6: Variability | Y6: Frequency | AA6: Relative Frequency | AB6: Variability | AD6: Frequency | AF6: Relative Frequency | AG6: Variability | AI6: Frequency | AK6: Relative Frequency | AL6: Variability | AN6: Frequency | AP6: Relative Frequency | AQ6: Variability | AS6: Frequency | AU6: Relative Frequency | AV6: Variability
A7: 21 | B7: 42 | C7: 22 | D7: 48 | E7: 24 | F7: 58 | K7: 0 | L7: 222 | N7: 111 | O7: =COUNTIF($L$7:$L$500,N7) -> 12 | P7: =O7/$Q$4 -> 0.6315789474 | Q7: =IF(P7=0,0,(P7*((LOG(P7))/LOG(2)))) -> -0.4187147449 | T7: =N7 -> 111 | U7: =COUNTIF(L7:L9,T7) -> 1 | V7: =U7/(W4-U11) -> 0.3333333333 | W7: =IF(V7=0,0,(V7*((LOG(V7))/LOG(2)))) -> -0.5283208336 | Y7: =N7 -> 111 | Z7: =COUNTIF(L10:L12,Y7) -> 2 | AA7: =Z7/(AB4-Z11) -> 0.6666666667 | AB7: =IF(AA7=0,0,(AA7*((LOG(AA7))/LOG(2)))) -> -0.3899750005 | AD7: =N7 -> 111 | AE7: =COUNTIF(L13:L16,AD7) -> 4 | AF7: =AE7/(AG4-AE11) -> 1 | AG7: =IF(AF7=0,0,(AF7*((LOG(AF7))/LOG(2)))) -> 0 | AI7: =N7 -> 111 | AJ7: =COUNTIF(L17:L19,AI7) -> 1 | AK7: =AJ7/(AL4-AJ11) -> 0.3333333333 | AL7: =IF(AK7=0,0,(AK7*((LOG(AK7))/LOG(2)))) -> -0.5283208336 | AN7: =N7 -> 111 | AO7: =COUNTIF(L20:L22,AN7) -> 2 | AP7: =AO7/(AQ4-AO11) -> 0.6666666667 | AQ7: =IF(AP7=0,0,(AP7*((LOG(AP7))/LOG(2)))) -> -0.3899750005 | AS7: =N7 -> 111 | AT7: =COUNTIF(L23:L25,AS7) -> 2 | AU7: =AT7/(AV4-AT11) -> 0.6666666667 | AV7: =IF(AU7=0,0,(AU7*((LOG(AU7))/LOG(2)))) -> -0.3899750005
A8: 21 | B8: 212 | C8: 22 | D8: 245 | E8: 24 | F8: 254 | K8: 0 | L8: 222 | N8: 112 | O8: =COUNTIF($L$7:$L$500,N8) -> 0 | P8: =O8/$Q$4 -> 0 | Q8: =IF(P8=0,0,(P8*((LOG(P8))/LOG(2)))) -> 0 | T8: =N8 -> 112 | U8: =COUNTIF(L7:L9,T8) -> 0 | V8: =U8/(W4-U11) -> 0 | W8: =IF(V8=0,0,(V8*((LOG(V8))/LOG(2)))) -> 0 | Y8: =N8 -> 112 | Z8: =COUNTIF(L10:L12,Y8) -> 0 | AA8: =Z8/(AB4-Z11) -> 0 | AB8: =IF(AA8=0,0,(AA8*((LOG(AA8))/LOG(2)))) -> 0 | AD8: =N8 -> 112 | AE8: =COUNTIF(L13:L16,AD8) -> 0 | AF8: =AE8/(AG4-AE11) -> 0 | AG8: =IF(AF8=0,0,(AF8*((LOG(AF8))/LOG(2)))) -> 0 | AI8: =N8 -> 112 | AJ8: =COUNTIF(L17:L19,AI8) -> 0 | AK8: =AJ8/(AL4-AJ11) -> 0 | AL8: =IF(AK8=0,0,(AK8*((LOG(AK8))/LOG(2)))) -> 0 | AN8: =N8 -> 112 | AO8: =COUNTIF(L20:L22,AN8) -> 0 | AP8: =AO8/(AQ4-AO11) -> 0 | AQ8: =IF(AP8=0,0,(AP8*((LOG(AP8))/LOG(2)))) -> 0 | AS8: =N8 -> 112 | AT8: =COUNTIF(L23:L25,AS8) -> 0 | AU8: =AT8/(AV4-AT11) -> 0 | AV8: =IF(AU8=0,0,(AU8*((LOG(AU8))/LOG(2)))) -> 0
A9: 12 | B9: 458 | C9: 13 | D9: 464 | E9: 13 | F9: 469 | K9: 0 | L9: 111 | N9: 121 | O9: =COUNTIF($L$7:$L$500,N9) -> 0 | P9: =O9/$Q$4 -> 0 | Q9: =IF(P9=0,0,(P9*((LOG(P9))/LOG(2)))) -> 0 | T9: =N9 -> 121 | U9: =COUNTIF(L7:L9,T9) -> 0 | V9: =U9/(W4-U11) -> 0 | W9: =IF(V9=0,0,(V9*((LOG(V9))/LOG(2)))) -> 0 | Y9: =N9 -> 121 | Z9: =COUNTIF(L10:L12,Y9) -> 0 | AA9: =Z9/(AB4-Z11) -> 0 | AB9: =IF(AA9=0,0,(AA9*((LOG(AA9))/LOG(2)))) -> 0 | AD9: =N9 -> 121 | AE9: =COUNTIF(L13:L16,AD9) -> 0 | AF9: =AE9/(AG4-AE11) -> 0 | AG9: =IF(AF9=0,0,(AF9*((LOG(AF9))/LOG(2)))) -> 0 | AI9: =N9 -> 121 | AJ9: =COUNTIF(L17:L19,AI9) -> 0 | AK9: =AJ9/(AL4-AJ11) -> 0 | AL9: =IF(AK9=0,0,(AK9*((LOG(AK9))/LOG(2)))) -> 0 | AN9: =N9 -> 121 | AO9: =COUNTIF(L20:L22,AN9) -> 0 | AP9: =AO9/(AQ4-AO11) -> 0 | AQ9: =IF(AP9=0,0,(AP9*((LOG(AP9))/LOG(2)))) -> 0 | AS9: =N9 -> 121 | AT9: =COUNTIF(L23:L25,AS9) -> 0 | AU9: =AT9/(AV4-AT11) -> 0 | AV9: =IF(AU9=0,0,(AU9*((LOG(AU9))/LOG(2)))) -> 0
A10: 12 | B10: 584 | C10: 13 | D10: 589 | E10: 13 | F10: 635 | K10: 0 | L10: 111 | N10: 122 | O10: =COUNTIF($L$7:$L$500,N10) -> 0 | P10: =O10/$Q$4 -> 0 | Q10: =IF(P10=0,0,(P10*((LOG(P10))/LOG(2)))) -> 0 | T10: =N10 -> 122 | U10: =COUNTIF(L7:L9,T10) -> 0 | V10: =U10/(W4-U11) -> 0 | W10: =IF(V10=0,0,(V10*((LOG(V10))/LOG(2)))) -> 0 | Y10: =N10 -> 122 | Z10: =COUNTIF(L10:L12,Y10) -> 0 | AA10: =Z10/(AB4-Z11) -> 0 | AB10: =IF(AA10=0,0,(AA10*((LOG(AA10))/LOG(2)))) -> 0 | AD10: =N10 -> 122 | AE10: =COUNTIF(L13:L16,AD10) -> 0 | AF10: =AE10/(AG4-AE11) -> 0 | AG10: =IF(AF10=0,0,(AF10*((LOG(AF10))/LOG(2)))) -> 0 | AI10: =N10 -> 122 | AJ10: =COUNTIF(L17:L19,AI10) -> 0 | AK10: =AJ10/(AL4-AJ11) -> 0 | AL10: =IF(AK10=0,0,(AK10*((LOG(AK10))/LOG(2)))) -> 0 | AN10: =N10 -> 122 | AO10: =COUNTIF(L20:L22,AN10) -> 0 | AP10: =AO10/(AQ4-AO11) -> 0 | AQ10: =IF(AP10=0,0,(AP10*((LOG(AP10))/LOG(2)))) -> 0 | AS10: =N10 -> 122 | AT10: =COUNTIF(L23:L25,AS10) -> 0 | AU10: =AT10/(AV4-AT11) -> 0 | AV10: =IF(AU10=0,0,(AU10*((LOG(AU10))/LOG(2)))) -> 0
A11: 12 | B11: 765 | C11: 13 | D11: 771 | E11: 13 | F11: 784 | K11: 0 | L11: 111 | N11: 211 | O11: =COUNTIF($L$7:$L$500,N11) -> 0 | P11: =O11/$Q$4 -> 0 | Q11: =IF(P11=0,0,(P11*((LOG(P11))/LOG(2)))) -> 0 | T11: =N11 -> 211 | U11: =COUNTIF(L7:L9,T11) -> 0 | Y11: =N11 -> 211 | Z11: =COUNTIF(L10:L12,Y11) -> 0 | AD11: =N11 -> 211 | AE11: =COUNTIF(L13:L16,AD11) -> 0 | AI11: =N11 -> 211 | AJ11: =COUNTIF(L17:L19,AI11) -> 0 | AN11: =N11 -> 211 | AO11: =COUNTIF(L20:L22,AN11) -> 0 | AS11: =N11 -> 211 | AT11: =COUNTIF(L23:L25,AS11) -> 0
A12: 21 | B12: 1072 | C12: 22 | D12: 1090 | E12: 24 | F12: 1100 | K12: 0 | L12: 222 | N12: 212 | O12: =COUNTIF($L$7:$L$500,N12) -> 0 | P12: =O12/$Q$4 -> 0 | Q12: =IF(P12=0,0,(P12*((LOG(P12))/LOG(2)))) -> 0 | T12: =N12 -> 212 | U12: =COUNTIF(L7:L9,T12) -> 0 | V12: =U12/(W4-U11) -> 0 | W12: =IF(V12=0,0,(V12*((LOG(V12))/LOG(2)))) -> 0 | Y12: =N12 -> 212 | Z12: =COUNTIF(L10:L12,Y12) -> 0 | AA12: =Z12/(AB4-Z11) -> 0 | AB12: =IF(AA12=0,0,(AA12*((LOG(AA12))/LOG(2)))) -> 0 | AD12: =N12 -> 212 | AE12: =COUNTIF(L13:L16,AD12) -> 0 | AF12: =AE12/(AG4-AE11) -> 0 | AG12: =IF(AF12=0,0,(AF12*((LOG(AF12))/LOG(2)))) -> 0 | AI12: =N12 -> 212 | AJ12: =COUNTIF(L17:L19,AI12) -> 0 | AK12: =AJ12/(AL4-AJ11) -> 0 | AL12: =IF(AK12=0,0,(AK12*((LOG(AK12))/LOG(2)))) -> 0 | AN12: =N12 -> 212 | AO12: =COUNTIF(L20:L22,AN12) -> 0 | AP12: =AO12/(AQ4-AO11) -> 0 | AQ12: =IF(AP12=0,0,(AP12*((LOG(AP12))/LOG(2)))) -> 0 | AS12: =N12 -> 212 | AT12: =COUNTIF(L23:L25,AS12) -> 0 | AU12: =AT12/(AV4-AT11) -> 0 | AV12: =IF(AU12=0,0,(AU12*((LOG(AU12))/LOG(2)))) -> 0
A13: 12 | B13: 3302 | C13: 13 | D13: 3335 | E13: 13 | F13: 3341 | K13: 0 | L13: 111 | N13: 221 | O13: =COUNTIF($L$7:$L$500,N13) -> 0 | P13: =O13/$Q$4 -> 0 | Q13: =IF(P13=0,0,(P13*((LOG(P13))/LOG(2)))) -> 0 | T13: =N13 -> 221 | U13: =COUNTIF(L7:L9,T13) -> 0 | V13: =U13/(W4-U11) -> 0 | W13: =IF(V13=0,0,(V13*((LOG(V13))/LOG(2)))) -> 0 | Y13: =N13 -> 221 | Z13: =COUNTIF(L10:L12,Y13) -> 0 | AA13: =Z13/(AB4-Z11) -> 0 | AB13: =IF(AA13=0,0,(AA13*((LOG(AA13))/LOG(2)))) -> 0 | AD13: =N13 -> 221 | AE13: =COUNTIF(L13:L16,AD13) -> 0 | AF13: =AE13/(AG4-AE11) -> 0 | AG13: =IF(AF13=0,0,(AF13*((LOG(AF13))/LOG(2)))) -> 0 | AI13: =N13 -> 221 | AJ13: =COUNTIF(L17:L19,AI13) -> 0 | AK13: =AJ13/(AL4-AJ11) -> 0 | AL13: =IF(AK13=0,0,(AK13*((LOG(AK13))/LOG(2)))) -> 0 | AN13: =N13 -> 221 | AO13: =COUNTIF(L20:L22,AN13) -> 0 | AP13: =AO13/(AQ4-AO11) -> 0 | AQ13: =IF(AP13=0,0,(AP13*((LOG(AP13))/LOG(2)))) -> 0 | AS13: =N13 -> 221 | AT13: =COUNTIF(L23:L25,AS13) -> 0 | AU13: =AT13/(AV4-AT11) -> 0 | AV13: =IF(AU13=0,0,(AU13*((LOG(AU13))/LOG(2)))) -> 0
A14: 12 | B14: 3527 | C14: 13 | D14: 3543 | E14: 13 | F14: 3555 | K14: 0 | L14: 111 | N14: 222 | O14: =COUNTIF($L$7:$L$500,N14) -> 7 | P14: =O14/$Q$4 -> 0.3684210526 | Q14: =IF(P14=0,0,(P14*((LOG(P14))/LOG(2)))) -> -0.5307372705 | T14: =N14 -> 222 | U14: =COUNTIF(L7:L9,T14) -> 2 | V14: =U14/(W4-U11) -> 0.6666666667 | W14: =IF(V14=0,0,(V14*((LOG(V14))/LOG(2)))) -> -0.3899750005 | Y14: =N14 -> 222 | Z14: =COUNTIF(L10:L12,Y14) -> 1 | AA14: =Z14/(AB4-Z11) -> 0.3333333333 | AB14: =IF(AA14=0,0,(AA14*((LOG(AA14))/LOG(2)))) -> -0.5283208336 | AD14: =N14 -> 222 | AE14: =COUNTIF(L13:L16,AD14) -> 0 | AF14: =AE14/(AG4-AE11) -> 0 | AG14: =IF(AF14=0,0,(AF14*((LOG(AF14))/LOG(2)))) -> 0 | AI14: =N14 -> 222 | AJ14: =COUNTIF(L17:L19,AI14) -> 2 | AK14: =AJ14/(AL4-AJ11) -> 0.6666666667 | AL14: =IF(AK14=0,0,(AK14*((LOG(AK14))/LOG(2)))) -> -0.3899750005 | AN14: =N14 -> 222 | AO14: =COUNTIF(L20:L22,AN14) -> 1 | AP14: =AO14/(AQ4-AO11) -> 0.3333333333 | AQ14: =IF(AP14=0,0,(AP14*((LOG(AP14))/LOG(2)))) -> -0.5283208336 | AS14: =N14 -> 222 | AT14: =COUNTIF(L23:L25,AS14) -> 1 | AU14: =AT14/(AV4-AT11) -> 0.3333333333 | AV14: =IF(AU14=0,0,(AU14*((LOG(AU14))/LOG(2)))) -> -0.5283208336
A15: 12 | B15: 3785 | C15: 13 | D15: 3791 | E15: 13 | F15: 3802 | K15: 0 | L15: 111 | P15: =SUM(P7:P14) -> 1 | Q15: =-SUM(Q7:Q14) -> 0.9494520154 | V15: =SUM(V7:V14) -> 1 | W15: =-SUM(W7:W14) -> 0.9182958341 | AA15: =SUM(AA7:AA14) -> 1 | AB15: =-SUM(AB7:AB14) -> 0.9182958341 | AF15: =SUM(AF7:AF14) -> 1 | AG15: =-SUM(AG7:AG14) -> 0 | AK15: =SUM(AK7:AK14) -> 1 | AL15: =-SUM(AL7:AL14) -> 0.9182958341 | AP15: =SUM(AP7:AP14) -> 1 | AQ15: =-SUM(AQ7:AQ14) -> 0.9182958341 | AU15: =SUM(AU7:AU14) -> 1 | AV15: =-SUM(AV7:AV14) -> 0.9182958341
A16: 12 | B16: 3946 | C16: 13 | D16: 3950 | E16: 13 | F16: 3961 | K16: 0 | L16: 111 | P16: U= | Q16: =Q15/(LOG(Q4)/LOG(2)) -> 0.2235094672 | V16: U1= | W16: =W15/(LOG(W4)/LOG(2)) -> 0.5793801643 | AA16: U2= | AB16: =AB15/(LOG(AB4)/LOG(2)) -> 0.5793801643 | AF16: U3= | AG16: =AG15/(LOG(AG4)/LOG(2)) -> 0 | AK16: U4= | AL16: =AL15/(LOG(AL4)/LOG(2)) -> 0.5793801643 | AP16: U5= | AQ16: =AQ15/(LOG(AQ4)/LOG(2)) -> 0.5793801643 | AU16: U6= | AV16: =AV15/(LOG(AV4)/LOG(2)) -> 0.5793801643
A17: 12 | B17: 4102 | C17: 13 | D17: 4122 | E17: 13 | F17: 4136 | K17: 0 | L17: 111
A18: 21 | B18: 4257 | C18: 22 | D18: 4265 | E18: 24 | F18: 4274 | K18: 0 | L18: 222
A19: 21 | B19: 4402 | C19: 22 | D19: 4412 | E19: 24 | F19: 4419 | K19: 0 | L19: 222 | N19: Total Target Seq
A20: 12 | B20: 4518 | C20: 13 | D20: 4523 | E20: 13 | F20: 4539 | K20: 0 | L20: 111 | N20: =COUNTIF(L7:L25,G3) -> 0 | P20: 3 | Q20: 3 | R20: 4 | S20: 3 | T20: 3 | U20: 3
A21: 21 | B21: 4830 | C21: 22 | D21: 4839 | E21: 24 | F21: 4847 | K21: 0 | L21: 222 | P21: % of reinforcement given in 6 equal intervals based on number of trials
A22: 12 | B22: 4949 | C22: 13 | D22: 4954 | E22: 13 | F22: 4967 | K22: 0 | L22: 111 | P22: %_1 | Q22: %_2 | R22: %_3 | S22: %_4 | T22: %_5 | U22: %_6
A23: 12 | B23: 5286 | C23: 13 | D23: 5315 | E23: 13 | F23: 5332 | K23: 0 | L23: 111 | O23: target sequence | P23: =$G$3 -> 211 | Q23: =$G$3 -> 211 | R23: =$G$3 -> 211 | S23: =$G$3 -> 211 | T23: =$G$3 -> 211 | U23: =$G$3 -> 211
A24: 21 | B24: 9174 | C24: 22 | D24: 9180 | E24: 24 | F24: 9189 | K24: 0 | L24: 222 | O24: total reinforcement | P24: =U11 -> 0 | Q24: =Z11 -> 0 | R24: =AE11 -> 0 | S24: =AJ11 -> 0 | T24: =AO11 -> 0 | U24: =AT11 -> 0
A25: 12 | B25: 10853 | C25: 13 | D25: 10859 | E25: 13 | F25: 10868 | K25: 0 | L25: 111 | O25: % target
O26: CCRF
O27: % CCRf
O28: average response rate | P28: =F9/P20 -> 156.3333333 | Q28: =(F12-F9)/Q20 -> 210.3333333 | R28: =(F16-F12)/R20 -> 715.25 | S28: =(F19-F16)/S20 -> 152.6666667 | T28: =(F22-F19)/T20 -> 182.6666667 | U28: =(F25-F22)/U20 -> 1967

Sheet !N120940.010
A1: Report for:!N120940.010
A2: Date: | B2: <date>
A3: Hen: | B3: <hen> | F3: Correct Sequence | G3: =Start!J2 -> 211 | P3: Total Sequences in Data | Q3: =4994-COUNTBLANK(L7:L5000) -> 5 | V3: Total Sequences in Block Data | W3: =COUNTA(L7:L7) -> 1 | AA3: Total Sequences in Block Data | AB3: =COUNTA(L8:L8) -> 1 | AF3: Total Sequences in Block Data | AG3: =COUNTA(L8:L9) -> 2 | AK3: Total Sequences in Block Data | AL3: =COUNTA(L9:L9) -> 1 | AP3: Total Sequences in Block Data | AQ3: =COUNTA(L10:L10) -> 1 | AU3: Total Sequences in Block Data | AV3: =COUNTA(L11:L11) -> 1
P4: Total Sequences in Summary | Q4: =SUM(O7:O14) -> 5 | V4: Total Sequences in Block Summary | W4: =SUM(U7:U14) -> 1 | AA4: Total Sequences in Block Summary | AB4: =SUM(Z7:Z14) -> 1 | AF4: Total Sequences in Block Summary | AG4: =SUM(AE7:AE14) -> 2 | AK4: Total Sequences in Block Summary | AL4: =SUM(AJ7:AJ14) -> 1 | AP4: Total Sequences in Block Summary | AQ4: =SUM(AO7:AO14) -> 1 | AU4: Total Sequences in Block Summary | AV4: =SUM(AT7:AT14) -> 1
T5: Block 1 | Y5: Block 2 | AD5: Block 3 | AI5: Block 4 | AN5: Block 5 | AS5: Block 6
A6: Sequence Component 1 | B6: Time 1 | C6: Sequence Component 2 | D6: Time 2 | E6: Sequence Component 3 | F6: Time 3 | G6: Sequence Component 4 | H6: Time 4 | I6: Sequence Component 5 | J6: Time 5 | K6: Correct? 0=No 1=Yes | L6: Sequence | N6: Frequency | P6: Relative Frequency | Q6: Variability | T6: Frequency | V6: Relative Frequency | W6: Variability | Y6: Frequency | AA6: Relative Frequency | AB6: Variability | AD6: Frequency | AF6: Relative Frequency | AG6: Variability | AI6: Frequency | AK6: Relative Frequency | AL6: Variability | AN6: Frequency | AP6: Relative Frequency | AQ6: Variability | AS6: Frequency | AU6: Relative Frequency | AV6: Variability
A7: 12 | B7: 178 | C7: 13 | D7: 184 | E7: 13 | F7: 194 | K7: 0 | L7: 111 | N7: 111 | O7: =COUNTIF($L$7:$L$500,N7) -> 4 | P7: =O7/$Q$4 -> 0.8 | Q7: =IF(P7=0,0,(P7*((LOG(P7))/LOG(2)))) -> -0.2575424759 | T7: =N7 -> 111 | U7: =COUNTIF(L7:L7,T7) -> 1 | V7: =U7/(W4-U11) -> 1 | W7: =IF(V7=0,0,(V7*((LOG(V7))/LOG(2)))) -> 0 | Y7: =N7 -> 111 | Z7: =COUNTIF(L8:L8,Y7) -> 0 | AA7: =Z7/(AB4-Z11) -> 0 | AB7: =IF(AA7=0,0,(AA7*((LOG(AA7))/LOG(2)))) -> 0 | AD7: =N7 -> 111 | AE7: =COUNTIF(L8:L9,AD7) -> 1 | AF7: =AE7/(AG4-AE11) -> 0.5 | AG7: =IF(AF7=0,0,(AF7*((LOG(AF7))/LOG(2)))) -> -0.5 | AI7: =N7 -> 111 | AJ7: =COUNTIF(L9:L9,AI7) -> 1 | AK7: =AJ7/(AL4-AJ11) -> 1 | AL7: =IF(AK7=0,0,(AK7*((LOG(AK7))/LOG(2)))) -> 0 | AN7: =N7 -> 111 | AO7: =COUNTIF(L10:L10,AN7) -> 1 | AP7: =AO7/(AQ4-AO11) -> 1 | AQ7: =IF(AP7=0,0,(AP7*((LOG(AP7))/LOG(2)))) -> 0 | AS7: =N7 -> 111 | AT7: =COUNTIF(L11:L11,AS7) -> 1 | AU7: =AT7/(AV4-AT11) -> 1 | AV7: =IF(AU7=0,0,(AU7*((LOG(AU7))/LOG(2)))) -> 0
A8: 21 | B8: 680 | C8: 22 | D8: 695 | E8: 24 | F8: 700 | K8: 0 | L8: 222 | N8: 112 | O8: =COUNTIF($L$7:$L$500,N8) -> 0 | P8: =O8/$Q$4 -> 0 | Q8: =IF(P8=0,0,(P8*((LOG(P8))/LOG(2)))) -> 0 | T8: =N8 -> 112 | U8: =COUNTIF(L7:L7,T8) -> 0 | V8: =U8/(W4-U11) -> 0 | W8: =IF(V8=0,0,(V8*((LOG(V8))/LOG(2)))) -> 0 | Y8: =N8 -> 112 | Z8: =COUNTIF(L8:L8,Y8) -> 0 | AA8: =Z8/(AB4-Z11) -> 0 | AB8: =IF(AA8=0,0,(AA8*((LOG(AA8))/LOG(2)))) -> 0 | AD8: =N8 -> 112 | AE8: =COUNTIF(L8:L9,AD8) -> 0 | AF8: =AE8/(AG4-AE11) -> 0 | AG8: =IF(AF8=0,0,(AF8*((LOG(AF8))/LOG(2)))) -> 0 | AI8: =N8 -> 112 | AJ8: =COUNTIF(L9:L9,AI8) -> 0 | AK8: =AJ8/(AL4-AJ11) -> 0 | AL8: =IF(AK8=0,0,(AK8*((LOG(AK8))/LOG(2)))) -> 0 | AN8: =N8 -> 112 | AO8: =COUNTIF(L10:L10,AN8) -> 0 | AP8: =AO8/(AQ4-AO11) -> 0 | AQ8: =IF(AP8=0,0,(AP8*((LOG(AP8))/LOG(2)))) -> 0 | AS8: =N8 -> 112 | AT8: =COUNTIF(L11:L11,AS8) -> 0 | AU8: =AT8/(AV4-AT11) -> 0 | AV8: =IF(AU8=0,0,(AU8*((LOG(AU8))/LOG(2)))) -> 0
A9: 12 | B9: 875 | C9: 13 | D9: 880 | E9: 13 | F9: 886 | K9: 0 | L9: 111 | N9: 121 | O9: =COUNTIF($L$7:$L$500,N9) -> 0 | P9: =O9/$Q$4 -> 0 | Q9: =IF(P9=0,0,(P9*((LOG(P9))/LOG(2)))) -> 0 | T9: =N9 -> 121 | U9: =COUNTIF(L7:L7,T9) -> 0 | V9: =U9/(W4-U11) -> 0 | W9: =IF(V9=0,0,(V9*((LOG(V9))/LOG(2)))) -> 0 | Y9: =N9 -> 121 | Z9: =COUNTIF(L8:L8,Y9) -> 0 | AA9: =Z9/(AB4-Z11) -> 0 | AB9: =IF(AA9=0,0,(AA9*((LOG(AA9))/LOG(2)))) -> 0 | AD9: =N9 -> 121 | AE9: =COUNTIF(L8:L9,AD9) -> 0 | AF9: =AE9/(AG4-AE11) -> 0 | AG9: =IF(AF9=0,0,(AF9*((LOG(AF9))/LOG(2)))) -> 0 | AI9: =N9 -> 121 | AJ9: =COUNTIF(L9:L9,AI9) -> 0 | AK9: =AJ9/(AL4-AJ11) -> 0 | AL9: =IF(AK9=0,0,(AK9*((LOG(AK9))/LOG(2)))) -> 0 | AN9: =N9 -> 121 | AO9: =COUNTIF(L10:L10,AN9) -> 0 | AP9: =AO9/(AQ4-AO11) -> 0 | AQ9: =IF(AP9=0,0,(AP9*((LOG(AP9))/LOG(2)))) -> 0 | AS9: =N9 -> 121 | AT9: =COUNTIF(L11:L11,AS9) -> 0 | AU9: =AT9/(AV4-AT11) -> 0 | AV9: =IF(AU9=0,0,(AU9*((LOG(AU9))/LOG(2)))) -> 0
A10: 12 | B10: 5216 | C10: 13 | D10: 5227 | E10: 13 | F10: 5235 | K10: 0 | L10: 111 | N10: 122 | O10: =COUNTIF($L$7:$L$500,N10) -> 0 | P10: =O10/$Q$4 -> 0 | Q10: =IF(P10=0,0,(P10*((LOG(P10))/LOG(2)))) -> 0 | T10: =N10 -> 122 | U10: =COUNTIF(L7:L7,T10) -> 0 | V10: =U10/(W4-U11) -> 0 | W10: =IF(V10=0,0,(V10*((LOG(V10))/LOG(2)))) -> 0 | Y10: =N10 -> 122 | Z10: =COUNTIF(L8:L8,Y10) -> 0 | AA10: =Z10/(AB4-Z11) -> 0 | AB10: =IF(AA10=0,0,(AA10*((LOG(AA10))/LOG(2)))) -> 0 | AD10: =N10 -> 122 | AE10: =COUNTIF(L8:L9,AD10) -> 0 | AF10: =AE10/(AG4-AE11) -> 0 | AG10: =IF(AF10=0,0,(AF10*((LOG(AF10))/LOG(2)))) -> 0 | AI10: =N10 -> 122 | AJ10: =COUNTIF(L9:L9,AI10) -> 0 | AK10: =AJ10/(AL4-AJ11) -> 0 | AL10: =IF(AK10=0,0,(AK10*((LOG(AK10))/LOG(2)))) -> 0 | AN10: =N10 -> 122 | AO10: =COUNTIF(L10:L10,AN10) -> 0 | AP10: =AO10/(AQ4-AO11) -> 0 | AQ10: =IF(AP10=0,0,(AP10*((LOG(AP10))/LOG(2)))) -> 0 | AS10: =N10 -> 122 | AT10: =COUNTIF(L11:L11,AS10) -> 0 | AU10: =AT10/(AV4-AT11) -> 0 | AV10: =IF(AU10=0,0,(AU10*((LOG(AU10))/LOG(2)))) -> 0
A11: 12 | B11: 16999 | C11: 13 | D11: 17004 | E11: 13 | F11: 17009 | K11: 0 | L11: 111 | N11: 211 | O11: =COUNTIF($L$7:$L$500,N11) -> 0 | P11: =O11/$Q$4 -> 0 | Q11: =IF(P11=0,0,(P11*((LOG(P11))/LOG(2)))) -> 0 | T11: =N11 -> 211 | U11: =COUNTIF(L7:L7,T11) -> 0 | Y11: =N11 -> 211 | Z11: =COUNTIF(L8:L8,Y11) -> 0 | AD11: =N11 -> 211 | AE11: =COUNTIF(L8:L9,AD11) -> 0 | AI11: =N11 -> 211 | AJ11: =COUNTIF(L9:L9,AI11) -> 0 | AN11: =N11 -> 211 | AO11: =COUNTIF(L10:L10,AN11) -> 0 | AS11: =N11 -> 211 | AT11: =COUNTIF(L11:L11,AS11) -> 0
N12: 212 | O12: =COUNTIF($L$7:$L$500,N12) -> 0 | P12: =O12/$Q$4 -> 0 | Q12: =IF(P12=0,0,(P12*((LOG(P12))/LOG(2)))) -> 0 | T12: =N12 -> 212 | U12: =COUNTIF(L7:L7,T12) -> 0 | V12: =U12/(W4-U11) -> 0 | W12: =IF(V12=0,0,(V12*((LOG(V12))/LOG(2)))) -> 0 | Y12: =N12 -> 212 | Z12: =COUNTIF(L8:L8,Y12) -> 0 | AA12: =Z12/(AB4-Z11) -> 0 | AB12: =IF(AA12=0,0,(AA12*((LOG(AA12))/LOG(2)))) -> 0 | AD12: =N12 -> 212 | AE12: =COUNTIF(L8:L9,AD12) -> 0 | AF12: =AE12/(AG4-AE11) -> 0 | AG12: =IF(AF12=0,0,(AF12*((LOG(AF12))/LOG(2)))) -> 0 | AI12: =N12 -> 212 | AJ12: =COUNTIF(L9:L9,AI12) -> 0 | AK12: =AJ12/(AL4-AJ11) -> 0 | AL12: =IF(AK12=0,0,(AK12*((LOG(AK12))/LOG(2)))) -> 0 | AN12: =N12 -> 212 | AO12: =COUNTIF(L10:L10,AN12) -> 0 | AP12: =AO12/(AQ4-AO11) -> 0 | AQ12: =IF(AP12=0,0,(AP12*((LOG(AP12))/LOG(2)))) -> 0 | AS12: =N12 -> 212 | AT12: =COUNTIF(L11:L11,AS12) -> 0 | AU12: =AT12/(AV4-AT11) -> 0 | AV12: =IF(AU12=0,0,(AU12*((LOG(AU12))/LOG(2)))) -> 0
N13: 221 | O13: =COUNTIF($L$7:$L$500,N13) -> 0 | P13: =O13/$Q$4 -> 0 | Q13: =IF(P13=0,0,(P13*((LOG(P13))/LOG(2)))) -> 0 | T13: =N13 -> 221 | U13: =COUNTIF(L7:L7,T13) -> 0 | V13: =U13/(W4-U11) -> 0 | W13: =IF(V13=0,0,(V13*((LOG(V13))/LOG(2)))) -> 0 | Y13: =N13 -> 221 | Z13: =COUNTIF(L8:L8,Y13) -> 0 | AA13: =Z13/(AB4-Z11) -> 0 | AB13: =IF(AA13=0,0,(AA13*((LOG(AA13))/LOG(2)))) -> 0 | AD13: =N13 -> 221 | AE13: =COUNTIF(L8:L9,AD13) -> 0 | AF13: =AE13/(AG4-AE11) -> 0 | AG13: =IF(AF13=0,0,(AF13*((LOG(AF13))/LOG(2)))) -> 0 | AI13: =N13 -> 221 | AJ13: =COUNTIF(L9:L9,AI13) -> 0 | AK13: =AJ13/(AL4-AJ11) -> 0 | AL13: =IF(AK13=0,0,(AK13*((LOG(AK13))/LOG(2)))) -> 0 | AN13: =N13 -> 221 | AO13: =COUNTIF(L10:L10,AN13) -> 0 | AP13: =AO13/(AQ4-AO11) -> 0 | AQ13: =IF(AP13=0,0,(AP13*((LOG(AP13))/LOG(2)))) -> 0 | AS13: =N13 -> 221 | AT13: =COUNTIF(L11:L11,AS13) -> 0 | AU13: =AT13/(AV4-AT11) -> 0 | AV13: =IF(AU13=0,0,(AU13*((LOG(AU13))/LOG(2)))) -> 0
N14: 222 | O14: =COUNTIF($L$7:$L$500,N14) -> 1 | P14: =O14/$Q$4 -> 0.2 | Q14: =IF(P14=0,0,(P14*((LOG(P14))/LOG(2)))) -> -0.464385619 | T14: =N14 -> 222 | U14: =COUNTIF(L7:L7,T14) -> 0 | V14: =U14/(W4-U11) -> 0 | W14: =IF(V14=0,0,(V14*((LOG(V14))/LOG(2)))) -> 0 | Y14: =N14 -> 222 | Z14: =COUNTIF(L8:L8,Y14) -> 1 | AA14: =Z14/(AB4-Z11) -> 1 | AB14: =IF(AA14=0,0,(AA14*((LOG(AA14))/LOG(2)))) -> 0 | AD14: =N14 -> 222 | AE14: =COUNTIF(L8:L9,AD14) -> 1 | AF14: =AE14/(AG4-AE11) -> 0.5 | AG14: =IF(AF14=0,0,(AF14*((LOG(AF14))/LOG(2)))) -> -0.5 | AI14: =N14 -> 222 | AJ14: =COUNTIF(L9:L9,AI14) -> 0 | AK14: =AJ14/(AL4-AJ11) -> 0 | AL14: =IF(AK14=0,0,(AK14*((LOG(AK14))/LOG(2)))) -> 0 | AN14: =N14 -> 222 | AO14: =COUNTIF(L10:L10,AN14) -> 0 | AP14: =AO14/(AQ4-AO11) -> 0 | AQ14: =IF(AP14=0,0,(AP14*((LOG(AP14))/LOG(2)))) -> 0 | AS14: =N14 -> 222 | AT14: =COUNTIF(L11:L11,AS14) -> 0 | AU14: =AT14/(AV4-AT11) -> 0 | AV14: =IF(AU14=0,0,(AU14*((LOG(AU14))/LOG(2)))) -> 0
P15: =SUM(P7:P14) -> 1 | Q15: =-SUM(Q7:Q14) -> 0.7219280949 | V15: =SUM(V7:V14) -> 1 | W15: =-SUM(W7:W14) -> 0 | AA15: =SUM(AA7:AA14) -> 1 | AB15: =-SUM(AB7:AB14) -> 0 | AF15: =SUM(AF7:AF14) -> 1 | AG15: =-SUM(AG7:AG14) -> 1 | AK15: =SUM(AK7:AK14) -> 1 | AL15: =-SUM(AL7:AL14) -> 0 | AP15: =SUM(AP7:AP14) -> 1 | AQ15: =-SUM(AQ7:AQ14) -> 0 | AU15: =SUM(AU7:AU14) -> 1 | AV15: =-SUM(AV7:AV14) -> 0
P16: U= | Q16: =Q15/(LOG(Q4)/LOG(2)) -> 0.3109175071 | V16: U1= | W16: =W15/(LOG(W4)/LOG(2)) ->  | AA16: U2= | AB16: =AB15/(LOG(AB4)/LOG(2)) ->  | AF16: U3= | AG16: =AG15/(LOG(AG4)/LOG(2)) -> 1 | AK16: U4= | AL16: =AL15/(LOG(AL4)/LOG(2)) ->  | AP16: U5= | AQ16: =AQ15/(LOG(AQ4)/LOG(2)) ->  | AU16: U6= | AV16: =AV15/(LOG(AV4)/LOG(2)) -> 
N19: Total Target Seq
N20: =COUNTIF(L7:L11,G3) -> 0 | P20: 1 | Q20: 1 | R20: 0 | S20: 1 | T20: 1 | U20: 1
P21: % of reinforcement given in 6 equal intervals based on number of trials
P22: %_1 | Q22: %_2 | R22: %_3 | S22: %_4 | T22: %_5 | U22: %_6
O23: target sequence | P23: =$G$3 -> 211 | Q23: =$G$3 -> 211 | R23: =$G$3 -> 211 | S23: =$G$3 -> 211 | T23: =$G$3 -> 211 | U23: =$G$3 -> 211
O24: total reinforcement | P24: =U11 -> 0 | Q24: =Z11 -> 0 | R24: =AE11 -> 0 | S24: =AJ11 -> 0 | T24: =AO11 -> 0 | U24: =AT11 -> 0
O25: % target
O26: CCRF
O27: % CCRf
O28: average response rate | P28: =F7/P20 -> 194 | Q28: =(F8-F7)/Q20 -> 506 | R28: =(F8-F8)/R20 ->  | S28: =(F9-F8)/S20 -> 186 | T28: =(F10-F9)/T20 -> 4349 | U28: =(F11-F10)/U20 -> 11774

Sheet !N121930.010
A1: Report for:!N121930.010
A2: Date: | B2: <date>
A3: Hen: | B3: <hen> | F3: Correct Sequence | G3: =Start!J2 -> 211 | P3: Total Sequences in Data | Q3: =4994-COUNTBLANK(L7:L5000) -> 8 | V3: Total Sequences in Block Data | W3: =COUNTA(L7:L7) -> 1 | AA3: Total Sequences in Block Data | AB3: =COUNTA(L8:L9) -> 2 | AF3: Total Sequences in Block Data | AG3: =COUNTA(L10:L10) -> 1 | AK3: Total Sequences in Block Data | AL3: =COUNTA(L11:L11) -> 1 | AP3: Total Sequences in Block Data | AQ3: =COUNTA(L12:L13) -> 2 | AU3: Total Sequences in Block Data | AV3: =COUNTA(L14:L14) -> 1
P4: Total Sequences in Summary | Q4: =SUM(O7:O14) -> 8 | V4: Total Sequences in Block Summary | W4: =SUM(U7:U14) -> 1 | AA4: Total Sequences in Block Summary | AB4: =SUM(Z7:Z14) -> 2 | AF4: Total Sequences in Block Summary | AG4: =SUM(AE7:AE14) -> 1 | AK4: Total Sequences in Block Summary | AL4: =SUM(AJ7:AJ14) -> 1 | AP4: Total Sequences in Block Summary | AQ4: =SUM(AO7:AO14) -> 2 | AU4: Total Sequences in Block Summary | AV4: =SUM(AT7:AT14) -> 1
T5: Block 1 | Y5: Block 2 | AD5: Block 3 | AI5: Block 4 | AN5: Block 5 | AS5: Block 6
A6: Sequence Component 1 | B6: Time 1 | C6: Sequence Component 2 | D6: Time 2 | E6: Sequence Component 3 | F6: Time 3 | G6: Sequence Component 4 | H6: Time 4 | I6: Sequence Component 5 | J6: Time 5 | K6: Correct? 0=No 1=Yes | L6: Sequence | N6: Frequency | P6: Relative Frequency | Q6: Variability | T6: Frequency | V6: Relative Frequency | W6: Variability | Y6: Frequency | AA6: Relative Frequency | AB6: Variability | AD6: Frequency | AF6: Relative Frequency | AG6: Variability | AI6: Frequency | AK6: Relative Frequency | AL6: Variability | AN6: Frequency | AP6: Relative Frequency | AQ6: Variability | AS6: Frequency | AU6: Relative Frequency | AV6: Variability
A7: 12 | B7: 156 | C7: 13 | D7: 161 | E7: 13 | F7: 166 | K7: 0 | L7: 111 | N7: 111 | O7: =COUNTIF($L$7:$L$500,N7) -> 7 | P7: =O7/$Q$4 -> 0.875 | Q7: =IF(P7=0,0,(P7*((LOG(P7))/LOG(2)))) -> -0.1685644432 | T7: =N7 -> 111 | U7: =COUNTIF(L7:L7,T7) -> 1 | V7: =U7/(W4-U11) -> 1 | W7: =IF(V7=0,0,(V7*((LOG(V7))/LOG(2)))) -> 0 | Y7: =N7 -> 111 | Z7: =COUNTIF(L8:L9,Y7) -> 2 | AA7: =Z7/(AB4-Z11) -> 1 | AB7: =IF(AA7=0,0,(AA7*((LOG(AA7))/LOG(2)))) -> 0 | AD7: =N7 -> 111 | AE7: =COUNTIF(L10:L10,AD7) -> 1 | AF7: =AE7/(AG4-AE11) -> 1 | AG7: =IF(AF7=0,0,(AF7*((LOG(AF7))/LOG(2)))) -> 0 | AI7: =N7 -> 111 | AJ7: =COUNTIF(L11:L11,AI7) -> 1 | AK7: =AJ7/(AL4-AJ11) -> 1 | AL7: =IF(AK7=0,0,(AK7*((LOG(AK7))/LOG(2)))) -> 0 | AN7: =N7 -> 111 | AO7: =COUNTIF(L12:L13,AN7) -> 2 | AP7: =AO7/(AQ4-AO11) -> 1 | AQ7: =IF(AP7=0,0,(AP7*((LOG(AP7))/LOG(2)))) -> 0 | AS7: =N7 -> 111 | AT7: =COUNTIF(L14:L14,AS7) -> 0 | AU7: =AT7/(AV4-AT11) -> 0 | AV7: =IF(AU7=0,0,(AU7*((LOG(AU7))/LOG(2)))) -> 0
A8: 12 | B8: 306 | C8: 13 | D8: 311 | E8: 13 | F8: 316 | K8: 0 | L8: 111 | N8: 112 | O8: =COUNTIF($L$7:$L$500,N8) -> 0 | P8: =O8/$Q$4 -> 0 | Q8: =IF(P8=0,0,(P8*((LOG(P8))/LOG(2)))) -> 0 | T8: =N8 -> 112 | U8: =COUNTIF(L7:L7,T8) -> 0 | V8: =U8/(W4-U11) -> 0 | W8: =IF(V8=0,0,(V8*((LOG(V8))/LOG(2)))) -> 0 | Y8: =N8 -> 112 | Z8: =COUNTIF(L8:L9,Y8) -> 0 | AA8: =Z8/(AB4-Z11) -> 0 | AB8: =IF(AA8=0,0,(AA8*((LOG(AA8))/LOG(2)))) -> 0 | AD8: =N8 -> 112 | AE8: =COUNTIF(L10:L10,AD8) -> 0 | AF8: =AE8/(AG4-AE11) -> 0 | AG8: =IF(AF8=0,0,(AF8*((LOG(AF8))/LOG(2)))) -> 0 | AI8: =N8 -> 112 | AJ8: =COUNTIF(L11:L11,AI8) -> 0 | AK8: =AJ8/(AL4-AJ11) -> 0 | AL8: =IF(AK8=0,0,(AK8*((LOG(AK8))/LOG(2)))) -> 0 | AN8: =N8 -> 112 | AO8: =COUNTIF(L12:L13,AN8) -> 0 | AP8: =AO8/(AQ4-AO11) -> 0 | AQ8: =IF(AP8=0,0,(AP8*((LOG(AP8))/LOG(2)))) -> 0 | AS8: =N8 -> 112 | AT8: =COUNTIF(L14:L14,AS8) -> 0 | AU8: =AT8/(AV4-AT11) -> 0 | AV8: =IF(AU8=0,0,(AU8*((LOG(AU8))/LOG(2)))) -> 0
A9: 12 | B9: 443 | C9: 13 | D9: 448 | E9: 13 | F9: 453 | K9: 0 | L9: 111 | N9: 121 | O9: =COUNTIF($L$7:$L$500,N9) -> 0 | P9: =O9/$Q$4 -> 0 | Q9: =IF(P9=0,0,(P9*((LOG(P9))/LOG(2)))) -> 0 | T9: =N9 -> 121 | U9: =COUNTIF(L7:L7,T9) -> 0 | V9: =U9/(W4-U11) -> 0 | W9: =IF(V9=0,0,(V9*((LOG(V9))/LOG(2)))) -> 0 | Y9: =N9 -> 121 | Z9: =COUNTIF(L8:L9,Y9) -> 0 | AA9: =Z9/(AB4-Z11) -> 0 | AB9: =IF(AA9=0,0,(AA9*((LOG(AA9))/LOG(2)))) -> 0 | AD9: =N9 -> 121 | AE9: =COUNTIF(L10:L10,AD9) -> 0 | AF9: =AE9/(AG4-AE11) -> 0 | AG9: =IF(AF9=0,0,(AF9*((LOG(AF9))/LOG(2)))) -> 0 | AI9: =N9 -> 121 | AJ9: =COUNTIF(L11:L11,AI9) -> 0 | AK9: =AJ9/(AL4-AJ11) -> 0 | AL9: =IF(AK9=0,0,(AK9*((LOG(AK9))/LOG(2)))) -> 0 | AN9: =N9 -> 121 | AO9: =COUNTIF(L12:L13,AN9) -> 0 | AP9: =AO9/(AQ4-AO11) -> 0 | AQ9: =IF(AP9=0,0,(AP9*((LOG(AP9))/LOG(2)))) -> 0 | AS9: =N9 -> 121 | AT9: =COUNTIF(L14:L14,AS9) -> 0 | AU9: =AT9/(AV4-AT11) -> 0 | AV9: =IF(AU9=0,0,(AU9*((LOG(AU9))/LOG(2)))) -> 0
A10: 12 | B10: 813 | C10: 13 | D10: 818 | E10: 13 | F10: 822 | K10: 0 | L10: 111 | N10: 122 | O10: =COUNTIF($L$7:$L$500,N10) -> 0 | P10: =O10/$Q$4 -> 0 | Q10: =IF(P10=0,0,(P10*((LOG(P10))/LOG(2)))) -> 0 | T10: =N10 -> 122 | U10: =COUNTIF(L7:L7,T10) -> 0 | V10: =U10/(W4-U11) -> 0 | W10: =IF(V10=0,0,(V10*((LOG(V10))/LOG(2)))) -> 0 | Y10: =N10 -> 122 | Z10: =COUNTIF(L8:L9,Y10) -> 0 | AA10: =Z10/(AB4-Z11) -> 0 | AB10: =IF(AA10=0,0,(AA10*((LOG(AA10))/LOG(2)))) -> 0 | AD10: =N10 -> 122 | AE10: =COUNTIF(L10:L10,AD10) -> 0 | AF10: =AE10/(AG4-AE11) -> 0 | AG10: =IF(AF10=0,0,(AF10*((LOG(AF10))/LOG(2)))) -> 0 | AI10: =N10 -> 122 | AJ10: =COUNTIF(L11:L11,AI10) -> 0 | AK10: =AJ10/(AL4-AJ11) -> 0 | AL10: =IF(AK10=0,0,(AK10*((LOG(AK10))/LOG(2)))) -> 0 | AN10: =N10 -> 122 | AO10: =COUNTIF(L12:L13,AN10) -> 0 | AP10: =AO10/(AQ4-AO11) -> 0 | AQ10: =IF(AP10=0,0,(AP10*((LOG(AP10))/LOG(2)))) -> 0 | AS10: =N10 -> 122 | AT10: =COUNTIF(L14:L14,AS10) -> 0 | AU10: =AT10/(AV4-AT11) -> 0 | AV10: =IF(AU10=0,0,(AU10*((LOG(AU10))/LOG(2)))) -> 0
A11: 12 | B11: 6358 | C11: 13 | D11: 6369 | E11: 13 | F11: 6374 | K11: 0 | L11: 111 | N11: 211 | O11: =COUNTIF($L$7:$L$500,N11) -> 0 | P11: =O11/$Q$4 -> 0 | Q11: =IF(P11=0,0,(P11*((LOG(P11))/LOG(2)))) -> 0 | T11: =N11 -> 211 | U11: =COUNTIF(L7:L7,T11) -> 0 | Y11: =N11 -> 211 | Z11: =COUNTIF(L8:L9,Y11) -> 0 | AD11: =N11 -> 211 | AE11: =COUNTIF(L10:L10,AD11) -> 0 | AI11: =N11 -> 211 | AJ11: =COUNTIF(L11:L11,AI11) -> 0 | AN11: =N11 -> 211 | AO11: =COUNTIF(L12:L13,AN11) -> 0 | AS11: =N11 -> 211 | AT11: =COUNTIF(L14:L14,AS11) -> 0
A12: 12 | B12: 9572 | C12: 13 | D12: 9579 | E12: 13 | F12: 9584 | K12: 0 | L12: 111 | N12: 212 | O12: =COUNTIF($L$7:$L$500,N12) -> 0 | P12: =O12/$Q$4 -> 0 | Q12: =IF(P12=0,0,(P12*((LOG(P12))/LOG(2)))) -> 0 | T12: =N12 -> 212 | U12: =COUNTIF(L7:L7,T12) -> 0 | V12: =U12/(W4-U11) -> 0 | W12: =IF(V12=0,0,(V12*((LOG(V12))/LOG(2)))) -> 0 | Y12: =N12 -> 212 | Z12: =COUNTIF(L8:L9,Y12) -> 0 | AA12: =Z12/(AB4-Z11) -> 0 | AB12: =IF(AA12=0,0,(AA12*((LOG(AA12))/LOG(2)))) -> 0 | AD12: =N12 -> 212 | AE12: =COUNTIF(L10:L10,AD12) -> 0 | AF12: =AE12/(AG4-AE11) -> 0 | AG12: =IF(AF12=0,0,(AF12*((LOG(AF12))/LOG(2)))) -> 0 | AI12: =N12 -> 212 | AJ12: =COUNTIF(L11:L11,AI12) -> 0 | AK12: =AJ12/(AL4-AJ11) -> 0 | AL12: =IF(AK12=0,0,(AK12*((LOG(AK12))/LOG(2)))) -> 0 | AN12: =N12 -> 212 | AO12: =COUNTIF(L12:L13,AN12) -> 0 | AP12: =AO12/(AQ4-AO11) -> 0 | AQ12: =IF(AP12=0,0,(AP12*((LOG(AP12))/LOG(2)))) -> 0 | AS12: =N12 -> 212 | AT12: =COUNTIF(L14:L14,AS12) -> 0 | AU12: =AT12/(AV4-AT11) -> 0 | AV12: =IF(AU12=0,0,(AU12*((LOG(AU12))/LOG(2)))) -> 0
A13: 12 | B13: 13167 | C13: 13 | D13: 13172 | E13: 13 | F13: 13178 | K13: 0 | L13: 111 | N13: 221 | O13: =COUNTIF($L$7:$L$500,N13) -> 0 | P13: =O13/$Q$4 -> 0 | Q13: =IF(P13=0,0,(P13*((LOG(P13))/LOG(2)))) -> 0 | T13: =N13 -> 221 | U13: =COUNTIF(L7:L7,T13) -> 0 | V13: =U13/(W4-U11) -> 0 | W13: =IF(V13=0,0,(V13*((LOG(V13))/LOG(2)))) -> 0 | Y13: =N13 -> 221 | Z13: =COUNTIF(L8:L9,Y13) -> 0 | AA13: =Z13/(AB4-Z11) -> 0 | AB13: =IF(AA13=0,0,(AA13*((LOG(AA13))/LOG(2)))) -> 0 | AD13: =N13 -> 221 | AE13: =COUNTIF(L10:L10,AD13) -> 0 | AF13: =AE13/(AG4-AE11) -> 0 | AG13: =IF(AF13=0,0,(AF13*((LOG(AF13))/LOG(2)))) -> 0 | AI13: =N13 -> 221 | AJ13: =COUNTIF(L11:L11,AI13) -> 0 | AK13: =AJ13/(AL4-AJ11) -> 0 | AL13: =IF(AK13=0,0,(AK13*((LOG(AK13))/LOG(2)))) -> 0 | AN13: =N13 -> 221 | AO13: =COUNTIF(L12:L13,AN13) -> 0 | AP13: =AO13/(AQ4-AO11) -> 0 | AQ13: =IF(AP13=0,0,(AP13*((LOG(AP13))/LOG(2)))) -> 0 | AS13: =N13 -> 221 | AT13: =COUNTIF(L14:L14,AS13) -> 0 | AU13: =AT13/(AV4-AT11) -> 0 | AV13: =IF(AU13=0,0,(AU13*((LOG(AU13))/LOG(2)))) -> 0
A14: 21 | B14: 23509 | C14: 22 | D14: 23514 | E14: 24 | F14: 23520 | K14: 0 | L14: 222 | N14: 222 | O14: =COUNTIF($L$7:$L$500,N14) -> 1 | P14: =O14/$Q$4 -> 0.125 | Q14: =IF(P14=0,0,(P14*((LOG(P14))/LOG(2)))) -> -0.375 | T14: =N14 -> 222 | U14: =COUNTIF(L7:L7,T14) -> 0 | V14: =U14/(W4-U11) -> 0 | W14: =IF(V14=0,0,(V14*((LOG(V14))/LOG(2)))) -> 0 | Y14: =N14 -> 222 | Z14: =COUNTIF(L8:L9,Y14) -> 0 | AA14: =Z14/(AB4-Z11) -> 0 | AB14: =IF(AA14=0,0,(AA14*((LOG(AA14))/LOG(2)))) -> 0 | AD14: =N14 -> 222 | AE14: =COUNTIF(L10:L10,AD14) -> 0 | AF14: =AE14/(AG4-AE11) -> 0 | AG14: =IF(AF14=0,0,(AF14*((LOG(AF14))/LOG(2)))) -> 0 | AI14: =N14 -> 222 | AJ14: =COUNTIF(L11:L11,AI14) -> 0 | AK14: =AJ14/(AL4-AJ11) -> 0 | AL14: =IF(AK14=0,0,(AK14*((LOG(AK14))/LOG(2)))) -> 0 | AN14: =N14 -> 222 | AO14: =COUNTIF(L12:L13,AN14) -> 0 | AP14: =AO14/(AQ4-AO11) -> 0 | AQ14: =IF(AP14=0,0,(AP14*((LOG(AP14))/LOG(2)))) -> 0 | AS14: =N14 -> 222 | AT14: =COUNTIF(L14:L14,AS14) -> 1 | AU14: =AT14/(AV4-AT11) -> 1 | AV14: =IF(AU14=0,0,(AU14*((LOG(AU14))/LOG(2)))) -> 0
P15: =SUM(P7:P14) -> 1 | Q15: =-SUM(Q7:Q14) -> 0.5435644432 | V15: =SUM(V7:V14) -> 1 | W15: =-SUM(W7:W14) -> 0 | AA15: =SUM(AA7:AA14) -> 1 | AB15: =-SUM(AB7:AB14) -> 0 | AF15: =SUM(AF7:AF14) -> 1 | AG15: =-SUM(AG7:AG14) -> 0 | AK15: =SUM(AK7:AK14) -> 1 | AL15: =-SUM(AL7:AL14) -> 0 | AP15: =SUM(AP7:AP14) -> 1 | AQ15: =-SUM(AQ7:AQ14) -> 0 | AU15: =SUM(AU7:AU14) -> 1 | AV15: =-SUM(AV7:AV14) -> 0
P16: U= | Q16: =Q15/(LOG(Q4)/LOG(2)) -> 0.1811881477 | V16: U1= | W16: =W15/(LOG(W4)/LOG(2)) ->  | AA16: U2= | AB16: =AB15/(LOG(AB4)/LOG(2)) -> 0 | AF16: U3= | AG16: =AG15/(LOG(AG4)/LOG(2)) ->  | AK16: U4= | AL16: =AL15/(LOG(AL4)/LOG(2)) ->  | AP16: U5= | AQ16: =AQ15/(LOG(AQ4)/LOG(2)) -> 0 | AU16: U6= | AV16: =AV15/(LOG(AV4)/LOG(2)) -> 
N19: Total Target Seq
N20: =COUNTIF(L7:L14,G3) -> 0 | P20: 1 | Q20: 2 | R20: 1 | S20: 1 | T20: 2 | U20: 1
P21: % of reinforcement given in 6 equal intervals based on number of trials
P22: %_1 | Q22: %_2 | R22: %_3 | S22: %_4 | T22: %_5 | U22: %_6
O23: target sequence | P23: =$G$3 -> 211 | Q23: =$G$3 -> 211 | R23: =$G$3 -> 211 | S23: =$G$3 -> 211 | T23: =$G$3 -> 211 | U23: =$G$3 -> 211
O24: total reinforcement | P24: =U11 -> 0 | Q24: =Z11 -> 0 | R24: =AE11 -> 0 | S24: =AJ11 -> 0 | T24: =AO11 -> 0 | U24: =AT11 -> 0
O25: % target
O26: CCRF
O27: % CCRf
O28: average response rate | P28: =F7/P20 -> 166 | Q28: =(F9-F7)/Q20 -> 143.5 | R28: =(F10-F9)/R20 -> 369 | S28: =(F11-F10)/S20 -> 5552 | T28: =(F13-F11)/T20 -> 3402 | U28: =(F14-F13)/U20 -> 10342

Sheet !N122820.010
A1: Report for:!N122820.010
A2: Date: | B2: <date>
A3: Hen: | B3: <hen> | F3: Correct Sequence | G3: =Start!J2 -> 211 | P3: Total Sequences in Data | Q3: =4994-COUNTBLANK(L7:L5000) -> 5 | V3: Total Sequences in Block Data | W3: =COUNTA(L7:L7) -> 1 | AA3: Total Sequences in Block Data | AB3: =COUNTA(L8:L8) -> 1 | AF3: Total Sequences in Block Data | AG3: =COUNTA(L8:L9) -> 2 | AK3: Total Sequences in Block Data | AL3: =COUNTA(L9:L9) -> 1 | AP3: Total Sequences in Block Data | AQ3: =COUNTA(L10:L10) -> 1 | AU3: Total Sequences in Block Data | AV3: =COUNTA(L11:L11) -> 1
P4: Total Sequences in Summary | Q4: =SUM(O7:O14) -> 5 | V4: Total Sequences in Block Summary | W4: =SUM(U7:U14) -> 1 | AA4: Total Sequences in Block Summary | AB4: =SUM(Z7:Z14) -> 1 | AF4: Total Sequences in Block Summary | AG4: =SUM(AE7:AE14) -> 2 | AK4: Total Sequences in Block Summary | AL4: =SUM(AJ7:AJ14) -> 1 | AP4: Total Sequences in Block Summary | AQ4: =SUM(AO7:AO14) -> 1 | AU4: Total Sequences in Block Summary | AV4: =SUM(AT7:AT14) -> 1
T5: Block 1 | Y5: Block 2 | AD5: Block 3 | AI5: Block 4 | AN5: Block 5 | AS5: Block 6
A6: Sequence Component 1 | B6: Time 1 | C6: Sequence Component 2 | D6: Time 2 | E6: Sequence Component 3 | F6: Time 3 | G6: Sequence Component 4 | H6: Time 4 | I6: Sequence Component 5 | J6: Time 5 | K6: Correct? 0=No 1=Yes | L6: Sequence | N6: Frequency | P6: Relative Frequency | Q6: Variability | T6: Frequency | V6: Relative Frequency | W6: Variability | Y6: Frequency | AA6: Relative Frequency | AB6: Variability | AD6: Frequency | AF6: Relative Frequency | AG6: Variability | AI6: Frequency | AK6: Relative Frequency | AL6: Variability | AN6: Frequency | AP6: Relative Frequency | AQ6: Variability | AS6: Frequency | AU6: Relative Frequency | AV6: Variability
A7: 12 | B7: 225 | C7: 13 | D7: 229 | E7: 13 | F7: 234 | K7: 0 | L7: 111 | N7: 111 | O7: =COUNTIF($L$7:$L$500,N7) -> 3 | P7: =O7/$Q$4 -> 0.6 | Q7: =IF(P7=0,0,(P7*((LOG(P7))/LOG(2)))) -> -0.4421793565 | T7: =N7 -> 111 | U7: =COUNTIF(L7:L7,T7) -> 1 | V7: =U7/(W4-U11) -> 1 | W7: =IF(V7=0,0,(V7*((LOG(V7))/LOG(2)))) -> 0 | Y7: =N7 -> 111 | Z7: =COUNTIF(L8:L8,Y7) -> 1 | AA7: =Z7/(AB4-Z11) -> 1 | AB7: =IF(AA7=0,0,(AA7*((LOG(AA7))/LOG(2)))) -> 0 | AD7: =N7 -> 111 | AE7: =COUNTIF(L8:L9,AD7) -> 1 | AF7: =AE7/(AG4-AE11) -> 0.5 | AG7: =IF(AF7=0,0,(AF7*((LOG(AF7))/LOG(2)))) -> -0.5 | AI7: =N7 -> 111 | AJ7: =COUNTIF(L9:L9,AI7) -> 0 | AK7: =AJ7/(AL4-AJ11) -> 0 | AL7: =IF(AK7=0,0,(AK7*((LOG(AK7))/LOG(2)))) -> 0 | AN7: =N7 -> 111 | AO7: =COUNTIF(L10:L10,AN7) -> 0 | AP7: =AO7/(AQ4-AO11) -> 0 | AQ7: =IF(AP7=0,0,(AP7*((LOG(AP7))/LOG(2)))) -> 0 | AS7: =N7 -> 111 | AT7: =COUNTIF(L11:L11,AS7) -> 1 | AU7: =AT7/(AV4-AT11) -> 1 | AV7: =IF(AU7=0,0,(AU7*((LOG(AU7))/LOG(2)))) -> 0
A8: 12 | B8: 395 | C8: 13 | D8: 400 | E8: 13 | F8: 405 | K8: 0 | L8: 111 | N8: 112 | O8: =COUNTIF($L$7:$L$500,N8) -> 0 | P8: =O8/$Q$4 -> 0 | Q8: =IF(P8=0,0,(P8*((LOG(P8))/LOG(2)))) -> 0 | T8: =N8 -> 112 | U8: =COUNTIF(L7:L7,T8) -> 0 | V8: =U8/(W4-U11) -> 0 | W8: =IF(V8=0,0,(V8*((LOG(V8))/LOG(2)))) -> 0 | Y8: =N8 -> 112 | Z8: =COUNTIF(L8:L8,Y8) -> 0 | AA8: =Z8/(AB4-Z11) -> 0 | AB8: =IF(AA8=0,0,(AA8*((LOG(AA8))/LOG(2)))) -> 0 | AD8: =N8 -> 112 | AE8: =COUNTIF(L8:L9,AD8) -> 0 | AF8: =AE8/(AG4-AE11) -> 0 | AG8: =IF(AF8=0,0,(AF8*((LOG(AF8))/LOG(2)))) -> 0 | AI8: =N8 -> 112 | AJ8: =COUNTIF(L9:L9,AI8) -> 0 | AK8: =AJ8/(AL4-AJ11) -> 0 | AL8: =IF(AK8=0,0,(AK8*((LOG(AK8))/LOG(2)))) -> 0 | AN8: =N8 -> 112 | AO8: =COUNTIF(L10:L10,AN8) -> 0 | AP8: =AO8/(AQ4-AO11) -> 0 | AQ8: =IF(AP8=0,0,(AP8*((LOG(AP8))/LOG(2)))) -> 0 | AS8: =N8 -> 112 | AT8: =COUNTIF(L11:L11,AS8) -> 0 | AU8: =AT8/(AV4-AT11) -> 0 | AV8: =IF(AU8=0,0,(AU8*((LOG(AU8))/LOG(2)))) -> 0
A9: 21 | B9: 5421 | C9: 22 | D9: 5428 | E9: 24 | F9: 5438 | K9: 0 | L9: 222 | N9: 121 | O9: =COUNTIF($L$7:$L$500,N9) -> 0 | P9: =O9/$Q$4 -> 0 | Q9: =IF(P9=0,0,(P9*((LOG(P9))/LOG(2)))) -> 0 | T9: =N9 -> 121 | U9: =COUNTIF(L7:L7,T9) -> 0 | V9: =U9/(W4-U11) -> 0 | W9: =IF(V9=0,0,(V9*((LOG(V9))/LOG(2)))) -> 0 | Y9: =N9 -> 121 | Z9: =COUNTIF(L8:L8,Y9) -> 0 | AA9: =Z9/(AB4-Z11) -> 0 | AB9: =IF(AA9=0,0,(AA9*((LOG(AA9))/LOG(2)))) -> 0 | AD9: =N9 -> 121 | AE9: =COUNTIF(L8:L9,AD9) -> 0 | AF9: =AE9/(AG4-AE11) -> 0 | AG9: =IF(AF9=0,0,(AF9*((LOG(AF9))/LOG(2)))) -> 0 | AI9: =N9 -> 121 | AJ9: =COUNTIF(L9:L9,AI9) -> 0 | AK9: =AJ9/(AL4-AJ11) -> 0 | AL9: =IF(AK9=0,0,(AK9*((LOG(AK9))/LOG(2)))) -> 0 | AN9: =N9 -> 121 | AO9: =COUNTIF(L10:L10,AN9) -> 0 | AP9: =AO9/(AQ4-AO11) -> 0 | AQ9: =IF(AP9=0,0,(AP9*((LOG(AP9))/LOG(2)))) -> 0 | AS9: =N9 -> 121 | AT9: =COUNTIF(L11:L11,AS9) -> 0 | AU9: =AT9/(AV4-AT11) -> 0 | AV9: =IF(AU9=0,0,(AU9*((LOG(AU9))/LOG(2)))) -> 0
A10: 21 | B10: 6012 | C10: 22 | D10: 6017 | E10: 24 | F10: 6027 | K10: 0 | L10: 222 | N10: 122 | O10: =COUNTIF($L$7:$L$500,N10) -> 0 | P10: =O10/$Q$4 -> 0 | Q10: =IF(P10=0,0,(P10*((LOG(P10))/LOG(2)))) -> 0 | T10: =N10 -> 122 | U10: =COUNTIF(L7:L7,T10) -> 0 | V10: =U10/(W4-U11) -> 0 | W10: =IF(V10=0,0,(V10*((LOG(V10))/LOG(2)))) -> 0 | Y10: =N10 -> 122 | Z10: =COUNTIF(L8:L8,Y10) -> 0 | AA10: =Z10/(AB4-Z11) -> 0 | AB10: =IF(AA10=0,0,(AA10*((LOG(AA10))/LOG(2)))) -> 0 | AD10: =N10 -> 122 | AE10: =COUNTIF(L8:L9,AD10) -> 0 | AF10: =AE10/(AG4-AE11) -> 0 | AG10: =IF(AF10=0,0,(AF10*((LOG(AF10))/LOG(2)))) -> 0 | AI10: =N10 -> 122 | AJ10: =COUNTIF(L9:L9,AI10) -> 0 | AK10: =AJ10/(AL4-AJ11) -> 0 | AL10: =IF(AK10=0,0,(AK10*((LOG(AK10))/LOG(2)))) -> 0 | AN10: =N10 -> 122 | AO10: =COUNTIF(L10:L10,AN10) -> 0 | AP10: =AO10/(AQ4-AO11) -> 0 | AQ10: =IF(AP10=0,0,(AP10*((LOG(AP10))/LOG(2)))) -> 0 | AS10: =N10 -> 122 | AT10: =COUNTIF(L11:L11,AS10) -> 0 | AU10: =AT10/(AV4-AT11) -> 0 | AV10: =IF(AU10=0,0,(AU10*((LOG(AU10))/LOG(2)))) -> 0
A11: 12 | B11: 12711 | C11: 13 | D11: 12717 | E11: 13 | F11: 12722 | K11: 0 | L11: 111 | N11: 211 | O11: =COUNTIF($L$7:$L$500,N11) -> 0 | P11: =O11/$Q$4 -> 0 | Q11: =IF(P11=0,0,(P11*((LOG(P11))/LOG(2)))) -> 0 | T11: =N11 -> 211 | U11: =COUNTIF(L7:L7,T11) -> 0 | Y11: =N11 -> 211 | Z11: =COUNTIF(L8:L8,Y11) -> 0 | AD11: =N11 -> 211 | AE11: =COUNTIF(L8:L9,AD11) -> 0 | AI11: =N11 -> 211 | AJ11: =COUNTIF(L9:L9,AI11) -> 0 | AN11: =N11 -> 211 | AO11: =COUNTIF(L10:L10,AN11) -> 0 | AS11: =N11 -> 211 | AT11: =COUNTIF(L11:L11,AS11) -> 0
N12: 212 | O12: =COUNTIF($L$7:$L$500,N12) -> 0 | P12: =O12/$Q$4 -> 0 | Q12: =IF(P12=0,0,(P12*((LOG(P12))/LOG(2)))) -> 0 | T12: =N12 -> 212 | U12: =COUNTIF(L7:L7,T12) -> 0 | V12: =U12/(W4-U11) -> 0 | W12: =IF(V12=0,0,(V12*((LOG(V12))/LOG(2)))) -> 0 | Y12: =N12 -> 212 | Z12: =COUNTIF(L8:L8,Y12) -> 0 | AA12: =Z12/(AB4-Z11) -> 0 | AB12: =IF(AA12=0,0,(AA12*((LOG(AA12))/LOG(2)))) -> 0 | AD12: =N12 -> 212 | AE12: =COUNTIF(L8:L9,AD12) -> 0 | AF12: =AE12/(AG4-AE11) -> 0 | AG12: =IF(AF12=0,0,(AF12*((LOG(AF12))/LOG(2)))) -> 0 | AI12: =N12 -> 212 | AJ12: =COUNTIF(L9:L9,AI12) -> 0 | AK12: =AJ12/(AL4-AJ11) -> 0 | AL12: =IF(AK12=0,0,(AK12*((LOG(AK12))/LOG(2)))) -> 0 | AN12: =N12 -> 212 | AO12: =COUNTIF(L10:L10,AN12) -> 0 | AP12: =AO12/(AQ4-AO11) -> 0 | AQ12: =IF(AP12=0,0,(AP12*((LOG(AP12))/LOG(2)))) -> 0 | AS12: =N12 -> 212 | AT12: =COUNTIF(L11:L11,AS12) -> 0 | AU12: =AT12/(AV4-AT11) -> 0 | AV12: =IF(AU12=0,0,(AU12*((LOG(AU12))/LOG(2)))) -> 0
N13: 221 | O13: =COUNTIF($L$7:$L$500,N13) -> 0 | P13: =O13/$Q$4 -> 0 | Q13: =IF(P13=0,0,(P13*((LOG(P13))/LOG(2)))) -> 0 | T13: =N13 -> 221 | U13: =COUNTIF(L7:L7,T13) -> 0 | V13: =U13/(W4-U11) -> 0 | W13: =IF(V13=0,0,(V13*((LOG(V13))/LOG(2)))) -> 0 | Y13: =N13 -> 221 | Z13: =COUNTIF(L8:L8,Y13) -> 0 | AA13: =Z13/(AB4-Z11) -> 0 | AB13: =IF(AA13=0,0,(AA13*((LOG(AA13))/LOG(2)))) -> 0 | AD13: =N13 -> 221 | AE13: =COUNTIF(L8:L9,AD13) -> 0 | AF13: =AE13/(AG4-AE11) -> 0 | AG13: =IF(AF13=0,0,(AF13*((LOG(AF13))/LOG(2)))) -> 0 | AI13: =N13 -> 221 | AJ13: =COUNTIF(L9:L9,AI13) -> 0 | AK13: =AJ13/(AL4-AJ11) -> 0 | AL13: =IF(AK13=0,0,(AK13*((LOG(AK13))/LOG(2)))) -> 0 | AN13: =N13 -> 221 | AO13: =COUNTIF(L10:L10,AN13) -> 0 | AP13: =AO13/(AQ4-AO11) -> 0 | AQ13: =IF(AP13=0,0,(AP13*((LOG(AP13))/LOG(2)))) -> 0 | AS13: =N13 -> 221 | AT13: =COUNTIF(L11:L11,AS13) -> 0 | AU13: =AT13/(AV4-AT11) -> 0 | AV13: =IF(AU13=0,0,(AU13*((LOG(AU13))/LOG(2)))) -> 0
N14: 222 | O14: =COUNTIF($L$7:$L$500,N14) -> 2 | P14: =O14/$Q$4 -> 0.4 | Q14: =IF(P14=0,0,(P14*((LOG(P14))/LOG(2)))) -> -0.528771238 | T14: =N14 -> 222 | U14: =COUNTIF(L7:L7,T14) -> 0 | V14: =U14/(W4-U11) -> 0 | W14: =IF(V14=0,0,(V14*((LOG(V14))/LOG(2)))) -> 0 | Y14: =N14 -> 222 | Z14: =COUNTIF(L8:L8,Y14) -> 0 | AA14: =Z14/(AB4-Z11) -> 0 | AB14: =IF(AA14=0,0,(AA14*((LOG(AA14))/LOG(2)))) -> 0 | AD14: =N14 -> 222 | AE14: =COUNTIF(L8:L9,AD14) -> 1 | AF14: =AE14/(AG4-AE11) -> 0.5 | AG14: =IF(AF14=0,0,(AF14*((LOG(AF14))/LOG(2)))) -> -0.5 | AI14: =N14 -> 222 | AJ14: =COUNTIF(L9:L9,AI14) -> 1 | AK14: =AJ14/(AL4-AJ11) -> 1 | AL14: =IF(AK14=0,0,(AK14*((LOG(AK14))/LOG(2)))) -> 0 | AN14: =N14 -> 222 | AO14: =COUNTIF(L10:L10,AN14) -> 1 | AP14: =AO14/(AQ4-AO11) -> 1 | AQ14: =IF(AP14=0,0,(AP14*((LOG(AP14))/LOG(2)))) -> 0 | AS14: =N14 -> 222 | AT14: =COUNTIF(L11:L11,AS14) -> 0 | AU14: =AT14/(AV4-AT11) -> 0 | AV14: =IF(AU14=0,0,(AU14*((LOG(AU14))/LOG(2)))) -> 0
P15: =SUM(P7:P14) -> 1 | Q15: =-SUM(Q7:Q14) -> 0.9709505945 | V15: =SUM(V7:V14) -> 1 | W15: =-SUM(W7:W14) -> 0 | AA15: =SUM(AA7:AA14) -> 1 | AB15: =-SUM(AB7:AB14) -> 0 | AF15: =SUM(AF7:AF14) -> 1 | AG15: =-SUM(AG7:AG14) -> 1 | AK15: =SUM(AK7:AK14) -> 1 | AL15: =-SUM(AL7:AL14) -> 0 | AP15: =SUM(AP7:AP14) -> 1 | AQ15: =-SUM(AQ7:AQ14) -> 0 | AU15: =SUM(AU7:AU14) -> 1 | AV15: =-SUM(AV7:AV14) -> 0
P16: U= | Q16: =Q15/(LOG(Q4)/LOG(2)) -> 0.4181656601 | V16: U1= | W16: =W15/(LOG(W4)/LOG(2)) ->  | AA16: U2= | AB16: =AB15/(LOG(AB4)/LOG(2)) ->  | AF16: U3= | AG16: =AG15/(LOG(AG4)/LOG(2)) -> 1 | AK16: U4= | AL16: =AL15/(LOG(AL4)/LOG(2)) ->  | AP16: U5= | AQ16: =AQ15/(LOG(AQ4)/LOG(2)) ->  | AU16: U6= | AV16: =AV15/(LOG(AV4)/LOG(2)) -> 
N19: Total Target Seq
N20: =COUNTIF(L7:L11,G3) -> 0 | P20: 1 | Q20: 1 | R20: 0 | S20: 1 | T20: 1 | U20: 1
P21: % of reinforcement given in 6 equal intervals based on number of trials
P22: %_1 | Q22: %_2 | R22: %_3 | S22: %_4 | T22: %_5 | U22: %_6
O23: target sequence | P23: =$G$3 -> 211 | Q23: =$G$3 -> 211 | R23: =$G$3 -> 211 | S23: =$G$3 -> 211 | T23: =$G$3 -> 211 | U23: =$G$3 -> 211
O24: total reinforcement | P24: =U11 -> 0 | Q24: =Z11 -> 0 | R24: =AE11 -> 0 | S24: =AJ11 -> 0 | T24: =AO11 -> 0 | U24: =AT11 -> 0
O25: % target
O26: CCRF
O27: % CCRf
O28: average response rate | P28: =F7/P20 -> 234 | Q28: =(F8-F7)/Q20 -> 171 | R28: =(F8-F8)/R20 ->  | S28: =(F9-F8)/S20 -> 5033 | T28: =(F10-F9)/T20 -> 589 | U28: =(F11-F10)/U20 -> 6695

Sheet !N123950.010
A1: Report for:!N123950.010
A2: Date: | B2: <date>
A3: Hen: | B3: <hen> | F3: Correct Sequence | G3: =Start!J2 -> 211 | P3: Total Sequences in Data | Q3: =4994-COUNTBLANK(L7:L5000) -> 18 | V3: Total Sequences in Block Data | W3: =COUNTA(L7:L9) -> 3 | AA3: Total Sequences in Block Data | AB3: =COUNTA(L10:L12) -> 3 | AF3: Total Sequences in Block Data | AG3: =COUNTA(L13:L15) -> 3 | AK3: Total Sequences in Block Data | AL3: =COUNTA(L16:L18) -> 3 | AP3: Total Sequences in Block Data | AQ3: =COUNTA(L19:L21) -> 3 | AU3: Total Sequences in Block Data | AV3: =COUNTA(L22:L24) -> 3
P4: Total Sequences in Summary | Q4: =SUM(O7:O14) -> 18 | V4: Total Sequences in Block Summary | W4: =SUM(U7:U14) -> 3 | AA4: Total Sequences in Block Summary | AB4: =SUM(Z7:Z14) -> 3 | AF4: Total Sequences in Block Summary | AG4: =SUM(AE7:AE14) -> 3 | AK4: Total Sequences in Block Summary | AL4: =SUM(AJ7:AJ14) -> 3 | AP4: Total Sequences in Block Summary | AQ4: =SUM(AO7:AO14) -> 3 | AU4: Total Sequences in Block Summary | AV4: =SUM(AT7:AT14) -> 3
T5: Block 1 | Y5: Block 2 | AD5: Block 3 | AI5: Block 4 | AN5: Block 5 | AS5: Block 6
A6: Sequence Component 1 | B6: Time 1 | C6: Sequence Component 2 | D6: Time 2 | E6: Sequence Component 3 | F6: Time 3 | G6: Sequence Component 4 | H6: Time 4 | I6: Sequence Component 5 | J6: Time 5 | K6: Correct? 0=No 1=Yes | L6: Sequence | N6: Frequency | P6: Relative Frequency | Q6: Variability | T6: Frequency | V6: Relative Frequency | W6: Variability | Y6: Frequency | AA6: Relative Frequency | AB6: Variability | AD6: Frequency | AF6: Relative Frequency | AG6: Variability | AI6: Frequency | AK6: Relative Frequency | AL6: Variability | AN6: Frequency | AP6: Relative Frequency | AQ6: Variability | AS6: Frequency | AU6: Relative Frequency | AV6: Variability
A7: 21 | B7: 37 | C7: 22 | D7: 43 | E7: 24 | F7: 47 | K7: 0 | L7: 222 | N7: 111 | O7: =COUNTIF($L$7:$L$500,N7) -> 10 | P7: =O7/$Q$4 -> 0.5555555556 | Q7: =IF(P7=0,0,(P7*((LOG(P7))/LOG(2)))) -> -0.4711093925 | T7: =N7 -> 111 | U7: =COUNTIF(L7:L9,T7) -> 0 | V7: =U7/(W4-U11) -> 0 | W7: =IF(V7=0,0,(V7*((LOG(V7))/LOG(2)))) -> 0 | Y7: =N7 -> 111 | Z7: =COUNTIF(L10:L12,Y7) -> 3 | AA7: =Z7/(AB4-Z11) -> 1 | AB7: =IF(AA7=0,0,(AA7*((LOG(AA7))/LOG(2)))) -> 0 | AD7: =N7 -> 111 | AE7: =COUNTIF(L13:L15,AD7) -> 3 | AF7: =AE7/(AG4-AE11) -> 1 | AG7: =IF(AF7=0,0,(AF7*((LOG(AF7))/LOG(2)))) -> 0 | AI7: =N7 -> 111 | AJ7: =COUNTIF(L16:L18,AI7) -> 3 | AK7: =AJ7/(AL4-AJ11) -> 1 | AL7: =IF(AK7=0,0,(AK7*((LOG(AK7))/LOG(2)))) -> 0 | AN7: =N7 -> 111 | AO7: =COUNTIF(L19:L21,AN7) -> 1 | AP7: =AO7/(AQ4-AO11) -> 0.3333333333 | AQ7: =IF(AP7=0,0,(AP7*((LOG(AP7))/LOG(2)))) -> -0.5283208336 | AS7: =N7 -> 111 | AT7: =COUNTIF(L22:L24,AS7) -> 0 | AU7: =AT7/(AV4-AT11) -> 0 | AV7: =IF(AU7=0,0,(AU7*((LOG(AU7))/LOG(2)))) -> 0
A8: 21 | B8: 165 | C8: 22 | D8: 181 | E8: 24 | F8: 185 | K8: 0 | L8: 222 | N8: 112 | O8: =COUNTIF($L$7:$L$500,N8) -> 0 | P8: =O8/$Q$4 -> 0 | Q8: =IF(P8=0,0,(P8*((LOG(P8))/LOG(2)))) -> 0 | T8: =N8 -> 112 | U8: =COUNTIF(L7:L9,T8) -> 0 | V8: =U8/(W4-U11) -> 0 | W8: =IF(V8=0,0,(V8*((LOG(V8))/LOG(2)))) -> 0 | Y8: =N8 -> 112 | Z8: =COUNTIF(L10:L12,Y8) -> 0 | AA8: =Z8/(AB4-Z11) -> 0 | AB8: =IF(AA8=0,0,(AA8*((LOG(AA8))/LOG(2)))) -> 0 | AD8: =N8 -> 112 | AE8: =COUNTIF(L13:L15,AD8) -> 0 | AF8: =AE8/(AG4-AE11) -> 0 | AG8: =IF(AF8=0,0,(AF8*((LOG(AF8))/LOG(2)))) -> 0 | AI8: =N8 -> 112 | AJ8: =COUNTIF(L16:L18,AI8) -> 0 | AK8: =AJ8/(AL4-AJ11) -> 0 | AL8: =IF(AK8=0,0,(AK8*((LOG(AK8))/LOG(2)))) -> 0 | AN8: =N8 -> 112 | AO8: =COUNTIF(L19:L21,AN8) -> 0 | AP8: =AO8/(AQ4-AO11) -> 0 | AQ8: =IF(AP8=0,0,(AP8*((LOG(AP8))/LOG(2)))) -> 0 | AS8: =N8 -> 112 | AT8: =COUNTIF(L22:L24,AS8) -> 0 | AU8: =AT8/(AV4-AT11) -> 0 | AV8: =IF(AU8=0,0,(AU8*((LOG(AU8))/LOG(2)))) -> 0
A9: 21 | B9: 388 | C9: 22 | D9: 393 | E9: 24 | F9: 398 | K9: 0 | L9: 222 | N9: 121 | O9: =COUNTIF($L$7:$L$500,N9) -> 0 | P9: =O9/$Q$4 -> 0 | Q9: =IF(P9=0,0,(P9*((LOG(P9))/LOG(2)))) -> 0 | T9: =N9 -> 121 | U9: =COUNTIF(L7:L9,T9) -> 0 | V9: =U9/(W4-U11) -> 0 | W9: =IF(V9=0,0,(V9*((LOG(V9))/LOG(2)))) -> 0 | Y9: =N9 -> 121 | Z9: =COUNTIF(L10:L12,Y9) -> 0 | AA9: =Z9/(AB4-Z11) -> 0 | AB9: =IF(AA9=0,0,(AA9*((LOG(AA9))/LOG(2)))) -> 0 | AD9: =N9 -> 121 | AE9: =COUNTIF(L13:L15,AD9) -> 0 | AF9: =AE9/(AG4-AE11) -> 0 | AG9: =IF(AF9=0,0,(AF9*((LOG(AF9))/LOG(2)))) -> 0 | AI9: =N9 -> 121 | AJ9: =COUNTIF(L16:L18,AI9) -> 0 | AK9: =AJ9/(AL4-AJ11) -> 0 | AL9: =IF(AK9=0,0,(AK9*((LOG(AK9))/LOG(2)))) -> 0 | AN9: =N9 -> 121 | AO9: =COUNTIF(L19:L21,AN9) -> 0 | AP9: =AO9/(AQ4-AO11) -> 0 | AQ9: =IF(AP9=0,0,(AP9*((LOG(AP9))/LOG(2)))) -> 0 | AS9: =N9 -> 121 | AT9: =COUNTIF(L22:L24,AS9) -> 0 | AU9: =AT9/(AV4-AT11) -> 0 | AV9: =IF(AU9=0,0,(AU9*((LOG(AU9))/LOG(2)))) -> 0
A10: 12 | B10: 506 | C10: 13 | D10: 511 | E10: 13 | F10: 516 | K10: 0 | L10: 111 | N10: 122 | O10: =COUNTIF($L$7:$L$500,N10) -> 0 | P10: =O10/$Q$4 -> 0 | Q10: =IF(P10=0,0,(P10*((LOG(P10))/LOG(2)))) -> 0 | T10: =N10 -> 122 | U10: =COUNTIF(L7:L9,T10) -> 0 | V10: =U10/(W4-U11) -> 0 | W10: =IF(V10=0,0,(V10*((LOG(V10))/LOG(2)))) -> 0 | Y10: =N10 -> 122 | Z10: =COUNTIF(L10:L12,Y10) -> 0 | AA10: =Z10/(AB4-Z11) -> 0 | AB10: =IF(AA10=0,0,(AA10*((LOG(AA10))/LOG(2)))) -> 0 | AD10: =N10 -> 122 | AE10: =COUNTIF(L13:L15,AD10) -> 0 | AF10: =AE10/(AG4-AE11) -> 0 | AG10: =IF(AF10=0,0,(AF10*((LOG(AF10))/LOG(2)))) -> 0 | AI10: =N10 -> 122 | AJ10: =COUNTIF(L16:L18,AI10) -> 0 | AK10: =AJ10/(AL4-AJ11) -> 0 | AL10: =IF(AK10=0,0,(AK10*((LOG(AK10))/LOG(2)))) -> 0 | AN10: =N10 -> 122 | AO10: =COUNTIF(L19:L21,AN10) -> 0 | AP10: =AO10/(AQ4-AO11) -> 0 | AQ10: =IF(AP10=0,0,(AP10*((LOG(AP10))/LOG(2)))) -> 0 | AS10: =N10 -> 122 | AT10: =COUNTIF(L22:L24,AS10) -> 0 | AU10: =AT10/(AV4-AT11) -> 0 | AV10: =IF(AU10=0,0,(AU10*((LOG(AU10))/LOG(2)))) -> 0
A11: 12 | B11: 619 | C11: 13 | D11: 624 | E11: 13 | F11: 629 | K11: 0 | L11: 111 | N11: 211 | O11: =COUNTIF($L$7:$L$500,N11) -> 0 | P11: =O11/$Q$4 -> 0 | Q11: =IF(P11=0,0,(P11*((LOG(P11))/LOG(2)))) -> 0 | T11: =N11 -> 211 | U11: =COUNTIF(L7:L9,T11) -> 0 | Y11: =N11 -> 211 | Z11: =COUNTIF(L10:L12,Y11) -> 0 | AD11: =N11 -> 211 | AE11: =COUNTIF(L13:L15,AD11) -> 0 | AI11: =N11 -> 211 | AJ11: =COUNTIF(L16:L18,AI11) -> 0 | AN11: =N11 -> 211 | AO11: =COUNTIF(L19:L21,AN11) -> 0 | AS11: =N11 -> 211 | AT11: =COUNTIF(L22:L24,AS11) -> 0
A12: 12 | B12: 732 | C12: 13 | D12: 737 | E12: 13 | F12: 742 | K12: 0 | L12: 111 | N12: 212 | O12: =COUNTIF($L$7:$L$500,N12) -> 0 | P12: =O12/$Q$4 -> 0 | Q12: =IF(P12=0,0,(P12*((LOG(P12))/LOG(2)))) -> 0 | T12: =N12 -> 212 | U12: =COUNTIF(L7:L9,T12) -> 0 | V12: =U12/(W4-U11) -> 0 | W12: =IF(V12=0,0,(V12*((LOG(V12))/LOG(2)))) -> 0 | Y12: =N12 -> 212 | Z12: =COUNTIF(L10:L12,Y12) -> 0 | AA12: =Z12/(AB4-Z11) -> 0 | AB12: =IF(AA12=0,0,(AA12*((LOG(AA12))/LOG(2)))) -> 0 | AD12: =N12 -> 212 | AE12: =COUNTIF(L13:L15,AD12) -> 0 | AF12: =AE12/(AG4-AE11) -> 0 | AG12: =IF(AF12=0,0,(AF12*((LOG(AF12))/LOG(2)))) -> 0 | AI12: =N12 -> 212 | AJ12: =COUNTIF(L16:L18,AI12) -> 0 | AK12: =AJ12/(AL4-AJ11) -> 0 | AL12: =IF(AK12=0,0,(AK12*((LOG(AK12))/LOG(2)))) -> 0 | AN12: =N12 -> 212 | AO12: =COUNTIF(L19:L21,AN12) -> 0 | AP12: =AO12/(AQ4-AO11) -> 0 | AQ12: =IF(AP12=0,0,(AP12*((LOG(AP12))/LOG(2)))) -> 0 | AS12: =N12 -> 212 | AT12: =COUNTIF(L22:L24,AS12) -> 0 | AU12: =AT12/(AV4-AT11) -> 0 | AV12: =IF(AU12=0,0,(AU12*((LOG(AU12))/LOG(2)))) -> 0
A13: 12 | B13: 839 | C13: 13 | D13: 846 | E13: 13 | F13: 850 | K13: 0 | L13: 111 | N13: 221 | O13: =COUNTIF($L$7:$L$500,N13) -> 0 | P13: =O13/$Q$4 -> 0 | Q13: =IF(P13=0,0,(P13*((LOG(P13))/LOG(2)))) -> 0 | T13: =N13 -> 221 | U13: =COUNTIF(L7:L9,T13) -> 0 | V13: =U13/(W4-U11) -> 0 | W13: =IF(V13=0,0,(V13*((LOG(V13))/LOG(2)))) -> 0 | Y13: =N13 -> 221 | Z13: =COUNTIF(L10:L12,Y13) -> 0 | AA13: =Z13/(AB4-Z11) -> 0 | AB13: =IF(AA13=0,0,(AA13*((LOG(AA13))/LOG(2)))) -> 0 | AD13: =N13 -> 221 | AE13: =COUNTIF(L13:L15,AD13) -> 0 | AF13: =AE13/(AG4-AE11) -> 0 | AG13: =IF(AF13=0,0,(AF13*((LOG(AF13))/LOG(2)))) -> 0 | AI13: =N13 -> 221 | AJ13: =COUNTIF(L16:L18,AI13) -> 0 | AK13: =AJ13/(AL4-AJ11) -> 0 | AL13: =IF(AK13=0,0,(AK13*((LOG(AK13))/LOG(2)))) -> 0 | AN13: =N13 -> 221 | AO13: =COUNTIF(L19:L21,AN13) -> 0 | AP13: =AO13/(AQ4-AO11) -> 0 | AQ13: =IF(AP13=0,0,(AP13*((LOG(AP13))/LOG(2)))) -> 0 | AS13: =N13 -> 221 | AT13: =COUNTIF(L22:L24,AS13) -> 0 | AU13: =AT13/(AV4-AT11) -> 0 | AV13: =IF(AU13=0,0,(AU13*((LOG(AU13))/LOG(2)))) -> 0
A14: 12 | B14: 950 | C14: 13 | D14: 954 | E14: 13 | F14: 959 | K14: 0 | L14: 111 | N14: 222 | O14: =COUNTIF($L$7:$L$500,N14) -> 8 | P14: =O14/$Q$4 -> 0.4444444444 | Q14: =IF(P14=0,0,(P14*((LOG(P14))/LOG(2)))) -> -0.5199666673 | T14: =N14 -> 222 | U14: =COUNTIF(L7:L9,T14) -> 3 | V14: =U14/(W4-U11) -> 1 | W14: =IF(V14=0,0,(V14*((LOG(V14))/LOG(2)))) -> 0 | Y14: =N14 -> 222 | Z14: =COUNTIF(L10:L12,Y14) -> 0 | AA14: =Z14/(AB4-Z11) -> 0 | AB14: =IF(AA14=0,0,(AA14*((LOG(AA14))/LOG(2)))) -> 0 | AD14: =N14 -> 222 | AE14: =COUNTIF(L13:L15,AD14) -> 0 | AF14: =AE14/(AG4-AE11) -> 0 | AG14: =IF(AF14=0,0,(AF14*((LOG(AF14))/LOG(2)))) -> 0 | AI14: =N14 -> 222 | AJ14: =COUNTIF(L16:L18,AI14) -> 0 | AK14: =AJ14/(AL4-AJ11) -> 0 | AL14: =IF(AK14=0,0,(AK14*((LOG(AK14))/LOG(2)))) -> 0 | AN14: =N14 -> 222 | AO14: =COUNTIF(L19:L21,AN14) -> 2 | AP14: =AO14/(AQ4-AO11) -> 0.6666666667 | AQ14: =IF(AP14=0,0,(AP14*((LOG(AP14))/LOG(2)))) -> -0.3899750005 | AS14: =N14 -> 222 | AT14: =COUNTIF(L22:L24,AS14) -> 3 | AU14: =AT14/(AV4-AT11) -> 1 | AV14: =IF(AU14=0,0,(AU14*((LOG(AU14))/LOG(2)))) -> 0
A15: 12 | B15: 1069 | C15: 13 | D15: 1074 | E15: 13 | F15: 1083 | K15: 0 | L15: 111 | P15: =SUM(P7:P14) -> 1 | Q15: =-SUM(Q7:Q14) -> 0.9910760598 | V15: =SUM(V7:V14) -> 1 | W15: =-SUM(W7:W14) -> 0 | AA15: =SUM(AA7:AA14) -> 1 | AB15: =-SUM(AB7:AB14) -> 0 | AF15: =SUM(AF7:AF14) -> 1 | AG15: =-SUM(AG7:AG14) -> 0 | AK15: =SUM(AK7:AK14) -> 1 | AL15: =-SUM(AL7:AL14) -> 0 | AP15: =SUM(AP7:AP14) -> 1 | AQ15: =-SUM(AQ7:AQ14) -> 0.9182958341 | AU15: =SUM(AU7:AU14) -> 1 | AV15: =-SUM(AV7:AV14) -> 0
A16: 12 | B16: 1185 | C16: 13 | D16: 1190 | E16: 13 | F16: 1195 | K16: 0 | L16: 111 | P16: U= | Q16: =Q15/(LOG(Q4)/LOG(2)) -> 0.2376723945 | V16: U1= | W16: =W15/(LOG(W4)/LOG(2)) -> 0 | AA16: U2= | AB16: =AB15/(LOG(AB4)/LOG(2)) -> 0 | AF16: U3= | AG16: =AG15/(LOG(AG4)/LOG(2)) -> 0 | AK16: U4= | AL16: =AL15/(LOG(AL4)/LOG(2)) -> 0 | AP16: U5= | AQ16: =AQ15/(LOG(AQ4)/LOG(2)) -> 0.5793801643 | AU16: U6= | AV16: =AV15/(LOG(AV4)/LOG(2)) -> 0
A17: 12 | B17: 1296 | C17: 13 | D17: 1300 | E17: 13 | F17: 1305 | K17: 0 | L17: 111
A18: 12 | B18: 1408 | C18: 13 | D18: 1413 | E18: 13 | F18: 1417 | K18: 0 | L18: 111
A19: 21 | B19: 1532 | C19: 22 | D19: 1538 | E19: 24 | F19: 1544 | K19: 0 | L19: 222 | N19: Total Target Seq
A20: 21 | B20: 2006 | C20: 22 | D20: 2011 | E20: 24 | F20: 2018 | K20: 0 | L20: 222 | N20: =COUNTIF(L7:L24,G3) -> 0 | P20: 3 | Q20: 3 | R20: 3 | S20: 3 | T20: 3 | U20: 3
A21: 12 | B21: 12430 | C21: 13 | D21: 12435 | E21: 13 | F21: 12441 | K21: 0 | L21: 111 | P21: % of reinforcement given in 6 equal intervals based on number of trials
A22: 21 | B22: 16486 | C22: 22 | D22: 16505 | E22: 24 | F22: 16516 | K22: 0 | L22: 222 | P22: %_1 | Q22: %_2 | R22: %_3 | S22: %_4 | T22: %_5 | U22: %_6
A23: 21 | B23: 18256 | C23: 22 | D23: 18267 | E23: 24 | F23: 18276 | K23: 0 | L23: 222 | O23: target sequence | P23: =$G$3 -> 211 | Q23: =$G$3 -> 211 | R23: =$G$3 -> 211 | S23: =$G$3 -> 211 | T23: =$G$3 -> 211 | U23: =$G$3 -> 211
A24: 21 | B24: 18407 | C24: 22 | D24: 18417 | E24: 24 | F24: 18422 | K24: 0 | L24: 222 | O24: total reinforcement | P24: =U11 -> 0 | Q24: =Z11 -> 0 | R24: =AE11 -> 0 | S24: =AJ11 -> 0 | T24: =AO11 -> 0 | U24: =AT11 -> 0
O25: % target
O26: CCRF
O27: % CCRf
O28: average response rate | P28: =F9/P20 -> 132.6666667 | Q28: =(F12-F9)/Q20 -> 114.6666667 | R28: =(F15-F12)/R20 -> 113.6666667 | S28: =(F18-F15)/S20 -> 111.3333333 | T28: =(F21-F18)/T20 -> 3674.666667 | U28: =(F24-F21)/U20 -> 1993.666667

Sheet !N124850.010
A1: Report for:!N124850.010
A2: Date: | B2: <date>
A3: Hen: | B3: <hen> | F3: Correct Sequence | G3: =Start!J2 -> 211 | P3: Total Sequences in Data | Q3: =4994-COUNTBLANK(L7:L5000) -> 9 | V3: Total Sequences in Block Data | W3: =COUNTA(L7:L8) -> 2 | AA3: Total Sequences in Block Data | AB3: =COUNTA(L9:L9) -> 1 | AF3: Total Sequences in Block Data | AG3: =COUNTA(L10:L11) -> 2 | AK3: Total Sequences in Block Data | AL3: =COUNTA(L12:L12) -> 1 | AP3: Total Sequences in Block Data | AQ3: =COUNTA(L13:L14) -> 2 | AU3: Total Sequences in Block Data | AV3: =COUNTA(L15:L15) -> 1
P4: Total Sequences in Summary | Q4: =SUM(O7:O14) -> 9 | V4: Total Sequences in Block Summary | W4: =SUM(U7:U14) -> 2 | AA4: Total Sequences in Block Summary | AB4: =SUM(Z7:Z14) -> 1 | AF4: Total Sequences in Block Summary | AG4: =SUM(AE7:AE14) -> 2 | AK4: Total Sequences in Block Summary | AL4: =SUM(AJ7:AJ14) -> 1 | AP4: Total Sequences in Block Summary | AQ4: =SUM(AO7:AO14) -> 2 | AU4: Total Sequences in Block Summary | AV4: =SUM(AT7:AT14) -> 1
T5: Block 1 | Y5: Block 2 | AD5: Block 3 | AI5: Block 4 | AN5: Block 5 | AS5: Block 6
A6: Sequence Component 1 | B6: Time 1 | C6: Sequence Component 2 | D6: Time 2 | E6: Sequence Component 3 | F6: Time 3 | G6: Sequence Component 4 | H6: Time 4 | I6: Sequence Component 5 | J6: Time 5 | K6: Correct? 0=No 1=Yes | L6: Sequence | N6: Frequency | P6: Relative Frequency | Q6: Variability | T6: Frequency | V6: Relative Frequency | W6: Variability | Y6: Frequency | AA6: Relative Frequency | AB6: Variability | AD6: Frequency | AF6: Relative Frequency | AG6: Variability | AI6: Frequency | AK6: Relative Frequency | AL6: Variability | AN6: Frequency | AP6: Relative Frequency | AQ6: Variability | AS6: Frequency | AU6: Relative Frequency | AV6: Variability
A7: 21 | B7: 16 | C7: 22 | D7: 21 | E7: 24 | F7: 25 | K7: 0 | L7: 222 | N7: 111 | O7: =COUNTIF($L$7:$L$500,N7) -> 5 | P7: =O7/$Q$4 -> 0.5555555556 | Q7: =IF(P7=0,0,(P7*((LOG(P7))/LOG(2)))) -> -0.4711093925 | T7: =N7 -> 111 | U7: =COUNTIF(L7:L8,T7) -> 1 | V7: =U7/(W4-U11) -> 0.5 | W7: =IF(V7=0,0,(V7*((LOG(V7))/LOG(2)))) -> -0.5 | Y7: =N7 -> 111 | Z7: =COUNTIF(L9:L9,Y7) -> 1 | AA7: =Z7/(AB4-Z11) -> 1 | AB7: =IF(AA7=0,0,(AA7*((LOG(AA7))/LOG(2)))) -> 0 | AD7: =N7 -> 111 | AE7: =COUNTIF(L10:L11,AD7) -> 2 | AF7: =AE7/(AG4-AE11) -> 1 | AG7: =IF(AF7=0,0,(AF7*((LOG(AF7))/LOG(2)))) -> 0 | AI7: =N7 -> 111 | AJ7: =COUNTIF(L12:L12,AI7) -> 0 | AK7: =AJ7/(AL4-AJ11) -> 0 | AL7: =IF(AK7=0,0,(AK7*((LOG(AK7))/LOG(2)))) -> 0 | AN7: =N7 -> 111 | AO7: =COUNTIF(L13:L14,AN7) -> 0 | AP7: =AO7/(AQ4-AO11) -> 0 | AQ7: =IF(AP7=0,0,(AP7*((LOG(AP7))/LOG(2)))) -> 0 | AS7: =N7 -> 111 | AT7: =COUNTIF(L15:L15,AS7) -> 1 | AU7: =AT7/(AV4-AT11) -> 1 | AV7: =IF(AU7=0,0,(AU7*((LOG(AU7))/LOG(2)))) -> 0
A8: 12 | B8: 140 | C8: 13 | D8: 144 | E8: 13 | F8: 149 | K8: 0 | L8: 111 | N8: 112 | O8: =COUNTIF($L$7:$L$500,N8) -> 0 | P8: =O8/$Q$4 -> 0 | Q8: =IF(P8=0,0,(P8*((LOG(P8))/LOG(2)))) -> 0 | T8: =N8 -> 112 | U8: =COUNTIF(L7:L8,T8) -> 0 | V8: =U8/(W4-U11) -> 0 | W8: =IF(V8=0,0,(V8*((LOG(V8))/LOG(2)))) -> 0 | Y8: =N8 -> 112 | Z8: =COUNTIF(L9:L9,Y8) -> 0 | AA8: =Z8/(AB4-Z11) -> 0 | AB8: =IF(AA8=0,0,(AA8*((LOG(AA8))/LOG(2)))) -> 0 | AD8: =N8 -> 112 | AE8: =COUNTIF(L10:L11,AD8) -> 0 | AF8: =AE8/(AG4-AE11) -> 0 | AG8: =IF(AF8=0,0,(AF8*((LOG(AF8))/LOG(2)))) -> 0 | AI8: =N8 -> 112 | AJ8: =COUNTIF(L12:L12,AI8) -> 0 | AK8: =AJ8/(AL4-AJ11) -> 0 | AL8: =IF(AK8=0,0,(AK8*((LOG(AK8))/LOG(2)))) -> 0 | AN8: =N8 -> 112 | AO8: =COUNTIF(L13:L14,AN8) -> 0 | AP8: =AO8/(AQ4-AO11) -> 0 | AQ8: =IF(AP8=0,0,(AP8*((LOG(AP8))/LOG(2)))) -> 0 | AS8: =N8 -> 112 | AT8: =COUNTIF(L15:L15,AS8) -> 0 | AU8: =AT8/(AV4-AT11) -> 0 | AV8: =IF(AU8=0,0,(AU8*((LOG(AU8))/LOG(2)))) -> 0
A9: 12 | B9: 400 | C9: 13 | D9: 405 | E9: 13 | F9: 409 | K9: 0 | L9: 111 | N9: 121 | O9: =COUNTIF($L$7:$L$500,N9) -> 0 | P9: =O9/$Q$4 -> 0 | Q9: =IF(P9=0,0,(P9*((LOG(P9))/LOG(2)))) -> 0 | T9: =N9 -> 121 | U9: =COUNTIF(L7:L8,T9) -> 0 | V9: =U9/(W4-U11) -> 0 | W9: =IF(V9=0,0,(V9*((LOG(V9))/LOG(2)))) -> 0 | Y9: =N9 -> 121 | Z9: =COUNTIF(L9:L9,Y9) -> 0 | AA9: =Z9/(AB4-Z11) -> 0 | AB9: =IF(AA9=0,0,(AA9*((LOG(AA9))/LOG(2)))) -> 0 | AD9: =N9 -> 121 | AE9: =COUNTIF(L10:L11,AD9) -> 0 | AF9: =AE9/(AG4-AE11) -> 0 | AG9: =IF(AF9=0,0,(AF9*((LOG(AF9))/LOG(2)))) -> 0 | AI9: =N9 -> 121 | AJ9: =COUNTIF(L12:L12,AI9) -> 0 | AK9: =AJ9/(AL4-AJ11) -> 0 | AL9: =IF(AK9=0,0,(AK9*((LOG(AK9))/LOG(2)))) -> 0 | AN9: =N9 -> 121 | AO9: =COUNTIF(L13:L14,AN9) -> 0 | AP9: =AO9/(AQ4-AO11) -> 0 | AQ9: =IF(AP9=0,0,(AP9*((LOG(AP9))/LOG(2)))) -> 0 | AS9: =N9 -> 121 | AT9: =COUNTIF(L15:L15,AS9) -> 0 | AU9: =AT9/(AV4-AT11) -> 0 | AV9: =IF(AU9=0,0,(AU9*((LOG(AU9))/LOG(2)))) -> 0
A10: 12 | B10: 518 | C10: 13 | D10: 523 | E10: 13 | F10: 528 | K10: 0 | L10: 111 | N10: 122 | O10: =COUNTIF($L$7:$L$500,N10) -> 0 | P10: =O10/$Q$4 -> 0 | Q10: =IF(P10=0,0,(P10*((LOG(P10))/LOG(2)))) -> 0 | T10: =N10 -> 122 | U10: =COUNTIF(L7:L8,T10) -> 0 | V10: =U10/(W4-U11) -> 0 | W10: =IF(V10=0,0,(V10*((LOG(V10))/LOG(2)))) -> 0 | Y10: =N10 -> 122 | Z10: =COUNTIF(L9:L9,Y10) -> 0 | AA10: =Z10/(AB4-Z11) -> 0 | AB10: =IF(AA10=0,0,(AA10*((LOG(AA10))/LOG(2)))) -> 0 | AD10: =N10 -> 122 | AE10: =COUNTIF(L10:L11,AD10) -> 0 | AF10: =AE10/(AG4-AE11) -> 0 | AG10: =IF(AF10=0,0,(AF10*((LOG(AF10))/LOG(2)))) -> 0 | AI10: =N10 -> 122 | AJ10: =COUNTIF(L12:L12,AI10) -> 0 | AK10: =AJ10/(AL4-AJ11) -> 0 | AL10: =IF(AK10=0,0,(AK10*((LOG(AK10))/LOG(2)))) -> 0 | AN10: =N10 -> 122 | AO10: =COUNTIF(L13:L14,AN10) -> 0 | AP10: =AO10/(AQ4-AO11) -> 0 | AQ10: =IF(AP10=0,0,(AP10*((LOG(AP10))/LOG(2)))) -> 0 | AS10: =N10 -> 122 | AT10: =COUNTIF(L15:L15,AS10) -> 0 | AU10: =AT10/(AV4-AT11) -> 0 | AV10: =IF(AU10=0,0,(AU10*((LOG(AU10))/LOG(2)))) -> 0
A11: 12 | B11: 655 | C11: 13 | D11: 660 | E11: 13 | F11: 664 | K11: 0 | L11: 111 | N11: 211 | O11: =COUNTIF($L$7:$L$500,N11) -> 0 | P11: =O11/$Q$4 -> 0 | Q11: =IF(P11=0,0,(P11*((LOG(P11))/LOG(2)))) -> 0 | T11: =N11 -> 211 | U11: =COUNTIF(L7:L8,T11) -> 0 | Y11: =N11 -> 211 | Z11: =COUNTIF(L9:L9,Y11) -> 0 | AD11: =N11 -> 211 | AE11: =COUNTIF(L10:L11,AD11) -> 0 | AI11: =N11 -> 211 | AJ11: =COUNTIF(L12:L12,AI11) -> 0 | AN11: =N11 -> 211 | AO11: =COUNTIF(L13:L14,AN11) -> 0 | AS11: =N11 -> 211 | AT11: =COUNTIF(L15:L15,AS11) -> 0
A12: 21 | B12: 15633 | C12: 22 | D12: 15639 | E12: 24 | F12: 15646 | K12: 0 | L12: 222 | N12: 212 | O12: =COUNTIF($L$7:$L$500,N12) -> 0 | P12: =O12/$Q$4 -> 0 | Q12: =IF(P12=0,0,(P12*((LOG(P12))/LOG(2)))) -> 0 | T12: =N12 -> 212 | U12: =COUNTIF(L7:L8,T12) -> 0 | V12: =U12/(W4-U11) -> 0 | W12: =IF(V12=0,0,(V12*((LOG(V12))/LOG(2)))) -> 0 | Y12: =N12 -> 212 | Z12: =COUNTIF(L9:L9,Y12) -> 0 | AA12: =Z12/(AB4-Z11) -> 0 | AB12: =IF(AA12=0,0,(AA12*((LOG(AA12))/LOG(2)))) -> 0 | AD12: =N12 -> 212 | AE12: =COUNTIF(L10:L11,AD12) -> 0 | AF12: =AE12/(AG4-AE11) -> 0 | AG12: =IF(AF12=0,0,(AF12*((LOG(AF12))/LOG(2)))) -> 0 | AI12: =N12 -> 212 | AJ12: =COUNTIF(L12:L12,AI12) -> 0 | AK12: =AJ12/(AL4-AJ11) -> 0 | AL12: =IF(AK12=0,0,(AK12*((LOG(AK12))/LOG(2)))) -> 0 | AN12: =N12 -> 212 | AO12: =COUNTIF(L13:L14,AN12) -> 0 | AP12: =AO12/(AQ4-AO11) -> 0 | AQ12: =IF(AP12=0,0,(AP12*((LOG(AP12))/LOG(2)))) -> 0 | AS12: =N12 -> 212 | AT12: =COUNTIF(L15:L15,AS12) -> 0 | AU12: =AT12/(AV4-AT11) -> 0 | AV12: =IF(AU12=0,0,(AU12*((LOG(AU12))/LOG(2)))) -> 0
A13: 21 | B13: 15779 | C13: 22 | D13: 15785 | E13: 24 | F13: 15791 | K13: 0 | L13: 222 | N13: 221 | O13: =COUNTIF($L$7:$L$500,N13) -> 0 | P13: =O13/$Q$4 -> 0 | Q13: =IF(P13=0,0,(P13*((LOG(P13))/LOG(2)))) -> 0 | T13: =N13 -> 221 | U13: =COUNTIF(L7:L8,T13) -> 0 | V13: =U13/(W4-U11) -> 0 | W13: =IF(V13=0,0,(V13*((LOG(V13))/LOG(2)))) -> 0 | Y13: =N13 -> 221 | Z13: =COUNTIF(L9:L9,Y13) -> 0 | AA13: =Z13/(AB4-Z11) -> 0 | AB13: =IF(AA13=0,0,(AA13*((LOG(AA13))/LOG(2)))) -> 0 | AD13: =N13 -> 221 | AE13: =COUNTIF(L10:L11,AD13) -> 0 | AF13: =AE13/(AG4-AE11) -> 0 | AG13: =IF(AF13=0,0,(AF13*((LOG(AF13))/LOG(2)))) -> 0 | AI13: =N13 -> 221 | AJ13: =COUNTIF(L12:L12,AI13) -> 0 | AK13: =AJ13/(AL4-AJ11) -> 0 | AL13: =IF(AK13=0,0,(AK13*((LOG(AK13))/LOG(2)))) -> 0 | AN13: =N13 -> 221 | AO13: =COUNTIF(L13:L14,AN13) -> 0 | AP13: =AO13/(AQ4-AO11) -> 0 | AQ13: =IF(AP13=0,0,(AP13*((LOG(AP13))/LOG(2)))) -> 0 | AS13: =N13 -> 221 | AT13: =COUNTIF(L15:L15,AS13) -> 0 | AU13: =AT13/(AV4-AT11) -> 0 | AV13: =IF(AU13=0,0,(AU13*((LOG(AU13))/LOG(2)))) -> 0
A14: 21 | B14: 18856 | C14: 22 | D14: 18863 | E14: 24 | F14: 18870 | K14: 0 | L14: 222 | N14: 222 | O14: =COUNTIF($L$7:$L$500,N14) -> 4 | P14: =O14/$Q$4 -> 0.4444444444 | Q14: =IF(P14=0,0,(P14*((LOG(P14))/LOG(2)))) -> -0.5199666673 | T14: =N14 -> 222 | U14: =COUNTIF(L7:L8,T14) -> 1 | V14: =U14/(W4-U11) -> 0.5 | W14: =IF(V14=0,0,(V14*((LOG(V14))/LOG(2)))) -> -0.5 | Y14: =N14 -> 222 | Z14: =COUNTIF(L9:L9,Y14) -> 0 | AA14: =Z14/(AB4-Z11) -> 0 | AB14: =IF(AA14=0,0,(AA14*((LOG(AA14))/LOG(2)))) -> 0 | AD14: =N14 -> 222 | AE14: =COUNTIF(L10:L11,AD14) -> 0 | AF14: =AE14/(AG4-AE11) -> 0 | AG14: =IF(AF14=0,0,(AF14*((LOG(AF14))/LOG(2)))) -> 0 | AI14: =N14 -> 222 | AJ14: =COUNTIF(L12:L12,AI14) -> 1 | AK14: =AJ14/(AL4-AJ11) -> 1 | AL14: =IF(AK14=0,0,(AK14*((LOG(AK14))/LOG(2)))) -> 0 | AN14: =N14 -> 222 | AO14: =COUNTIF(L13:L14,AN14) -> 2 | AP14: =AO14/(AQ4-AO11) -> 1 | AQ14: =IF(AP14=0,0,(AP14*((LOG(AP14))/LOG(2)))) -> 0 | AS14: =N14 -> 222 | AT14: =COUNTIF(L15:L15,AS14) -> 0 | AU14: =AT14/(AV4-AT11) -> 0 | AV14: =IF(AU14=0,0,(AU14*((LOG(AU14))/LOG(2)))) -> 0
A15: 12 | B15: 19081 | C15: 13 | D15: 19100 | E15: 13 | F15: 19105 | K15: 0 | L15: 111 | P15: =SUM(P7:P14) -> 1 | Q15: =-SUM(Q7:Q14) -> 0.9910760598 | V15: =SUM(V7:V14) -> 1 | W15: =-SUM(W7:W14) -> 1 | AA15: =SUM(AA7:AA14) -> 1 | AB15: =-SUM(AB7:AB14) -> 0 | AF15: =SUM(AF7:AF14) -> 1 | AG15: =-SUM(AG7:AG14) -> 0 | AK15: =SUM(AK7:AK14) -> 1 | AL15: =-SUM(AL7:AL14) -> 0 | AP15: =SUM(AP7:AP14) -> 1 | AQ15: =-SUM(AQ7:AQ14) -> 0 | AU15: =SUM(AU7:AU14) -> 1 | AV15: =-SUM(AV7:AV14) -> 0
P16: U= | Q16: =Q15/(LOG(Q4)/LOG(2)) -> 0.3126496871 | V16: U1= | W16: =W15/(LOG(W4)/LOG(2)) -> 1 | AA16: U2= | AB16: =AB15/(LOG(AB4)/LOG(2)) ->  | AF16: U3= | AG16: =AG15/(LOG(AG4)/LOG(2)) -> 0 | AK16: U4= | AL16: =AL15/(LOG(AL4)/LOG(2)) ->  | AP16: U5= | AQ16: =AQ15/(LOG(AQ4)/LOG(2)) -> 0 | AU16: U6= | AV16: =AV15/(LOG(AV4)/LOG(2)) -> 
N19: Total Target Seq
